Workbook

Sheet Consolidation
A1: type | B1: no budget | C1: commande | D1: pos | E1: designation | F1: total | G1: 1 | H1: 2 | I1: 3 | J1: 4 | K1: 5 | L1: 6 | M1: 7 | N1: 8 | O1: 9 | P1: 10 | Q1: 11 | R1: 12 | T1: designation | U1: 1 | V1: 2 | W1: 3 | X1: 4
A2: budget | C2: =F2+F5+F9 -> 456610 | E2: budget heures AST | F2: =SUM(G2:R2) -> 126000 | G2: =Budget!F7 -> 10500 | H2: =Budget!G7 -> 10500 | I2: =Budget!H7 -> 10500 | J2: =Budget!I7 -> 10500 | K2: =Budget!J7 -> 10500 | L2: =Budget!K7 -> 10500 | M2: =Budget!L7 -> 10500 | N2: =Budget!M7 -> 10500 | O2: =Budget!N7 -> 10500 | P2: =Budget!O7 -> 10500 | Q2: =Budget!P7 -> 10500 | R2: =Budget!Q7 -> 10500 | T2: budget heures AST | U2: =SUM(G2:I2) -> 31500 | V2: =SUM(J2:L2) -> 31500 | W2: =SUM(M2:O2) -> 31500 | X2: =SUM(P2:R2) -> 31500
A3: estimation | C3: =F3+F6+F10 -> 406290.26 | E3: estim heures AST | F3: 126000 | G3: 10500 | H3: 10500 | I3: 10500 | J3: 10500 | K3: 10500 | L3: 10500 | M3: 10500 | N3: 10500 | O3: 10500 | P3: 10500 | Q3: 10500 | R3: 10500 | T3: estim heures AST | U3: =SUM(G3:I3) -> 31500 | V3: =SUM(J3:L3) -> 31500 | W3: =SUM(M3:O3) -> 31500 | X3: =SUM(P3:R3) -> 31500
A4: reception | C4: =F4+F7+F11 -> 155903.21 | E4: reel heures AST | F4: 44755.2 | G4: =Heures!B2 -> 10567.2 | H4: =Heures!C2 -> 9324 | I4: =Heures!D2 -> 12121.2 | J4: =Heures!E2 -> 12742.8 | K4: =Heures!F2 -> 0 | L4: =Heures!G2 -> 0 | M4: =Heures!H2 -> 0 | N4: =Heures!I2 -> 0 | O4: =Heures!J2 -> 0 | P4: =Heures!K2 -> 0 | Q4: =Heures!L2 -> 0 | R4: =Heures!M2 -> 0 | T4: reel heures AST | U4: 32012.4 | V4: 12742.8 | W4: 0 | X4: 0
E5: budget heures autre | F5: 86400 | G5: =SUM(Budget!F8) -> 3000 | H5: =SUM(Budget!G8) -> 3000 | I5: =SUM(Budget!H8) -> 3000 | J5: =SUM(Budget!I8) -> 8600 | K5: =SUM(Budget!J8) -> 8600 | L5: =SUM(Budget!K8) -> 8600 | M5: =SUM(Budget!L8) -> 8600 | N5: =SUM(Budget!M8) -> 8600 | O5: =SUM(Budget!N8) -> 8600 | P5: =SUM(Budget!O8) -> 8600 | Q5: =SUM(Budget!P8) -> 8600 | R5: =SUM(Budget!Q8) -> 8600 | T5: budget heures autre | U5: 9000 | V5: 25800 | W5: 25800 | X5: 25800
E6: estim heures autre | F6: 79007 | G6: 7164 | H6: 7843 | I6: 5000 | J6: 7000 | K6: 7000 | L6: 7000 | M6: 5000 | N6: 5000 | O6: 7000 | P6: 7000 | Q6: 7000 | R6: 7000 | T6: estim heures autre | U6: 20007 | V6: 21000 | W6: 17000 | X6: 21000
E7: reel heures autre | F7: 27294.78 | G7: =Heures!B3 -> 7163.7 | H7: =Heures!C3 -> 7891.74 | I7: =Heures!D3 -> 6947.16 | J7: =Heures!E3 -> 5229.18 | K7: =Heures!F3 -> 63 | L7: =Heures!G3 -> 0 | M7: =Heures!H3 -> 0 | N7: =Heures!I3 -> 0 | O7: =Heures!J3 -> 0 | P7: =Heures!K3 -> 0 | Q7: =Heures!L3 -> 0 | R7: =Heures!M3 -> 0 | T7: reel heures autre | U7: 22002.6 | V7: 5292.18 | W7: 0 | X7: 0
G8: 1 | H8: 2 | I8: 3 | J8: 4 | K8: 5 | L8: 6 | M8: 7 | N8: 8 | O8: 9 | P8: 10 | Q8: 11 | R8: 12
A9: budget | E9: budget | F9: =SUM(G9:R9) -> 244210 | G9: 7000 | H9: 39500 | I9: 55600 | J9: 30900 | K9: 23450 | L9: 20400 | M9: 19060 | N9: 10600 | O9: 11100 | P9: 20600 | Q9: 0 | R9: 6000 | T9: budget | U9: =SUM(G9:I9) -> 102100 | V9: =SUM(J9:L9) -> 74750 | W9: =SUM(M9:O9) -> 40760 | X9: =SUM(P9:R9) -> 26600
A10: estimation | E10: estimation | F10: =SUM(G10:R10) -> 201283.26 | G10: 23364.08 | H10: 28765.39 | I10: 77628.56 | J10: 15213.8 | K10: 34245.18 | L10: 15106.25 | M10: 2310 | N10: 560 | O10: 2410 | P10: 560 | Q10: 560 | R10: 560 | T10: estimation | U10: 129758.03 | V10: 64565.23 | W10: 5280 | X10: 1680
A11: reception | E11: reception | F11: =SUM(G11:R11) -> 83853.23 | G11: 17764.08 | H11: 24454.37 | I11: 41634.78 | J11: 0 | K11: 0 | L11: 0 | M11: 0 | N11: 0 | O11: 0 | P11: 0 | Q11: 0 | R11: 0 | T11: reception | U11: 83853.23 | V11: 0 | W11: 0 | X11: 0
A12: budget | B12: 1 | E12: GPV10 : etude amelioration | F12: =SUM(G12:R12) -> 21850 | H12: 6000 | I12: 5000 | J12: 2500 | K12: 3350 | L12: 2500 | M12: 2500
A13: estimation | B13: 1 | E13: GPV10 : etude amelioration | F13: =SUM(G13:R13) -> 18519.74 | G13: 850 | H13: 0 | I13: 4564 | J13: 360 | K13: 2575.74 | L13: 6210 | M13: 1810 | N13: 60 | O13: 1910 | P13: 60 | Q13: 60 | R13: 60
A14: estim detail | B14: 1 | C14: 4101077157 | D14: 70 | E14: tiroir dia 10 suitant plan 172ASTE | G14: 850
A15: estim detail | B15: 1 | C15: 4101077157 | D15: 80 | E15: reprise de 10 tiroirs dia 10 depincage | I15: 60 | J15: 60 | K15: 60 | L15: 60 | M15: 60 | N15: 60 | O15: 60 | P15: 60 | Q15: 60 | R15: 60
A16: estim detail | B16: 1 | C16: 4101099719 | D16: 10 | E16: 3 Blocs Entretoise AST 3151 | I16: 504
A17: estim detail | B17: 1 | C17: 4101119046 | D17: 10 | E17: SVEFAPH30-1 Etude et maquette filaire | I17: 4000
A18: estim detail | B18: 1 | C18: 4101140773 | D18: 10 | E18: Tiroirs non chromés AST1743B | K18: 780
A19: estim detail | B19: 1 | C19: 4101141757 | D19: 30 | E19: TIROIR DIAM 10 SUIVANT PLAN 172 ASTE | K19: 1700
A20: estim detail | B20: 1 | C20: 4101150972 | D20: 10 | E20: AIMANT MTS 401 032 | J20: 300
A21: estim detail | B21: 1 | C21: 4101152043 | D21: 20 | E21: test relance
A22: estim detail | B22: 1 | C22: 4101132989 | D22: 10 | E22: poste 11 : Industrialisation | L22: 3000
A23: estim detail | B23: 1 | C23: 4101132989 | D23: 20 | E23: poste 110 : Amplificateur 4 quadrants 10 | L23: 3150
A24: estim detail | B24: 1 | C24: 4101150972 | D24: 20 | E24: Transport + emballage | K24: 35.74
A25: estim detail | B25: 1 | C25: 4101170004 | D25: 20 | E25: prototype AE60 - PKM1615 | M25: 1750
A26: estim detail | B26: 1 | C26: 4101170004 | D26: 10 | E26: prototype AE80 PKM1614 | O26: 1850
A27: reception | B27: 1 | E27: GPV10 : etude amelioration | F27: =SUM(G27:R27) -> 1354 | G27: 850 | H27: 0 | I27: 504 | J27: 0 | K27: 0 | L27: 0 | M27: 0 | N27: 0 | O27: 0 | P27: 0 | Q27: 0 | R27: 0
A28: recept detail | B28: 1 | C28: 4101077157 | D28: 70 | E28: tiroir dia 10 suitant plan 172ASTE | G28: 850
A29: recept detail | B29: 1 | C29: 4101077157 | D29: 80 | E29: reprise de 10 tiroirs dia 10 depincage
A30: recept detail | B30: 1 | C30: 4101099719 | D30: 10 | E30: 3 Blocs Entretoise AST 3151 | I30: 504
A31: recept detail | B31: 1 | C31: 4101119046 | D31: 10 | E31: SVEFAPH30-1 Etude et maquette filaire
A32: recept detail | B32: 1 | C32: 4101140773 | D32: 10 | E32: Tiroirs non chromés AST1743B
A33: recept detail | B33: 1 | C33: 4101141757 | D33: 30 | E33: TIROIR DIAM 10 SUIVANT PLAN 172 ASTE
A34: recept detail | B34: 1 | C34: 4101150972 | D34: 10 | E34: AIMANT MTS 401 032
A35: recept detail | B35: 1 | C35: 4101152043 | D35: 20 | E35: test relance
A36: recept detail | B36: 1 | C36: 4101132989 | D36: 10 | E36: poste 11 : Industrialisation
A37: recept detail | B37: 1 | C37: 4101132989 | D37: 20 | E37: poste 110 : Amplificateur 4 quadrants 10
A38: recept detail | B38: 1 | C38: 4101150972 | D38: 20 | E38: Transport + emballage
A39: recept detail | B39: 1 | C39: 4101170004 | D39: 20 | E39: prototype AE60 - PKM1615
A40: recept detail | B40: 1 | C40: 4101170004 | D40: 10 | E40: prototype AE80 PKM1614
A41: recept detail | B41: 1 | C41: 1 | D41: 6 | E41: bobines proto
A42: budget | B42: 2 | E42: GRV35 : prototype | F42: =SUM(G42:R42) -> 17700 | I42: 11000 | J42: 3200 | L42: 1300 | M42: 2200
A43: estimation | B43: 2 | E43: GRV35 : prototype | F43: =SUM(G43:R43) -> 12495.4 | G43: 0 | H43: 9890 | I43: 2045.4 | J43: 0 | K43: 560 | L43: 0 | M43: 0 | N43: 0 | O43: 0 | P43: 0 | Q43: 0 | R43: 0
A44: estim detail | B44: 2 | C44: 4101077157 | D44: 20 | E44: tiroir diam 35 6 voies | K44: 560
A45: estim detail | B45: 2 | C45: 4101090805 | D45: 10 | E45: SMALL MECHANICALS COMPONENTS | I45: 2045.4
A46: estim detail | B46: 2 | C46: 4101090805 | D46: 20 | E46: SMALL MECHANICALS COMPONENTS | H46: 9890
A47: reception | B47: 2 | E47: GRV35 : prototype | F47: =SUM(G47:R47) -> 9890 | G47: 0 | H47: 9890 | I47: 0 | J47: 0 | K47: 0 | L47: 0 | M47: 0 | N47: 0 | O47: 0 | P47: 0 | Q47: 0 | R47: 0
A48: recept detail | B48: 2 | C48: 4101077157 | D48: 20 | E48: tiroir diam 35 6 voies
A49: recept detail | B49: 2 | C49: 4101090805 | D49: 10 | E49: SMALL MECHANICALS COMPONENTS
A50: recept detail | B50: 2 | C50: 4101090805 | D50: 20 | E50: SMALL MECHANICALS COMPONENTS | H50: 9890
A51: recept detail | B51: 2 | C51: 1 | D51: 2 | E51: usinage GRV35
A52: budget | B52: 3 | E52: GRV35 : etudes | F52: =SUM(G52:R52) -> 10000 | I52: 7000 | K52: 3000
A53: estimation | B53: 3 | E53: GRV35 : etudes | F53: =SUM(G53:R53) -> 7000 | G53: 0 | H53: 0 | I53: 7000 | J53: 0 | K53: 0 | L53: 0 | M53: 0 | N53: 0 | O53: 0 | P53: 0 | Q53: 0 | R53: 0
A54: estim detail | B54: 3 | C54: 4101119831 | D54: 10 | E54: Etude developpement distributeur GRV35C | I54: 7000
A55: reception | B55: 3 | E55: GRV35 : etudes | F55: =SUM(G55:R55) -> 0 | G55: 0 | H55: 0 | I55: 0 | J55: 0 | K55: 0 | L55: 0 | M55: 0 | N55: 0 | O55: 0 | P55: 0 | Q55: 0 | R55: 0
A56: recept detail | B56: 3 | C56: 4101119831 | D56: 10 | E56: Etude developpement distributeur GRV35C
A57: recept detail | B57: 3 | C57: 1 | D57: 1 | E57: Dossier plans GRV35
A58: budget | B58: 4 | E58: GPV35 5V : prototype | F58: =SUM(G58:R58) -> 3500 | I58: 1000 | L58: 1000 | M58: 1000 | O58: 500
A59: estimation | B59: 4 | E59: GPV35 5V : prototype | F59: =SUM(G59:R59) -> 6381.28 | G59: 5601.28 | H59: 0 | I59: 520 | J59: 0 | K59: 260 | L59: 0 | M59: 0 | N59: 0 | O59: 0 | P59: 0 | Q59: 0 | R59: 0
A60: estim detail | B60: 4 | C60: 4101027329 | D60: 30 | E60: BODY 5V Ø35 AST3401E | G60: 2145
A61: estim detail | B61: 4 | C61: 4101027329 | D61: 40 | E61: BODY 5V Ø35 AST3411 | G61: 2145
A62: estim detail | B62: 4 | C62: 4101027342 | D62: 60 | E62: grossissement mécanique+variation cout | G62: 1051.28
A63: estim detail | B63: 4 | C63: 4101077157 | D63: 10 | E63: tiroir diam 35 5 voies | G63: 260 | I63: 520 | K63: 260
A64: reception | B64: 4 | E64: GPV35 5V : prototype | F64: =SUM(G64:R64) -> 5601.28 | G64: 5601.28 | H64: 0 | I64: 0 | J64: 0 | K64: 0 | L64: 0 | M64: 0 | N64: 0 | O64: 0 | P64: 0 | Q64: 0 | R64: 0
A65: recept detail | B65: 4 | C65: 4101027329 | D65: 30 | E65: BODY 5V Ø35 AST3401E | G65: 2145
A66: recept detail | B66: 4 | C66: 4101027329 | D66: 40 | E66: BODY 5V Ø35 AST3411 | G66: 2145
A67: recept detail | B67: 4 | C67: 4101027342 | D67: 60 | E67: grossissement mécanique+variation cout | G67: 1051.28
A68: recept detail | B68: 4 | C68: 4101077157 | D68: 10 | E68: tiroir diam 35 5 voies | G68: 260
A69: budget | B69: 5 | E69: GPV50 5V : prototype | F69: =SUM(G69:R69) -> 3860 | H69: 2500 | M69: 1360
A70: estimation | B70: 5 | E70: GPV50 5V : prototype | F70: =SUM(G70:R70) -> 5147 | G70: 0 | H70: 0 | I70: 3787 | J70: 0 | K70: 1360 | L70: 0 | M70: 0 | N70: 0 | O70: 0 | P70: 0 | Q70: 0 | R70: 0
A71: estim detail | B71: 5 | C71: 4101027329 | D71: 60 | E71: BODY 5V Ø50 AST3301E | I71: 2427
A72: estim detail | B72: 5 | C72: 4101077157 | D72: 30 | E72: tiroir diam 50 5 voies | I72: 1360
A73: estim detail | B73: 5 | C73: 4101141757 | D73: 10 | E73: TIROIR DIAM 50 5 VOIES | K73: 1360
A74: reception | B74: 5 | E74: GPV50 5V : prototype | F74: =SUM(G74:R74) -> 2298 | G74: 0 | H74: 0 | I74: 2298 | J74: 0 | K74: 0 | L74: 0 | M74: 0 | N74: 0 | O74: 0 | P74: 0 | Q74: 0 | R74: 0
A75: recept detail | B75: 5 | C75: 4101027329 | D75: 60 | E75: BODY 5V Ø50 AST3301E | I75: 1618
A76: recept detail | B76: 5 | C76: 4101077157 | D76: 30 | E76: tiroir diam 50 5 voies | I76: 680
A77: recept detail | B77: 5 | C77: 4101141757 | D77: 10 | E77: TIROIR DIAM 50 5 VOIES
A78: budget | B78: 6 | E78: GEV50 6V : prototype | F78: =SUM(G78:R78) -> 10180 | H78: 7200 | J78: 2980
A79: estimation | B79: 6 | E79: GEV50 6V : prototype | F79: =SUM(G79:R79) -> 10166.05 | G79: 3028.58 | H79: 0 | I79: 4164 | J79: 0 | K79: 1493.47 | L79: 1480 | M79: 0 | N79: 0 | O79: 0 | P79: 0 | Q79: 0 | R79: 0
A80: estim detail | B80: 6 | C80: 4100982695 | D80: 10 | E80: Corps GPV50 6V | G80: 2140.67
A81: estim detail | B81: 6 | C81: 4100982695 | D81: 90 | E81: Frais d'expédition | G81: 195
A82: estim detail | B82: 6 | C82: 4100982695 | D82: 100 | E82: grossissement mécanique+varation cout | G82: 692.91
A83: estim detail | B83: 6 | C83: 4101027329 | D83: 70 | E83: BODY 6V Ø50 AST3341A | I83: 2568
A84: estim detail | B84: 6 | C84: 4101027329 | D84: 170 | E84: BODY 6V Ø50 AST3341A | I84: 856
A85: estim detail | B85: 6 | C85: 4101027932 | D85: 60 | E85: tiroir diam 50 6 voies | L85: 1480
A86: estim detail | B86: 6 | C86: 4101077157 | D86: 40 | E86: tiroir diam 50 6 voies | I86: 740 | K86: 740
A87: estim detail | B87: 6 | C87: 4100982695 | D87: 110 | E87: Grossissement mécanique + frais de port | K87: 603.47
A88: estim detail | B88: 6 | C88: 4101054633 | D88: 120 | E88: Livraison 26/04/2016 | K88: 150
A89: reception | B89: 6 | E89: GEV50 6V : prototype | F89: =SUM(G89:R89) -> 7192.58 | G89: 3028.58 | H89: 0 | I89: 4164 | J89: 0 | K89: 0 | L89: 0 | M89: 0 | N89: 0 | O89: 0 | P89: 0 | Q89: 0 | R89: 0
A90: recept detail | B90: 6 | C90: 4100982695 | D90: 10 | E90: Corps GPV50 6V | G90: 2140.67
A91: recept detail | B91: 6 | C91: 4100982695 | D91: 90 | E91: Frais d'expédition | G91: 195
A92: recept detail | B92: 6 | C92: 4100982695 | D92: 100 | E92: grossissement mécanique+varation cout | G92: 692.91
A93: recept detail | B93: 6 | C93: 4101027329 | D93: 70 | E93: BODY 6V Ø50 AST3341A | I93: 2568
A94: recept detail | B94: 6 | C94: 4101027329 | D94: 170 | E94: BODY 6V Ø50 AST3341A | I94: 856
A95: recept detail | B95: 6 | C95: 4101027932 | D95: 60 | E95: tiroir diam 50 6 voies
A96: recept detail | B96: 6 | C96: 4101077157 | D96: 40 | E96: tiroir diam 50 6 voies | I96: 740
A97: recept detail | B97: 6 | C97: 4100982695 | D97: 110 | E97: Grossissement mécanique + frais de port
A98: recept detail | B98: 6 | C98: 4101054633 | D98: 120 | E98: Livraison 26/04/2016
A99: recept detail | B99: 6 | C99: 1 | D99: 17 | E99: remboursement RIGA
A100: budget | B100: 7 | E100: GDV50 3V : prototype | F100: =SUM(G100:R100) -> 6820 | I100: 5600 | J100: 1220
A101: estimation | B101: 7 | E101: GDV50 3V : prototype | F101: =SUM(G101:R101) -> 11706.3 | G101: 0 | H101: 0 | I101: 5106.3 | J101: 6600 | K101: 0 | L101: 0 | M101: 0 | N101: 0 | O101: 0 | P101: 0 | Q101: 0 | R101: 0
A102: estim detail | B102: 7 | C102: 4101027329 | D102: 180 | E102: BODY 3V Ø50 AST3321 (pos 6) | I102: 2430
A103: estim detail | B103: 7 | C103: 4101027342 | D103: 30 | E103: corps taille 50 3 sorties | I103: 2676.3
A104: estim detail | B104: 7 | C104: 4101027932 | D104: 50 | E104: tiroir diam 50 3 voies | J104: 1480
A105: estim detail | B105: 7 | C105: 4101141757 | D105: 20 | E105: TIROIR DIAM 50 3 VOIES | J105: 1220
A106: estim detail | B106: 7 | C106: 4101145652 | D106: 10 | E106: 8 plaques interface | J106: 3900
A107: reception | B107: 7 | E107: GDV50 3V : prototype | F107: =SUM(G107:R107) -> 0 | G107: 0 | H107: 0 | I107: 0 | J107: 0 | K107: 0 | L107: 0 | M107: 0 | N107: 0 | O107: 0 | P107: 0 | Q107: 0 | R107: 0
A108: recept detail | B108: 7 | C108: 4101027329 | D108: 180 | E108: BODY 3V Ø50 AST3321 (pos 6)
A109: recept detail | B109: 7 | C109: 4101027342 | D109: 30 | E109: corps taille 50 3 sorties
A110: recept detail | B110: 7 | C110: 4101027932 | D110: 50 | E110: tiroir diam 50 3 voies
A111: recept detail | B111: 7 | C111: 4101141757 | D111: 20 | E111: TIROIR DIAM 50 3 VOIES
A112: recept detail | B112: 7 | C112: 4101145652 | D112: 10 | E112: 8 plaques interface
A113: recept detail | B113: 7 | C113: 1 | D113: 18 | E113: remboursement Gilboa
A114: budget | B114: 8 | E114: GDV80 3V : prototype | F114: =SUM(G114:R114) -> 8300 | G114: 800 | H114: 4800 | J114: 2700
A115: estimation | B115: 8 | E115: GDV80 3V : prototype | F115: =SUM(G115:R115) -> 7343.05 | G115: 0 | H115: 933.05 | I115: 6410 | J115: 0 | K115: 0 | L115: 0 | M115: 0 | N115: 0 | O115: 0 | P115: 0 | Q115: 0 | R115: 0
A116: estim detail | B116: 8 | C116: 4101027329 | D116: 80 | E116: BODY 3V Ø80 AST3521A | I116: 3795
A117: estim detail | B117: 8 | C117: 4101027329 | D117: 160 | E117: BODY 3V Ø80 AST3521A | I117: 1265
A118: estim detail | B118: 8 | C118: 4101077157 | D118: 50 | E118: tiroir diam 80 3 voies | I118: 1350
A119: estim detail | B119: 8 | C119: 4101089357 | D119: 10 | E119: Corps Moulé Brut _ Taille 80 _ 3 Sorties | H119: 933.05
A120: reception | B120: 8 | E120: GDV80 3V : prototype | F120: =SUM(G120:R120) -> 7343.05 | G120: 0 | H120: 933.05 | I120: 6410 | J120: 0 | K120: 0 | L120: 0 | M120: 0 | N120: 0 | O120: 0 | P120: 0 | Q120: 0 | R120: 0
A121: recept detail | B121: 8 | C121: 4101027329 | D121: 80 | E121: BODY 3V Ø80 AST3521A | I121: 3795
A122: recept detail | B122: 8 | C122: 4101027329 | D122: 160 | E122: BODY 3V Ø80 AST3521A | I122: 1265
A123: recept detail | B123: 8 | C123: 4101077157 | D123: 50 | E123: tiroir diam 80 3 voies | I123: 1350
A124: recept detail | B124: 8 | C124: 4101089357 | D124: 10 | E124: Corps Moulé Brut _ Taille 80 _ 3 Sorties | H124: 933.05
A125: budget | B125: 9 | E125: GPV80 5V : prototype | F125: =SUM(G125:R125) -> 5400 | H125: 4000 | M125: 1400
A126: estimation | B126: 9 | E126: GPV80 5V : prototype | F126: =SUM(G126:R126) -> 6831 | G126: 0 | H126: 0 | I126: 5481 | J126: 0 | K126: 1350 | L126: 0 | M126: 0 | N126: 0 | O126: 0 | P126: 0 | Q126: 0 | R126: 0
A127: estim detail | B127: 9 | C127: 4101027932 | D127: 70 | E127: tiroir diam 80 3 voies | K127: 1350
A128: estim detail | B128: 9 | C128: 4101077157 | D128: 60 | E128: tiroir diam 80 5 voies | I128: 1410
A129: estim detail | B129: 9 | C129: 4101089370 | D129: 10 | E129: BODY 5V Ø80 | I129: 4071
A130: reception | B130: 9 | E130: GPV80 5V : prototype | F130: =SUM(G130:R130) -> 5481 | G130: 0 | H130: 0 | I130: 5481 | J130: 0 | K130: 0 | L130: 0 | M130: 0 | N130: 0 | O130: 0 | P130: 0 | Q130: 0 | R130: 0
A131: recept detail | B131: 9 | C131: 4101027932 | D131: 70 | E131: tiroir diam 80 3 voies
A132: recept detail | B132: 9 | C132: 4101077157 | D132: 60 | E132: tiroir diam 80 5 voies | I132: 1410
A133: recept detail | B133: 9 | C133: 4101089370 | D133: 10 | E133: BODY 5V Ø80 | I133: 4071
A134: budget | B134: 10 | E134: GPVc : modif couvercles | F134: =SUM(G134:R134) -> 4600 | H134: 1800 | I134: 2800
A135: estimation | B135: 10 | E135: GPVc : modif couvercles | F135: =SUM(G135:R135) -> 9320.88 | G135: 0 | H135: 595 | I135: 8725.88 | J135: 0 | K135: 0 | L135: 0 | M135: 0 | N135: 0 | O135: 0 | P135: 0 | Q135: 0 | R135: 0
A136: estim detail | B136: 10 | C136: 4101113638 | D136: 10 | E136: modif Couvercles GPV Taille 35/50/80 | I136: 1800
A137: estim detail | B137: 10 | C137: 4101117505 | D137: 10 | E137: BLIND COVER 035 AST3410 Indice C | H137: 595
A138: estim detail | B138: 10 | C138: 4101125796 | D138: 10 | E138: BLIND COVER Ø35 | I138: 584
A139: estim detail | B139: 10 | C139: 4101125796 | D139: 20 | E139: COVER MTS Ø35 | I139: 752
A140: estim detail | B140: 10 | C140: 4101125796 | D140: 30 | E140: BLIND COVER Ø50 | I140: 1176
A141: estim detail | B141: 10 | C141: 4101125796 | D141: 40 | E141: COVER MTS Ø50 | I141: 904
A142: estim detail | B142: 10 | C142: 4101125796 | D142: 50 | E142: COVER MTS Ø80 | I142: 664
A143: estim detail | B143: 10 | C143: 4101126848 | D143: 10 | E143: Couvercle GPV35 | I143: 937.92
A144: estim detail | B144: 10 | C144: 4101126848 | D144: 20 | E144: Couvercle GPV50 | I144: 998.16
A145: estim detail | B145: 10 | C145: 4101126848 | D145: 30 | E145: Couvercle GPV80 | I145: 909.8
A146: reception | B146: 10 | E146: GPVc : modif couvercles | F146: =SUM(G146:R146) -> 595 | G146: 0 | H146: 595 | I146: 0 | J146: 0 | K146: 0 | L146: 0 | M146: 0 | N146: 0 | O146: 0 | P146: 0 | Q146: 0 | R146: 0
A147: recept detail | B147: 10 | C147: 4101113638 | D147: 10 | E147: modif Couvercles GPV Taille 35/50/80
A148: recept detail | B148: 10 | C148: 4101117505 | D148: 10 | E148: BLIND COVER 035 AST3410 Indice C | H148: 595
A149: recept detail | B149: 10 | C149: 4101125796 | D149: 10 | E149: BLIND COVER Ø35
A150: recept detail | B150: 10 | C150: 4101125796 | D150: 20 | E150: COVER MTS Ø35
A151: recept detail | B151: 10 | C151: 4101125796 | D151: 30 | E151: BLIND COVER Ø50
A152: recept detail | B152: 10 | C152: 4101125796 | D152: 40 | E152: COVER MTS Ø50
A153: recept detail | B153: 10 | C153: 4101125796 | D153: 50 | E153: COVER MTS Ø80
A154: recept detail | B154: 10 | C154: 4101126848 | D154: 10 | E154: Couvercle GPV35
A155: recept detail | B155: 10 | C155: 4101126848 | D155: 20 | E155: Couvercle GPV50
A156: recept detail | B156: 10 | C156: 4101126848 | D156: 30 | E156: Couvercle GPV80
A157: budget | B157: 11 | E157: GPVc : divers usinage | F157: =SUM(G157:R157) -> 2700 | J157: 2700
A158: estimation | B158: 11 | E158: GPVc : divers usinage | F158: =SUM(G158:R158) -> 4017.55 | G158: 82.23 | H158: 60 | I158: 1000 | J158: 300 | K158: 475.32 | L158: 300 | M158: 300 | N158: 300 | O158: 300 | P158: 300 | Q158: 300 | R158: 300
A159: estim detail | B159: 11 | C159: 4100982695 | D159: 20 | E159: Corps GPV80 3V | G159: 0.1
A160: estim detail | B160: 11 | C160: 4101027329 | D160: 150 | E160: Frais d'expédition | G160: 82.12
A161: estim detail | B161: 11 | C161: 4101027342 | D161: 50 | E161: corps taille 35 5 sorties | G161: 0.01
A162: estim detail | B162: 11 | C162: 4101125091 | D162: 10 | E162: Prestation mécanique | H162: 60 | I162: 1000 | J162: 300 | K162: 300 | L162: 300 | M162: 300 | N162: 300 | O162: 300 | P162: 300 | Q162: 300 | R162: 300
A163: estim detail | B163: 11 | C163: 4101125796 | D163: 60 | E163: Emballage + transport | K163: 65.32
A164: estim detail | B164: 11 | C164: 4101126848 | D164: 40 | E164: Frais de port | K164: 110
A165: reception | B165: 11 | E165: GPVc : divers usinage | F165: =SUM(G165:R165) -> 462.23 | G165: 82.23 | H165: 60 | I165: 320 | J165: 0 | K165: 0 | L165: 0 | M165: 0 | N165: 0 | O165: 0 | P165: 0 | Q165: 0 | R165: 0
A166: recept detail | B166: 11 | C166: 4100982695 | D166: 20 | E166: Corps GPV80 3V | G166: 0.1
A167: recept detail | B167: 11 | C167: 4101027329 | D167: 150 | E167: Frais d'expédition | G167: 82.12
A168: recept detail | B168: 11 | C168: 4101027342 | D168: 50 | E168: corps taille 35 5 sorties | G168: 0.01
A169: recept detail | B169: 11 | C169: 4101125091 | D169: 10 | E169: Prestation mécanique | H169: 60 | I169: 320
A170: recept detail | B170: 11 | C170: 4101125796 | D170: 60 | E170: Emballage + transport
A171: recept detail | B171: 11 | C171: 4101126848 | D171: 40 | E171: Frais de port
A172: budget | B172: 12 | E172: GPVc : rodage | F172: =SUM(G172:R172) -> 6000 | G172: 600 | H172: 600 | I172: 600 | J172: 600 | K172: 600 | L172: 600 | M172: 600 | N172: 600 | O172: 600 | P172: 600
A173: estimation | B173: 12 | E173: GPVc : rodage | F173: =SUM(G173:R173) -> 6127.6 | G173: 2827.75 | H173: 0 | I173: 2465 | J173: 568.6 | K173: 0 | L173: 266.25 | M173: 0 | N173: 0 | O173: 0 | P173: 0 | Q173: 0 | R173: 0
A174: estim detail | B174: 12 | C174: 4101054633 | D174: 10 | E174: Douille dia 35 | G174: 978
A175: estim detail | B175: 12 | C175: 4101054633 | D175: 20 | E175: Douille dia 50 | G175: 1190
A176: estim detail | B176: 12 | C176: 4101054633 | D176: 30 | E176: rodage corps dia 35 | G176: 159.75 | J176: 213 | L176: 266.25
A177: estim detail | B177: 12 | C177: 4101054633 | D177: 40 | E177: rodage corps dia 50 | I177: 426.72 | J177: 355.6
A178: estim detail | B178: 12 | C178: 4101054633 | D178: 50 | E178: rodage corps dia 80 | I178: 1160
A179: estim detail | B179: 12 | C179: 4101054633 | D179: 60 | E179: reglage preserie dia 35
A180: estim detail | B180: 12 | C180: 4101054633 | D180: 70 | E180: reglage preserie dia 50 | G180: 50 | I180: 50
A181: estim detail | B181: 12 | C181: 4101054633 | D181: 80 | E181: reglage preserie dia 80 | I181: 100
A182: estim detail | B182: 12 | C182: 4101054633 | D182: 90 | E182: frais de port
A183: estim detail | B183: 12 | C183: 4101054633 | D183: 100 | E183: frais de port express | G183: 450
A184: estim detail | B184: 12 | C184: 4101027329 | D184: 190 | E184: frais transport, emballage | I184: 278.28
A185: estim detail | B185: 12 | C185: 4101054633 | D185: 110 | E185: livraisons 09.03 & 10.03 | I185: 450
A186: reception | B186: 12 | E186: GPVc : rodage | F186: =SUM(G186:R186) -> 4272.63 | G186: 2827.75 | H186: 0 | I186: 1444.88 | J186: 0 | K186: 0 | L186: 0 | M186: 0 | N186: 0 | O186: 0 | P186: 0 | Q186: 0 | R186: 0
A187: recept detail | B187: 12 | C187: 4101054633 | D187: 10 | E187: Douille dia 35 | G187: 978
A188: recept detail | B188: 12 | C188: 4101054633 | D188: 20 | E188: Douille dia 50 | G188: 1190
A189: recept detail | B189: 12 | C189: 4101054633 | D189: 30 | E189: rodage corps dia 35 | G189: 159.75
A190: recept detail | B190: 12 | C190: 4101054633 | D190: 40 | E190: rodage corps dia 50 | I190: 426.6
A191: recept detail | B191: 12 | C191: 4101054633 | D191: 50 | E191: rodage corps dia 80 | I191: 290
A192: recept detail | B192: 12 | C192: 4101054633 | D192: 60 | E192: reglage preserie dia 35
A193: recept detail | B193: 12 | C193: 4101054633 | D193: 70 | E193: reglage preserie dia 50 | G193: 50
A194: recept detail | B194: 12 | C194: 4101054633 | D194: 80 | E194: reglage preserie dia 80
A195: recept detail | B195: 12 | C195: 4101054633 | D195: 90 | E195: frais de port
A196: recept detail | B196: 12 | C196: 4101054633 | D196: 100 | E196: frais de port express | G196: 450
A197: recept detail | B197: 12 | C197: 4101027329 | D197: 190 | E197: frais transport, emballage | I197: 278.28
A198: recept detail | B198: 12 | C198: 4101054633 | D198: 110 | E198: livraisons 09.03 & 10.03 | I198: 450
A199: budget | B199: 13 | E199: banc test | F199: =SUM(G199:R199) -> 31000 | H199: 7000 | I199: 12500 | K199: 1500 | P199: 10000
A200: estimation | B200: 13 | E200: banc test | F200: =SUM(G200:R200) -> 30688.92 | G200: 90.44 | H200: 8420.9 | I200: 6361.58 | J200: 200 | K200: 7566 | L200: 6850 | M200: 200 | N200: 200 | O200: 200 | P200: 200 | Q200: 200 | R200: 200
... 224 more rows

Sheet Budget
T1: 1 | U1: 2 | V1: 3 | W1: 4
S2: heures | T2: =T5 -> 40500 | U2: =U5 -> 57300 | V2: 57300 | W2: 57300
S3: achats | T3: =T11 -> 102100 | U3: =U11 -> 74750 | V3: 40760 | W3: 26600 | X3: =SUM(T2:W3) -> 456610
C5: Heures | D5: =SUM(D7:D8) -> 162000 | E5: 212400 | F5: 13500 | G5: 13500 | H5: 13500 | I5: 19100 | J5: 19100 | K5: 19100 | L5: 19100 | M5: 19100 | N5: 19100 | O5: 19100 | P5: 19100 | Q5: 19100 | T5: =SUM(T7:T8) -> 40500 | U5: =SUM(U7:U8) -> 57300 | V5: =SUM(V7:V8) -> 57300 | W5: =SUM(W7:W8) -> 57300 | X5: =SUM(T5:W5) -> 212400
B6: No | D6: Total | E6: total | F6: 1 | G6: 2 | H6: 3 | I6: 4 | J6: 5 | K6: 6 | L6: 7 | M6: 8 | N6: 9 | O6: 10 | P6: 11 | Q6: 12 | S6: Total | T6: 1 | U6: 2 | V6: 3 | W6: 4
B7: 1 | C7: Steinhilber | D7: 126000 | E7: =SUM(F7:Q7) -> 126000 | F7: 10500 | G7: 10500 | H7: 10500 | I7: 10500 | J7: 10500 | K7: 10500 | L7: 10500 | M7: 10500 | N7: 10500 | O7: 10500 | P7: 10500 | Q7: 10500 | S7: =C7 -> Steinhilber | T7: =SUM(F7:H7) -> 31500 | U7: =SUM(I7:K7) -> 31500 | V7: =SUM(L7:N7) -> 31500 | W7: =SUM(O7:Q7) -> 31500
B8: 2 | C8: Autres | D8: 36000 | E8: =SUM(F8:Q8) -> 86400 | F8: 3000 | G8: 3000 | H8: 3000 | I8: =3000+5600 -> 8600 | J8: =3000+5600 -> 8600 | K8: 8600 | L8: 8600 | M8: 8600 | N8: 8600 | O8: 8600 | P8: 8600 | Q8: 8600 | S8: =C8 -> Autres | T8: =SUM(F8:H8) -> 9000 | U8: =SUM(I8:K8) -> 25800 | V8: =SUM(L8:N8) -> 25800 | W8: =SUM(O8:Q8) -> 25800
C11: Achats | D11: =SUM(D13:D31) -> 244210 | E11: =SUM(E23:E289) -> 149300 | F11: =SUM(F18:F289) -> 7000 | G11: =SUM(G18:G289) -> 31000 | H11: =SUM(H14:H289) -> 50600 | I11: =SUM(I14:I289) -> 28400 | J11: =SUM(J15:J289) -> 20100 | K11: =SUM(K14:K289) -> 17900 | L11: =SUM(L14:L289) -> 16560 | M11: =SUM(M23:M289) -> 10600 | N11: =SUM(N16:N289) -> 11100 | O11: =SUM(O23:O289) -> 20600 | P11: =SUM(P23:P289) -> 0 | Q11: =SUM(Q23:Q289) -> 6000 | T11: =SUM(T13:T30) -> 102100 | U11: =SUM(U13:U30) -> 74750 | V11: 40760 | W11: 26600 | X11: =SUM(T11:W11) -> 244210
B12: No | D12: Total | E12: total | F12: 1 | G12: 2 | H12: 3 | I12: 4 | J12: 5 | K12: 6 | L12: 7 | M12: 8 | N12: 9 | O12: 10 | P12: 11 | Q12: 12 | S12: Total | T12: 1 | U12: 2 | V12: 3 | W12: 4
B13: 1 | C13: GPV10 : etude amelioration | D13: =SUM(F13:Q13) -> 21850 | E13: =SUM(F13:Q13) -> 21850 | G13: 6000 | H13: 5000 | I13: 2500 | J13: =2500+850 -> 3350 | K13: 2500 | L13: 2500 | S13: =C13 -> GPV10 : etude amelioration | T13: =SUM(F13:H13) -> 11000 | U13: =SUM(I13:K13) -> 8350 | V13: =SUM(L13:N13) -> 2500 | W13: =SUM(O13:Q13) -> 0
B14: 2 | C14: GRV35 : prototype | D14: =SUM(F14:Q14) -> 17700 | H14: =10000+1000 -> 11000 | I14: =2000 + 1200 -> 3200 | K14: 1300 | L14: 2200 | S14: =C14 -> GRV35 : prototype | T14: =SUM(F14:H14) -> 11000 | U14: =SUM(I14:K14) -> 4500 | V14: =SUM(L14:N14) -> 2200 | W14: =SUM(O14:Q14) -> 0
B15: 3 | C15: GRV35 : etudes | D15: 10000 | H15: 7000 | J15: 3000 | S15: GRV35 : etudes | T15: 7000 | U15: 3000 | V15: 0 | W15: 0
B16: 4 | C16: GPV35 5V : prototype | D16: 3500 | H16: 1000 | K16: 1000 | L16: 1000 | N16: 500 | S16: GPV35 5V : prototype | T16: 1000 | U16: 1000 | V16: 1500 | W16: 0
B17: 5 | C17: GPV50 5V : prototype | D17: 3860 | G17: 2500 | L17: 1360 | S17: GPV50 5V : prototype | T17: 2500 | U17: 0 | V17: 1360 | W17: 0
B18: 6 | C18: GEV50 6V : prototype | D18: 10180 | G18: =3500+3700 -> 7200 | I18: =1500+1480 -> 2980 | S18: GEV50 6V : prototype | T18: 7200 | U18: 2980 | V18: 0 | W18: 0
B19: 7 | C19: GDV50 3V : prototype | D19: 6820 | H19: =2700+2900 -> 5600 | I19: 1220 | S19: GDV50 3V : prototype | T19: 5600 | U19: 1220 | V19: 0 | W19: 0
B20: 8 | C20: GDV80 3V : prototype | D20: 8300 | F20: 800 | G20: 4800 | I20: 2700 | S20: GDV80 3V : prototype | T20: 5600 | U20: 2700 | V20: 0 | W20: 0
B21: 9 | C21: GPV80 5V : prototype | D21: 5400 | G21: 4000 | L21: 1400 | S21: GPV80 5V : prototype | T21: 4000 | U21: 0 | V21: 1400 | W21: 0
B22: 10 | C22: GPVc : modif couvercles | D22: 4600 | G22: 1800 | H22: 2800 | S22: GPVc : modif couvercles | T22: 4600 | U22: 0 | V22: 0 | W22: 0
B23: 11 | C23: GPVc : divers usinage | D23: 2700 | I23: 2700 | S23: GPVc : divers usinage | T23: 0 | U23: 2700 | V23: 0 | W23: 0
B24: 12 | C24: GPVc : rodage | D24: 6000 | E24: =SUM(F24:Q24) -> 6000 | F24: 600 | G24: 600 | H24: 600 | I24: 600 | J24: 600 | K24: 600 | L24: 600 | M24: 600 | N24: 600 | O24: 600 | S24: GPVc : rodage | T24: 1800 | U24: 1800 | V24: 1800 | W24: 600
B25: 13 | C25: banc test | D25: =SUM(F25:Q25) -> 31000 | E25: =SUM(F25:Q25) -> 31000 | G25: 7000 | H25: =2500 + 10000 -> 12500 | J25: 1500 | O25: 10000 | S25: banc test | T25: 19500 | U25: 1500 | V25: 0 | W25: 10000
B26: 14 | C26: survitesse : etudes | D26: 40000 | E26: =SUM(F26:Q26) -> 40000 | I26: 10000 | J26: 5000 | K26: 5000 | L26: 5000 | M26: 5000 | N26: 5000 | O26: 5000 | S26: survitesse : etudes | T26: 0 | U26: 20000 | V26: 15000 | W26: 5000
B27: 15 | C27: survitesse : prototypes | D27: 45000 | E27: =SUM(F27:Q27) -> 45000 | I27: 5000 | J27: 10000 | K27: 10000 | L27: 5000 | M27: 5000 | N27: 5000 | O27: 5000 | S27: survitesse : prototypes | T27: 0 | U27: 25000 | V27: 15000 | W27: 5000
B28: 16 | C28: instrumentation : etalonage | D28: 4500 | E28: =SUM(F28:Q28) -> 4500 | H28: 4500 | S28: instrumentation : etalonage | T28: 4500 | U28: 0 | V28: 0 | W28: 0
B29: 17 | C29: simulation : licence | D29: 6000 | E29: =SUM(F29:Q29) -> 6000 | Q29: 6000 | S29: simulation : licence | T29: 0 | U29: 0 | V29: 0 | W29: 6000
B30: 18 | C30: assistance atelier | D30: 16800 | E30: =SUM(F30:Q30) -> 16800 | F30: 5600 | G30: 5600 | H30: 5600 | S30: assistance atelier | T30: 16800 | U30: 0 | V30: 0 | W30: 0

Sheet Heures
A1: Nom | B1: 1 | C1: 2 | D1: 3 | E1: 4 | F1: 5 | G1: 6 | H1: 7 | I1: 8 | J1: 9 | K1: 10 | L1: 11 | M1: 12
A2: Mr Armin STEINHILBER | B2: 10567.2 | C2: 9324 | D2: 12121.2 | E2: 12742.8
A3: Autres | B3: =SUM(B4:B545) -> 7163.7 | C3: =SUM(C4:C545) -> 7891.74 | D3: 6947.16 | E3: 5229.18 | F3: 63 | G3: 0 | H3: 0 | I3: 0 | J3: 0 | K3: 0 | L3: 0 | M3: 0
A4: Mr Christophe TARDOS | B4: 742.5 | D4: 364.5 | E4: 270
A5: Mr Jean Pierre SCEVOLA | B5: 3037.5 | C5: 1620 | D5: 2963.25 | E5: 2841.75
A6: Mr Christian COLLIAT | B6: 229.5 | D6: 702 | E6: 135
A7: Mr Stéphane DELICOURT | B7: 540 | D7: 67.5
A8: Mr Max BASSET | C8: 20.25
A9: M. Olivier FEDELI | B9: 1680 | C9: 1470 | D9: 420 | E9: 142.8
A10: Mr Pierre BLANC | C10: 868.5 | D10: 193 | E10: 965
A11: Mr Rafik BENALI | D11: 173 | E11: 173
A12: M. David CAPUTO | B12: 761.2 | C12: 173
A13: M. Morgan SANCHEZ | B13: 173
A14: Mr Marc LYAUDET | C14: 64.89 | D14: 64.88 | E14: 21.63
A15: Mr Belkacem FERDI | C15: 43.25 | D15: 21.63
A16: Mr Cédric DESFLACHES | C16: 3583.6 | D16: 462.4
A17: Mr Romuald PAGNIEZ | D17: 1326
A18: Mr Alain THOMASSET | D18: 189
A19: Mr Remi MAISONNIAL | E19: 680
A20: Mrs Veronique PEREZ | F20: 63
A21: Mrs Sabine MAGNIER | C21: 48.25

Sheet Commandes
G1: Commande SAP | J1: prevision budget | L1: piece a definir/lancer | O1: livreé | P1: a lancer plus tard | R1: lancée
A2: afficher | B2: no budget | C2: Nocmde | D2: Pos cmde | E2: Fournisseur | F2: Designation | G2: prix cmde | H2: prix recept | I2: prix attente | J2: Cumul prevision | K2: cumul real | L2: Prev.1 | M2: Prev.2 | N2: Prev.3 | O2: Prev.4 | P2: Prev.5 | Q2: Prev.6 | R2: Prev.7 | S2: Prev.8 | T2: Prev.9 | U2: Prev.10 | V2: Prev.11 | W2: Prev.12 | X2: Rec.1 | Y2: Rec.2 | Z2: Rec.3 | AA2: Rec.4 | AB2: Rec.5 | AC2: Rec.6 | AD2: Rec.7 | AE2: Rec.8 | AF2: Rec.9 | AG2: Rec.10 | AH2: Rec.11 | AI2: Rec.12 | AJ2: ecart cmde prevision
A3: 0 | C3: 4100281929 | D3: 10 | E3: Gonzales Sevmhy | F3: Etude+réal banc de test distributeurs | G3: 35225 | H3: 0 | I3: 0
A4: 0 | C4: 4100282663 | D4: 10 | E4: Aprotec Industry | F4: PRODUCTION CONSUMABLES | G4: 371.74 | H4: 0 | I4: 0
A5: 0 | C5: 4100282663 | D5: 20 | E5: Aprotec Industry | F5: PRODUCTION CONSUMABLES | G5: 268.66 | H5: 0 | I5: 0
A6: 0 | C6: 4100282663 | D6: 30 | E6: Aprotec Industry | F6: PRODUCTION CONSUMABLES | G6: 215.46 | H6: 0 | I6: 0
A7: 0 | C7: 4100286903 | D7: 10 | E7: Starelec | F7: PRODUCTION CONSUMABLES | G7: 760.64 | H7: 0 | I7: 0
A8: 0 | C8: 4100298115 | D8: 50 | E8: FARNELL FRANCE FARNELL INONE | F8: 1 Cable 12x1.5 mm - 50 m Lapp-1503991 | G8: 210.54 | H8: 0 | I8: 0
A9: 0 | C9: 4100298115 | D9: 60 | E9: FARNELL FRANCE FARNELL INONE | F9: 4 Clés BTR long tête sphérique - 3126894
A10: 0 | C10: 4100298115 | D10: 70 | E10: FARNELL FRANCE FARNELL INONE | F10: 6 Boitiers UM52011 - Code 4190506
A11: 0 | C11: 4100298115 | D11: 80 | E11: FARNELL FRANCE FARNELL INONE | F11: 100 Embase verticale 2V 5.08 mm -3705262
A12: 0 | C12: 4100298115 | D12: 90 | E12: FARNELL FRANCE FARNELL INONE | F12: 2 Cables x0.34 mm² Lapkable - 1204289 | G12: 55.12 | H12: 0 | I12: 0
A13: 0 | C13: 4100298115 | D13: 100 | E13: FARNELL FRANCE FARNELL INONE | F13: 10 Piles 9 V - Code 3785786 | G13: 53.32 | H13: 0 | I13: 0
A14: 0 | C14: 4100298115 | D14: 110 | E14: FARNELL FRANCE FARNELL INONE | F14: 10 Bac 4B - Code 274-264 LOT DE 5 | G14: 171.94 | H14: 0 | I14: 0
A15: 0 | C15: 4100298115 | D15: 120 | E15: FARNELL FRANCE FARNELL INONE | F15: 30 fiches bananes - Code 4597310 rouge | G15: 127.8 | H15: 0 | I15: 0
A16: 0 | C16: 4100298115 | D16: 130 | E16: FARNELL FRANCE FARNELL INONE | F16: 2 Boîtes 50 Forets 1 à 5.9 mm - 266528 | G16: 173.26 | H16: 0 | I16: 0
A17: 0 | C17: 4100298115 | D17: 140 | E17: FARNELL FRANCE FARNELL INONE | F17: 2 Boîtes 41 forets de 6 à 10 mm - 266516 | G17: 308.74 | H17: 0 | I17: 0
A18: 0 | C18: 4100298115 | D18: 150 | E18: FARNELL FRANCE FARNELL INONE | F18: transport | G18: 18 | H18: 0 | I18: 0
A19: 0 | C19: 4100304206 | D19: 10 | E19: CHRISTAUD | F19: ELECTRICAL ACTUATOR 15-30VAC/12-48VDC | G19: 1454.56 | H19: 0 | I19: 0
A20: 0 | C20: 4100304206 | D20: 20 | E20: CHRISTAUD | F20: frais de transport | G20: 16 | H20: 0 | I20: 0
A21: 0 | C21: 4100305088 | D21: 10 | E21: Aprotec Industry | F21: Plan AST2523 Ind A | G21: 520.89 | H21: 0 | I21: 0
A22: 0 | C22: 4100305088 | D22: 20 | E22: Aprotec Industry | F22: Plan AST 2524 Ind A | G22: 520.89 | H22: 0 | I22: 0
A23: 0 | C23: 4100305088 | D23: 30 | E23: Aprotec Industry | F23: Plan AST 2525 Ind A | G23: 520.89 | H23: 0 | I23: 0
A24: 0 | C24: 4100305088 | D24: 40 | E24: Aprotec Industry | F24: Plan AST 2526 Ind A | G24: 458.05 | H24: 0 | I24: 0
A25: 0 | C25: 4100305088 | D25: 50 | E25: Aprotec Industry | F25: Plan AST 2527 Ind A | G25: 458.05 | H25: 0 | I25: 0
A26: 0 | C26: 4100305088 | D26: 60 | E26: Aprotec Industry | F26: Plan AST 2529 Ind A | G26: 355.41 | H26: 0 | I26: 0
A27: 0 | C27: 4100305088 | D27: 70 | E27: Aprotec Industry | F27: Plan AST 2522 Ind A | G27: 520.89 | H27: 0 | I27: 0
A28: 0 | C28: 4100308621 | D28: 10 | E28: NATIONAL INSTRUMENT FRANCE | F28: NI-PCI-6221 carte E/S multifonctions | G28: 2349.72 | H28: 0 | I28: 0
A29: 0 | C29: 4100308621 | D29: 20 | E29: NATIONAL INSTRUMENT FRANCE | F29: renouvel CIV-REALTIME-serv pro | G29: 509.8 | H29: 0 | I29: 0
A30: 0 | C30: 4100314925 | D30: 10 | E30: Crea Meca | F30: Etude D80 - GAMME DE TIROIRS - | G30: 5250 | H30: 0 | I30: 0
A31: 0 | C31: 4100314932 | D31: 10 | E31: Crea Meca | F31: Base de données répertoire de | G31: 5250 | H31: 0 | I31: 0
A32: 0 | C32: 4100314932 | D32: 20 | E32: Crea Meca | F32: Etude banc de test / bloc foré | G32: 5250 | H32: 0 | I32: 0
A33: 0 | C33: 4100314932 | D33: 30 | E33: Crea Meca | F33: Etude banc de test / circuit d | G33: 3500 | H33: 0 | I33: 0
A34: 0 | C34: 4100315794 | D34: 10 | E34: ARCALE | F34: Prestations sur logiciels | G34: 9740 | H34: 0 | I34: 0
A35: 0 | C35: 4100315978 | D35: 10 | E35: AMR | F35: DISTRIBUTEUR COMPLET VPM16 | G35: 2900 | H35: 0 | I35: 0
A36: 0 | C36: 4100321145 | D36: 10 | E36: LMS FRANCE | F36: LICENCE LMS - VIRTUAL LAB | G36: 13337.19 | H36: 0 | I36: 0
A37: 0 | C37: 4100321145 | D37: 20 | E37: LMS FRANCE | F37: LICENCE LMS - IMAGINE LAB | G37: 9607 | H37: 0 | I37: 0
A38: 0 | C38: 4100322136 | D38: 10 | E38: MATIS TECHNOLOGIES | F38: Avenant SIMULATION MECANIQUE | G38: 600 | H38: 0 | I38: 0
A39: 0 | C39: 4100322136 | D39: 20 | E39: MATIS TECHNOLOGIES | F39: SIMULATION MECANIQUE | G39: 2550 | H39: 0 | I39: 0
A40: 0 | C40: 4100326341 | D40: 10 | E40: LMS FRANCE | F40: LMS Imagine-Lab AMESim Base | G40: 1638 | H40: 0 | I40: 0
A41: 0 | C41: 4100326341 | D41: 20 | E41: LMS FRANCE | F41: LMS Imagine_Lab Mobile Hydraulic Actuati | G41: 3087 | H41: 0 | I41: 0
A42: 0 | C42: 4100326342 | D42: 10 | E42: BOSCH REXROTH SAS | F42: carte VT-MACAS-500-10/VO | G42: 1153.04 | H42: 0 | I42: 0
A43: 0 | C43: 4100326457 | D43: 10 | E43: Aprotec Industry | F43: AST 2544 BLOC NG6 | G43: 432.22 | H43: 0 | I43: 0
A44: 0 | C44: 4100326457 | D44: 20 | E44: Aprotec Industry | F44: AST 2543 BLOC VPM6 | G44: 400.8 | H44: 0 | I44: 0
A45: 0 | C45: 4100326457 | D45: 30 | E45: Aprotec Industry | F45: AST 2542 VPM10 | G45: 463.64 | H45: 0 | I45: 0
A46: 0 | C46: 4100327183 | D46: 10 | E46: Gonzales Sevmhy | F46: Supplément Banc de test distributeurs | G46: 15650 | H46: 0 | I46: 0
A47: 0 | C47: 4100327183 | D47: 20 | E47: Gonzales Sevmhy | F47: Forfait tuyautage journée (Toussieu) | G47: 690 | H47: 0 | I47: 0
A48: 0 | C48: 4100327183 | D48: 30 | E48: Gonzales Sevmhy | F48: Forfait tuyautage journée (Grenoble) | G48: 900 | H48: 0 | I48: 0
A49: 0 | C49: 4100327484 | D49: 10 | E49: AMR | F49: PRODUCTION CONSUMABLES | G49: 1680 | H49: 0 | I49: 0
A50: 0 | C50: 4100341092 | D50: 50 | E50: Alphee Developpement | F50: carte interface 4-20mA( phase3) | G50: 7350 | H50: 0 | I50: 0
A51: 0 | C51: 4100341092 | D51: 60 | E51: Alphee Developpement | F51: carte interface 4-20mA( phase3) | G51: 2450 | H51: 0 | I51: 0
A52: 0 | C52: 4100359746 | D52: 10 | E52: AMR | F52: PRODUCTION CONSUMABLES | G52: 516 | H52: 0 | I52: 0
A53: 0 | C53: 4100359746 | D53: 20 | E53: AMR | F53: PRODUCTION CONSUMABLES | G53: 430 | H53: 0 | I53: 0
A54: 0 | C54: 4100362949 | D54: 10 | E54: MATIS TECHNOLOGIES | F54: LOT1 : Simulation CFD sur D80D | G54: 5500 | H54: 0 | I54: 0
A55: 0 | C55: 4100362949 | D55: 20 | E55: MATIS TECHNOLOGIES | F55: LOT2 : Simulation CFD sur D50F | G55: 3000 | H55: 0 | I55: 0
A56: 0 | C56: 4100362949 | D56: 40 | E56: MATIS TECHNOLOGIES | F56: LOT3 Optionnel : Simulation CFD | G56: 6000 | H56: 0 | I56: 0
A57: 0 | C57: 4100363906 | D57: 10 | E57: AMR | F57: Butée plan AST1727indC | G57: 57 | H57: 0 | I57: 0
A58: 0 | C58: 4100363906 | D58: 20 | E58: AMR | F58: Chemise fonte GS 500 plan AST1725indC | G58: 1376 | H58: 0 | I58: 0
A59: 0 | C59: 4100363906 | D59: 30 | E59: AMR | F59: Boîte de vis 12.9M8*16 pas 100 | G59: 56 | H59: 0 | I59: 0
A60: 0 | C60: 4100363906 | D60: 40 | E60: AMR | F60: Lot de joints pour chemis AST1725indC | G60: 174 | H60: 0 | I60: 0
A61: 0 | C61: 4100363906 | D61: 50 | E61: AMR | F61: Tiroir diam6 AST1836ind D | G61: 800 | H61: 0 | I61: 0
A62: 0 | C62: 4100363906 | D62: 60 | E62: AMR | F62: Tiroir diam10 AST2302ind D | G62: 1560 | H62: 0 | I62: 0
A63: 0 | C63: 4100363906 | D63: 70 | E63: AMR | F63: Tiroir diam16 AST1794indC | G63: 2200 | H63: 0 | I63: 0
A64: 0 | C64: 4100363906 | D64: 80 | E64: AMR | F64: Tiroir diam25 AST1309indB | G64: 2200 | H64: 0 | I64: 0
A65: 0 | C65: 4100363906 | D65: 90 | E65: AMR | F65: Tiroir diam36 AST1403indB | G65: 3300 | H65: 0 | I65: 0
A66: 0 | C66: 4100363906 | D66: 100 | E66: AMR | F66: Tiroir diam36 AST1403indB | G66: 660 | H66: 0 | I66: 0
A67: 0 | C67: 4100365151 | D67: 10 | E67: MANUTAN SA | F67: Servante Atelier Jett Ref 123M8103 | G67: 662.15 | H67: 0 | I67: 0
A68: 0 | C68: 4100373139 | D68: 10 | E68: FARNELL FRANCE FARNELL INONE | F68: Alimentation Digimen SM5020-PSU REF : 10 | G68: 448.18 | H68: 0 | I68: 0
A69: 0 | C69: 4100379038 | D69: 10 | E69: FARNELL FRANCE FARNELL INONE | F69: résistance 500R-2 ref1203349 | G69: 518.25 | H69: 0 | I69: 0
A70: 0 | C70: 4100379038 | D70: 20 | E70: FARNELL FRANCE FARNELL INONE | F70: interrupteur ref 674345 | G70: 118.5 | H70: 0 | I70: 0
A71: 0 | C71: 4100379460 | D71: 10 | E71: Gonzales Sevmhy | F71: Fourniture Banc Oléo | G71: 6283 | H71: 0 | I71: 0
A72: 0 | C72: 4100379460 | D72: 20 | E72: Gonzales Sevmhy | F72: main d'oeuvre Banc oléo | G72: 2760 | H72: 0 | I72: 0
A73: 0 | C73: 4100386107 | D73: 10 | E73: INFODIP | F73: IHM 17" SXGATFT Core I7-windonws pro | G73: 1895 | H73: 0 | I73: 0
A74: 0 | C74: 4100386310 | D74: 10 | E74: DELL | F74: PC Precision T3600 Standard 425W Base | G74: 753 | H74: 0 | I74: 0
A75: 0 | C75: 4100386310 | D75: 20 | E75: DELL | F75: 2 /souris- mice-MS111 USB wired optical | G75: 10 | H75: 0 | I75: 0
A76: 0 | C76: 4100386310 | D76: 30 | E76: DELL | F76: clavier- Français- KB212-B quiet USB | G76: 20 | H76: 0 | I76: 0
A77: 0 | C77: 4100386310 | D77: 40 | E77: DELL | F77: écran- 23"-P2312H 58cm- LED monitor | G77: 462 | H77: 0 | I77: 0
A78: 0 | C78: 4100407196 | D78: 10 | E78: Crea Meca | F78: PRODUCTION CONSUMABLES | G78: 3150 | H78: 0 | I78: 0
A79: 0 | C79: 4100407196 | D79: 20 | E79: Crea Meca | F79: PRODUCTION CONSUMABLES | G79: 3850 | H79: 0 | I79: 0
A80: 0 | C80: 4100408945 | D80: 10 | E80: LMS FRANCE | F80: journées assitances AMESIM- LMS engin.se | G80: 4500 | H80: 0 | I80: 0
A81: 0 | C81: 4100409023 | D81: 10 | E81: MTS Sensor Technologie GmbH & Co. | F81: Flotteur 41mm ref 200938-2 | G81: 108 | H81: 0 | I81: 0
A82: 0 | C82: 4100409023 | D82: 20 | E82: MTS Sensor Technologie GmbH & Co. | F82: AIMANT DIA 17.4- REF 401 032 | G82: 96 | H82: 0 | I82: 0
A83: 0 | C83: 4100409023 | D83: 30 | E83: MTS Sensor Technologie GmbH & Co. | F83: emballage 1% | G83: 2.04 | H83: 0 | I83: 0
A84: 0 | C84: 4100409023 | D84: 40 | E84: MTS Sensor Technologie GmbH & Co. | F84: port | G84: 25.83 | H84: 0 | I84: 0
A85: 0 | C85: 4100421843 | D85: 10 | E85: REALISATION ELECTRIQUE INDUSTRIELLE | F85: 100 Bornes double étage M4/6.D2 Ref. 1 | G85: 145 | H85: 0 | I85: 0
A86: 0 | C86: 4100422578 | D86: 10 | E86: AMR | F86: Chapeau aimant AST1312 | G86: 960 | H86: 0 | I86: 0
A87: 0 | C87: 4100422578 | D87: 20 | E87: AMR | F87: Rondelle aimant AST1313 | G87: 210 | H87: 0 | I87: 0
A88: 0 | C88: 4100422775 | D88: 10 | E88: DELL | F88: PC M6700+ options | G88: 2290.41 | H88: 0 | I88: 0
A89: 0 | C89: 4100423226 | D89: 10 | E89: DELL | F89: Precision T3600 Standard 425W base | G89: 723 | H89: 0 | I89: 0
A90: 0 | C90: 4100423226 | D90: 20 | E90: DELL | F90: Souris-dell MS111 | G90: 5 | H90: 0 | I90: 0
A91: 0 | C91: 4100423226 | D91: 30 | E91: DELL | F91: Clavier-AZERTY del KB212-B | G91: 20 | H91: 0 | I91: 0
A92: 0 | C92: 4100423226 | D92: 40 | E92: DELL | F92: Ecran P2312H 23" LED | G92: 154 | H92: 0 | I92: 0
A93: 0 | C93: 4100423226 | D93: 50 | E93: DELL | F93: port | G93: 30 | H93: 0 | I93: 0
A94: 0 | C94: 4100426508 | D94: 10 | E94: Gonzales Sevmhy | F94: Etude et réalisation banc bobine | G94: 8200 | H94: 0 | I94: 0
A95: 0 | C95: 4100426508 | D95: 20 | E95: Gonzales Sevmhy | F95: Ensemble capteurs force selon devis | G95: 2643 | H95: 0 | I95: 0
A96: 0 | C96: 4100428307 | D96: 10 | E96: Crea Meca | F96: Etude réducteur de pression base GVP10 | G96: 7000 | H96: 0 | I96: 0
A97: 0 | C97: 4100429186 | D97: 10 | E97: NATIONAL INSTRUMENT FRANCE | F97: CARTE NI 9255 REF 780159-01 | G97: 1381.65 | H97: 0 | I97: 0
A98: 0 | C98: 4100429186 | D98: 20 | E98: NATIONAL INSTRUMENT FRANCE | F98: CARTE NI 9227 REF 781099-01 | G98: 915 | H98: 0 | I98: 0
A99: 0 | C99: 4100451854 | D99: 10 | E99: Gonzales Sevmhy | F99: BAGUE SERRAGE TIROIR AST2501 | G99: 201 | H99: 0 | I99: 0
A100: 0 | C100: 4100451854 | D100: 20 | E100: Gonzales Sevmhy | F100: BAGUE SERRAGE TIROIR AST2502 | G100: 213 | H100: 0 | I100: 0
A101: 0 | C101: 4100451854 | D101: 30 | E101: Gonzales Sevmhy | F101: BAGUE SERRAGE TIROIR AST2503 | G101: 237 | H101: 0 | I101: 0
A102: 0 | C102: 4100451854 | D102: 40 | E102: Gonzales Sevmhy | F102: BAGUE SERRAGE TIROIR AST2504 | G102: 252 | H102: 0 | I102: 0
A103: 0 | C103: 4100451854 | D103: 50 | E103: Gonzales Sevmhy | F103: BAGUE SERRAGE TIROIR AST2505 | G103: 345 | H103: 0 | I103: 0
A104: 0 | C104: 4100451854 | D104: 60 | E104: Gonzales Sevmhy | F104: BAGUE SERRAGE TIROIR AST2506 | G104: 366 | H104: 0 | I104: 0
A105: 0 | C105: 4100451854 | D105: 70 | E105: Gonzales Sevmhy | F105: BLOC NG6 AST2546 | G105: 435 | H105: 0 | I105: 0
A106: 0 | C106: 4100455107 | D106: 10 | E106: AMR | F106: PRODUCTION CONSUMABLES | G106: 2120 | H106: 0 | I106: 0
A107: 0 | C107: 4100467579 | D107: 10 | E107: Gonzales Sevmhy | F107: PRODUCTION CONSUMABLES | G107: 300 | H107: 0 | I107: 0
A108: 0 | C108: 4100467579 | D108: 20 | E108: Gonzales Sevmhy | F108: PRODUCTION CONSUMABLES | G108: 350 | H108: 0 | I108: 0
A109: 0 | C109: 4100467579 | D109: 30 | E109: Gonzales Sevmhy | F109: PRODUCTION CONSUMABLES | G109: 500 | H109: 0 | I109: 0
A110: 0 | C110: 4100467579 | D110: 40 | E110: Gonzales Sevmhy | F110: PRODUCTION CONSUMABLES | G110: 225 | H110: 0 | I110: 0
A111: 0 | C111: 4100476099 | D111: 10 | E111: Kableo | F111: POSITION SENSOR REDUNDANT SERVOMO-LG 5M | G111: 66.42 | H111: 0 | I111: 0
A112: 0 | C112: 4100476099 | D112: 20 | E112: Kableo | F112: POSITION SENSOR REDUNDANT DISTRI-LG 5M | G112: 66.42 | H112: 0 | I112: 0
A113: 0 | C113: 4100476099 | D113: 30 | E113: Kableo | F113: Cable ACTUATOR CONTROL -TR10 -SPC-LG 5M | G113: 66.42 | H113: 0 | I113: 0
A114: 0 | C114: 4100476099 | D114: 40 | E114: Kableo | F114: Cable ACTUATOR CONTROL - ED - SPC-LG 5M | G114: 65.4 | H114: 0 | I114: 0
A115: 0 | C115: 4100476099 | D115: 50 | E115: Kableo | F115: Cable ANALOG OUTPUTS- UPC- LG 5M | G115: 65.4 | H115: 0 | I115: 0
A116: 0 | C116: 4100476099 | D116: 60 | E116: Kableo | F116: Cable FIELDBUS_N - TYPE 1 - LG 1M | G116: 36.14 | H116: 0 | I116: 0
A117: 0 | C117: 4100476099 | D117: 70 | E117: Kableo | F117: Cable FIELDBUS_N - TYPE 2 - LG 1M | G117: 21.42 | H117: 0 | I117: 0
A118: 0 | C118: 4100476099 | D118: 80 | E118: Kableo | F118: Cable FIELDBUS_N - TYPE 4 - LG 1M | G118: 21.42 | H118: 0 | I118: 0
A119: 0 | C119: 4100476099 | D119: 90 | E119: Kableo | F119: CABLE IHM - UPC ( GOT3126 ) - LG 3M | G119: 18.68 | H119: 0 | I119: 0
A120: 0 | C120: 4100476203 | D120: 10 | E120: DELL | F120: PRECISION T3600 STANDARD 425W BASE | G120: 753 | H120: 0 | I120: 0
A121: 0 | C121: 4100476203 | D121: 20 | E121: DELL | F121: SOURIS DELLMS111 | G121: 5 | H121: 0 | I121: 0
A122: 0 | C122: 4100476203 | D122: 30 | E122: DELL | F122: clavier AZERTY | G122: 10 | H122: 0 | I122: 0
A123: 0 | C123: 4100476203 | D123: 40 | E123: DELL | F123: ECRAN P2312H 23 pouces | G123: 154 | H123: 0 | I123: 0
A124: 0 | C124: 4100487063 | D124: 20 | E124: T.C.S. TOLERIES SUR PLANS | F124: platine 7U pour IHM- plan 765374 B | G124: 64 | H124: 0 | I124: 0
A125: 0 | C125: 4100487081 | D125: 10 | E125: PULS SARL | F125: alim CS-10-242 | G125: 203.56 | H125: 0 | I125: 0
A126: 0 | C126: 4100487081 | D126: 20 | E126: PULS SARL | F126: port | G126: 18 | H126: 0 | I126: 0
A127: 0 | C127: 4100491479 | D127: 10 | E127: Gonzales Sevmhy | F127: MISE EN SERVICE BANC DE TEST HUILE POLLU | G127: 6200 | H127: 0 | I127: 0
A128: 0 | C128: 4100491484 | D128: 10 | E128: Gonzales Sevmhy | F128: MISE A NIVEAU SECURITE BANC SURVITESSE | G128: 19900 | H128: 0 | I128: 0
A129: 0 | C129: 4100497099 | D129: 10 | E129: MANUTAN SA | F129: ARMOIRES 10 TIROIRS 803M30901 | G129: 116.46 | H129: 0 | I129: 0
A130: 0 | C130: 4100497099 | D130: 20 | E130: MANUTAN SA | F130: ARMOIRES 10 TIROIRS 803M30901 | G130: 1164.6 | H130: 0 | I130: 0
A131: 0 | C131: 4100497099 | D131: 30 | E131: MANUTAN SA | F131: KITS COMPARTIMENTS HANT 150 803M30902 | G131: 365.5 | H131: 0 | I131: 0
A132: 0 | C132: 4100497099 | D132: 40 | E132: MANUTAN SA | F132: JEU DE CLOISON PETIT TIROIR 3 ET 2.15 RE | G132: 295.8 | H132: 0 | I132: 0
A133: 0 | C133: 4100497099 | D133: 50 | E133: MANUTAN SA | F133: JEU DE CLOISON GRAND TIROIR 2.16 REF 123 | G133: 133.5 | H133: 0 | I133: 0
A134: 0 | C134: 4100511583 | D134: 10 | E134: Jenoptik Industrial Metrology | F134: Ensemble de pièces étalon | G134: 24955 | H134: 0 | I134: 0
A135: 0 | C135: 4100516479 | D135: 10 | E135: Gonzales Sevmhy | F135: MISE A NIVEAU SECURITE BANC SURVITESSE | G135: 19900 | H135: 0 | I135: 0
A136: 0 | C136: 4100520747 | D136: 10 | E136: PACK'AERO MECATRONIQUE | F136: ETUDE+PLANS AE60 DYNAMIQUE | G136: 3300 | H136: 0 | I136: 0
A137: 0 | C137: 4100520747 | D137: 20 | E137: PACK'AERO MECATRONIQUE | F137: PKM1317 TAILLE C65 | G137: 1500 | H137: 0 | I137: 0
A138: 0 | C138: 4100520747 | D138: 30 | E138: PACK'AERO MECATRONIQUE | F138: PKM1317 DISSTA TAILLE C65 | G138: 1800 | H138: 0 | I138: 0
A139: 0 | C139: 4100525265 | D139: 10 | E139: AMR | F139: AST 2303_F GPV10 butée tiroir | G139: 440 | H139: 0 | I139: 0
A140: 0 | C140: 4100525265 | D140: 20 | E140: AMR | F140: AST 2304_F GPV10 couvercle bas | G140: 600 | H140: 0 | I140: 0
A141: 0 | C141: 4100525265 | D141: 30 | E141: AMR | F141: AST 2301_E GPV10 corps | G141: 1135 | H141: 0 | I141: 0
A142: 0 | C142: 4100525265 | D142: 40 | E142: AMR | F142: AST 2351_A GPV10 2P corps | G142: 3900 | H142: 0 | I142: 0
A143: 0 | C143: 4100525265 | D143: 50 | E143: AMR | F143: AST 2352_A GPV10 2P tiroir | G143: 1560 | H143: 0 | I143: 0
A144: 0 | C144: 4100525265 | D144: 60 | E144: AMR | F144: AST 2302_F GPV10 tiroir | G144: 260 | H144: 0 | I144: 0
A145: 0 | C145: 4100525265 | D145: 70 | E145: AMR | F145: AST 3101_A boîtierAE60 | G145: 130 | H145: 0 | I145: 0
A146: 0 | C146: 4100525265 | D146: 80 | E146: AMR | F146: AST 3102_A entretoise boîtier AE60 | G146: 65 | H146: 0 | I146: 0
A147: 0 | C147: 4100525265 | D147: 90 | E147: AMR | F147: AST_A 3112 rondelle 0,2 | G147: 100 | H147: 0 | I147: 0
A148: 0 | C148: 4100525265 | D148: 100 | E148: AMR | F148: AST 3111_A rondelle 0;5 | G148: 250 | H148: 0 | I148: 0
A149: 0 | C149: 4100525265 | D149: 110 | E149: AMR | F149: AST 3114_A boîtier monobloc AE60 | G149: 525 | H149: 0 | I149: 0
A150: 0 | C150: 4100525265 | D150: 120 | E150: AMR | F150: AST 3105_A butée bobine AE60 | G150: 350 | H150: 0 | I150: 0
A151: 0 | C151: 4100525265 | D151: 130 | E151: AMR | F151: AST 1837_E GPV6 couvercle bas | G151: 320 | H151: 0 | I151: 0
A152: 0 | C152: 4100525265 | D152: 140 | E152: AMR | F152: AST 1836_D GPV6 tiroir | G152: 200 | H152: 0 | I152: 0
A153: 0 | C153: 4100525265 | D153: 150 | E153: AMR | F153: AST 1835_F GPV6 butée tiroir | G153: 350 | H153: 0 | I153: 0
A154: 0 | C154: 4100525265 | D154: 160 | E154: AMR | F154: AST 1831_G GPV6 corps | G154: 850 | H154: 0 | I154: 0
A155: 0 | C155: 4100525265 | D155: 170 | E155: AMR | F155: AST3012 chemise | G155: 520 | H155: 0 | I155: 0
A156: 0 | C156: 4100525265 | D156: 180 | E156: AMR | F156: AST 3011 corps | G156: 560 | H156: 0 | I156: 0
A157: 0 | C157: 4100525265 | D157: 190 | E157: AMR | F157: AST3015 tiroir | G157: 592 | H157: 0 | I157: 0
A158: 0 | C158: 4100525265 | D158: 200 | E158: AMR | F158: AST 2365 fond | G158: 280 | H158: 0 | I158: 0
A159: 0 | C159: 4100526326 | D159: 10 | E159: ARCALE | F159: prestation de mise en place de 2 capteur | G159: 7305 | H159: 0 | I159: 0
A160: 0 | C160: 4100526326 | D160: 30 | E160: ARCALE | F160: DEVELOPPEMENT FLL POUR AI TENSION/COURAN | G160: 2435 | H160: 0 | I160: 0
A161: 0 | C161: 4100531474 | D161: 10 | E161: Crea Meca | F161: ETUDE BANC OLEO ADAPTATION 2 P | G161: 5250 | H161: 0 | I161: 0
A162: 0 | C162: 4100531474 | D162: 20 | E162: Crea Meca | F162: ETUDE BANC D'ENDURANCE EQUIPEMENTS GPV | G162: 4375 | H162: 0 | I162: 0
A163: 0 | C163: 4100531474 | D163: 30 | E163: Crea Meca | F163: MISE EN PLAN TOR BASE GPV | G163: 2625 | H163: 0 | I163: 0
A164: 0 | C164: 4100536122 | D164: 10 | E164: Gonzales Sevmhy | F164: 1 DIFF 100 BARS | G164: 850 | H164: 0 | I164: 0
A165: 0 | C165: 4100536122 | D165: 20 | E165: Gonzales Sevmhy | F165: 1 DIFF 250 BARS | G165: 850 | H165: 0 | I165: 0
A166: 0 | C166: 4100536122 | D166: 30 | E166: Gonzales Sevmhy | F166: 2 POMPES DE RECHANGES POUR BANC DE TEST | G166: 420 | H166: 0 | I166: 0
A167: 0 | C167: 4100536122 | D167: 40 | E167: Gonzales Sevmhy | F167: POT DE 5 KG DE POUDRE POUDRE POLUANTE | G167: 660 | H167: 0 | I167: 0
A168: 0 | C168: 4100536122 | D168: 50 | E168: Gonzales Sevmhy | F168: LOT DE VISSERIE | G168: 280 | H168: 0 | I168: 0
A169: 0 | C169: 4100536122 | D169: 60 | E169: Gonzales Sevmhy | F169: LOT DE JOINT TORIQUE | G169: 90 | H169: 0 | I169: 0
A170: 0 | C170: 4100536122 | D170: 70 | E170: Gonzales Sevmhy | F170: LOT DE RESSORT VANEL | G170: 170 | H170: 0 | I170: 0
A171: 0 | C171: 4100536122 | D171: 80 | E171: Gonzales Sevmhy | F171: LOT DE RESSORT VANEL (COMPLEMENT) | G171: 480 | H171: 0 | I171: 0
A172: 0 | C172: 4100536122 | D172: 90 | E172: Gonzales Sevmhy | F172: REPRISE USINAGE BLOC FORE | G172: 570 | H172: 0 | I172: 0
A173: 0 | C173: 4100536122 | D173: 100 | E173: Gonzales Sevmhy | F173: USINAGE BLOC TEST AST 1367 | G173: 615 | H173: 0 | I173: 0
A174: 0 | C174: 4100536122 | D174: 110 | E174: Gonzales Sevmhy | F174: USINAGE BLOC AST 2524 INDC BLOC VPM 25 | G174: 690 | H174: 0 | I174: 0
A175: 0 | C175: 4100546441 | D175: 10 | E175: PACK'AERO MECATRONIQUE | F175: ETUDE + DEVELOPPEMENT PKM1401-AE80 | G175: 3300 | H175: 0 | I175: 0
A176: 0 | C176: 4100546441 | D176: 20 | E176: PACK'AERO MECATRONIQUE | F176: PROTOTYPES PKM1401-AE80 | G176: 5000 | H176: 0 | I176: 0
A177: 0 | C177: 4100546441 | D177: 30 | E177: PACK'AERO MECATRONIQUE | F177: PROTOTYPES PKM1317-AE60 | G177: 4800 | H177: 0 | I177: 0
A178: 0 | C178: 4100549685 | D178: 20 | E178: Elsys Design | F178: Prestation : DLL de communication | G178: 11550 | H178: 0 | I178: 0
A179: 0 | C179: 4100551123 | D179: 10 | E179: NATIONAL INSTRUMENT FRANCE | F179: MODULE NI 9225 3-CH +/-300V AI | G179: 2763.3 | H179: 0 | I179: 0
A180: 0 | C180: 4100551123 | D180: 20 | E180: NATIONAL INSTRUMENT FRANCE | F180: MODULE NI 9227 4ch current input | G180: 1830 | H180: 0 | I180: 0
A181: 0 | C181: 4100551123 | D181: 30 | E181: NATIONAL INSTRUMENT FRANCE | F181: MODULE NI 9862 Can interface | G181: 2045.01 | H181: 0 | I181: 0
A182: 0 | C182: 4100551123 | D182: 40 | E182: NATIONAL INSTRUMENT FRANCE | F182: cDAQ-9178, compactDAQ chassis | G182: 2053.26 | H182: 0 | I182: 0
A183: 0 | C183: 4100551123 | D183: 50 | E183: NATIONAL INSTRUMENT FRANCE | F183: CORDON D'ALIMENTATION 240V 10A | G183: 41.15 | H183: 0 | I183: 0
A184: 0 | C184: 4100551123 | D184: 60 | E184: NATIONAL INSTRUMENT FRANCE | F184: NI 9401 8 VOIES | G184: 988.2 | H184: 0 | I184: 0
A185: 0 | C185: 4100551123 | D185: 70 | E185: NATIONAL INSTRUMENT FRANCE | F185: NI 9237 W/DSUB | G185: 1941.62 | H185: 0 | I185: 0
A186: 0 | C186: 4100551123 | D186: 80 | E186: NATIONAL INSTRUMENT FRANCE | F186: RENOUVELLEMENT LICENCE Labwindows | G186: 514 | H186: 0 | I186: 0
A187: 0 | C187: 4100552780 | D187: 10 | E187: AMR | F187: GPV10 boitier AE60 AST 3101_A | G187: 1230 | H187: 0 | I187: 0
A188: 0 | C188: 4100552780 | D188: 20 | E188: AMR | F188: GPV10 boitier AE60 AST 3114_A | G188: 1230 | H188: 0 | I188: 0
A189: 0 | C189: 4100552780 | D189: 30 | E189: AMR | F189: GPV6 butée tiroir AST 1385_F | G189: 400 | H189: 0 | I189: 0
A190: 0 | C190: 4100552780 | D190: 40 | E190: AMR | F190: GPV10 butée tiroir AST 2303_F | G190: 1200 | H190: 0 | I190: 0
A191: 0 | C191: 4100552780 | D191: 50 | E191: AMR | F191: GPV16 butée tiroir AST 1759_A | G191: 720 | H191: 0 | I191: 0
A192: 0 | C192: 4100552780 | D192: 60 | E192: AMR | F192: GPV16 butée tiroir AST 1767_A | G192: 720 | H192: 0 | I192: 0
A193: 0 | C193: 4100552780 | D193: 70 | E193: AMR | F193: GPV16 cale ressort AST 1795_A | G193: 160 | H193: 0 | I193: 0
A194: 0 | C194: 4100552780 | D194: 80 | E194: AMR | F194: GPV25 cale ressort AST1792_D | G194: 900 | H194: 0 | I194: 0
A195: 0 | C195: 4100552780 | D195: 90 | E195: AMR | F195: GPV35cale ressort AST 1461_B | G195: 900 | H195: 0 | I195: 0
A196: 0 | C196: 4100552780 | D196: 100 | E196: AMR | F196: GPV6 coupelle ressort AST3105_A | G196: 760 | H196: 0 | I196: 0
A197: 0 | C197: 4100552780 | D197: 110 | E197: AMR | F197: GPV10 coupelle ressort AST3104_A | G197: 760 | H197: 0 | I197: 0
A198: 0 | C198: 4100552780 | D198: 120 | E198: AMR | F198: GPV16 coupelle ressort AST3103_A | G198: 760 | H198: 0 | I198: 0
A199: 0 | C199: 4100552780 | D199: 130 | E199: AMR | F199: GPV25 coupelle ressort TOR AST 1366_A | G199: 300 | H199: 0 | I199: 0
A200: 0 | C200: 4100552780 | D200: 140 | E200: AMR | F200: GPV25 couvercle MTS AST 1474_B | G200: 1080 | H200: 0 | I200: 0
... 790 more rows

Sheet Extract SAP actuals
A1: Exercice comptable | B1: Période | C1: Elément d'OTP | D1: Nom EOTP | E1: Objet | F1: Val./Dev.Transaction | G1: Devise transaction | H1: Qté totale saisie | I1: Val./Devise objet | J1: Devise de l'objet | K1: Matricule | L1: Nom du salarié ou du candidat | M1: Document d'achat | N1: Texte de la commande d'achat | O1: Fournisseur | P1: Nom fournisseur | Q1: Texte d'en-tête de pièce | R1: Désignation | S1: Nº pièce | T1: Date de la pièce | U1: Objet partenaire | V1: Utilisateur | W1: Type de pièce | X1: Désignation de l'objet | Y1: Nature comptable | Z1: Désign.nat.comptable | AA1: Descr.nat.comptable | AB1: Désignation de l'objet partenaire | AC1: Type activ. parten. | AD1: Quantité fixe | AE1: Date de saisie | AF1: Désignation du cpte de contrepartie | AG1: Date comptable | AH1: Nº pièce référence | AI1: Opération de réf. | AJ1: Quantité totale | AK1: Date de valeur | AL1: Définition de projet | AM1: Nom Projet | AN1: Ligne d'écriture | AO1: Opération | AP1: Capitalisé sur IEC | AQ1: Société | AR1: Catég. chargement | AS1: Code charg./décharg. | AT1: Type de cours | AU1: Ligne écriture FI | AV1: Quantité fixe saisie | AW1: Val.fixe/dev.état | AX1: Val.fixe/dev.O | AY1: Val.fixe/dev.T | AZ1: De la période | BA1: Domaine fonctionnel | BB1: Poste | BC1: Ledger | BD1: Article | BE1: Désignation article | BF1: Description du compte de contrepartie | BG1: Type d'objet | BH1: Type d'objet | BI1: Tp cpte contrepartie | BJ1: Compte contrepartie | BK1: Type objet d'origine | BL1: Opération initiale | BM1: Sté parten. | BN1: Dom. fct. partenaire | BO1: Classe objet part. | BP1: Type objet parten. | BQ1: Type objet part. | BR1: Segment partenaire | BS1: Centre partenaire | BT1: Division | BU1: Unité quant. enreg. | BV1: Ligne d'écriture | BW1: Ecart/prix fixe | BX1: Ect/px Dev.pér. | BY1: Société de référence | BZ1: Exercice référence | CA1: Cat. pièce référence | CB1: Unité d'org. de réf. | CC1: Val.résid./dev.objet | CD1: Val.résid./DevTrans | CE1: Devise état | CF1: Pièce ctre-passation | CG1: Organis. c-passation | CH1: Réf. c.-pas. | CI1: contre-passée | CJ1: Ligne de vers. opér. | CK1: Segment | CL1: Objet d'origine | CM1: Type d'objet origine | CN1: Heure de création | CO1: Heure de saisie | CP1: TS Data | CQ1: Période au | CR1: Unité de quantité | CS1: Val./dev.état | CT1: Type de valeur | CU1: Val.variable/dev.état | CV1: Valeur variable/DevO | CW1: Valeur var./DevT | CX1: Version | CY1: Groupe nat. compt. | CZ1: Désignation de groupe de NC | DA1: Index groupe de NC
A2: 2016 | B2: 2 | C2: G02-FR-4000002-CCO-06000 | D2: Oil Components | E2: G02-FR-4000002-CCO-06000 | F2: 19.83 | G2: EUR | H2: 4 | I2: 19.83 | J2: EUR | K2: 0 | Q2: BASSET | S2: 210238449 | T2: 2016-01-29 | V2: BFERDI | W2: WA | X2: Oil Components | Y2: 611000230 | Z2: Consum.Oper.Supplies | AA2: Consumption of Operating Supplies | AD2: 0 | AE2: 2016-02-01 | AF2: Op. Supplies Gross | AG2: 2016-02-01 | AH2: 4903732655 | AI2: MKPF | AJ2: 0 | AK2: 2016-02-01 | AL2: G02-FR-4000002 | AM2: R&D CONTROL | AN2: 1 | AO2: COIN | AP2: 0 | AQ2: 2100 | AR2: 1 | AS2: D | AT2: M | AU2: 2 | AV2: 0 | AW2: 0 | AX2: 0 | AY2: 0 | AZ2: 2 | BA2: 0500 | BB2: 0 | BC2: 0 | BD2: 178830 | BE2: TRIPLE METRE FACOM REF:893.316 | BF2: Operating Supplies Stock (Gross) | BG2: Elément d'OTP | BH2: OTP | BI2: M | BJ2: 211000230 | BL2: RMWA | BT2: 2103 | BU2: CH | BV2: 1 | BW2: 0 | BX2: 0 | BY2: 2100 | BZ2: 2016 | CA2: R | CB2: 2016 | CC2: 0 | CD2: 0 | CE2: EUR | CJ2: 1 | CK2: 14 | CN2: 8231684900000 | CO2: 10:54:51 | CP2: 2016-01-29 | CQ2: 2 | CS2: 19.83 | CT2: 4 | CU2: 19.83 | CV2: 19.83 | CW2: 19.83 | CX2: 0 | CY2: PRF-201001 | CZ2: Stock consumption | DA2: 13
A3: 2016 | B3: 2 | C3: G02-FR-4000002-CCO-06000 | D3: Oil Components | E3: G02-FR-4000002-CCO-06000 | F3: 5.47 | G3: EUR | H3: 5 | I3: 5.47 | J3: EUR | K3: 0 | Q3: BASSET | S3: 210238449 | T3: 2016-01-29 | V3: BFERDI | W3: WA | X3: Oil Components | Y3: 611000230 | Z3: Consum.Oper.Supplies | AA3: Consumption of Operating Supplies | AD3: 0 | AE3: 2016-02-01 | AF3: Op. Supplies Gross | AG3: 2016-02-01 | AH3: 4903732655 | AI3: MKPF | AJ3: 0 | AK3: 2016-02-01 | AL3: G02-FR-4000002 | AM3: R&D CONTROL | AN3: 2 | AO3: COIN | AP3: 0 | AQ3: 2100 | AR3: 1 | AS3: D | AT3: M | AU3: 4 | AV3: 0 | AW3: 0 | AX3: 0 | AY3: 0 | AZ3: 2 | BA3: 0500 | BB3: 0 | BC3: 0 | BD3: 179022 | BE3: MARQUEURS INDUSTRIELS N50 REF:1126M884 | BF3: Operating Supplies Stock (Gross) | BG3: Elément d'OTP | BH3: OTP | BI3: M | BJ3: 211000230 | BL3: RMWA | BT3: 2103 | BU3: CH | BV3: 2 | BW3: 0 | BX3: 0 | BY3: 2100 | BZ3: 2016 | CA3: R | CB3: 2016 | CC3: 0 | CD3: 0 | CE3: EUR | CJ3: 2 | CK3: 14 | CN3: 8231684900000 | CO3: 10:54:51 | CP3: 2016-01-29 | CQ3: 2 | CS3: 5.47 | CT3: 4 | CU3: 5.47 | CV3: 5.47 | CW3: 5.47 | CX3: 0 | CY3: PRF-201001 | CZ3: Stock consumption | DA3: 13
A4: 2016 | B4: 3 | C4: G02-FR-4000002-CCO-06000 | D4: Oil Components | E4: G02-FR-4000002-CCO-06000 | F4: 29.36 | G4: EUR | H4: 2 | I4: 29.36 | J4: EUR | K4: 0 | Q4: BASSET | S4: 210420891 | T4: 2016-03-02 | V4: BFERDI | W4: WA | X4: Oil Components | Y4: 611000230 | Z4: Consum.Oper.Supplies | AA4: Consumption of Operating Supplies | AD4: 0 | AE4: 2016-03-02 | AF4: Op. Supplies Gross | AG4: 2016-03-02 | AH4: 4903795545 | AI4: MKPF | AJ4: 0 | AK4: 2016-03-02 | AL4: G02-FR-4000002 | AM4: R&D CONTROL | AN4: 1 | AO4: COIN | AP4: 0 | AQ4: 2100 | AR4: 1 | AS4: D | AT4: M | AU4: 2 | AV4: 0 | AW4: 0 | AX4: 0 | AY4: 0 | AZ4: 3 | BA4: 0500 | BB4: 0 | BC4: 0 | BD4: 178861 | BE4: CASQUE PELTOR H 540 A (H10 A 300) | BF4: Operating Supplies Stock (Gross) | BG4: Elément d'OTP | BH4: OTP | BI4: M | BJ4: 211000230 | BL4: RMWA | BT4: 2103 | BU4: CH | BV4: 1 | BW4: 0 | BX4: 0 | BY4: 2100 | BZ4: 2016 | CA4: R | CB4: 2016 | CC4: 0 | CD4: 0 | CE4: EUR | CJ4: 1 | CK4: 14 | CN4: 8257618480000 | CO4: 11:17:29 | CP4: 2016-03-02 | CQ4: 3 | CS4: 29.36 | CT4: 4 | CU4: 29.36 | CV4: 29.36 | CW4: 29.36 | CX4: 0 | CY4: PRF-201001 | CZ4: Stock consumption | DA4: 13
A5: 2016 | B5: 1 | C5: G02-FR-4000002-CCO-06000 | D5: Oil Components | E5: G02-FR-4000002-CCO-06000 | F5: -0.01 | G5: EUR | H5: 0 | I5: -0.01 | J5: EUR | K5: 0 | M5: 4100982695 | N5: Corps GPV50 6V | O5: 10660197 | P5: Fonderie Bot | Q5: 30.12.2015 | S5: 210113733 | T5: 2015-12-23 | V5: YDIPBASW | W5: RE | X5: Oil Components | Y5: 613000000 | Z5: Achats mat & équip. | AA5: Achats materiels et équipements | AD5: 0 | AE5: 2016-01-11 | AF5: GR/IR Finished Goods | AG5: 2016-01-11 | AH5: 5108125617 | AI5: RMRP | AJ5: 0 | AK5: 2016-01-11 | AL5: G02-FR-4000002 | AM5: R&D CONTROL | AN5: 1 | AO5: COIN | AP5: 0 | AQ5: 2100 | AR5: 1 | AS5: C | AT5: M | AU5: 3 | AV5: 0 | AW5: 0 | AX5: 0 | AY5: 0 | AZ5: 1 | BA5: 0500 | BB5: 10 | BC5: 0 | BD5: HSF07 | BE5: PETITS COMPOSANTS MECANIQUES | BF5: GR/IR Finished Goods | BG5: Elément d'OTP | BH5: OTP | BI5: S | BJ5: 219000421 | BL5: RMRP | BT5: 2103 | BU5: CH | BV5: 3 | BW5: 0 | BX5: 0 | BY5: 2100 | BZ5: 2016 | CA5: R | CB5: 2016 | CC5: 0 | CD5: 0 | CE5: EUR | CJ5: 1 | CK5: 14 | CN5: 8213783110000 | CO5: 17:38:31 | CP5: 2015-12-23 | CQ5: 1 | CS5: -0.01 | CT5: 4 | CU5: -0.01 | CV5: -0.01 | CW5: -0.01 | CX5: 0 | CY5: PRF-201001 | CZ5: Stock consumption | DA5: 38
A6: 2016 | B6: 1 | C6: G02-FR-4000002-CCO-06000 | D6: Oil Components | E6: G02-FR-4000002-CCO-06000 | F6: 2145 | G6: EUR | H6: 3 | I6: 2145 | J6: EUR | K6: 0 | M6: 4101027329 | N6: BODY 5V Ø35 AST3401E | O6: 10659035 | P6: Rbdh Hydraulics | R6: saisie à la demande B.TRUCHOT(voir pièces jointes) | S6: 210034237 | T6: 2015-12-22 | V6: 287897 | W6: WE | X6: Oil Components | Y6: 613000000 | Z6: Achats mat & équip. | AA6: Achats materiels et équipements | AD6: 0 | AE6: 2015-12-22 | AF6: GR/IR Finished Goods | AG6: 2016-01-01 | AH6: 5002870101 | AI6: MKPF | AJ6: 0 | AK6: 2016-01-01 | AL6: G02-FR-4000002 | AM6: R&D CONTROL | AN6: 1 | AO6: COIN | AP6: 0 | AQ6: 2100 | AR6: 1 | AS6: D | AT6: M | AU6: 1 | AV6: 0 | AW6: 0 | AX6: 0 | AY6: 0 | AZ6: 1 | BA6: 0500 | BB6: 30 | BC6: 0 | BD6: HSF07 | BE6: PETITS COMPOSANTS MECANIQUES | BF6: GR/IR Finished Goods | BG6: Elément d'OTP | BH6: OTP | BI6: S | BJ6: 219000421 | BL6: RMWE | BT6: 2103 | BU6: CH | BV6: 1 | BW6: 0 | BX6: 0 | BY6: 2100 | BZ6: 2016 | CA6: R | CB6: 2016 | CC6: 0 | CD6: 0 | CE6: EUR | CJ6: 1 | CK6: 14 | CN6: 8196389000000 | CO6: 14:28:20 | CP6: 2015-12-22 | CQ6: 1 | CS6: 2145 | CT6: 4 | CU6: 2145 | CV6: 2145 | CW6: 2145 | CX6: 0 | CY6: PRF-201001 | CZ6: Stock consumption | DA6: 38
A7: 2016 | B7: 2 | C7: G02-FR-4000002-CCO-06000 | D7: Oil Components | E7: G02-FR-4000002-CCO-06000 | F7: 405 | G7: EUR | H7: 3 | I7: 405 | J7: EUR | K7: 0 | M7: 4101109545 | N7: Ast3590indA remplissage gpv80c | O7: 10657657 | P7: AMR | S7: 210238368 | T7: 2016-01-27 | V7: MLYAUDET | W7: WE | X7: Oil Components | Y7: 613000000 | Z7: Achats mat & équip. | AA7: Achats materiels et équipements | AD7: 0 | AE7: 2016-02-01 | AF7: GR/IR Finished Goods | AG7: 2016-02-01 | AH7: 5002926980 | AI7: MKPF | AJ7: 0 | AK7: 2016-02-01 | AL7: G02-FR-4000002 | AM7: R&D CONTROL | AN7: 11 | AO7: COIN | AP7: 0 | AQ7: 2100 | AR7: 1 | AS7: D | AT7: M | AU7: 21 | AV7: 0 | AW7: 0 | AX7: 0 | AY7: 0 | AZ7: 2 | BA7: 0500 | BB7: 110 | BC7: 0 | BD7: HSF07 | BE7: PETITS COMPOSANTS MECANIQUES | BF7: GR/IR Finished Goods | BG7: Elément d'OTP | BH7: OTP | BI7: S | BJ7: 219000421 | BL7: RMWE | BT7: 2103 | BU7: CH | BV7: 11 | BW7: 0 | BX7: 0 | BY7: 2100 | BZ7: 2016 | CA7: R | CB7: 2016 | CC7: 0 | CD7: 0 | CE7: EUR | CJ7: 11 | CK7: 14 | CN7: 8231665450000 | CO7: 10:23:08 | CP7: 2016-01-27 | CQ7: 2 | CS7: 405 | CT7: 4 | CU7: 405 | CV7: 405 | CW7: 405 | CX7: 0 | CY7: PRF-201001 | CZ7: Stock consumption | DA7: 38
A8: 2016 | B8: 1 | C8: G02-FR-4000002-CCO-06000 | D8: Oil Components | E8: G02-FR-4000002-CCO-06000 | F8: 159.75 | G8: EUR | H8: 3 | I8: 159.75 | J8: EUR | K8: 0 | M8: 4101054633 | N8: rodage corps dia 35 | O8: 10731695 | P8: GUICHARD RODAGE ET POLISSAGE | R8: livré et pris par S.DELICOURT le 21.12.2015 | S8: 210029864 | T8: 2015-12-22 | V8: 287897 | W8: WE | X8: Oil Components | Y8: 613000000 | Z8: Achats mat & équip. | AA8: Achats materiels et équipements | AD8: 0 | AE8: 2015-12-22 | AF8: GR/IR Finished Goods | AG8: 2016-01-01 | AH8: 5002868802 | AI8: MKPF | AJ8: 0 | AK8: 2016-01-01 | AL8: G02-FR-4000002 | AM8: R&D CONTROL | AN8: 1 | AO8: COIN | AP8: 0 | AQ8: 2100 | AR8: 1 | AS8: D | AT8: M | AU8: 1 | AV8: 0 | AW8: 0 | AX8: 0 | AY8: 0 | AZ8: 1 | BA8: 0500 | BB8: 30 | BC8: 0 | BD8: HSF07 | BE8: PETITS COMPOSANTS MECANIQUES | BF8: GR/IR Finished Goods | BG8: Elément d'OTP | BH8: OTP | BI8: S | BJ8: 219000421 | BL8: RMWE | BT8: 2103 | BU8: CH | BV8: 1 | BW8: 0 | BX8: 0 | BY8: 2100 | BZ8: 2016 | CA8: R | CB8: 2016 | CC8: 0 | CD8: 0 | CE8: EUR | CJ8: 1 | CK8: 14 | CN8: 8196213900000 | CO8: 09:36:30 | CP8: 2015-12-22 | CQ8: 1 | CS8: 159.75 | CT8: 4 | CU8: 159.75 | CV8: 159.75 | CW8: 159.75 | CX8: 0 | CY8: PRF-201001 | CZ8: Stock consumption | DA8: 38
A9: 2016 | B9: 1 | C9: G02-FR-4000002-CCO-06000 | D9: Oil Components | E9: G02-FR-4000002-CCO-06000 | F9: 2145 | G9: EUR | H9: 3 | I9: 2145 | J9: EUR | K9: 0 | M9: 4101027329 | N9: BODY 5V Ø35 AST3411 | O9: 10659035 | P9: Rbdh Hydraulics | R9: livré et pris par S.DELICOURT le 21.12.2015 | S9: 210029850 | T9: 2015-12-22 | V9: 287897 | W9: WE | X9: Oil Components | Y9: 613000000 | Z9: Achats mat & équip. | AA9: Achats materiels et équipements | AD9: 0 | AE9: 2015-12-22 | AF9: GR/IR Finished Goods | AG9: 2016-01-01 | AH9: 5002868778 | AI9: MKPF | AJ9: 0 | AK9: 2016-01-01 | AL9: G02-FR-4000002 | AM9: R&D CONTROL | AN9: 1 | AO9: COIN | AP9: 0 | AQ9: 2100 | AR9: 1 | AS9: D | AT9: M | AU9: 1 | AV9: 0 | AW9: 0 | AX9: 0 | AY9: 0 | AZ9: 1 | BA9: 0500 | BB9: 40 | BC9: 0 | BD9: HSF07 | BE9: PETITS COMPOSANTS MECANIQUES | BF9: GR/IR Finished Goods | BG9: Elément d'OTP | BH9: OTP | BI9: S | BJ9: 219000421 | BL9: RMWE | BT9: 2103 | BU9: CH | BV9: 1 | BW9: 0 | BX9: 0 | BY9: 2100 | BZ9: 2016 | CA9: R | CB9: 2016 | CC9: 0 | CD9: 0 | CE9: EUR | CJ9: 1 | CK9: 14 | CN9: 8196212630000 | CO9: 09:34:23 | CP9: 2015-12-22 | CQ9: 1 | CS9: 2145 | CT9: 4 | CU9: 2145 | CV9: 2145 | CW9: 2145 | CX9: 0 | CY9: PRF-201001 | CZ9: Stock consumption | DA9: 38
A10: 2016 | B10: 2 | C10: G02-FR-4000002-CCO-06000 | D10: Oil Components | E10: G02-FR-4000002-CCO-06000 | F10: 360 | G10: EUR | H10: 3 | I10: 360 | J10: EUR | K10: 0 | M10: 4101109545 | N10: ast3390indA remplissage gpv50c | O10: 10657657 | P10: AMR | S10: 210238368 | T10: 2016-01-27 | V10: MLYAUDET | W10: WE | X10: Oil Components | Y10: 613000000 | Z10: Achats mat & équip. | AA10: Achats materiels et équipements | AD10: 0 | AE10: 2016-02-01 | AF10: GR/IR Finished Goods | AG10: 2016-02-01 | AH10: 5002926980 | AI10: MKPF | AJ10: 0 | AK10: 2016-02-01 | AL10: G02-FR-4000002 | AM10: R&D CONTROL | AN10: 1 | AO10: COIN | AP10: 0 | AQ10: 2100 | AR10: 1 | AS10: D | AT10: M | AU10: 1 | AV10: 0 | AW10: 0 | AX10: 0 | AY10: 0 | AZ10: 2 | BA10: 0500 | BB10: 10 | BC10: 0 | BD10: HSF07 | BE10: PETITS COMPOSANTS MECANIQUES | BF10: GR/IR Finished Goods | BG10: Elément d'OTP | BH10: OTP | BI10: S | BJ10: 219000421 | BL10: RMWE | BT10: 2103 | BU10: CH | BV10: 1 | BW10: 0 | BX10: 0 | BY10: 2100 | BZ10: 2016 | CA10: R | CB10: 2016 | CC10: 0 | CD10: 0 | CE10: EUR | CJ10: 1 | CK10: 14 | CN10: 8231665450000 | CO10: 10:23:08 | CP10: 2016-01-27 | CQ10: 2 | CS10: 360 | CT10: 4 | CU10: 360 | CV10: 360 | CW10: 360 | CX10: 0 | CY10: PRF-201001 | CZ10: Stock consumption | DA10: 38
A11: 2016 | B11: 2 | C11: G02-FR-4000002-CCO-06000 | D11: Oil Components | E11: G02-FR-4000002-CCO-06000 | F11: 396 | G11: EUR | H11: 3 | I11: 396 | J11: EUR | K11: 0 | M11: 4101109545 | N11: Ast3391indA remplissage gpv50c | O11: 10657657 | P11: AMR | S11: 210238368 | T11: 2016-01-27 | V11: MLYAUDET | W11: WE | X11: Oil Components | Y11: 613000000 | Z11: Achats mat & équip. | AA11: Achats materiels et équipements | AD11: 0 | AE11: 2016-02-01 | AF11: GR/IR Finished Goods | AG11: 2016-02-01 | AH11: 5002926980 | AI11: MKPF | AJ11: 0 | AK11: 2016-02-01 | AL11: G02-FR-4000002 | AM11: R&D CONTROL | AN11: 2 | AO11: COIN | AP11: 0 | AQ11: 2100 | AR11: 1 | AS11: D | AT11: M | AU11: 3 | AV11: 0 | AW11: 0 | AX11: 0 | AY11: 0 | AZ11: 2 | BA11: 0500 | BB11: 20 | BC11: 0 | BD11: HSF07 | BE11: PETITS COMPOSANTS MECANIQUES | BF11: GR/IR Finished Goods | BG11: Elément d'OTP | BH11: OTP | BI11: S | BJ11: 219000421 | BL11: RMWE | BT11: 2103 | BU11: CH | BV11: 2 | BW11: 0 | BX11: 0 | BY11: 2100 | BZ11: 2016 | CA11: R | CB11: 2016 | CC11: 0 | CD11: 0 | CE11: EUR | CJ11: 2 | CK11: 14 | CN11: 8231665450000 | CO11: 10:23:08 | CP11: 2016-01-27 | CQ11: 2 | CS11: 396 | CT11: 4 | CU11: 396 | CV11: 396 | CW11: 396 | CX11: 0 | CY11: PRF-201001 | CZ11: Stock consumption | DA11: 38
A12: 2016 | B12: 2 | C12: G02-FR-4000002-CCO-06000 | D12: Oil Components | E12: G02-FR-4000002-CCO-06000 | F12: 400 | G12: EUR | H12: 2 | I12: 400 | J12: EUR | K12: 0 | M12: 4101109545 | N12: ast 3392 indA barreau gpv50c 5v | O12: 10657657 | P12: AMR | S12: 210238368 | T12: 2016-01-27 | V12: MLYAUDET | W12: WE | X12: Oil Components | Y12: 613000000 | Z12: Achats mat & équip. | AA12: Achats materiels et équipements | AD12: 0 | AE12: 2016-02-01 | AF12: GR/IR Finished Goods | AG12: 2016-02-01 | AH12: 5002926980 | AI12: MKPF | AJ12: 0 | AK12: 2016-02-01 | AL12: G02-FR-4000002 | AM12: R&D CONTROL | AN12: 3 | AO12: COIN | AP12: 0 | AQ12: 2100 | AR12: 1 | AS12: D | AT12: M | AU12: 5 | AV12: 0 | AW12: 0 | AX12: 0 | AY12: 0 | AZ12: 2 | BA12: 0500 | BB12: 30 | BC12: 0 | BD12: HSF07 | BE12: PETITS COMPOSANTS MECANIQUES | BF12: GR/IR Finished Goods | BG12: Elément d'OTP | BH12: OTP | BI12: S | BJ12: 219000421 | BL12: RMWE | BT12: 2103 | BU12: CH | BV12: 3 | BW12: 0 | BX12: 0 | BY12: 2100 | BZ12: 2016 | CA12: R | CB12: 2016 | CC12: 0 | CD12: 0 | CE12: EUR | CJ12: 3 | CK12: 14 | CN12: 8231665450000 | CO12: 10:23:08 | CP12: 2016-01-27 | CQ12: 2 | CS12: 400 | CT12: 4 | CU12: 400 | CV12: 400 | CW12: 400 | CX12: 0 | CY12: PRF-201001 | CZ12: Stock consumption | DA12: 38
A13: 2016 | B13: 2 | C13: G02-FR-4000002-CCO-06000 | D13: Oil Components | E13: G02-FR-4000002-CCO-06000 | F13: 370 | G13: EUR | H13: 2 | I13: 370 | J13: EUR | K13: 0 | M13: 4101109545 | N13: ast3393 indA barreau gpv50c 3v | O13: 10657657 | P13: AMR | S13: 210238368 | T13: 2016-01-27 | V13: MLYAUDET | W13: WE | X13: Oil Components | Y13: 613000000 | Z13: Achats mat & équip. | AA13: Achats materiels et équipements | AD13: 0 | AE13: 2016-02-01 | AF13: GR/IR Finished Goods | AG13: 2016-02-01 | AH13: 5002926980 | AI13: MKPF | AJ13: 0 | AK13: 2016-02-01 | AL13: G02-FR-4000002 | AM13: R&D CONTROL | AN13: 4 | AO13: COIN | AP13: 0 | AQ13: 2100 | AR13: 1 | AS13: D | AT13: M | AU13: 7 | AV13: 0 | AW13: 0 | AX13: 0 | AY13: 0 | AZ13: 2 | BA13: 0500 | BB13: 40 | BC13: 0 | BD13: HSF07 | BE13: PETITS COMPOSANTS MECANIQUES | BF13: GR/IR Finished Goods | BG13: Elément d'OTP | BH13: OTP | BI13: S | BJ13: 219000421 | BL13: RMWE | BT13: 2103 | BU13: CH | BV13: 4 | BW13: 0 | BX13: 0 | BY13: 2100 | BZ13: 2016 | CA13: R | CB13: 2016 | CC13: 0 | CD13: 0 | CE13: EUR | CJ13: 4 | CK13: 14 | CN13: 8231665450000 | CO13: 10:23:08 | CP13: 2016-01-27 | CQ13: 2 | CS13: 370 | CT13: 4 | CU13: 370 | CV13: 370 | CW13: 370 | CX13: 0 | CY13: PRF-201001 | CZ13: Stock consumption | DA13: 38
A14: 2016 | B14: 2 | C14: G02-FR-4000002-CCO-06000 | D14: Oil Components | E14: G02-FR-4000002-CCO-06000 | F14: 450 | G14: EUR | H14: 2 | I14: 450 | J14: EUR | K14: 0 | M14: 4101109545 | N14: Ast3394 ind A barreau gpv50c 6v | O14: 10657657 | P14: AMR | S14: 210238368 | T14: 2016-01-27 | V14: MLYAUDET | W14: WE | X14: Oil Components | Y14: 613000000 | Z14: Achats mat & équip. | AA14: Achats materiels et équipements | AD14: 0 | AE14: 2016-02-01 | AF14: GR/IR Finished Goods | AG14: 2016-02-01 | AH14: 5002926980 | AI14: MKPF | AJ14: 0 | AK14: 2016-02-01 | AL14: G02-FR-4000002 | AM14: R&D CONTROL | AN14: 5 | AO14: COIN | AP14: 0 | AQ14: 2100 | AR14: 1 | AS14: D | AT14: M | AU14: 9 | AV14: 0 | AW14: 0 | AX14: 0 | AY14: 0 | AZ14: 2 | BA14: 0500 | BB14: 50 | BC14: 0 | BD14: HSF07 | BE14: PETITS COMPOSANTS MECANIQUES | BF14: GR/IR Finished Goods | BG14: Elément d'OTP | BH14: OTP | BI14: S | BJ14: 219000421 | BL14: RMWE | BT14: 2103 | BU14: CH | BV14: 5 | BW14: 0 | BX14: 0 | BY14: 2100 | BZ14: 2016 | CA14: R | CB14: 2016 | CC14: 0 | CD14: 0 | CE14: EUR | CJ14: 5 | CK14: 14 | CN14: 8231665450000 | CO14: 10:23:08 | CP14: 2016-01-27 | CQ14: 2 | CS14: 450 | CT14: 4 | CU14: 450 | CV14: 450 | CW14: 450 | CX14: 0 | CY14: PRF-201001 | CZ14: Stock consumption | DA14: 38
A15: 2016 | B15: 2 | C15: G02-FR-4000002-CCO-06000 | D15: Oil Components | E15: G02-FR-4000002-CCO-06000 | F15: 225 | G15: EUR | H15: 3 | I15: 225 | J15: EUR | K15: 0 | M15: 4101109545 | N15: ast3490 indA remplissage gpv35c | O15: 10657657 | P15: AMR | S15: 210238368 | T15: 2016-01-27 | V15: MLYAUDET | W15: WE | X15: Oil Components | Y15: 613000000 | Z15: Achats mat & équip. | AA15: Achats materiels et équipements | AD15: 0 | AE15: 2016-02-01 | AF15: GR/IR Finished Goods | AG15: 2016-02-01 | AH15: 5002926980 | AI15: MKPF | AJ15: 0 | AK15: 2016-02-01 | AL15: G02-FR-4000002 | AM15: R&D CONTROL | AN15: 6 | AO15: COIN | AP15: 0 | AQ15: 2100 | AR15: 1 | AS15: D | AT15: M | AU15: 11 | AV15: 0 | AW15: 0 | AX15: 0 | AY15: 0 | AZ15: 2 | BA15: 0500 | BB15: 60 | BC15: 0 | BD15: HSF07 | BE15: PETITS COMPOSANTS MECANIQUES | BF15: GR/IR Finished Goods | BG15: Elément d'OTP | BH15: OTP | BI15: S | BJ15: 219000421 | BL15: RMWE | BT15: 2103 | BU15: CH | BV15: 6 | BW15: 0 | BX15: 0 | BY15: 2100 | BZ15: 2016 | CA15: R | CB15: 2016 | CC15: 0 | CD15: 0 | CE15: EUR | CJ15: 6 | CK15: 14 | CN15: 8231665450000 | CO15: 10:23:08 | CP15: 2016-01-27 | CQ15: 2 | CS15: 225 | CT15: 4 | CU15: 225 | CV15: 225 | CW15: 225 | CX15: 0 | CY15: PRF-201001 | CZ15: Stock consumption | DA15: 38
A16: 2016 | B16: 2 | C16: G02-FR-4000002-CCO-06000 | D16: Oil Components | E16: G02-FR-4000002-CCO-06000 | F16: 351 | G16: EUR | H16: 3 | I16: 351 | J16: EUR | K16: 0 | M16: 4101109545 | N16: ast 3491 indA remplissage gpv35c | O16: 10657657 | P16: AMR | S16: 210238368 | T16: 2016-01-27 | V16: MLYAUDET | W16: WE | X16: Oil Components | Y16: 613000000 | Z16: Achats mat & équip. | AA16: Achats materiels et équipements | AD16: 0 | AE16: 2016-02-01 | AF16: GR/IR Finished Goods | AG16: 2016-02-01 | AH16: 5002926980 | AI16: MKPF | AJ16: 0 | AK16: 2016-02-01 | AL16: G02-FR-4000002 | AM16: R&D CONTROL | AN16: 7 | AO16: COIN | AP16: 0 | AQ16: 2100 | AR16: 1 | AS16: D | AT16: M | AU16: 13 | AV16: 0 | AW16: 0 | AX16: 0 | AY16: 0 | AZ16: 2 | BA16: 0500 | BB16: 70 | BC16: 0 | BD16: HSF07 | BE16: PETITS COMPOSANTS MECANIQUES | BF16: GR/IR Finished Goods | BG16: Elément d'OTP | BH16: OTP | BI16: S | BJ16: 219000421 | BL16: RMWE | BT16: 2103 | BU16: CH | BV16: 7 | BW16: 0 | BX16: 0 | BY16: 2100 | BZ16: 2016 | CA16: R | CB16: 2016 | CC16: 0 | CD16: 0 | CE16: EUR | CJ16: 7 | CK16: 14 | CN16: 8231665450000 | CO16: 10:23:08 | CP16: 2016-01-27 | CQ16: 2 | CS16: 351 | CT16: 4 | CU16: 351 | CV16: 351 | CW16: 351 | CX16: 0 | CY16: PRF-201001 | CZ16: Stock consumption | DA16: 38
A17: 2016 | B17: 2 | C17: G02-FR-4000002-CCO-06000 | D17: Oil Components | E17: G02-FR-4000002-CCO-06000 | F17: 350 | G17: EUR | H17: 2 | I17: 350 | J17: EUR | K17: 0 | M17: 4101109545 | N17: Ast3492 indA barreau gpv35c 5v | O17: 10657657 | P17: AMR | S17: 210238368 | T17: 2016-01-27 | V17: MLYAUDET | W17: WE | X17: Oil Components | Y17: 613000000 | Z17: Achats mat & équip. | AA17: Achats materiels et équipements | AD17: 0 | AE17: 2016-02-01 | AF17: GR/IR Finished Goods | AG17: 2016-02-01 | AH17: 5002926980 | AI17: MKPF | AJ17: 0 | AK17: 2016-02-01 | AL17: G02-FR-4000002 | AM17: R&D CONTROL | AN17: 8 | AO17: COIN | AP17: 0 | AQ17: 2100 | AR17: 1 | AS17: D | AT17: M | AU17: 15 | AV17: 0 | AW17: 0 | AX17: 0 | AY17: 0 | AZ17: 2 | BA17: 0500 | BB17: 80 | BC17: 0 | BD17: HSF07 | BE17: PETITS COMPOSANTS MECANIQUES | BF17: GR/IR Finished Goods | BG17: Elément d'OTP | BH17: OTP | BI17: S | BJ17: 219000421 | BL17: RMWE | BT17: 2103 | BU17: CH | BV17: 8 | BW17: 0 | BX17: 0 | BY17: 2100 | BZ17: 2016 | CA17: R | CB17: 2016 | CC17: 0 | CD17: 0 | CE17: EUR | CJ17: 8 | CK17: 14 | CN17: 8231665450000 | CO17: 10:23:08 | CP17: 2016-01-27 | CQ17: 2 | CS17: 350 | CT17: 4 | CU17: 350 | CV17: 350 | CW17: 350 | CX17: 0 | CY17: PRF-201001 | CZ17: Stock consumption | DA17: 38
A18: 2016 | B18: 2 | C18: G02-FR-4000002-CCO-06000 | D18: Oil Components | E18: G02-FR-4000002-CCO-06000 | F18: 320 | G18: EUR | H18: 2 | I18: 320 | J18: EUR | K18: 0 | M18: 4101109545 | N18: Ast3493indA barreau gpv35c 3v | O18: 10657657 | P18: AMR | S18: 210238368 | T18: 2016-01-27 | V18: MLYAUDET | W18: WE | X18: Oil Components | Y18: 613000000 | Z18: Achats mat & équip. | AA18: Achats materiels et équipements | AD18: 0 | AE18: 2016-02-01 | AF18: GR/IR Finished Goods | AG18: 2016-02-01 | AH18: 5002926980 | AI18: MKPF | AJ18: 0 | AK18: 2016-02-01 | AL18: G02-FR-4000002 | AM18: R&D CONTROL | AN18: 9 | AO18: COIN | AP18: 0 | AQ18: 2100 | AR18: 1 | AS18: D | AT18: M | AU18: 17 | AV18: 0 | AW18: 0 | AX18: 0 | AY18: 0 | AZ18: 2 | BA18: 0500 | BB18: 90 | BC18: 0 | BD18: HSF07 | BE18: PETITS COMPOSANTS MECANIQUES | BF18: GR/IR Finished Goods | BG18: Elément d'OTP | BH18: OTP | BI18: S | BJ18: 219000421 | BL18: RMWE | BT18: 2103 | BU18: CH | BV18: 9 | BW18: 0 | BX18: 0 | BY18: 2100 | BZ18: 2016 | CA18: R | CB18: 2016 | CC18: 0 | CD18: 0 | CE18: EUR | CJ18: 9 | CK18: 14 | CN18: 8231665450000 | CO18: 10:23:08 | CP18: 2016-01-27 | CQ18: 2 | CS18: 320 | CT18: 4 | CU18: 320 | CV18: 320 | CW18: 320 | CX18: 0 | CY18: PRF-201001 | CZ18: Stock consumption | DA18: 38
A19: 2016 | B19: 2 | C19: G02-FR-4000002-CCO-06000 | D19: Oil Components | E19: G02-FR-4000002-CCO-06000 | F19: 360 | G19: EUR | H19: 2 | I19: 360 | J19: EUR | K19: 0 | M19: 4101109545 | N19: Ast3494indA barreau gpv 35c 6v | O19: 10657657 | P19: AMR | S19: 210238368 | T19: 2016-01-27 | V19: MLYAUDET | W19: WE | X19: Oil Components | Y19: 613000000 | Z19: Achats mat & équip. | AA19: Achats materiels et équipements | AD19: 0 | AE19: 2016-02-01 | AF19: GR/IR Finished Goods | AG19: 2016-02-01 | AH19: 5002926980 | AI19: MKPF | AJ19: 0 | AK19: 2016-02-01 | AL19: G02-FR-4000002 | AM19: R&D CONTROL | AN19: 10 | AO19: COIN | AP19: 0 | AQ19: 2100 | AR19: 1 | AS19: D | AT19: M | AU19: 19 | AV19: 0 | AW19: 0 | AX19: 0 | AY19: 0 | AZ19: 2 | BA19: 0500 | BB19: 100 | BC19: 0 | BD19: HSF07 | BE19: PETITS COMPOSANTS MECANIQUES | BF19: GR/IR Finished Goods | BG19: Elément d'OTP | BH19: OTP | BI19: S | BJ19: 219000421 | BL19: RMWE | BT19: 2103 | BU19: CH | BV19: 10 | BW19: 0 | BX19: 0 | BY19: 2100 | BZ19: 2016 | CA19: R | CB19: 2016 | CC19: 0 | CD19: 0 | CE19: EUR | CJ19: 10 | CK19: 14 | CN19: 8231665450000 | CO19: 10:23:08 | CP19: 2016-01-27 | CQ19: 2 | CS19: 360 | CT19: 4 | CU19: 360 | CV19: 360 | CW19: 360 | CX19: 0 | CY19: PRF-201001 | CZ19: Stock consumption | DA19: 38
A20: 2016 | B20: 2 | C20: G02-FR-4000002-CCO-06000 | D20: Oil Components | E20: G02-FR-4000002-CCO-06000 | F20: 501 | G20: EUR | H20: 3 | I20: 501 | J20: EUR | K20: 0 | M20: 4101109545 | N20: Ast3591indA remplissage gpv80c | O20: 10657657 | P20: AMR | S20: 210238368 | T20: 2016-01-27 | V20: MLYAUDET | W20: WE | X20: Oil Components | Y20: 613000000 | Z20: Achats mat & équip. | AA20: Achats materiels et équipements | AD20: 0 | AE20: 2016-02-01 | AF20: GR/IR Finished Goods | AG20: 2016-02-01 | AH20: 5002926980 | AI20: MKPF | AJ20: 0 | AK20: 2016-02-01 | AL20: G02-FR-4000002 | AM20: R&D CONTROL | AN20: 12 | AO20: COIN | AP20: 0 | AQ20: 2100 | AR20: 1 | AS20: D | AT20: M | AU20: 23 | AV20: 0 | AW20: 0 | AX20: 0 | AY20: 0 | AZ20: 2 | BA20: 0500 | BB20: 120 | BC20: 0 | BD20: HSF07 | BE20: PETITS COMPOSANTS MECANIQUES | BF20: GR/IR Finished Goods | BG20: Elément d'OTP | BH20: OTP | BI20: S | BJ20: 219000421 | BL20: RMWE | BT20: 2103 | BU20: CH | BV20: 12 | BW20: 0 | BX20: 0 | BY20: 2100 | BZ20: 2016 | CA20: R | CB20: 2016 | CC20: 0 | CD20: 0 | CE20: EUR | CJ20: 12 | CK20: 14 | CN20: 8231665450000 | CO20: 10:23:08 | CP20: 2016-01-27 | CQ20: 2 | CS20: 501 | CT20: 4 | CU20: 501 | CV20: 501 | CW20: 501 | CX20: 0 | CY20: PRF-201001 | CZ20: Stock consumption | DA20: 38
A21: 2016 | B21: 2 | C21: G02-FR-4000002-CCO-06000 | D21: Oil Components | E21: G02-FR-4000002-CCO-06000 | F21: 900 | G21: EUR | H21: 2 | I21: 900 | J21: EUR | K21: 0 | M21: 4101109545 | N21: Ast3592indA barreau gpv80c 5v | O21: 10657657 | P21: AMR | S21: 210238368 | T21: 2016-01-27 | V21: MLYAUDET | W21: WE | X21: Oil Components | Y21: 613000000 | Z21: Achats mat & équip. | AA21: Achats materiels et équipements | AD21: 0 | AE21: 2016-02-01 | AF21: GR/IR Finished Goods | AG21: 2016-02-01 | AH21: 5002926980 | AI21: MKPF | AJ21: 0 | AK21: 2016-02-01 | AL21: G02-FR-4000002 | AM21: R&D CONTROL | AN21: 13 | AO21: COIN | AP21: 0 | AQ21: 2100 | AR21: 1 | AS21: D | AT21: M | AU21: 25 | AV21: 0 | AW21: 0 | AX21: 0 | AY21: 0 | AZ21: 2 | BA21: 0500 | BB21: 130 | BC21: 0 | BD21: HSF07 | BE21: PETITS COMPOSANTS MECANIQUES | BF21: GR/IR Finished Goods | BG21: Elément d'OTP | BH21: OTP | BI21: S | BJ21: 219000421 | BL21: RMWE | BT21: 2103 | BU21: CH | BV21: 13 | BW21: 0 | BX21: 0 | BY21: 2100 | BZ21: 2016 | CA21: R | CB21: 2016 | CC21: 0 | CD21: 0 | CE21: EUR | CJ21: 13 | CK21: 14 | CN21: 8231665450000 | CO21: 10:23:08 | CP21: 2016-01-27 | CQ21: 2 | CS21: 900 | CT21: 4 | CU21: 900 | CV21: 900 | CW21: 900 | CX21: 0 | CY21: PRF-201001 | CZ21: Stock consumption | DA21: 38
A22: 2016 | B22: 2 | C22: G02-FR-4000002-CCO-06000 | D22: Oil Components | E22: G02-FR-4000002-CCO-06000 | F22: 760 | G22: EUR | H22: 2 | I22: 760 | J22: EUR | K22: 0 | M22: 4101109545 | N22: Ast3593indA barreau gpv80c 3v | O22: 10657657 | P22: AMR | S22: 210238368 | T22: 2016-01-27 | V22: MLYAUDET | W22: WE | X22: Oil Components | Y22: 613000000 | Z22: Achats mat & équip. | AA22: Achats materiels et équipements | AD22: 0 | AE22: 2016-02-01 | AF22: GR/IR Finished Goods | AG22: 2016-02-01 | AH22: 5002926980 | AI22: MKPF | AJ22: 0 | AK22: 2016-02-01 | AL22: G02-FR-4000002 | AM22: R&D CONTROL | AN22: 14 | AO22: COIN | AP22: 0 | AQ22: 2100 | AR22: 1 | AS22: D | AT22: M | AU22: 27 | AV22: 0 | AW22: 0 | AX22: 0 | AY22: 0 | AZ22: 2 | BA22: 0500 | BB22: 140 | BC22: 0 | BD22: HSF07 | BE22: PETITS COMPOSANTS MECANIQUES | BF22: GR/IR Finished Goods | BG22: Elément d'OTP | BH22: OTP | BI22: S | BJ22: 219000421 | BL22: RMWE | BT22: 2103 | BU22: CH | BV22: 14 | BW22: 0 | BX22: 0 | BY22: 2100 | BZ22: 2016 | CA22: R | CB22: 2016 | CC22: 0 | CD22: 0 | CE22: EUR | CJ22: 14 | CK22: 14 | CN22: 8231665450000 | CO22: 10:23:08 | CP22: 2016-01-27 | CQ22: 2 | CS22: 760 | CT22: 4 | CU22: 760 | CV22: 760 | CW22: 760 | CX22: 0 | CY22: PRF-201001 | CZ22: Stock consumption | DA22: 38
A23: 2016 | B23: 2 | C23: G02-FR-4000002-CCO-06000 | D23: Oil Components | E23: G02-FR-4000002-CCO-06000 | F23: 950 | G23: EUR | H23: 2 | I23: 950 | J23: EUR | K23: 0 | M23: 4101109545 | N23: Ast3594indA barreau gpv80c 6v | O23: 10657657 | P23: AMR | S23: 210238368 | T23: 2016-01-27 | V23: MLYAUDET | W23: WE | X23: Oil Components | Y23: 613000000 | Z23: Achats mat & équip. | AA23: Achats materiels et équipements | AD23: 0 | AE23: 2016-02-01 | AF23: GR/IR Finished Goods | AG23: 2016-02-01 | AH23: 5002926980 | AI23: MKPF | AJ23: 0 | AK23: 2016-02-01 | AL23: G02-FR-4000002 | AM23: R&D CONTROL | AN23: 15 | AO23: COIN | AP23: 0 | AQ23: 2100 | AR23: 1 | AS23: D | AT23: M | AU23: 29 | AV23: 0 | AW23: 0 | AX23: 0 | AY23: 0 | AZ23: 2 | BA23: 0500 | BB23: 150 | BC23: 0 | BD23: HSF07 | BE23: PETITS COMPOSANTS MECANIQUES | BF23: GR/IR Finished Goods | BG23: Elément d'OTP | BH23: OTP | BI23: S | BJ23: 219000421 | BL23: RMWE | BT23: 2103 | BU23: CH | BV23: 15 | BW23: 0 | BX23: 0 | BY23: 2100 | BZ23: 2016 | CA23: R | CB23: 2016 | CC23: 0 | CD23: 0 | CE23: EUR | CJ23: 15 | CK23: 14 | CN23: 8231665450000 | CO23: 10:23:08 | CP23: 2016-01-27 | CQ23: 2 | CS23: 950 | CT23: 4 | CU23: 950 | CV23: 950 | CW23: 950 | CX23: 0 | CY23: PRF-201001 | CZ23: Stock consumption | DA23: 38
A24: 2016 | B24: 1 | C24: G02-FR-4000002-CCO-06000 | D24: Oil Components | E24: G02-FR-4000002-CCO-06000 | F24: 3154.92 | G24: EUR | H24: 2 | I24: 3154.92 | J24: EUR | K24: 0 | M24: 4101076968 | N24: NI 9225 3-Ch +/-300V Analog Input | O24: 10664507 | P24: NATIONAL INSTRUMENT FRANCE | R24: livré et pris par S.DELICOURT le 21.12.2015 | S24: 210029116 | T24: 2015-12-17 | V24: 287897 | W24: WE | X24: Oil Components | Y24: 613000000 | Z24: Achats mat & équip. | AA24: Achats materiels et équipements | AD24: 0 | AE24: 2015-12-22 | AF24: GR/IR Finished Goods | AG24: 2016-01-01 | AH24: 5002868581 | AI24: MKPF | AJ24: 0 | AK24: 2016-01-01 | AL24: G02-FR-4000002 | AM24: R&D CONTROL | AN24: 1 | AO24: COIN | AP24: 0 | AQ24: 2100 | AR24: 1 | AS24: D | AT24: M | AU24: 1 | AV24: 0 | AW24: 0 | AX24: 0 | AY24: 0 | AZ24: 1 | BA24: 0500 | BB24: 10 | BC24: 0 | BD24: HSF07 | BE24: PETITS COMPOSANTS MECANIQUES | BF24: GR/IR Finished Goods | BG24: Elément d'OTP | BH24: OTP | BI24: S | BJ24: 219000421 | BL24: RMWE | BT24: 2103 | BU24: CH | BV24: 1 | BW24: 0 | BX24: 0 | BY24: 2100 | BZ24: 2016 | CA24: R | CB24: 2016 | CC24: 0 | CD24: 0 | CE24: EUR | CJ24: 1 | CK24: 14 | CN24: 8196186120000 | CO24: 08:50:12 | CP24: 2015-12-17 | CQ24: 1 | CS24: 3154.92 | CT24: 4 | CU24: 3154.92 | CV24: 3154.92 | CW24: 3154.92 | CX24: 0 | CY24: PRF-201001 | CZ24: Stock consumption | DA24: 38
A25: 2016 | B25: 1 | C25: G02-FR-4000002-CCO-06000 | D25: Oil Components | E25: G02-FR-4000002-CCO-06000 | F25: 0.1 | G25: EUR | H25: 0 | I25: 0.1 | J25: EUR | K25: 0 | M25: 4100982695 | N25: Corps GPV80 3V | O25: 10660197 | P25: Fonderie Bot | Q25: 03.12.2015 | S25: 210120531 | T25: 2015-11-18 | V25: YDIPBASW | W25: RE | X25: Oil Components | Y25: 613000000 | Z25: Achats mat & équip. | AA25: Achats materiels et équipements | AD25: 0 | AE25: 2016-01-12 | AF25: Fonderie Bot | AG25: 2016-01-12 | AH25: 5108127753 | AI25: RMRP | AJ25: 0 | AK25: 2016-01-12 | AL25: G02-FR-4000002 | AM25: R&D CONTROL | AN25: 1 | AO25: COIN | AP25: 0 | AQ25: 2100 | AR25: 1 | AS25: D | AT25: M | AU25: 4 | AV25: 0 | AW25: 0 | AX25: 0 | AY25: 0 | AZ25: 1 | BA25: 0500 | BB25: 20 | BC25: 0 | BD25: HSF07 | BE25: PETITS COMPOSANTS MECANIQUES | BF25: Fonderie Bot | BG25: Elément d'OTP | BH25: OTP | BI25: K | BJ25: 10660197 | BL25: RMRP | BT25: 2103 | BU25: CH | BV25: 4 | BW25: 0 | BX25: 0 | BY25: 2100 | BZ25: 2016 | CA25: R | CB25: 2016 | CC25: 0 | CD25: 0 | CE25: EUR | CJ25: 1 | CK25: 14 | CN25: 8214581000000 | CO25: 15:48:20 | CP25: 2015-11-18 | CQ25: 1 | CS25: 0.1 | CT25: 4 | CU25: 0.1 | CV25: 0.1 | CW25: 0.1 | CX25: 0 | CY25: PRF-201001 | CZ25: Stock consumption | DA25: 38
A26: 2016 | B26: 1 | C26: G02-FR-4000002-CCO-06000 | D26: Oil Components | E26: G02-FR-4000002-CCO-06000 | F26: 0.01 | G26: EUR | H26: 0 | I26: 0.01 | J26: EUR | K26: 0 | M26: 4101027342 | N26: corps taille 35 5 sorties | O26: 10660197 | P26: Fonderie Bot | Q26: 03.12.2015 | S26: 210120530 | T26: 2015-11-18 | V26: YDIPBASW | W26: RE | X26: Oil Components | Y26: 613000000 | Z26: Achats mat & équip. | AA26: Achats materiels et équipements | AD26: 0 | AE26: 2016-01-12 | AF26: Fonderie Bot | AG26: 2016-01-12 | AH26: 5108127752 | AI26: RMRP | AJ26: 0 | AK26: 2016-01-12 | AL26: G02-FR-4000002 | AM26: R&D CONTROL | AN26: 1 | AO26: COIN | AP26: 0 | AQ26: 2100 | AR26: 1 | AS26: D | AT26: M | AU26: 6 | AV26: 0 | AW26: 0 | AX26: 0 | AY26: 0 | AZ26: 1 | BA26: 0500 | BB26: 50 | BC26: 0 | BD26: HSF07 | BE26: PETITS COMPOSANTS MECANIQUES | BF26: Fonderie Bot | BG26: Elément d'OTP | BH26: OTP | BI26: K | BJ26: 10660197 | BL26: RMRP | BT26: 2103 | BU26: CH | BV26: 6 | BW26: 0 | BX26: 0 | BY26: 2100 | BZ26: 2016 | CA26: R | CB26: 2016 | CC26: 0 | CD26: 0 | CE26: EUR | CJ26: 1 | CK26: 14 | CN26: 8214580910000 | CO26: 15:48:11 | CP26: 2015-11-18 | CQ26: 1 | CS26: 0.01 | CT26: 4 | CU26: 0.01 | CV26: 0.01 | CW26: 0.01 | CX26: 0 | CY26: PRF-201001 | CZ26: Stock consumption | DA26: 38
A27: 2016 | B27: 1 | C27: G02-FR-4000002-CCO-06000 | D27: Oil Components | E27: G02-FR-4000002-CCO-06000 | F27: 50 | G27: EUR | H27: 0.5 | I27: 50 | J27: EUR | K27: 0 | M27: 4101054633 | N27: reglage preserie dia 50 | O27: 10731695 | P27: GUICHARD RODAGE ET POLISSAGE | R27: saisie à demande O.FEDELI (voir pièces jointes) | S27: 210125021 | T27: 2016-01-13 | V27: 287897 | W27: WE | X27: Oil Components | Y27: 613000000 | Z27: Achats mat & équip. | AA27: Achats materiels et équipements | AD27: 0 | AE27: 2016-01-13 | AF27: GR/IR Finished Goods | AG27: 2016-01-13 | AH27: 5002895217 | AI27: MKPF | AJ27: 0 | AK27: 2016-01-13 | AL27: G02-FR-4000002 | AM27: R&D CONTROL | AN27: 1 | AO27: COIN | AP27: 0 | AQ27: 2100 | AR27: 1 | AS27: D | AT27: M | AU27: 1 | AV27: 0 | AW27: 0 | AX27: 0 | AY27: 0 | AZ27: 1 | BA27: 0500 | BB27: 70 | BC27: 0 | BD27: HSF07 | BE27: PETITS COMPOSANTS MECANIQUES | BF27: GR/IR Finished Goods | BG27: Elément d'OTP | BH27: OTP | BI27: S | BJ27: 219000421 | BL27: RMWE | BT27: 2103 | BU27: CH | BV27: 1 | BW27: 0 | BX27: 0 | BY27: 2100 | BZ27: 2016 | CA27: R | CB27: 2016 | CC27: 0 | CD27: 0 | CE27: EUR | CJ27: 1 | CK27: 14 | CN27: 8215217030000 | CO27: 09:28:23 | CP27: 2016-01-13 | CQ27: 1 | CS27: 50 | CT27: 4 | CU27: 50 | CV27: 50 | CW27: 50 | CX27: 0 | CY27: PRF-201001 | CZ27: Stock consumption | DA27: 38
A28: 2016 | B28: 1 | C28: G02-FR-4000002-CCO-06000 | D28: Oil Components | E28: G02-FR-4000002-CCO-06000 | F28: 260 | G28: EUR | H28: 1 | I28: 260 | J28: EUR | K28: 0 | M28: 4101077157 | N28: tiroir diam 35 5 voies | O28: 10657657 | P28: AMR | R28: livré et pris par C.TARDOS le 12.01.2016 | S28: 210118654 | T28: 2016-01-12 | V28: 287897 | W28: WE | X28: Oil Components | Y28: 613000000 | Z28: Achats mat & équip. | AA28: Achats materiels et équipements | AD28: 0 | AE28: 2016-01-12 | AF28: GR/IR Finished Goods | AG28: 2016-01-12 | AH28: 5002892727 | AI28: MKPF | AJ28: 0 | AK28: 2016-01-12 | AL28: G02-FR-4000002 | AM28: R&D CONTROL | AN28: 1 | AO28: COIN | AP28: 0 | AQ28: 2100 | AR28: 1 | AS28: D | AT28: M | AU28: 1 | AV28: 0 | AW28: 0 | AX28: 0 | AY28: 0 | AZ28: 1 | BA28: 0500 | BB28: 10 | BC28: 0 | BD28: HSF07 | BE28: PETITS COMPOSANTS MECANIQUES | BF28: GR/IR Finished Goods | BG28: Elément d'OTP | BH28: OTP | BI28: S | BJ28: 219000421 | BL28: RMWE | BT28: 2103 | BU28: CH | BV28: 1 | BW28: 0 | BX28: 0 | BY28: 2100 | BZ28: 2016 | CA28: R | CB28: 2016 | CC28: 0 | CD28: 0 | CE28: EUR | CJ28: 1 | CK28: 14 | CN28: 8214444820000 | CO28: 12:01:22 | CP28: 2016-01-12 | CQ28: 1 | CS28: 260 | CT28: 4 | CU28: 260 | CV28: 260 | CW28: 260 | CX28: 0 | CY28: PRF-201001 | CZ28: Stock consumption | DA28: 38
A29: 2016 | B29: 1 | C29: G02-FR-4000002-CCO-06000 | D29: Oil Components | E29: G02-FR-4000002-CCO-06000 | F29: 850 | G29: EUR | H29: 10 | I29: 850 | J29: EUR | K29: 0 | M29: 4101077157 | N29: tiroir dia 10 suitant plan 172ASTE | O29: 10657657 | P29: AMR | R29: livré et pris par C.TARDOS le 12.01.2016 | S29: 210118654 | T29: 2016-01-12 | V29: 287897 | W29: WE | X29: Oil Components | Y29: 613000000 | Z29: Achats mat & équip. | AA29: Achats materiels et équipements | AD29: 0 | AE29: 2016-01-12 | AF29: GR/IR Finished Goods | AG29: 2016-01-12 | AH29: 5002892727 | AI29: MKPF | AJ29: 0 | AK29: 2016-01-12 | AL29: G02-FR-4000002 | AM29: R&D CONTROL | AN29: 2 | AO29: COIN | AP29: 0 | AQ29: 2100 | AR29: 1 | AS29: D | AT29: M | AU29: 3 | AV29: 0 | AW29: 0 | AX29: 0 | AY29: 0 | AZ29: 1 | BA29: 0500 | BB29: 70 | BC29: 0 | BD29: HSF07 | BE29: PETITS COMPOSANTS MECANIQUES | BF29: GR/IR Finished Goods | BG29: Elément d'OTP | BH29: OTP | BI29: S | BJ29: 219000421 | BL29: RMWE | BT29: 2103 | BU29: CH | BV29: 2 | BW29: 0 | BX29: 0 | BY29: 2100 | BZ29: 2016 | CA29: R | CB29: 2016 | CC29: 0 | CD29: 0 | CE29: EUR | CJ29: 2 | CK29: 14 | CN29: 8214444820000 | CO29: 12:01:22 | CP29: 2016-01-12 | CQ29: 1 | CS29: 850 | CT29: 4 | CU29: 850 | CV29: 850 | CW29: 850 | CX29: 0 | CY29: PRF-201001 | CZ29: Stock consumption | DA29: 38
A30: 2016 | B30: 1 | C30: G02-FR-4000002-CCO-06000 | D30: Oil Components | E30: G02-FR-4000002-CCO-06000 | F30: 2140.68 | G30: EUR | H30: 4 | I30: 2140.68 | J30: EUR | K30: 0 | M30: 4100982695 | N30: Corps GPV50 6V | O30: 10660197 | P30: Fonderie Bot | R30: saisie à la demande O.FEDELI(voir pièces jointes) | S30: 210098431 | T30: 2016-01-07 | V30: 287897 | W30: WE | X30: Oil Components | Y30: 613000000 | Z30: Achats mat & équip. | AA30: Achats materiels et équipements | AD30: 0 | AE30: 2016-01-07 | AF30: GR/IR Finished Goods | AG30: 2016-01-07 | AH30: 5002885151 | AI30: MKPF | AJ30: 0 | AK30: 2016-01-07 | AL30: G02-FR-4000002 | AM30: R&D CONTROL | AN30: 1 | AO30: COIN | AP30: 0 | AQ30: 2100 | AR30: 1 | AS30: D | AT30: M | AU30: 1 | AV30: 0 | AW30: 0 | AX30: 0 | AY30: 0 | AZ30: 1 | BA30: 0500 | BB30: 10 | BC30: 0 | BD30: HSF07 | BE30: PETITS COMPOSANTS MECANIQUES | BF30: GR/IR Finished Goods | BG30: Elément d'OTP | BH30: OTP | BI30: S | BJ30: 219000421 | BL30: RMWE | BT30: 2103 | BU30: CH | BV30: 1 | BW30: 0 | BX30: 0 | BY30: 2100 | BZ30: 2016 | CA30: R | CB30: 2016 | CC30: 0 | CD30: 0 | CE30: EUR | CJ30: 1 | CK30: 14 | CN30: 8210169520000 | CO30: 13:15:53 | CP30: 2016-01-07 | CQ30: 1 | CS30: 2140.68 | CT30: 4 | CU30: 2140.68 | CV30: 2140.68 | CW30: 2140.68 | CX30: 0 | CY30: PRF-201001 | CZ30: Stock consumption | DA30: 38
A31: 2016 | B31: 1 | C31: G02-FR-4000002-CCO-06000 | D31: Oil Components | E31: G02-FR-4000002-CCO-06000 | F31: 978 | G31: EUR | H31: 1 | I31: 978 | J31: EUR | K31: 0 | M31: 4101054633 | N31: Douille dia 35 | O31: 10731695 | P31: GUICHARD RODAGE ET POLISSAGE | R31: saisie à la demande O.FEDELI(voir pièces jointes) | S31: 210080750 | T31: 2016-01-04 | V31: 287897 | W31: WE | X31: Oil Components | Y31: 613000000 | Z31: Achats mat & équip. | AA31: Achats materiels et équipements | AD31: 0 | AE31: 2016-01-04 | AF31: GR/IR Finished Goods | AG31: 2016-01-04 | AH31: 5002879496 | AI31: MKPF | AJ31: 0 | AK31: 2016-01-04 | AL31: G02-FR-4000002 | AM31: R&D CONTROL | AN31: 1 | AO31: COIN | AP31: 0 | AQ31: 2100 | AR31: 1 | AS31: D | AT31: M | AU31: 1 | AV31: 0 | AW31: 0 | AX31: 0 | AY31: 0 | AZ31: 1 | BA31: 0500 | BB31: 10 | BC31: 0 | BD31: HSF07 | BE31: PETITS COMPOSANTS MECANIQUES | BF31: GR/IR Finished Goods | BG31: Elément d'OTP | BH31: OTP | BI31: S | BJ31: 219000421 | BL31: RMWE | BT31: 2103 | BU31: CH | BV31: 1 | BW31: 0 | BX31: 0 | BY31: 2100 | BZ31: 2016 | CA31: R | CB31: 2016 | CC31: 0 | CD31: 0 | CE31: EUR | CJ31: 1 | CK31: 14 | CN31: 8207644860000 | CO31: 15:08:07 | CP31: 2016-01-04 | CQ31: 1 | CS31: 978 | CT31: 4 | CU31: 978 | CV31: 978 | CW31: 978 | CX31: 0 | CY31: PRF-201001 | CZ31: Stock consumption | DA31: 38
A32: 2016 | B32: 1 | C32: G02-FR-4000002-CCO-06000 | D32: Oil Components | E32: G02-FR-4000002-CCO-06000 | F32: 1190 | G32: EUR | H32: 1 | I32: 1190 | J32: EUR | K32: 0 | M32: 4101054633 | N32: Douille dia 50 | O32: 10731695 | P32: GUICHARD RODAGE ET POLISSAGE | R32: saisie à la demande O.FEDELI(voir pièces jointes) | S32: 210080750 | T32: 2016-01-04 | V32: 287897 | W32: WE | X32: Oil Components | Y32: 613000000 | Z32: Achats mat & équip. | AA32: Achats materiels et équipements | AD32: 0 | AE32: 2016-01-04 | AF32: GR/IR Finished Goods | AG32: 2016-01-04 | AH32: 5002879496 | AI32: MKPF | AJ32: 0 | AK32: 2016-01-04 | AL32: G02-FR-4000002 | AM32: R&D CONTROL | AN32: 2 | AO32: COIN | AP32: 0 | AQ32: 2100 | AR32: 1 | AS32: D | AT32: M | AU32: 3 | AV32: 0 | AW32: 0 | AX32: 0 | AY32: 0 | AZ32: 1 | BA32: 0500 | BB32: 20 | BC32: 0 | BD32: HSF07 | BE32: PETITS COMPOSANTS MECANIQUES | BF32: GR/IR Finished Goods | BG32: Elément d'OTP | BH32: OTP | BI32: S | BJ32: 219000421 | BL32: RMWE | BT32: 2103 | BU32: CH | BV32: 2 | BW32: 0 | BX32: 0 | BY32: 2100 | BZ32: 2016 | CA32: R | CB32: 2016 | CC32: 0 | CD32: 0 | CE32: EUR | CJ32: 2 | CK32: 14 | CN32: 8207644860000 | CO32: 15:08:07 | CP32: 2016-01-04 | CQ32: 1 | CS32: 1190 | CT32: 4 | CU32: 1190 | CV32: 1190 | CW32: 1190 | CX32: 0 | CY32: PRF-201001 | CZ32: Stock consumption | DA32: 38
A33: 2016 | B33: 1 | C33: G02-FR-4000002-CCO-06000 | D33: Oil Components | E33: G02-FR-4000002-CCO-06000 | F33: 2109.98 | G33: EUR | H33: 2 | I33: 2109.98 | J33: EUR | K33: 0 | M33: 4101076968 | N33: NI 9227 4 ch current input, 5Amp, ISO | O33: 10664507 | P33: NATIONAL INSTRUMENT FRANCE | R33: REGULATION | S33: 210078506 | T33: 2016-01-04 | V33: 288619 | W33: WE | X33: Oil Components | Y33: 613000000 | Z33: Achats mat & équip. | AA33: Achats materiels et équipements | AD33: 0 | AE33: 2016-01-04 | AF33: GR/IR Finished Goods | AG33: 2016-01-04 | AH33: 5002878397 | AI33: MKPF | AJ33: 0 | AK33: 2016-01-04 | AL33: G02-FR-4000002 | AM33: R&D CONTROL | AN33: 1 | AO33: COIN | AP33: 0 | AQ33: 2100 | AR33: 1 | AS33: D | AT33: M | AU33: 1 | AV33: 0 | AW33: 0 | AX33: 0 | AY33: 0 | AZ33: 1 | BA33: 0500 | BB33: 20 | BC33: 0 | BD33: HSF07 | BE33: PETITS COMPOSANTS MECANIQUES | BF33: GR/IR Finished Goods | BG33: Elément d'OTP | BH33: OTP | BI33: S | BJ33: 219000421 | BL33: RMWE | BT33: 2103 | BU33: CH | BV33: 1 | BW33: 0 | BX33: 0 | BY33: 2100 | BZ33: 2016 | CA33: R | CB33: 2016 | CC33: 0 | CD33: 0 | CE33: EUR | CJ33: 1 | CK33: 14 | CN33: 8207456040000 | CO33: 09:53:26 | CP33: 2016-01-04 | CQ33: 1 | CS33: 2109.98 | CT33: 4 | CU33: 2109.98 | CV33: 2109.98 | CW33: 2109.98 | CX33: 0 | CY33: PRF-201001 | CZ33: Stock consumption | DA33: 38
A34: 2016 | B34: 2 | C34: G02-FR-4000002-CCO-06000 | D34: Oil Components | E34: G02-FR-4000002-CCO-06000 | F34: 933.05 | G34: EUR | H34: 1 | I34: 933.05 | J34: EUR | K34: 0 | M34: 4101089357 | N34: Corps Moulé Brut _ Taille 80 _ 3 Sorties | O34: 10660197 | P34: Fonderie Bot | S34: 210255297 | T34: 2016-02-01 | V34: MLYAUDET | W34: WE | X34: Oil Components | Y34: 613000000 | Z34: Achats mat & équip. | AA34: Achats materiels et équipements | AD34: 0 | AE34: 2016-02-03 | AF34: GR/IR Finished Goods | AG34: 2016-02-03 | AH34: 5002933654 | AI34: MKPF | AJ34: 0 | AK34: 2016-02-03 | AL34: G02-FR-4000002 | AM34: R&D CONTROL | AN34: 1 | AO34: COIN | AP34: 0 | AQ34: 2100 | AR34: 1 | AS34: D | AT34: M | AU34: 1 | AV34: 0 | AW34: 0 | AX34: 0 | AY34: 0 | AZ34: 2 | BA34: 0500 | BB34: 10 | BC34: 0 | BD34: HSF07 | BE34: PETITS COMPOSANTS MECANIQUES | BF34: GR/IR Finished Goods | BG34: Elément d'OTP | BH34: OTP | BI34: S | BJ34: 219000421 | BL34: RMWE | BT34: 2103 | BU34: CH | BV34: 1 | BW34: 0 | BX34: 0 | BY34: 2100 | BZ34: 2016 | CA34: R | CB34: 2016 | CC34: 0 | CD34: 0 | CE34: EUR | CJ34: 1 | CK34: 14 | CN34: 8233414730000 | CO34: 10:57:53 | CP34: 2016-02-01 | CQ34: 2 | CS34: 933.05 | CT34: 4 | CU34: 933.05 | CV34: 933.05 | CW34: 933.05 | CX34: 0 | CY34: PRF-201001 | CZ34: Stock consumption | DA34: 38
A35: 2016 | B35: 3 | C35: G02-FR-4000002-CCO-06000 | D35: Oil Components | E35: G02-FR-4000002-CCO-06000 | F35: 420 | G35: EUR | H35: 1 | I35: 420 | J35: EUR | K35: 0 | M35: 4101099719 | N35: Bloc embase GVP 10 3-VE AST 2578 | O35: 10658999 | P35: Gonzales Sevmhy | S35: 210428597 | T35: 2016-02-29 | V35: MLYAUDET | W35: WE | X35: Oil Components | Y35: 613000000 | Z35: Achats mat & équip. | AA35: Achats materiels et équipements | AD35: 0 | AE35: 2016-03-03 | AF35: GR/IR Finished Goods | AG35: 2016-03-03 | AH35: 5002986952 | AI35: MKPF | AJ35: 0 | AK35: 2016-03-03 | AL35: G02-FR-4000002 | AM35: R&D CONTROL | AN35: 5 | AO35: COIN | AP35: 0 | AQ35: 2100 | AR35: 1 | AS35: D | AT35: M | AU35: 9 | AV35: 0 | AW35: 0 | AX35: 0 | AY35: 0 | AZ35: 3 | BA35: 0500 | BB35: 50 | BC35: 0 | BD35: HSF07 | BE35: PETITS COMPOSANTS MECANIQUES | BF35: GR/IR Finished Goods | BG35: Elément d'OTP | BH35: OTP | BI35: S | BJ35: 219000421 | BL35: RMWE | BT35: 2103 | BU35: CH | BV35: 5 | BW35: 0 | BX35: 0 | BY35: 2100 | BZ35: 2016 | CA35: R | CB35: 2016 | CC35: 0 | CD35: 0 | CE35: EUR | CJ35: 5 | CK35: 14 | CN35: 8258480700000 | CO35: 11:14:48 | CP35: 2016-02-29 | CQ35: 3 | CS35: 420 | CT35: 4 | CU35: 420 | CV35: 420 | CW35: 420 | CX35: 0 | CY35: PRF-201001 | CZ35: Stock consumption | DA35: 38
A36: 2016 | B36: 3 | C36: G02-FR-4000002-CCO-06000 | D36: Oil Components | E36: G02-FR-4000002-CCO-06000 | F36: 4071 | G36: EUR | H36: 3 | I36: 4071 | J36: EUR | K36: 0 | M36: 4101089370 | N36: BODY 5V Ø80 | O36: 10659035 | P36: Rbdh Hydraulics | S36: 210411198 | T36: 2016-02-29 | V36: MLYAUDET | W36: WE | X36: Oil Components | Y36: 613000000 | Z36: Achats mat & équip. | AA36: Achats materiels et équipements | AD36: 0 | AE36: 2016-03-01 | AF36: GR/IR Finished Goods | AG36: 2016-03-01 | AH36: 5002981685 | AI36: MKPF | AJ36: 0 | AK36: 2016-03-01 | AL36: G02-FR-4000002 | AM36: R&D CONTROL | AN36: 1 | AO36: COIN | AP36: 0 | AQ36: 2100 | AR36: 1 | AS36: D | AT36: M | AU36: 1 | AV36: 0 | AW36: 0 | AX36: 0 | AY36: 0 | AZ36: 3 | BA36: 0500 | BB36: 10 | BC36: 0 | BD36: HSF07 | BE36: PETITS COMPOSANTS MECANIQUES | BF36: GR/IR Finished Goods | BG36: Elément d'OTP | BH36: OTP | BI36: S | BJ36: 219000421 | BL36: RMWE | BT36: 2103 | BU36: CH | BV36: 1 | BW36: 0 | BX36: 0 | BY36: 2100 | BZ36: 2016 | CA36: R | CB36: 2016 | CC36: 0 | CD36: 0 | CE36: EUR | CJ36: 1 | CK36: 14 | CN36: 8256772520000 | CO36: 11:47:32 | CP36: 2016-02-29 | CQ36: 3 | CS36: 4071 | CT36: 4 | CU36: 4071 | CV36: 4071 | CW36: 4071 | CX36: 0 | CY36: PRF-201001 | CZ36: Stock consumption | DA36: 38
A37: 2016 | B37: 2 | C37: G02-FR-4000002-CCO-06000 | D37: Oil Components | E37: G02-FR-4000002-CCO-06000 | F37: 595 | G37: EUR | H37: 5 | I37: 595 | J37: EUR | K37: 0 | M37: 4101117505 | N37: BLIND COVER 035 AST3410 Indice C | O37: 10659035 | P37: Rbdh Hydraulics | R37: REGULATION | S37: 210344884 | T37: 2016-02-19 | V37: 288619 | W37: WE | X37: Oil Components | Y37: 613000000 | Z37: Achats mat & équip. | AA37: Achats materiels et équipements | AD37: 0 | AE37: 2016-02-19 | AF37: GR/IR Finished Goods | AG37: 2016-02-19 | AH37: 5002964549 | AI37: MKPF | AJ37: 0 | AK37: 2016-02-19 | AL37: G02-FR-4000002 | AM37: R&D CONTROL | AN37: 1 | AO37: COIN | AP37: 0 | AQ37: 2100 | AR37: 1 | AS37: D | AT37: M | AU37: 1 | AV37: 0 | AW37: 0 | AX37: 0 | AY37: 0 | AZ37: 2 | BA37: 0500 | BB37: 10 | BC37: 0 | BD37: HSF07 | BE37: PETITS COMPOSANTS MECANIQUES | BF37: GR/IR Finished Goods | BG37: Elément d'OTP | BH37: OTP | BI37: S | BJ37: 219000421 | BL37: RMWE | BT37: 2103 | BU37: CH | BV37: 1 | BW37: 0 | BX37: 0 | BY37: 2100 | BZ37: 2016 | CA37: R | CB37: 2016 | CC37: 0 | CD37: 0 | CE37: EUR | CJ37: 1 | CK37: 14 | CN37: 8247362740000 | CO37: 14:24:38 | CP37: 2016-02-19 | CQ37: 2 | CS37: 595 | CT37: 4 | CU37: 595 | CV37: 595 | CW37: 595 | CX37: 0 | CY37: PRF-201001 | CZ37: Stock consumption | DA37: 38
A38: 2016 | B38: 2 | C38: G02-FR-4000002-CCO-06000 | D38: Oil Components | E38: G02-FR-4000002-CCO-06000 | F38: 9890 | G38: EUR | H38: 1 | I38: 9890 | J38: EUR | K38: 0 | M38: 4101090805 | N38: SMALL MECHANICALS COMPONENTS | O38: 10660197 | P38: Fonderie Bot | S38: 210315496 | T38: 2016-02-12 | V38: MLYAUDET | W38: WE | X38: Oil Components | Y38: 613000000 | Z38: Achats mat & équip. | AA38: Achats materiels et équipements | AD38: 0 | AE38: 2016-02-16 | AF38: GR/IR Finished Goods | AG38: 2016-02-16 | AH38: 5002954931 | AI38: MKPF | AJ38: 0 | AK38: 2016-02-16 | AL38: G02-FR-4000002 | AM38: R&D CONTROL | AN38: 1 | AO38: COIN | AP38: 0 | AQ38: 2100 | AR38: 1 | AS38: D | AT38: M | AU38: 1 | AV38: 0 | AW38: 0 | AX38: 0 | AY38: 0 | AZ38: 2 | BA38: 0500 | BB38: 20 | BC38: 0 | BD38: HSF07 | BE38: PETITS COMPOSANTS MECANIQUES | BF38: GR/IR Finished Goods | BG38: Elément d'OTP | BH38: OTP | BI38: S | BJ38: 219000421 | BL38: RMWE | BT38: 2103 | BU38: CH | BV38: 1 | BW38: 0 | BX38: 0 | BY38: 2100 | BZ38: 2016 | CA38: R | CB38: 2016 | CC38: 0 | CD38: 0 | CE38: EUR | CJ38: 1 | CK38: 14 | CN38: 8244576600000 | CO38: 09:01:00 | CP38: 2016-02-12 | CQ38: 2 | CS38: 9890 | CT38: 4 | CU38: 9890 | CV38: 9890 | CW38: 9890 | CX38: 0 | CY38: PRF-201001 | CZ38: Stock consumption | DA38: 38
A39: 2016 | B39: 3 | C39: G02-FR-4000002-CCO-06000 | D39: Oil Components | E39: G02-FR-4000002-CCO-06000 | F39: -2427 | G39: EUR | H39: -3 | I39: -2427 | J39: EUR | K39: 0 | M39: 4101027329 | N39: BODY 5V Ø50 AST3301E | O39: 10659035 | P39: Rbdh Hydraulics | R39: erreur de saisie à solder sur 4101089370 | S39: 210411186 | T39: 2016-02-22 | V39: MLYAUDET | W39: WE | X39: Oil Components | Y39: 613000000 | Z39: Achats mat & équip. | AA39: Achats materiels et équipements | AD39: 0 | AE39: 2016-03-01 | AF39: GR/IR Finished Goods | AG39: 2016-03-01 | AH39: 5002981667 | AI39: MKPF | AJ39: 0 | AK39: 2016-03-01 | AL39: G02-FR-4000002 | AM39: R&D CONTROL | AN39: 1 | AO39: COIN | AP39: 0 | AQ39: 2100 | AR39: 1 | AS39: C | AT39: M | AU39: 1 | AV39: 0 | AW39: 0 | AX39: 0 | AY39: 0 | AZ39: 3 | BA39: 0500 | BB39: 60 | BC39: 0 | BD39: HSF07 | BE39: PETITS COMPOSANTS MECANIQUES | BF39: GR/IR Finished Goods | BG39: Elément d'OTP | BH39: OTP | BI39: S | BJ39: 219000421 | BL39: RMWE | BT39: 2103 | BU39: CH | BV39: 1 | BW39: 0 | BX39: 0 | BY39: 2100 | BZ39: 2016 | CA39: R | CB39: 2016 | CC39: 0 | CD39: 0 | CE39: EUR | CF39: X | CG39: 2016 | CH39: 5002981317 | CJ39: 1 | CK39: 14 | CN39: 8256769290000 | CO39: 11:42:10 | CP39: 2016-02-22 | CQ39: 3 | CS39: -2427 | CT39: 4 | CU39: -2427 | CV39: -2427 | CW39: -2427 | CX39: 0 | CY39: PRF-201001 | CZ39: Stock consumption | DA39: 38
A40: 2016 | B40: 3 | C40: G02-FR-4000002-CCO-06000 | D40: Oil Components | E40: G02-FR-4000002-CCO-06000 | F40: 1618 | G40: EUR | H40: 2 | I40: 1618 | J40: EUR | K40: 0 | M40: 4101027329 | N40: BODY 5V Ø50 AST3301E | O40: 10659035 | P40: Rbdh Hydraulics | S40: 210411204 | T40: 2016-02-22 | V40: MLYAUDET | W40: WE | X40: Oil Components | Y40: 613000000 | Z40: Achats mat & équip. | AA40: Achats materiels et équipements | AD40: 0 | AE40: 2016-03-01 | AF40: GR/IR Finished Goods | AG40: 2016-03-01 | AH40: 5002981689 | AI40: MKPF | AJ40: 0 | AK40: 2016-03-01 | AL40: G02-FR-4000002 | AM40: R&D CONTROL | AN40: 1 | AO40: COIN | AP40: 0 | AQ40: 2100 | AR40: 1 | AS40: D | AT40: M | AU40: 1 | AV40: 0 | AW40: 0 | AX40: 0 | AY40: 0 | AZ40: 3 | BA40: 0500 | BB40: 60 | BC40: 0 | BD40: HSF07 | BE40: PETITS COMPOSANTS MECANIQUES | BF40: GR/IR Finished Goods | BG40: Elément d'OTP | BH40: OTP | BI40: S | BJ40: 219000421 | BL40: RMWE | BT40: 2103 | BU40: CH | BV40: 1 | BW40: 0 | BX40: 0 | BY40: 2100 | BZ40: 2016 | CA40: R | CB40: 2016 | CC40: 0 | CD40: 0 | CE40: EUR | CJ40: 1 | CK40: 14 | CN40: 8256774330000 | CO40: 11:50:33 | CP40: 2016-02-22 | CQ40: 3 | CS40: 1618 | CT40: 4 | CU40: 1618 | CV40: 1618 | CW40: 1618 | CX40: 0 | CY40: PRF-201001 | CZ40: Stock consumption | DA40: 38
A41: 2016 | B41: 3 | C41: G02-FR-4000002-CCO-06000 | D41: Oil Components | E41: G02-FR-4000002-CCO-06000 | F41: 2568 | G41: EUR | H41: 3 | I41: 2568 | J41: EUR | K41: 0 | M41: 4101027329 | N41: BODY 6V Ø50 AST3341A | O41: 10659035 | P41: Rbdh Hydraulics | S41: 210411204 | T41: 2016-02-22 | V41: MLYAUDET | W41: WE | X41: Oil Components | Y41: 613000000 | Z41: Achats mat & équip. | AA41: Achats materiels et équipements | AD41: 0 | AE41: 2016-03-01 | AF41: GR/IR Finished Goods | AG41: 2016-03-01 | AH41: 5002981689 | AI41: MKPF | AJ41: 0 | AK41: 2016-03-01 | AL41: G02-FR-4000002 | AM41: R&D CONTROL | AN41: 2 | AO41: COIN | AP41: 0 | AQ41: 2100 | AR41: 1 | AS41: D | AT41: M | AU41: 3 | AV41: 0 | AW41: 0 | AX41: 0 | AY41: 0 | AZ41: 3 | BA41: 0500 | BB41: 70 | BC41: 0 | BD41: HSF07 | BE41: PETITS COMPOSANTS MECANIQUES | BF41: GR/IR Finished Goods | BG41: Elément d'OTP | BH41: OTP | BI41: S | BJ41: 219000421 | BL41: RMWE | BT41: 2103 | BU41: CH | BV41: 2 | BW41: 0 | BX41: 0 | BY41: 2100 | BZ41: 2016 | CA41: R | CB41: 2016 | CC41: 0 | CD41: 0 | CE41: EUR | CJ41: 2 | CK41: 14 | CN41: 8256774330000 | CO41: 11:50:33 | CP41: 2016-02-22 | CQ41: 3 | CS41: 2568 | CT41: 4 | CU41: 2568 | CV41: 2568 | CW41: 2568 | CX41: 0 | CY41: PRF-201001 | CZ41: Stock consumption | DA41: 38
A42: 2016 | B42: 3 | C42: G02-FR-4000002-CCO-06000 | D42: Oil Components | E42: G02-FR-4000002-CCO-06000 | F42: 3795 | G42: EUR | H42: 3 | I42: 3795 | J42: EUR | K42: 0 | M42: 4101027329 | N42: BODY 3V Ø80 AST3521A | O42: 10659035 | P42: Rbdh Hydraulics | S42: 210411204 | T42: 2016-02-22 | V42: MLYAUDET | W42: WE | X42: Oil Components | Y42: 613000000 | Z42: Achats mat & équip. | AA42: Achats materiels et équipements | AD42: 0 | AE42: 2016-03-01 | AF42: GR/IR Finished Goods | AG42: 2016-03-01 | AH42: 5002981689 | AI42: MKPF | AJ42: 0 | AK42: 2016-03-01 | AL42: G02-FR-4000002 | AM42: R&D CONTROL | AN42: 3 | AO42: COIN | AP42: 0 | AQ42: 2100 | AR42: 1 | AS42: D | AT42: M | AU42: 5 | AV42: 0 | AW42: 0 | AX42: 0 | AY42: 0 | AZ42: 3 | BA42: 0500 | BB42: 80 | BC42: 0 | BD42: HSF07 | BE42: PETITS COMPOSANTS MECANIQUES | BF42: GR/IR Finished Goods | BG42: Elément d'OTP | BH42: OTP | BI42: S | BJ42: 219000421 | BL42: RMWE | BT42: 2103 | BU42: CH | BV42: 3 | BW42: 0 | BX42: 0 | BY42: 2100 | BZ42: 2016 | CA42: R | CB42: 2016 | CC42: 0 | CD42: 0 | CE42: EUR | CJ42: 3 | CK42: 14 | CN42: 8256774330000 | CO42: 11:50:33 | CP42: 2016-02-22 | CQ42: 3 | CS42: 3795 | CT42: 4 | CU42: 3795 | CV42: 3795 | CW42: 3795 | CX42: 0 | CY42: PRF-201001 | CZ42: Stock consumption | DA42: 38
A43: 2016 | B43: 3 | C43: G02-FR-4000002-CCO-06000 | D43: Oil Components | E43: G02-FR-4000002-CCO-06000 | F43: 1265 | G43: EUR | H43: 1 | I43: 1265 | J43: EUR | K43: 0 | M43: 4101027329 | N43: BODY 3V Ø80 AST3521A | O43: 10659035 | P43: Rbdh Hydraulics | S43: 210411204 | T43: 2016-02-22 | V43: MLYAUDET | W43: WE | X43: Oil Components | Y43: 613000000 | Z43: Achats mat & équip. | AA43: Achats materiels et équipements | AD43: 0 | AE43: 2016-03-01 | AF43: GR/IR Finished Goods | AG43: 2016-03-01 | AH43: 5002981689 | AI43: MKPF | AJ43: 0 | AK43: 2016-03-01 | AL43: G02-FR-4000002 | AM43: R&D CONTROL | AN43: 4 | AO43: COIN | AP43: 0 | AQ43: 2100 | AR43: 1 | AS43: D | AT43: M | AU43: 7 | AV43: 0 | AW43: 0 | AX43: 0 | AY43: 0 | AZ43: 3 | BA43: 0500 | BB43: 160 | BC43: 0 | BD43: HSF07 | BE43: PETITS COMPOSANTS MECANIQUES | BF43: GR/IR Finished Goods | BG43: Elément d'OTP | BH43: OTP | BI43: S | BJ43: 219000421 | BL43: RMWE | BT43: 2103 | BU43: CH | BV43: 4 | BW43: 0 | BX43: 0 | BY43: 2100 | BZ43: 2016 | CA43: R | CB43: 2016 | CC43: 0 | CD43: 0 | CE43: EUR | CJ43: 4 | CK43: 14 | CN43: 8256774330000 | CO43: 11:50:33 | CP43: 2016-02-22 | CQ43: 3 | CS43: 1265 | CT43: 4 | CU43: 1265 | CV43: 1265 | CW43: 1265 | CX43: 0 | CY43: PRF-201001 | CZ43: Stock consumption | DA43: 38
A44: 2016 | B44: 3 | C44: G02-FR-4000002-CCO-06000 | D44: Oil Components | E44: G02-FR-4000002-CCO-06000 | F44: 856 | G44: EUR | H44: 1 | I44: 856 | J44: EUR | K44: 0 | M44: 4101027329 | N44: BODY 6V Ø50 AST3341A | O44: 10659035 | P44: Rbdh Hydraulics | S44: 210411204 | T44: 2016-02-22 | V44: MLYAUDET | W44: WE | X44: Oil Components | Y44: 613000000 | Z44: Achats mat & équip. | AA44: Achats materiels et équipements | AD44: 0 | AE44: 2016-03-01 | AF44: GR/IR Finished Goods | AG44: 2016-03-01 | AH44: 5002981689 | AI44: MKPF | AJ44: 0 | AK44: 2016-03-01 | AL44: G02-FR-4000002 | AM44: R&D CONTROL | AN44: 5 | AO44: COIN | AP44: 0 | AQ44: 2100 | AR44: 1 | AS44: D | AT44: M | AU44: 9 | AV44: 0 | AW44: 0 | AX44: 0 | AY44: 0 | AZ44: 3 | BA44: 0500 | BB44: 170 | BC44: 0 | BD44: HSF07 | BE44: PETITS COMPOSANTS MECANIQUES | BF44: GR/IR Finished Goods | BG44: Elément d'OTP | BH44: OTP | BI44: S | BJ44: 219000421 | BL44: RMWE | BT44: 2103 | BU44: CH | BV44: 5 | BW44: 0 | BX44: 0 | BY44: 2100 | BZ44: 2016 | CA44: R | CB44: 2016 | CC44: 0 | CD44: 0 | CE44: EUR | CJ44: 5 | CK44: 14 | CN44: 8256774330000 | CO44: 11:50:33 | CP44: 2016-02-22 | CQ44: 3 | CS44: 856 | CT44: 4 | CU44: 856 | CV44: 856 | CW44: 856 | CX44: 0 | CY44: PRF-201001 | CZ44: Stock consumption | DA44: 38
A45: 2016 | B45: 3 | C45: G02-FR-4000002-CCO-06000 | D45: Oil Components | E45: G02-FR-4000002-CCO-06000 | F45: 680 | G45: EUR | H45: 1 | I45: 680 | J45: EUR | K45: 0 | M45: 4101077157 | N45: tiroir diam 50 5 voies | O45: 10657657 | P45: AMR | R45: pris tardos | S45: 210472985 | T45: 2016-03-11 | V45: 201552 | W45: WE | X45: Oil Components | Y45: 613000000 | Z45: Achats mat & équip. | AA45: Achats materiels et équipements | AD45: 0 | AE45: 2016-03-11 | AF45: GR/IR Finished Goods | AG45: 2016-03-11 | AH45: 5003002800 | AI45: MKPF | AJ45: 0 | AK45: 2016-03-11 | AL45: G02-FR-4000002 | AM45: R&D CONTROL | AN45: 1 | AO45: COIN | AP45: 0 | AQ45: 2100 | AR45: 1 | AS45: D | AT45: M | AU45: 1 | AV45: 0 | AW45: 0 | AX45: 0 | AY45: 0 | AZ45: 3 | BA45: 0500 | BB45: 30 | BC45: 0 | BD45: HSF07 | BE45: PETITS COMPOSANTS MECANIQUES | BF45: GR/IR Finished Goods | BG45: Elément d'OTP | BH45: OTP | BI45: S | BJ45: 219000421 | BL45: RMWE | BT45: 2103 | BU45: CH | BV45: 1 | BW45: 0 | BX45: 0 | BY45: 2100 | BZ45: 2016 | CA45: R | CB45: 2016 | CC45: 0 | CD45: 0 | CE45: EUR | CJ45: 1 | CK45: 14 | CN45: 8265513200000 | CO45: 14:35:29 | CP45: 2016-03-11 | CQ45: 3 | CS45: 680 | CT45: 4 | CU45: 680 | CV45: 680 | CW45: 680 | CX45: 0 | CY45: PRF-201001 | CZ45: Stock consumption | DA45: 38
A46: 2016 | B46: 3 | C46: G02-FR-4000002-CCO-06000 | D46: Oil Components | E46: G02-FR-4000002-CCO-06000 | F46: 740 | G46: EUR | H46: 1 | I46: 740 | J46: EUR | K46: 0 | M46: 4101077157 | N46: tiroir diam 50 6 voies | O46: 10657657 | P46: AMR | R46: pris tardos | S46: 210472985 | T46: 2016-03-11 | V46: 201552 | W46: WE | X46: Oil Components | Y46: 613000000 | Z46: Achats mat & équip. | AA46: Achats materiels et équipements | AD46: 0 | AE46: 2016-03-11 | AF46: GR/IR Finished Goods | AG46: 2016-03-11 | AH46: 5003002800 | AI46: MKPF | AJ46: 0 | AK46: 2016-03-11 | AL46: G02-FR-4000002 | AM46: R&D CONTROL | AN46: 2 | AO46: COIN | AP46: 0 | AQ46: 2100 | AR46: 1 | AS46: D | AT46: M | AU46: 3 | AV46: 0 | AW46: 0 | AX46: 0 | AY46: 0 | AZ46: 3 | BA46: 0500 | BB46: 40 | BC46: 0 | BD46: HSF07 | BE46: PETITS COMPOSANTS MECANIQUES | BF46: GR/IR Finished Goods | BG46: Elément d'OTP | BH46: OTP | BI46: S | BJ46: 219000421 | BL46: RMWE | BT46: 2103 | BU46: CH | BV46: 2 | BW46: 0 | BX46: 0 | BY46: 2100 | BZ46: 2016 | CA46: R | CB46: 2016 | CC46: 0 | CD46: 0 | CE46: EUR | CJ46: 2 | CK46: 14 | CN46: 8265513200000 | CO46: 14:35:29 | CP46: 2016-03-11 | CQ46: 3 | CS46: 740 | CT46: 4 | CU46: 740 | CV46: 740 | CW46: 740 | CX46: 0 | CY46: PRF-201001 | CZ46: Stock consumption | DA46: 38
A47: 2016 | B47: 3 | C47: G02-FR-4000002-CCO-06000 | D47: Oil Components | E47: G02-FR-4000002-CCO-06000 | F47: 1350 | G47: EUR | H47: 1 | I47: 1350 | J47: EUR | K47: 0 | M47: 4101077157 | N47: tiroir diam 80 3 voies | O47: 10657657 | P47: AMR | R47: pris tardos | S47: 210472985 | T47: 2016-03-11 | V47: 201552 | W47: WE | X47: Oil Components | Y47: 613000000 | Z47: Achats mat & équip. | AA47: Achats materiels et équipements | AD47: 0 | AE47: 2016-03-11 | AF47: GR/IR Finished Goods | AG47: 2016-03-11 | AH47: 5003002800 | AI47: MKPF | AJ47: 0 | AK47: 2016-03-11 | AL47: G02-FR-4000002 | AM47: R&D CONTROL | AN47: 3 | AO47: COIN | AP47: 0 | AQ47: 2100 | AR47: 1 | AS47: D | AT47: M | AU47: 5 | AV47: 0 | AW47: 0 | AX47: 0 | AY47: 0 | AZ47: 3 | BA47: 0500 | BB47: 50 | BC47: 0 | BD47: HSF07 | BE47: PETITS COMPOSANTS MECANIQUES | BF47: GR/IR Finished Goods | BG47: Elément d'OTP | BH47: OTP | BI47: S | BJ47: 219000421 | BL47: RMWE | BT47: 2103 | BU47: CH | BV47: 3 | BW47: 0 | BX47: 0 | BY47: 2100 | BZ47: 2016 | CA47: R | CB47: 2016 | CC47: 0 | CD47: 0 | CE47: EUR | CJ47: 3 | CK47: 14 | CN47: 8265513200000 | CO47: 14:35:29 | CP47: 2016-03-11 | CQ47: 3 | CS47: 1350 | CT47: 4 | CU47: 1350 | CV47: 1350 | CW47: 1350 | CX47: 0 | CY47: PRF-201001 | CZ47: Stock consumption | DA47: 38
A48: 2016 | B48: 3 | C48: G02-FR-4000002-CCO-06000 | D48: Oil Components | E48: G02-FR-4000002-CCO-06000 | F48: 1410 | G48: EUR | H48: 1 | I48: 1410 | J48: EUR | K48: 0 | M48: 4101077157 | N48: tiroir diam 80 5 voies | O48: 10657657 | P48: AMR | R48: pris tardos | S48: 210472985 | T48: 2016-03-11 | V48: 201552 | W48: WE | X48: Oil Components | Y48: 613000000 | Z48: Achats mat & équip. | AA48: Achats materiels et équipements | AD48: 0 | AE48: 2016-03-11 | AF48: GR/IR Finished Goods | AG48: 2016-03-11 | AH48: 5003002800 | AI48: MKPF | AJ48: 0 | AK48: 2016-03-11 | AL48: G02-FR-4000002 | AM48: R&D CONTROL | AN48: 4 | AO48: COIN | AP48: 0 | AQ48: 2100 | AR48: 1 | AS48: D | AT48: M | AU48: 7 | AV48: 0 | AW48: 0 | AX48: 0 | AY48: 0 | AZ48: 3 | BA48: 0500 | BB48: 60 | BC48: 0 | BD48: HSF07 | BE48: PETITS COMPOSANTS MECANIQUES | BF48: GR/IR Finished Goods | BG48: Elément d'OTP | BH48: OTP | BI48: S | BJ48: 219000421 | BL48: RMWE | BT48: 2103 | BU48: CH | BV48: 4 | BW48: 0 | BX48: 0 | BY48: 2100 | BZ48: 2016 | CA48: R | CB48: 2016 | CC48: 0 | CD48: 0 | CE48: EUR | CJ48: 4 | CK48: 14 | CN48: 8265513200000 | CO48: 14:35:29 | CP48: 2016-03-11 | CQ48: 3 | CS48: 1410 | CT48: 4 | CU48: 1410 | CV48: 1410 | CW48: 1410 | CX48: 0 | CY48: PRF-201001 | CZ48: Stock consumption | DA48: 38
A49: 2016 | B49: 3 | C49: G02-FR-4000002-CCO-06000 | D49: Oil Components | E49: G02-FR-4000002-CCO-06000 | F49: 142.2 | G49: EUR | H49: 2 | I49: 142.2 | J49: EUR | K49: 0 | M49: 4101054633 | N49: rodage corps dia 50 | O49: 10731695 | P49: GUICHARD RODAGE ET POLISSAGE | R49: pris tardos | S49: 210472779 | T49: 2016-03-11 | V49: 201552 | W49: WE | X49: Oil Components | Y49: 613000000 | Z49: Achats mat & équip. | AA49: Achats materiels et équipements | AD49: 0 | AE49: 2016-03-11 | AF49: GR/IR Finished Goods | AG49: 2016-03-11 | AH49: 5003002700 | AI49: MKPF | AJ49: 0 | AK49: 2016-03-11 | AL49: G02-FR-4000002 | AM49: R&D CONTROL | AN49: 1 | AO49: COIN | AP49: 0 | AQ49: 2100 | AR49: 1 | AS49: D | AT49: M | AU49: 1 | AV49: 0 | AW49: 0 | AX49: 0 | AY49: 0 | AZ49: 3 | BA49: 0500 | BB49: 40 | BC49: 0 | BD49: HSF07 | BE49: PETITS COMPOSANTS MECANIQUES | BF49: GR/IR Finished Goods | BG49: Elément d'OTP | BH49: OTP | BI49: S | BJ49: 219000421 | BL49: RMWE | BT49: 2103 | BU49: CH | BV49: 1 | BW49: 0 | BX49: 0 | BY49: 2100 | BZ49: 2016 | CA49: R | CB49: 2016 | CC49: 0 | CD49: 0 | CE49: EUR | CJ49: 1 | CK49: 14 | CN49: 8265489060000 | CO49: 13:55:09 | CP49: 2016-03-11 | CQ49: 3 | CS49: 142.2 | CT49: 4 | CU49: 142.2 | CV49: 142.2 | CW49: 142.2 | CX49: 0 | CY49: PRF-201001 | CZ49: Stock consumption | DA49: 38
A50: 2016 | B50: 3 | C50: G02-FR-4000002-CCO-06000 | D50: Oil Components | E50: G02-FR-4000002-CCO-06000 | F50: 284.4 | G50: EUR | H50: 4 | I50: 284.4 | J50: EUR | K50: 0 | M50: 4101054633 | N50: rodage corps dia 50 | O50: 10731695 | P50: GUICHARD RODAGE ET POLISSAGE | R50: pris tardos | S50: 210472786 | T50: 2016-03-11 | V50: 201552 | W50: WE | X50: Oil Components | Y50: 613000000 | Z50: Achats mat & équip. | AA50: Achats materiels et équipements | AD50: 0 | AE50: 2016-03-11 | AF50: GR/IR Finished Goods | AG50: 2016-03-11 | AH50: 5003002715 | AI50: MKPF | AJ50: 0 | AK50: 2016-03-11 | AL50: G02-FR-4000002 | AM50: R&D CONTROL | AN50: 1 | AO50: COIN | AP50: 0 | AQ50: 2100 | AR50: 1 | AS50: D | AT50: M | AU50: 1 | AV50: 0 | AW50: 0 | AX50: 0 | AY50: 0 | AZ50: 3 | BA50: 0500 | BB50: 40 | BC50: 0 | BD50: HSF07 | BE50: PETITS COMPOSANTS MECANIQUES | BF50: GR/IR Finished Goods | BG50: Elément d'OTP | BH50: OTP | BI50: S | BJ50: 219000421 | BL50: RMWE | BT50: 2103 | BU50: CH | BV50: 1 | BW50: 0 | BX50: 0 | BY50: 2100 | BZ50: 2016 | CA50: R | CB50: 2016 | CC50: 0 | CD50: 0 | CE50: EUR | CJ50: 1 | CK50: 14 | CN50: 8265490300000 | CO50: 13:57:15 | CP50: 2016-03-11 | CQ50: 3 | CS50: 284.4 | CT50: 4 | CU50: 284.4 | CV50: 284.4 | CW50: 284.4 | CX50: 0 | CY50: PRF-201001 | CZ50: Stock consumption | DA50: 38
A51: 2016 | B51: 3 | C51: G02-FR-4000002-CCO-06000 | D51: Oil Components | E51: G02-FR-4000002-CCO-06000 | F51: 290 | G51: EUR | H51: 2 | I51: 290 | J51: EUR | K51: 0 | M51: 4101054633 | N51: rodage corps dia 80 | O51: 10731695 | P51: GUICHARD RODAGE ET POLISSAGE | R51: pris tardos | S51: 210472786 | T51: 2016-03-11 | V51: 201552 | W51: WE | X51: Oil Components | Y51: 613000000 | Z51: Achats mat & équip. | AA51: Achats materiels et équipements | AD51: 0 | AE51: 2016-03-11 | AF51: GR/IR Finished Goods | AG51: 2016-03-11 | AH51: 5003002715 | AI51: MKPF | AJ51: 0 | AK51: 2016-03-11 | AL51: G02-FR-4000002 | AM51: R&D CONTROL | AN51: 2 | AO51: COIN | AP51: 0 | AQ51: 2100 | AR51: 1 | AS51: D | AT51: M | AU51: 3 | AV51: 0 | AW51: 0 | AX51: 0 | AY51: 0 | AZ51: 3 | BA51: 0500 | BB51: 50 | BC51: 0 | BD51: HSF07 | BE51: PETITS COMPOSANTS MECANIQUES | BF51: GR/IR Finished Goods | BG51: Elément d'OTP | BH51: OTP | BI51: S | BJ51: 219000421 | BL51: RMWE | BT51: 2103 | BU51: CH | BV51: 2 | BW51: 0 | BX51: 0 | BY51: 2100 | BZ51: 2016 | CA51: R | CB51: 2016 | CC51: 0 | CD51: 0 | CE51: EUR | CJ51: 2 | CK51: 14 | CN51: 8265490300000 | CO51: 13:57:15 | CP51: 2016-03-11 | CQ51: 3 | CS51: 290 | CT51: 4 | CU51: 290 | CV51: 290 | CW51: 290 | CX51: 0 | CY51: PRF-201001 | CZ51: Stock consumption | DA51: 38
A52: 2016 | B52: 3 | C52: G02-FR-4000002-CCO-06000 | D52: Oil Components | E52: G02-FR-4000002-CCO-06000 | F52: 1550 | G52: EUR | H52: 1 | I52: 1550 | J52: EUR | K52: 0 | M52: 4101099719 | N52: Outillage complementaire suiv. devis AV | O52: 10658999 | P52: Gonzales Sevmhy | R52: pris par steinhilber | S52: 210456218 | T52: 2016-03-07 | V52: 201552 | W52: WE | X52: Oil Components | Y52: 613000000 | Z52: Achats mat & équip. | AA52: Achats materiels et équipements | AD52: 0 | AE52: 2016-03-09 | AF52: GR/IR Finished Goods | AG52: 2016-03-09 | AH52: 5002996834 | AI52: MKPF | AJ52: 0 | AK52: 2016-03-09 | AL52: G02-FR-4000002 | AM52: R&D CONTROL | AN52: 1 | AO52: COIN | AP52: 0 | AQ52: 2100 | AR52: 1 | AS52: D | AT52: M | AU52: 1 | AV52: 0 | AW52: 0 | AX52: 0 | AY52: 0 | AZ52: 3 | BA52: 0500 | BB52: 80 | BC52: 0 | BD52: HSF07 | BE52: PETITS COMPOSANTS MECANIQUES | BF52: GR/IR Finished Goods | BG52: Elément d'OTP | BH52: OTP | BI52: S | BJ52: 219000421 | BL52: RMWE | BT52: 2103 | BU52: CH | BV52: 1 | BW52: 0 | BX52: 0 | BY52: 2100 | BZ52: 2016 | CA52: R | CB52: 2016 | CC52: 0 | CD52: 0 | CE52: EUR | CJ52: 1 | CK52: 14 | CN52: 8263601430000 | CO52: 09:29:18 | CP52: 2016-03-07 | CQ52: 3 | CS52: 1550 | CT52: 4 | CU52: 1550 | CV52: 1550 | CW52: 1550 | CX52: 0 | CY52: PRF-201001 | CZ52: Stock consumption | DA52: 38
A53: 2016 | B53: 3 | C53: G02-FR-4000002-CCO-06000 | D53: Oil Components | E53: G02-FR-4000002-CCO-06000 | F53: 504 | G53: EUR | H53: 1 | I53: 504 | J53: EUR | K53: 0 | M53: 4101099719 | N53: 3 Blocs Entretoise AST 3151 | O53: 10658999 | P53: Gonzales Sevmhy | S53: 210428597 | T53: 2016-02-29 | V53: MLYAUDET | W53: WE | X53: Oil Components | Y53: 613000000 | Z53: Achats mat & équip. | AA53: Achats materiels et équipements | AD53: 0 | AE53: 2016-03-03 | AF53: GR/IR Finished Goods | AG53: 2016-03-03 | AH53: 5002986952 | AI53: MKPF | AJ53: 0 | AK53: 2016-03-03 | AL53: G02-FR-4000002 | AM53: R&D CONTROL | AN53: 1 | AO53: COIN | AP53: 0 | AQ53: 2100 | AR53: 1 | AS53: D | AT53: M | AU53: 1 | AV53: 0 | AW53: 0 | AX53: 0 | AY53: 0 | AZ53: 3 | BA53: 0500 | BB53: 10 | BC53: 0 | BD53: HSF07 | BE53: PETITS COMPOSANTS MECANIQUES | BF53: GR/IR Finished Goods | BG53: Elément d'OTP | BH53: OTP | BI53: S | BJ53: 219000421 | BL53: RMWE | BT53: 2103 | BU53: CH | BV53: 1 | BW53: 0 | BX53: 0 | BY53: 2100 | BZ53: 2016 | CA53: R | CB53: 2016 | CC53: 0 | CD53: 0 | CE53: EUR | CJ53: 1 | CK53: 14 | CN53: 8258480700000 | CO53: 11:14:48 | CP53: 2016-02-29 | CQ53: 3 | CS53: 504 | CT53: 4 | CU53: 504 | CV53: 504 | CW53: 504 | CX53: 0 | CY53: PRF-201001 | CZ53: Stock consumption | DA53: 38
A54: 2016 | B54: 3 | C54: G02-FR-4000002-CCO-06000 | D54: Oil Components | E54: G02-FR-4000002-CCO-06000 | F54: 105 | G54: EUR | H54: 1 | I54: 105 | J54: EUR | K54: 0 | M54: 4101099719 | N54: Usinage partie fixe AST 3161 | O54: 10658999 | P54: Gonzales Sevmhy | S54: 210428597 | T54: 2016-02-29 | V54: MLYAUDET | W54: WE | X54: Oil Components | Y54: 613000000 | Z54: Achats mat & équip. | AA54: Achats materiels et équipements | AD54: 0 | AE54: 2016-03-03 | AF54: GR/IR Finished Goods | AG54: 2016-03-03 | AH54: 5002986952 | AI54: MKPF | AJ54: 0 | AK54: 2016-03-03 | AL54: G02-FR-4000002 | AM54: R&D CONTROL | AN54: 2 | AO54: COIN | AP54: 0 | AQ54: 2100 | AR54: 1 | AS54: D | AT54: M | AU54: 3 | AV54: 0 | AW54: 0 | AX54: 0 | AY54: 0 | AZ54: 3 | BA54: 0500 | BB54: 20 | BC54: 0 | BD54: HSF07 | BE54: PETITS COMPOSANTS MECANIQUES | BF54: GR/IR Finished Goods | BG54: Elément d'OTP | BH54: OTP | BI54: S | BJ54: 219000421 | BL54: RMWE | BT54: 2103 | BU54: CH | BV54: 2 | BW54: 0 | BX54: 0 | BY54: 2100 | BZ54: 2016 | CA54: R | CB54: 2016 | CC54: 0 | CD54: 0 | CE54: EUR | CJ54: 2 | CK54: 14 | CN54: 8258480700000 | CO54: 11:14:48 | CP54: 2016-02-29 | CQ54: 3 | CS54: 105 | CT54: 4 | CU54: 105 | CV54: 105 | CW54: 105 | CX54: 0 | CY54: PRF-201001 | CZ54: Stock consumption | DA54: 38
A55: 2016 | B55: 3 | C55: G02-FR-4000002-CCO-06000 | D55: Oil Components | E55: G02-FR-4000002-CCO-06000 | F55: 195 | G55: EUR | H55: 1 | I55: 195 | J55: EUR | K55: 0 | M55: 4101099719 | N55: Usinage partie mobile AST 3162 | O55: 10658999 | P55: Gonzales Sevmhy | S55: 210428597 | T55: 2016-02-29 | V55: MLYAUDET | W55: WE | X55: Oil Components | Y55: 613000000 | Z55: Achats mat & équip. | AA55: Achats materiels et équipements | AD55: 0 | AE55: 2016-03-03 | AF55: GR/IR Finished Goods | AG55: 2016-03-03 | AH55: 5002986952 | AI55: MKPF | AJ55: 0 | AK55: 2016-03-03 | AL55: G02-FR-4000002 | AM55: R&D CONTROL | AN55: 3 | AO55: COIN | AP55: 0 | AQ55: 2100 | AR55: 1 | AS55: D | AT55: M | AU55: 5 | AV55: 0 | AW55: 0 | AX55: 0 | AY55: 0 | AZ55: 3 | BA55: 0500 | BB55: 30 | BC55: 0 | BD55: HSF07 | BE55: PETITS COMPOSANTS MECANIQUES | BF55: GR/IR Finished Goods | BG55: Elément d'OTP | BH55: OTP | BI55: S | BJ55: 219000421 | BL55: RMWE | BT55: 2103 | BU55: CH | BV55: 3 | BW55: 0 | BX55: 0 | BY55: 2100 | BZ55: 2016 | CA55: R | CB55: 2016 | CC55: 0 | CD55: 0 | CE55: EUR | CJ55: 3 | CK55: 14 | CN55: 8258480700000 | CO55: 11:14:48 | CP55: 2016-02-29 | CQ55: 3 | CS55: 195 | CT55: 4 | CU55: 195 | CV55: 195 | CW55: 195 | CX55: 0 | CY55: PRF-201001 | CZ55: Stock consumption | DA55: 38
A56: 2016 | B56: 3 | C56: G02-FR-4000002-CCO-06000 | D56: Oil Components | E56: G02-FR-4000002-CCO-06000 | F56: 190 | G56: EUR | H56: 1 | I56: 190 | J56: EUR | K56: 0 | M56: 4101099719 | N56: Usinage Reglette AST 3163 | O56: 10658999 | P56: Gonzales Sevmhy | S56: 210428597 | T56: 2016-02-29 | V56: MLYAUDET | W56: WE | X56: Oil Components | Y56: 613000000 | Z56: Achats mat & équip. | AA56: Achats materiels et équipements | AD56: 0 | AE56: 2016-03-03 | AF56: GR/IR Finished Goods | AG56: 2016-03-03 | AH56: 5002986952 | AI56: MKPF | AJ56: 0 | AK56: 2016-03-03 | AL56: G02-FR-4000002 | AM56: R&D CONTROL | AN56: 4 | AO56: COIN | AP56: 0 | AQ56: 2100 | AR56: 1 | AS56: D | AT56: M | AU56: 7 | AV56: 0 | AW56: 0 | AX56: 0 | AY56: 0 | AZ56: 3 | BA56: 0500 | BB56: 40 | BC56: 0 | BD56: HSF07 | BE56: PETITS COMPOSANTS MECANIQUES | BF56: GR/IR Finished Goods | BG56: Elément d'OTP | BH56: OTP | BI56: S | BJ56: 219000421 | BL56: RMWE | BT56: 2103 | BU56: CH | BV56: 4 | BW56: 0 | BX56: 0 | BY56: 2100 | BZ56: 2016 | CA56: R | CB56: 2016 | CC56: 0 | CD56: 0 | CE56: EUR | CJ56: 4 | CK56: 14 | CN56: 8258480700000 | CO56: 11:14:48 | CP56: 2016-02-29 | CQ56: 3 | CS56: 190 | CT56: 4 | CU56: 190 | CV56: 190 | CW56: 190 | CX56: 0 | CY56: PRF-201001 | CZ56: Stock consumption | DA56: 38
A57: 2016 | B57: 3 | C57: G02-FR-4000002-CCO-06000 | D57: Oil Components | E57: G02-FR-4000002-CCO-06000 | F57: 405 | G57: EUR | H57: 1 | I57: 405 | J57: EUR | K57: 0 | M57: 4101099719 | N57: Bloc embase NG6 AST 2579 | O57: 10658999 | P57: Gonzales Sevmhy | S57: 210428597 | T57: 2016-02-29 | V57: MLYAUDET | W57: WE | X57: Oil Components | Y57: 613000000 | Z57: Achats mat & équip. | AA57: Achats materiels et équipements | AD57: 0 | AE57: 2016-03-03 | AF57: GR/IR Finished Goods | AG57: 2016-03-03 | AH57: 5002986952 | AI57: MKPF | AJ57: 0 | AK57: 2016-03-03 | AL57: G02-FR-4000002 | AM57: R&D CONTROL | AN57: 6 | AO57: COIN | AP57: 0 | AQ57: 2100 | AR57: 1 | AS57: D | AT57: M | AU57: 11 | AV57: 0 | AW57: 0 | AX57: 0 | AY57: 0 | AZ57: 3 | BA57: 0500 | BB57: 60 | BC57: 0 | BD57: HSF07 | BE57: PETITS COMPOSANTS MECANIQUES | BF57: GR/IR Finished Goods | BG57: Elément d'OTP | BH57: OTP | BI57: S | BJ57: 219000421 | BL57: RMWE | BT57: 2103 | BU57: CH | BV57: 6 | BW57: 0 | BX57: 0 | BY57: 2100 | BZ57: 2016 | CA57: R | CB57: 2016 | CC57: 0 | CD57: 0 | CE57: EUR | CJ57: 6 | CK57: 14 | CN57: 8258480700000 | CO57: 11:14:48 | CP57: 2016-02-29 | CQ57: 3 | CS57: 405 | CT57: 4 | CU57: 405 | CV57: 405 | CW57: 405 | CX57: 0 | CY57: PRF-201001 | CZ57: Stock consumption | DA57: 38
A58: 2016 | B58: 3 | C58: G02-FR-4000002-CCO-06000 | D58: Oil Components | E58: G02-FR-4000002-CCO-06000 | F58: 598 | G58: EUR | H58: 1 | I58: 598 | J58: EUR | K58: 0 | M58: 4101099719 | N58: Bloc embase GVP 10 5-VE AST 2577 | O58: 10658999 | P58: Gonzales Sevmhy | S58: 210428597 | T58: 2016-02-29 | V58: MLYAUDET | W58: WE | X58: Oil Components | Y58: 613000000 | Z58: Achats mat & équip. | AA58: Achats materiels et équipements | AD58: 0 | AE58: 2016-03-03 | AF58: GR/IR Finished Goods | AG58: 2016-03-03 | AH58: 5002986952 | AI58: MKPF | AJ58: 0 | AK58: 2016-03-03 | AL58: G02-FR-4000002 | AM58: R&D CONTROL | AN58: 7 | AO58: COIN | AP58: 0 | AQ58: 2100 | AR58: 1 | AS58: D | AT58: M | AU58: 13 | AV58: 0 | AW58: 0 | AX58: 0 | AY58: 0 | AZ58: 3 | BA58: 0500 | BB58: 70 | BC58: 0 | BD58: HSF07 | BE58: PETITS COMPOSANTS MECANIQUES | BF58: GR/IR Finished Goods | BG58: Elément d'OTP | BH58: OTP | BI58: S | BJ58: 219000421 | BL58: RMWE | BT58: 2103 | BU58: CH | BV58: 7 | BW58: 0 | BX58: 0 | BY58: 2100 | BZ58: 2016 | CA58: R | CB58: 2016 | CC58: 0 | CD58: 0 | CE58: EUR | CJ58: 7 | CK58: 14 | CN58: 8258480700000 | CO58: 11:14:48 | CP58: 2016-02-29 | CQ58: 3 | CS58: 598 | CT58: 4 | CU58: 598 | CV58: 598 | CW58: 598 | CX58: 0 | CY58: PRF-201001 | CZ58: Stock consumption | DA58: 38
A59: 2016 | B59: 3 | C59: G02-FR-4000002-CCO-06000 | D59: Oil Components | E59: G02-FR-4000002-CCO-06000 | F59: 2427 | G59: EUR | H59: 3 | I59: 2427 | J59: EUR | K59: 0 | M59: 4101027329 | N59: BODY 5V Ø50 AST3301E | O59: 10659035 | P59: Rbdh Hydraulics | S59: 210410359 | T59: 2016-02-22 | V59: MLYAUDET | W59: WE | X59: Oil Components | Y59: 613000000 | Z59: Achats mat & équip. | AA59: Achats materiels et équipements | AD59: 0 | AE59: 2016-03-01 | AF59: GR/IR Finished Goods | AG59: 2016-03-01 | AH59: 5002981317 | AI59: MKPF | AJ59: 0 | AK59: 2016-03-01 | AL59: G02-FR-4000002 | AM59: R&D CONTROL | AN59: 1 | AO59: COIN | AP59: 0 | AQ59: 2100 | AR59: 1 | AS59: D | AT59: M | AU59: 1 | AV59: 0 | AW59: 0 | AX59: 0 | AY59: 0 | AZ59: 3 | BA59: 0500 | BB59: 60 | BC59: 0 | BD59: HSF07 | BE59: PETITS COMPOSANTS MECANIQUES | BF59: GR/IR Finished Goods | BG59: Elément d'OTP | BH59: OTP | BI59: S | BJ59: 219000421 | BL59: RMWE | BT59: 2103 | BU59: CH | BV59: 1 | BW59: 0 | BX59: 0 | BY59: 2100 | BZ59: 2016 | CA59: R | CB59: 2016 | CC59: 0 | CD59: 0 | CE59: EUR | CG59: 2016 | CH59: 5002981667 | CI59: X | CJ59: 1 | CK59: 14 | CN59: 8256722650000 | CO59: 10:24:25 | CP59: 2016-02-22 | CQ59: 3 | CS59: 2427 | CT59: 4 | CU59: 2427 | CV59: 2427 | CW59: 2427 | CX59: 0 | CY59: PRF-201001 | CZ59: Stock consumption | DA59: 38
A60: 2016 | B60: 4 | C60: G02-FR-4000002-CCO-06000 | D60: Oil Components | E60: G02-FR-4000002-CCO-06000 | F60: 88.46 | G60: EUR | H60: 1 | I60: 88.46 | J60: EUR | K60: 0 | M60: 4101126840 | N60: JEU DE CLOISONS A FENTES 960330 4+18 | O60: 10069211 | P60: HOFFMANN GROUP | R60: pris par tardos | S60: 210627866 | T60: 2016-03-20 | V60: 201552 | W60: WE | X60: Oil Components | Y60: 613000000 | Z60: Achats mat & équip. | AA60: Achats materiels et équipements | AD60: 0 | AE60: 2016-04-06 | AF60: GR/IR Finished Goods | AG60: 2016-04-06 | AH60: 5003046868 | AI60: MKPF | AJ60: 0 | AK60: 2016-04-06 | AL60: G02-FR-4000002 | AM60: R&D CONTROL | AN60: 3 | AO60: COIN | AP60: 0 | AQ60: 2100 | AR60: 1 | AS60: D | AT60: M | AU60: 5 | AV60: 0 | AW60: 0 | AX60: 0 | AY60: 0 | AZ60: 4 | BA60: 0500 | BB60: 30 | BC60: 0 | BD60: HSF07 | BE60: PETITS COMPOSANTS MECANIQUES | BF60: GR/IR Finished Goods | BG60: Elément d'OTP | BH60: OTP | BI60: S | BJ60: 219000421 | BL60: RMWE | BT60: 2103 | BU60: CH | BV60: 3 | BW60: 0 | BX60: 0 | BY60: 2100 | BZ60: 2016 | CA60: R | CB60: 2016 | CC60: 0 | CD60: 0 | CE60: EUR | CJ60: 3 | CK60: 14 | CN60: 8287954750000 | CO60: 14:58:15 | CP60: 2016-03-20 | CQ60: 4 | CS60: 88.46 | CT60: 4 | CU60: 88.46 | CV60: 88.46 | CW60: 88.46 | CX60: 0 | CY60: PRF-201001 | CZ60: Stock consumption | DA60: 38
A61: 2016 | B61: 4 | C61: G02-FR-4000002-CCO-06000 | D61: Oil Components | E61: G02-FR-4000002-CCO-06000 | F61: 74.62 | G61: EUR | H61: 1 | I61: 74.62 | J61: EUR | K61: 0 | M61: 4101126840 | N61: JEU DE CLOISONS A FENTES 960330 3+14 | O61: 10069211 | P61: HOFFMANN GROUP | R61: pris par tardos | S61: 210627866 | T61: 2016-03-20 | V61: 201552 | W61: WE | X61: Oil Components | Y61: 613000000 | Z61: Achats mat & équip. | AA61: Achats materiels et équipements | AD61: 0 | AE61: 2016-04-06 | AF61: GR/IR Finished Goods | AG61: 2016-04-06 | AH61: 5003046868 | AI61: MKPF | AJ61: 0 | AK61: 2016-04-06 | AL61: G02-FR-4000002 | AM61: R&D CONTROL | AN61: 5 | AO61: COIN | AP61: 0 | AQ61: 2100 | AR61: 1 | AS61: D | AT61: M | AU61: 9 | AV61: 0 | AW61: 0 | AX61: 0 | AY61: 0 | AZ61: 4 | BA61: 0500 | BB61: 50 | BC61: 0 | BD61: HSF07 | BE61: PETITS COMPOSANTS MECANIQUES | BF61: GR/IR Finished Goods | BG61: Elément d'OTP | BH61: OTP | BI61: S | BJ61: 219000421 | BL61: RMWE | BT61: 2103 | BU61: CH | BV61: 5 | BW61: 0 | BX61: 0 | BY61: 2100 | BZ61: 2016 | CA61: R | CB61: 2016 | CC61: 0 | CD61: 0 | CE61: EUR | CJ61: 5 | CK61: 14 | CN61: 8287954750000 | CO61: 14:58:15 | CP61: 2016-03-20 | CQ61: 4 | CS61: 74.62 | CT61: 4 | CU61: 74.62 | CV61: 74.62 | CW61: 74.62 | CX61: 0 | CY61: PRF-201001 | CZ61: Stock consumption | DA61: 38
A62: 2016 | B62: 4 | C62: G02-FR-4000002-CCO-06000 | D62: Oil Components | E62: G02-FR-4000002-CCO-06000 | F62: 35.48 | G62: EUR | H62: 1 | I62: 35.48 | J62: EUR | K62: 0 | M62: 4101126840 | N62: TAPIS RANGEMENT EN CAOUTCHOUC 943070 | O62: 10069211 | P62: HOFFMANN GROUP | R62: pris par tardos | S62: 210627866 | T62: 2016-03-20 | V62: 201552 | W62: WE | X62: Oil Components | Y62: 613000000 | Z62: Achats mat & équip. | AA62: Achats materiels et équipements | AD62: 0 | AE62: 2016-04-06 | AF62: GR/IR Finished Goods | AG62: 2016-04-06 | AH62: 5003046868 | AI62: MKPF | AJ62: 0 | AK62: 2016-04-06 | AL62: G02-FR-4000002 | AM62: R&D CONTROL | AN62: 1 | AO62: COIN | AP62: 0 | AQ62: 2100 | AR62: 1 | AS62: D | AT62: M | AU62: 1 | AV62: 0 | AW62: 0 | AX62: 0 | AY62: 0 | AZ62: 4 | BA62: 0500 | BB62: 10 | BC62: 0 | BD62: HSF07 | BE62: PETITS COMPOSANTS MECANIQUES | BF62: GR/IR Finished Goods | BG62: Elément d'OTP | BH62: OTP | BI62: S | BJ62: 219000421 | BL62: RMWE | BT62: 2103 | BU62: CH | BV62: 1 | BW62: 0 | BX62: 0 | BY62: 2100 | BZ62: 2016 | CA62: R | CB62: 2016 | CC62: 0 | CD62: 0 | CE62: EUR | CJ62: 1 | CK62: 14 | CN62: 8287954750000 | CO62: 14:58:15 | CP62: 2016-03-20 | CQ62: 4 | CS62: 35.48 | CT62: 4 | CU62: 35.48 | CV62: 35.48 | CW62: 35.48 | CX62: 0 | CY62: PRF-201001 | CZ62: Stock consumption | DA62: 38
A63: 2016 | B63: 4 | C63: G02-FR-4000002-CCO-06000 | D63: Oil Components | E63: G02-FR-4000002-CCO-06000 | F63: 1026.95 | G63: EUR | H63: 1 | I63: 1026.95 | J63: EUR | K63: 0 | M63: 4101126840 | N63: ARMOIRE A OUTILS COMPLETE 6 TIROIRS | O63: 10069211 | P63: HOFFMANN GROUP | R63: pris par tardos | S63: 210627866 | T63: 2016-03-20 | V63: 201552 | W63: WE | X63: Oil Components | Y63: 613000000 | Z63: Achats mat & équip. | AA63: Achats materiels et équipements | AD63: 0 | AE63: 2016-04-06 | AF63: GR/IR Finished Goods | AG63: 2016-04-06 | AH63: 5003046868 | AI63: MKPF | AJ63: 0 | AK63: 2016-04-06 | AL63: G02-FR-4000002 | AM63: R&D CONTROL | AN63: 2 | AO63: COIN | AP63: 0 | AQ63: 2100 | AR63: 1 | AS63: D | AT63: M | AU63: 3 | AV63: 0 | AW63: 0 | AX63: 0 | AY63: 0 | AZ63: 4 | BA63: 0500 | BB63: 20 | BC63: 0 | BD63: HSF07 | BE63: PETITS COMPOSANTS MECANIQUES | BF63: GR/IR Finished Goods | BG63: Elément d'OTP | BH63: OTP | BI63: S | BJ63: 219000421 | BL63: RMWE | BT63: 2103 | BU63: CH | BV63: 2 | BW63: 0 | BX63: 0 | BY63: 2100 | BZ63: 2016 | CA63: R | CB63: 2016 | CC63: 0 | CD63: 0 | CE63: EUR | CJ63: 2 | CK63: 14 | CN63: 8287954750000 | CO63: 14:58:15 | CP63: 2016-03-20 | CQ63: 4 | CS63: 1026.95 | CT63: 4 | CU63: 1026.95 | CV63: 1026.95 | CW63: 1026.95 | CX63: 0 | CY63: PRF-201001 | CZ63: Stock consumption | DA63: 38
A64: 2016 | B64: 3 | C64: G02-FR-4000002-CCO-06000 | D64: Oil Components | E64: G02-FR-4000002-CCO-06000 | F64: 9800 | G64: EUR | H64: 1 | I64: 9800 | J64: EUR | K64: 0 | M64: 4101064497 | N64: modif banc + intégration 2ème pompe | O64: 10658999 | P64: Gonzales Sevmhy | S64: 210410401 | T64: 2016-03-01 | V64: MLYAUDET | W64: WE | X64: Oil Components | Y64: 613000000 | Z64: Achats mat & équip. | AA64: Achats materiels et équipements | AD64: 0 | AE64: 2016-03-01 | AF64: GR/IR Finished Goods | AG64: 2016-03-01 | AH64: 5002981383 | AI64: MKPF | AJ64: 0 | AK64: 2016-03-01 | AL64: G02-FR-4000002 | AM64: R&D CONTROL | AN64: 1 | AO64: COIN | AP64: 0 | AQ64: 2100 | AR64: 1 | AS64: D | AT64: M | AU64: 1 | AV64: 0 | AW64: 0 | AX64: 0 | AY64: 0 | AZ64: 3 | BA64: 0500 | BB64: 10 | BC64: 0 | BD64: HSF07 | BE64: PETITS COMPOSANTS MECANIQUES | BF64: GR/IR Finished Goods | BG64: Elément d'OTP | BH64: OTP | BI64: S | BJ64: 219000421 | BL64: RMWE | BT64: 2103 | BU64: CH | BV64: 1 | BW64: 0 | BX64: 0 | BY64: 2100 | BZ64: 2016 | CA64: R | CB64: 2016 | CC64: 0 | CD64: 0 | CE64: EUR | CJ64: 1 | CK64: 14 | CN64: 8256728110000 | CO64: 10:33:31 | CP64: 2016-03-01 | CQ64: 3 | CS64: 9800 | CT64: 4 | CU64: 9800 | CV64: 9800 | CW64: 9800 | CX64: 0 | CY64: PRF-201001 | CZ64: Stock consumption | DA64: 38
A65: 2016 | B65: 4 | C65: G02-FR-4000002-CCO-06000 | D65: Oil Components | E65: G02-FR-4000002-CCO-06000 | F65: 4000 | G65: EUR | H65: 1 | I65: 4000 | J65: EUR | K65: 0 | M65: 4101119046 | N65: SVEFAPH30-1 Etude et maquette filaire | O65: 10654917 | P65: Alphee Developpement | R65: SUITE REGULATION | S65: 210673522 | T65: 2016-04-14 | V65: CTARDOS | W65: WE | X65: Oil Components | Y65: 613000000 | Z65: Achats mat & équip. | AA65: Achats materiels et équipements | AD65: 0 | AE65: 2016-04-14 | AF65: GR/IR Finished Goods | AG65: 2016-04-14 | AH65: 5003062566 | AI65: MKPF | AJ65: 0 | AK65: 2016-04-14 | AL65: G02-FR-4000002 | AM65: R&D CONTROL | AN65: 1 | AO65: COIN | AP65: 0 | AQ65: 2100 | AR65: 1 | AS65: D | AT65: M | AU65: 1 | AV65: 0 | AW65: 0 | AX65: 0 | AY65: 0 | AZ65: 4 | BA65: 0500 | BB65: 10 | BC65: 0 | BD65: HSF09 | BE65: PETITS EQUIPEMENTS ELECTRIQUES | BF65: GR/IR Finished Goods | BG65: Elément d'OTP | BH65: OTP | BI65: S | BJ65: 219000421 | BL65: RMWE | BT65: 2103 | BU65: CH | BV65: 1 | BW65: 0 | BX65: 0 | BY65: 2100 | BZ65: 2016 | CA65: R | CB65: 2016 | CC65: 0 | CD65: 0 | CE65: EUR | CJ65: 1 | CK65: 14 | CN65: 8294828890000 | CO65: 13:54:54 | CP65: 2016-04-14 | CQ65: 4 | CS65: 4000 | CT65: 4 | CU65: 4000 | CV65: 4000 | CW65: 4000 | CX65: 0 | CY65: PRF-201001 | CZ65: Stock consumption | DA65: 38
A66: 2016 | B66: 4 | C66: G02-FR-4000002-CCO-06000 | D66: Oil Components | E66: G02-FR-4000002-CCO-06000 | F66: 584 | G66: EUR | H66: 4 | I66: 584 | J66: EUR | K66: 0 | M66: 4101125796 | N66: BLIND COVER Ø35 | O66: 10659035 | P66: Rbdh Hydraulics | R66: SUITE REGULATION | S66: 210677631 | T66: 2016-04-13 | V66: CTARDOS | W66: WE | X66: Oil Components | Y66: 613000000 | Z66: Achats mat & équip. | AA66: Achats materiels et équipements | AD66: 0 | AE66: 2016-04-15 | AF66: GR/IR Finished Goods | AG66: 2016-04-15 | AH66: 5003063745 | AI66: MKPF | AJ66: 0 | AK66: 2016-04-15 | AL66: G02-FR-4000002 | AM66: R&D CONTROL | AN66: 1 | AO66: COIN | AP66: 0 | AQ66: 2100 | AR66: 1 | AS66: D | AT66: M | AU66: 1 | AV66: 0 | AW66: 0 | AX66: 0 | AY66: 0 | AZ66: 4 | BA66: 0500 | BB66: 10 | BC66: 0 | BD66: HSF07 | BE66: PETITS COMPOSANTS MECANIQUES | BF66: GR/IR Finished Goods | BG66: Elément d'OTP | BH66: OTP | BI66: S | BJ66: 219000421 | BL66: RMWE | BT66: 2103 | BU66: CH | BV66: 1 | BW66: 0 | BX66: 0 | BY66: 2100 | BZ66: 2016 | CA66: R | CB66: 2016 | CC66: 0 | CD66: 0 | CE66: EUR | CJ66: 1 | CK66: 14 | CN66: 8295486390000 | CO66: 08:11:02 | CP66: 2016-04-13 | CQ66: 4 | CS66: 584 | CT66: 4 | CU66: 584 | CV66: 584 | CW66: 584 | CX66: 0 | CY66: PRF-201001 | CZ66: Stock consumption | DA66: 38
A67: 2016 | B67: 4 | C67: G02-FR-4000002-CCO-06000 | D67: Oil Components | E67: G02-FR-4000002-CCO-06000 | F67: 752 | G67: EUR | H67: 8 | I67: 752 | J67: EUR | K67: 0 | M67: 4101125796 | N67: COVER MTS Ø35 | O67: 10659035 | P67: Rbdh Hydraulics | S67: 210677631 | T67: 2016-04-13 | V67: CTARDOS | W67: WE | X67: Oil Components | Y67: 613000000 | Z67: Achats mat & équip. | AA67: Achats materiels et équipements | AD67: 0 | AE67: 2016-04-15 | AF67: GR/IR Finished Goods | AG67: 2016-04-15 | AH67: 5003063745 | AI67: MKPF | AJ67: 0 | AK67: 2016-04-15 | AL67: G02-FR-4000002 | AM67: R&D CONTROL | AN67: 2 | AO67: COIN | AP67: 0 | AQ67: 2100 | AR67: 1 | AS67: D | AT67: M | AU67: 3 | AV67: 0 | AW67: 0 | AX67: 0 | AY67: 0 | AZ67: 4 | BA67: 0500 | BB67: 20 | BC67: 0 | BD67: HSF07 | BE67: PETITS COMPOSANTS MECANIQUES | BF67: GR/IR Finished Goods | BG67: Elément d'OTP | BH67: OTP | BI67: S | BJ67: 219000421 | BL67: RMWE | BT67: 2103 | BU67: CH | BV67: 2 | BW67: 0 | BX67: 0 | BY67: 2100 | BZ67: 2016 | CA67: R | CB67: 2016 | CC67: 0 | CD67: 0 | CE67: EUR | CJ67: 2 | CK67: 14 | CN67: 8295486390000 | CO67: 08:11:02 | CP67: 2016-04-13 | CQ67: 4 | CS67: 752 | CT67: 4 | CU67: 752 | CV67: 752 | CW67: 752 | CX67: 0 | CY67: PRF-201001 | CZ67: Stock consumption | DA67: 38
A68: 2016 | B68: 4 | C68: G02-FR-4000002-CCO-06000 | D68: Oil Components | E68: G02-FR-4000002-CCO-06000 | F68: 1176 | G68: EUR | H68: 8 | I68: 1176 | J68: EUR | K68: 0 | M68: 4101125796 | N68: BLIND COVER Ø50 | O68: 10659035 | P68: Rbdh Hydraulics | S68: 210677631 | T68: 2016-04-13 | V68: CTARDOS | W68: WE | X68: Oil Components | Y68: 613000000 | Z68: Achats mat & équip. | AA68: Achats materiels et équipements | AD68: 0 | AE68: 2016-04-15 | AF68: GR/IR Finished Goods | AG68: 2016-04-15 | AH68: 5003063745 | AI68: MKPF | AJ68: 0 | AK68: 2016-04-15 | AL68: G02-FR-4000002 | AM68: R&D CONTROL | AN68: 3 | AO68: COIN | AP68: 0 | AQ68: 2100 | AR68: 1 | AS68: D | AT68: M | AU68: 5 | AV68: 0 | AW68: 0 | AX68: 0 | AY68: 0 | AZ68: 4 | BA68: 0500 | BB68: 30 | BC68: 0 | BD68: HSF07 | BE68: PETITS COMPOSANTS MECANIQUES | BF68: GR/IR Finished Goods | BG68: Elément d'OTP | BH68: OTP | BI68: S | BJ68: 219000421 | BL68: RMWE | BT68: 2103 | BU68: CH | BV68: 3 | BW68: 0 | BX68: 0 | BY68: 2100 | BZ68: 2016 | CA68: R | CB68: 2016 | CC68: 0 | CD68: 0 | CE68: EUR | CJ68: 3 | CK68: 14 | CN68: 8295486390000 | CO68: 08:11:02 | CP68: 2016-04-13 | CQ68: 4 | CS68: 1176 | CT68: 4 | CU68: 1176 | CV68: 1176 | CW68: 1176 | CX68: 0 | CY68: PRF-201001 | CZ68: Stock consumption | DA68: 38
A69: 2016 | B69: 4 | C69: G02-FR-4000002-CCO-06000 | D69: Oil Components | E69: G02-FR-4000002-CCO-06000 | F69: 904 | G69: EUR | H69: 8 | I69: 904 | J69: EUR | K69: 0 | M69: 4101125796 | N69: COVER MTS Ø50 | O69: 10659035 | P69: Rbdh Hydraulics | S69: 210677631 | T69: 2016-04-13 | V69: CTARDOS | W69: WE | X69: Oil Components | Y69: 613000000 | Z69: Achats mat & équip. | AA69: Achats materiels et équipements | AD69: 0 | AE69: 2016-04-15 | AF69: GR/IR Finished Goods | AG69: 2016-04-15 | AH69: 5003063745 | AI69: MKPF | AJ69: 0 | AK69: 2016-04-15 | AL69: G02-FR-4000002 | AM69: R&D CONTROL | AN69: 4 | AO69: COIN | AP69: 0 | AQ69: 2100 | AR69: 1 | AS69: D | AT69: M | AU69: 7 | AV69: 0 | AW69: 0 | AX69: 0 | AY69: 0 | AZ69: 4 | BA69: 0500 | BB69: 40 | BC69: 0 | BD69: HSF07 | BE69: PETITS COMPOSANTS MECANIQUES | BF69: GR/IR Finished Goods | BG69: Elément d'OTP | BH69: OTP | BI69: S | BJ69: 219000421 | BL69: RMWE | BT69: 2103 | BU69: CH | BV69: 4 | BW69: 0 | BX69: 0 | BY69: 2100 | BZ69: 2016 | CA69: R | CB69: 2016 | CC69: 0 | CD69: 0 | CE69: EUR | CJ69: 4 | CK69: 14 | CN69: 8295486390000 | CO69: 08:11:02 | CP69: 2016-04-13 | CQ69: 4 | CS69: 904 | CT69: 4 | CU69: 904 | CV69: 904 | CW69: 904 | CX69: 0 | CY69: PRF-201001 | CZ69: Stock consumption | DA69: 38
A70: 2016 | B70: 4 | C70: G02-FR-4000002-CCO-06000 | D70: Oil Components | E70: G02-FR-4000002-CCO-06000 | F70: 664 | G70: EUR | H70: 4 | I70: 664 | J70: EUR | K70: 0 | M70: 4101125796 | N70: COVER MTS Ø80 | O70: 10659035 | P70: Rbdh Hydraulics | R70: SUITE REGULATION | S70: 210677631 | T70: 2016-04-13 | V70: CTARDOS | W70: WE | X70: Oil Components | Y70: 613000000 | Z70: Achats mat & équip. | AA70: Achats materiels et équipements | AD70: 0 | AE70: 2016-04-15 | AF70: GR/IR Finished Goods | AG70: 2016-04-15 | AH70: 5003063745 | AI70: MKPF | AJ70: 0 | AK70: 2016-04-15 | AL70: G02-FR-4000002 | AM70: R&D CONTROL | AN70: 5 | AO70: COIN | AP70: 0 | AQ70: 2100 | AR70: 1 | AS70: D | AT70: M | AU70: 9 | AV70: 0 | AW70: 0 | AX70: 0 | AY70: 0 | AZ70: 4 | BA70: 0500 | BB70: 50 | BC70: 0 | BD70: HSF07 | BE70: PETITS COMPOSANTS MECANIQUES | BF70: GR/IR Finished Goods | BG70: Elément d'OTP | BH70: OTP | BI70: S | BJ70: 219000421 | BL70: RMWE | BT70: 2103 | BU70: CH | BV70: 5 | BW70: 0 | BX70: 0 | BY70: 2100 | BZ70: 2016 | CA70: R | CB70: 2016 | CC70: 0 | CD70: 0 | CE70: EUR | CJ70: 5 | CK70: 14 | CN70: 8295486390000 | CO70: 08:11:02 | CP70: 2016-04-13 | CQ70: 4 | CS70: 664 | CT70: 4 | CU70: 664 | CV70: 664 | CW70: 664 | CX70: 0 | CY70: PRF-201001 | CZ70: Stock consumption | DA70: 38
A71: 2016 | B71: 4 | C71: G02-FR-4000002-CCO-06000 | D71: Oil Components | E71: G02-FR-4000002-CCO-06000 | F71: 300 | G71: EUR | H71: 50 | I71: 300 | J71: EUR | K71: 0 | M71: 4101150972 | N71: AIMANT MTS 401 032 | O71: 10659960 | P71: MTS Sensor Technologie GmbH & Co. | R71: SUITE REGULATION | S71: 210658457 | T71: 2016-04-12 | V71: CTARDOS | W71: WE | X71: Oil Components | Y71: 613000000 | Z71: Achats mat & équip. | AA71: Achats materiels et équipements | AD71: 0 | AE71: 2016-04-12 | AF71: GR/IR Finished Goods | AG71: 2016-04-12 | AH71: 5003057538 | AI71: MKPF | AJ71: 0 | AK71: 2016-04-12 | AL71: G02-FR-4000002 | AM71: R&D CONTROL | AN71: 1 | AO71: COIN | AP71: 0 | AQ71: 2100 | AR71: 1 | AS71: D | AT71: M | AU71: 1 | AV71: 0 | AW71: 0 | AX71: 0 | AY71: 0 | AZ71: 4 | BA71: 0500 | BB71: 10 | BC71: 0 | BD71: HSF07 | BE71: PETITS COMPOSANTS MECANIQUES | BF71: GR/IR Finished Goods | BG71: Elément d'OTP | BH71: OTP | BI71: S | BJ71: 219000421 | BL71: RMWE | BT71: 2103 | BU71: CH | BV71: 1 | BW71: 0 | BX71: 0 | BY71: 2100 | BZ71: 2016 | CA71: R | CB71: 2016 | CC71: 0 | CD71: 0 | CE71: EUR | CJ71: 1 | CK71: 14 | CN71: 8293116680000 | CO71: 14:21:13 | CP71: 2016-04-12 | CQ71: 4 | CS71: 300 | CT71: 4 | CU71: 300 | CV71: 300 | CW71: 300 | CX71: 0 | CY71: PRF-201001 | CZ71: Stock consumption | DA71: 38
A72: 2016 | B72: 4 | C72: G02-FR-4000002-CCO-06000 | D72: Oil Components | E72: G02-FR-4000002-CCO-06000 | F72: 32.07 | G72: EUR | H72: 1 | I72: 32.07 | J72: EUR | K72: 0 | M72: 4101126840 | N72: JEU DE CLOISONS A FENTES 960320 4+18 | O72: 10069211 | P72: HOFFMANN GROUP | R72: pris par tardos | S72: 210627866 | T72: 2016-03-20 | V72: 201552 | W72: WE | X72: Oil Components | Y72: 613000000 | Z72: Achats mat & équip. | AA72: Achats materiels et équipements | AD72: 0 | AE72: 2016-04-06 | AF72: GR/IR Finished Goods | AG72: 2016-04-06 | AH72: 5003046868 | AI72: MKPF | AJ72: 0 | AK72: 2016-04-06 | AL72: G02-FR-4000002 | AM72: R&D CONTROL | AN72: 4 | AO72: COIN | AP72: 0 | AQ72: 2100 | AR72: 1 | AS72: D | AT72: M | AU72: 7 | AV72: 0 | AW72: 0 | AX72: 0 | AY72: 0 | AZ72: 4 | BA72: 0500 | BB72: 40 | BC72: 0 | BD72: HSF07 | BE72: PETITS COMPOSANTS MECANIQUES | BF72: GR/IR Finished Goods | BG72: Elément d'OTP | BH72: OTP | BI72: S | BJ72: 219000421 | BL72: RMWE | BT72: 2103 | BU72: CH | BV72: 4 | BW72: 0 | BX72: 0 | BY72: 2100 | BZ72: 2016 | CA72: R | CB72: 2016 | CC72: 0 | CD72: 0 | CE72: EUR | CJ72: 4 | CK72: 14 | CN72: 8287954750000 | CO72: 14:58:15 | CP72: 2016-03-20 | CQ72: 4 | CS72: 32.07 | CT72: 4 | CU72: 32.07 | CV72: 32.07 | CW72: 32.07 | CX72: 0 | CY72: PRF-201001 | CZ72: Stock consumption | DA72: 38
A73: 2016 | B73: 5 | C73: G02-FR-4000002-CCO-06000 | D73: Oil Components | E73: G02-FR-4000002-CCO-06000 | F73: -384 | G73: EUR | H73: -8 | I73: -384 | J73: EUR | K73: 0 | M73: 4101135538 | N73: THRUST COLLAR | O73: 10744681 | P73: ALMECA | R73: mauvaise date pièce | S73: 210862229 | T73: 2016-05-11 | V73: JPELLEGR | W73: WE | X73: Oil Components | Y73: 613000000 | Z73: Achats mat & équip. | AA73: Achats materiels et équipements | AD73: 0 | AE73: 2016-05-17 | AF73: GR/IR Finished Goods | AG73: 2016-05-11 | AH73: 5003117984 | AI73: MKPF | AJ73: 0 | AK73: 2016-05-11 | AL73: G02-FR-4000002 | AM73: R&D CONTROL | AN73: 2 | AO73: COIN | AP73: 0 | AQ73: 2100 | AR73: 1 | AS73: C | AT73: M | AU73: 3 | AV73: 0 | AW73: 0 | AX73: 0 | AY73: 0 | AZ73: 5 | BA73: 0500 | BB73: 20 | BC73: 0 | BD73: HSF07 | BE73: PETITS COMPOSANTS MECANIQUES | BF73: GR/IR Finished Goods | BG73: Elément d'OTP | BH73: OTP | BI73: S | BJ73: 219000421 | BL73: RMWE | BT73: 2103 | BU73: CH | BV73: 2 | BW73: 0 | BX73: 0 | BY73: 2100 | BZ73: 2016 | CA73: R | CB73: 2016 | CC73: 0 | CD73: 0 | CE73: EUR | CF73: X | CG73: 2016 | CH73: 5003108569 | CJ73: 2 | CK73: 14 | CN73: 8323183120000 | CO73: 09:31:53 | CP73: 2016-05-11 | CQ73: 5 | CS73: -384 | CT73: 4 | CU73: -384 | CV73: -384 | CW73: -384 | CX73: 0 | CY73: PRF-201001 | CZ73: Stock consumption | DA73: 38
A74: 2016 | B74: 5 | C74: G02-FR-4000002-CCO-06000 | D74: Oil Components | E74: G02-FR-4000002-CCO-06000 | F74: -360 | G74: EUR | H74: -8 | I74: -360 | J74: EUR | K74: 0 | M74: 4101135538 | N74: REDUCTION SLEEVE O50>O35 | O74: 10744681 | P74: ALMECA | R74: mauvaise date pièce | S74: 210862229 | T74: 2016-05-11 | V74: JPELLEGR | W74: WE | X74: Oil Components | Y74: 613000000 | Z74: Achats mat & équip. | AA74: Achats materiels et équipements | AD74: 0 | AE74: 2016-05-17 | AF74: GR/IR Finished Goods | AG74: 2016-05-11 | AH74: 5003117984 | AI74: MKPF | AJ74: 0 | AK74: 2016-05-11 | AL74: G02-FR-4000002 | AM74: R&D CONTROL | AN74: 3 | AO74: COIN | AP74: 0 | AQ74: 2100 | AR74: 1 | AS74: C | AT74: M | AU74: 5 | AV74: 0 | AW74: 0 | AX74: 0 | AY74: 0 | AZ74: 5 | BA74: 0500 | BB74: 30 | BC74: 0 | BD74: HSF07 | BE74: PETITS COMPOSANTS MECANIQUES | BF74: GR/IR Finished Goods | BG74: Elément d'OTP | BH74: OTP | BI74: S | BJ74: 219000421 | BL74: RMWE | BT74: 2103 | BU74: CH | BV74: 3 | BW74: 0 | BX74: 0 | BY74: 2100 | BZ74: 2016 | CA74: R | CB74: 2016 | CC74: 0 | CD74: 0 | CE74: EUR | CF74: X | CG74: 2016 | CH74: 5003108569 | CJ74: 3 | CK74: 14 | CN74: 8323183120000 | CO74: 09:31:53 | CP74: 2016-05-11 | CQ74: 5 | CS74: -360 | CT74: 4 | CU74: -360 | CV74: -360 | CW74: -360 | CX74: 0 | CY74: PRF-201001 | CZ74: Stock consumption | DA74: 38
A75: 2016 | B75: 5 | C75: G02-FR-4000002-CCO-06000 | D75: Oil Components | E75: G02-FR-4000002-CCO-06000 | F75: -432 | G75: EUR | H75: -8 | I75: -432 | J75: EUR | K75: 0 | M75: 4101135538 | N75: REDUCTION SLEEVE | O75: 10744681 | P75: ALMECA | R75: mauvaise date pièce | S75: 210862229 | T75: 2016-05-11 | V75: JPELLEGR | W75: WE | X75: Oil Components | Y75: 613000000 | Z75: Achats mat & équip. | AA75: Achats materiels et équipements | AD75: 0 | AE75: 2016-05-17 | AF75: GR/IR Finished Goods | AG75: 2016-05-11 | AH75: 5003117984 | AI75: MKPF | AJ75: 0 | AK75: 2016-05-11 | AL75: G02-FR-4000002 | AM75: R&D CONTROL | AN75: 1 | AO75: COIN | AP75: 0 | AQ75: 2100 | AR75: 1 | AS75: C | AT75: M | AU75: 1 | AV75: 0 | AW75: 0 | AX75: 0 | AY75: 0 | AZ75: 5 | BA75: 0500 | BB75: 10 | BC75: 0 | BD75: HSF07 | BE75: PETITS COMPOSANTS MECANIQUES | BF75: GR/IR Finished Goods | BG75: Elément d'OTP | BH75: OTP | BI75: S | BJ75: 219000421 | BL75: RMWE | BT75: 2103 | BU75: CH | BV75: 1 | BW75: 0 | BX75: 0 | BY75: 2100 | BZ75: 2016 | CA75: R | CB75: 2016 | CC75: 0 | CD75: 0 | CE75: EUR | CF75: X | CG75: 2016 | CH75: 5003108569 | CJ75: 1 | CK75: 14 | CN75: 8323183120000 | CO75: 09:31:53 | CP75: 2016-05-11 | CQ75: 5 | CS75: -432 | CT75: 4 | CU75: -432 | CV75: -432 | CW75: -432 | CX75: 0 | CY75: PRF-201001 | CZ75: Stock consumption | DA75: 38
A76: 2016 | B76: 4 | C76: G02-FR-4000002-CCO-06000 | D76: Oil Components | E76: G02-FR-4000002-CCO-06000 | F76: 978.48 | G76: EUR | H76: 8 | I76: 978.48 | J76: EUR | K76: 0 | M76: 4101126848 | N76: Couvercle GPV35 | O76: 10660197 | P76: Fonderie Bot | S76: 210608465 | T76: 2016-03-23 | V76: MLYAUDET | W76: WE | X76: Oil Components | Y76: 613000000 | Z76: Achats mat & équip. | AA76: Achats materiels et équipements | AD76: 0 | AE76: 2016-04-04 | AF76: GR/IR Finished Goods | AG76: 2016-04-04 | AH76: 5003039648 | AI76: MKPF | AJ76: 0 | AK76: 2016-04-04 | AL76: G02-FR-4000002 | AM76: R&D CONTROL | AN76: 1 | AO76: COIN | AP76: 0 | AQ76: 2100 | AR76: 1 | AS76: D | AT76: M | AU76: 1 | AV76: 0 | AW76: 0 | AX76: 0 | AY76: 0 | AZ76: 4 | BA76: 0500 | BB76: 10 | BC76: 0 | BD76: HSF07 | BE76: PETITS COMPOSANTS MECANIQUES | BF76: GR/IR Finished Goods | BG76: Elément d'OTP | BH76: OTP | BI76: S | BJ76: 219000421 | BL76: RMWE | BT76: 2103 | BU76: CH | BV76: 1 | BW76: 0 | BX76: 0 | BY76: 2100 | BZ76: 2016 | CA76: R | CB76: 2016 | CC76: 0 | CD76: 0 | CE76: EUR | CJ76: 1 | CK76: 14 | CN76: 8286024550000 | CO76: 09:20:55 | CP76: 2016-03-23 | CQ76: 4 | CS76: 978.48 | CT76: 4 | CU76: 978.48 | CV76: 978.48 | CW76: 978.48 | CX76: 0 | CY76: PRF-201001 | CZ76: Stock consumption | DA76: 38
A77: 2016 | B77: 4 | C77: G02-FR-4000002-CCO-06000 | D77: Oil Components | E77: G02-FR-4000002-CCO-06000 | F77: 1012.56 | G77: EUR | H77: 8 | I77: 1012.56 | J77: EUR | K77: 0 | M77: 4101126848 | N77: Couvercle GPV50 | O77: 10660197 | P77: Fonderie Bot | S77: 210608465 | T77: 2016-03-23 | V77: MLYAUDET | W77: WE | X77: Oil Components | Y77: 613000000 | Z77: Achats mat & équip. | AA77: Achats materiels et équipements | AD77: 0 | AE77: 2016-04-04 | AF77: GR/IR Finished Goods | AG77: 2016-04-04 | AH77: 5003039648 | AI77: MKPF | AJ77: 0 | AK77: 2016-04-04 | AL77: G02-FR-4000002 | AM77: R&D CONTROL | AN77: 2 | AO77: COIN | AP77: 0 | AQ77: 2100 | AR77: 1 | AS77: D | AT77: M | AU77: 3 | AV77: 0 | AW77: 0 | AX77: 0 | AY77: 0 | AZ77: 4 | BA77: 0500 | BB77: 20 | BC77: 0 | BD77: HSF07 | BE77: PETITS COMPOSANTS MECANIQUES | BF77: GR/IR Finished Goods | BG77: Elément d'OTP | BH77: OTP | BI77: S | BJ77: 219000421 | BL77: RMWE | BT77: 2103 | BU77: CH | BV77: 2 | BW77: 0 | BX77: 0 | BY77: 2100 | BZ77: 2016 | CA77: R | CB77: 2016 | CC77: 0 | CD77: 0 | CE77: EUR | CJ77: 2 | CK77: 14 | CN77: 8286024550000 | CO77: 09:20:55 | CP77: 2016-03-23 | CQ77: 4 | CS77: 1012.56 | CT77: 4 | CU77: 1012.56 | CV77: 1012.56 | CW77: 1012.56 | CX77: 0 | CY77: PRF-201001 | CZ77: Stock consumption | DA77: 38
A78: 2016 | B78: 4 | C78: G02-FR-4000002-CCO-06000 | D78: Oil Components | E78: G02-FR-4000002-CCO-06000 | F78: 931.52 | G78: EUR | H78: 4 | I78: 931.52 | J78: EUR | K78: 0 | M78: 4101126848 | N78: Couvercle GPV80 | O78: 10660197 | P78: Fonderie Bot | S78: 210608465 | T78: 2016-03-23 | V78: MLYAUDET | W78: WE | X78: Oil Components | Y78: 613000000 | Z78: Achats mat & équip. | AA78: Achats materiels et équipements | AD78: 0 | AE78: 2016-04-04 | AF78: GR/IR Finished Goods | AG78: 2016-04-04 | AH78: 5003039648 | AI78: MKPF | AJ78: 0 | AK78: 2016-04-04 | AL78: G02-FR-4000002 | AM78: R&D CONTROL | AN78: 3 | AO78: COIN | AP78: 0 | AQ78: 2100 | AR78: 1 | AS78: D | AT78: M | AU78: 5 | AV78: 0 | AW78: 0 | AX78: 0 | AY78: 0 | AZ78: 4 | BA78: 0500 | BB78: 30 | BC78: 0 | BD78: HSF07 | BE78: PETITS COMPOSANTS MECANIQUES | BF78: GR/IR Finished Goods | BG78: Elément d'OTP | BH78: OTP | BI78: S | BJ78: 219000421 | BL78: RMWE | BT78: 2103 | BU78: CH | BV78: 3 | BW78: 0 | BX78: 0 | BY78: 2100 | BZ78: 2016 | CA78: R | CB78: 2016 | CC78: 0 | CD78: 0 | CE78: EUR | CJ78: 3 | CK78: 14 | CN78: 8286024550000 | CO78: 09:20:55 | CP78: 2016-03-23 | CQ78: 4 | CS78: 931.52 | CT78: 4 | CU78: 931.52 | CV78: 931.52 | CW78: 931.52 | CX78: 0 | CY78: PRF-201001 | CZ78: Stock consumption | DA78: 38
A79: 2016 | B79: 5 | C79: G02-FR-4000002-CCO-06000 | D79: Oil Components | E79: G02-FR-4000002-CCO-06000 | F79: -283.2 | G79: EUR | H79: -8 | I79: -283.2 | J79: EUR | K79: 0 | M79: 4101135538 | N79: THRUST COLLAR | O79: 10744681 | P79: ALMECA | R79: mauvaise date pièce | S79: 210862229 | T79: 2016-05-11 | V79: JPELLEGR | W79: WE | X79: Oil Components | Y79: 613000000 | Z79: Achats mat & équip. | AA79: Achats materiels et équipements | AD79: 0 | AE79: 2016-05-17 | AF79: GR/IR Finished Goods | AG79: 2016-05-11 | AH79: 5003117984 | AI79: MKPF | AJ79: 0 | AK79: 2016-05-11 | AL79: G02-FR-4000002 | AM79: R&D CONTROL | AN79: 4 | AO79: COIN | AP79: 0 | AQ79: 2100 | AR79: 1 | AS79: C | AT79: M | AU79: 7 | AV79: 0 | AW79: 0 | AX79: 0 | AY79: 0 | AZ79: 5 | BA79: 0500 | BB79: 40 | BC79: 0 | BD79: HSF07 | BE79: PETITS COMPOSANTS MECANIQUES | BF79: GR/IR Finished Goods | BG79: Elément d'OTP | BH79: OTP | BI79: S | BJ79: 219000421 | BL79: RMWE | BT79: 2103 | BU79: CH | BV79: 4 | BW79: 0 | BX79: 0 | BY79: 2100 | BZ79: 2016 | CA79: R | CB79: 2016 | CC79: 0 | CD79: 0 | CE79: EUR | CF79: X | CG79: 2016 | CH79: 5003108569 | CJ79: 4 | CK79: 14 | CN79: 8323183120000 | CO79: 09:31:53 | CP79: 2016-05-11 | CQ79: 5 | CS79: -283.2 | CT79: 4 | CU79: -283.2 | CV79: -283.2 | CW79: -283.2 | CX79: 0 | CY79: PRF-201001 | CZ79: Stock consumption | DA79: 38
A80: 2016 | B80: 5 | C80: G02-FR-4000002-CCO-06000 | D80: Oil Components | E80: G02-FR-4000002-CCO-06000 | F80: -208 | G80: EUR | H80: -8 | I80: -208 | J80: EUR | K80: 0 | M80: 4101135538 | N80: REDUCTION SLEEVE | O80: 10744681 | P80: ALMECA | R80: mauvaise date pièce | S80: 210862229 | T80: 2016-05-11 | V80: JPELLEGR | W80: WE | X80: Oil Components | Y80: 613000000 | Z80: Achats mat & équip. | AA80: Achats materiels et équipements | AD80: 0 | AE80: 2016-05-17 | AF80: GR/IR Finished Goods | AG80: 2016-05-11 | AH80: 5003117984 | AI80: MKPF | AJ80: 0 | AK80: 2016-05-11 | AL80: G02-FR-4000002 | AM80: R&D CONTROL | AN80: 5 | AO80: COIN | AP80: 0 | AQ80: 2100 | AR80: 1 | AS80: C | AT80: M | AU80: 9 | AV80: 0 | AW80: 0 | AX80: 0 | AY80: 0 | AZ80: 5 | BA80: 0500 | BB80: 50 | BC80: 0 | BD80: HSF07 | BE80: PETITS COMPOSANTS MECANIQUES | BF80: GR/IR Finished Goods | BG80: Elément d'OTP | BH80: OTP | BI80: S | BJ80: 219000421 | BL80: RMWE | BT80: 2103 | BU80: CH | BV80: 5 | BW80: 0 | BX80: 0 | BY80: 2100 | BZ80: 2016 | CA80: R | CB80: 2016 | CC80: 0 | CD80: 0 | CE80: EUR | CF80: X | CG80: 2016 | CH80: 5003108569 | CJ80: 5 | CK80: 14 | CN80: 8323183120000 | CO80: 09:31:53 | CP80: 2016-05-11 | CQ80: 5 | CS80: -208 | CT80: 4 | CU80: -208 | CV80: -208 | CW80: -208 | CX80: 0 | CY80: PRF-201001 | CZ80: Stock consumption | DA80: 38
A81: 2016 | B81: 5 | C81: G02-FR-4000002-CCO-06000 | D81: Oil Components | E81: G02-FR-4000002-CCO-06000 | F81: -268 | G81: EUR | H81: -8 | I81: -268 | J81: EUR | K81: 0 | M81: 4101135538 | N81: THRUST COLLAR | O81: 10744681 | P81: ALMECA | R81: mauvaise date pièce | S81: 210862229 | T81: 2016-05-11 | V81: JPELLEGR | W81: WE | X81: Oil Components | Y81: 613000000 | Z81: Achats mat & équip. | AA81: Achats materiels et équipements | AD81: 0 | AE81: 2016-05-17 | AF81: GR/IR Finished Goods | AG81: 2016-05-11 | AH81: 5003117984 | AI81: MKPF | AJ81: 0 | AK81: 2016-05-11 | AL81: G02-FR-4000002 | AM81: R&D CONTROL | AN81: 6 | AO81: COIN | AP81: 0 | AQ81: 2100 | AR81: 1 | AS81: C | AT81: M | AU81: 11 | AV81: 0 | AW81: 0 | AX81: 0 | AY81: 0 | AZ81: 5 | BA81: 0500 | BB81: 60 | BC81: 0 | BD81: HSF07 | BE81: PETITS COMPOSANTS MECANIQUES | BF81: GR/IR Finished Goods | BG81: Elément d'OTP | BH81: OTP | BI81: S | BJ81: 219000421 | BL81: RMWE | BT81: 2103 | BU81: CH | BV81: 6 | BW81: 0 | BX81: 0 | BY81: 2100 | BZ81: 2016 | CA81: R | CB81: 2016 | CC81: 0 | CD81: 0 | CE81: EUR | CF81: X | CG81: 2016 | CH81: 5003108569 | CJ81: 6 | CK81: 14 | CN81: 8323183120000 | CO81: 09:31:53 | CP81: 2016-05-11 | CQ81: 5 | CS81: -268 | CT81: 4 | CU81: -268 | CV81: -268 | CW81: -268 | CX81: 0 | CY81: PRF-201001 | CZ81: Stock consumption | DA81: 38
A82: 2016 | B82: 5 | C82: G02-FR-4000002-CCO-06000 | D82: Oil Components | E82: G02-FR-4000002-CCO-06000 | F82: -455 | G82: EUR | H82: -1 | I82: -455 | J82: EUR | K82: 0 | M82: 4101135538 | N82: Régularisation | O82: 10744681 | P82: ALMECA | R82: mauvaise date pièce | S82: 210862229 | T82: 2016-05-11 | V82: JPELLEGR | W82: WE | X82: Oil Components | Y82: 613000000 | Z82: Achats mat & équip. | AA82: Achats materiels et équipements | AD82: 0 | AE82: 2016-05-17 | AF82: GR/IR Finished Goods | AG82: 2016-05-11 | AH82: 5003117984 | AI82: MKPF | AJ82: 0 | AK82: 2016-05-11 | AL82: G02-FR-4000002 | AM82: R&D CONTROL | AN82: 7 | AO82: COIN | AP82: 0 | AQ82: 2100 | AR82: 1 | AS82: C | AT82: M | AU82: 13 | AV82: 0 | AW82: 0 | AX82: 0 | AY82: 0 | AZ82: 5 | BA82: 0500 | BB82: 70 | BC82: 0 | BD82: HSF07 | BE82: PETITS COMPOSANTS MECANIQUES | BF82: GR/IR Finished Goods | BG82: Elément d'OTP | BH82: OTP | BI82: S | BJ82: 219000421 | BL82: RMWE | BT82: 2103 | BU82: CH | BV82: 7 | BW82: 0 | BX82: 0 | BY82: 2100 | BZ82: 2016 | CA82: R | CB82: 2016 | CC82: 0 | CD82: 0 | CE82: EUR | CF82: X | CG82: 2016 | CH82: 5003108569 | CJ82: 7 | CK82: 14 | CN82: 8323183120000 | CO82: 09:31:53 | CP82: 2016-05-11 | CQ82: 5 | CS82: -455 | CT82: 4 | CU82: -455 | CV82: -455 | CW82: -455 | CX82: 0 | CY82: PRF-201001 | CZ82: Stock consumption | DA82: 38
A83: 2016 | B83: 5 | C83: G02-FR-4000002-CCO-06000 | D83: Oil Components | E83: G02-FR-4000002-CCO-06000 | F83: 617 | G83: EUR | H83: 100 | I83: 617 | J83: EUR | K83: 0 | M83: 4101153969 | N83: AST3728/R4-240 | O83: 10705714 | P83: LOGITRADE SAS | R83: Régulation | S83: 210820239 | T83: 2016-05-09 | V83: 201552 | W83: WE | X83: Oil Components | Y83: 613000000 | Z83: Achats mat & équip. | AA83: Achats materiels et équipements | AD83: 0 | AE83: 2016-05-09 | AF83: GR/IR Finished Goods | AG83: 2016-05-09 | AH83: 5003103851 | AI83: MKPF | AJ83: 0 | AK83: 2016-05-09 | AL83: G02-FR-4000002 | AM83: R&D CONTROL | AN83: 1 | AO83: COIN | AP83: 0 | AQ83: 2100 | AR83: 1 | AS83: D | AT83: M | AU83: 1 | AV83: 0 | AW83: 0 | AX83: 0 | AY83: 0 | AZ83: 5 | BA83: 0500 | BB83: 10 | BC83: 0 | BD83: HSF07 | BE83: PETITS COMPOSANTS MECANIQUES | BF83: GR/IR Finished Goods | BG83: Elément d'OTP | BH83: OTP | BI83: S | BJ83: 219000421 | BL83: RMWE | BT83: 2103 | BU83: CH | BV83: 1 | BW83: 0 | BX83: 0 | BY83: 2100 | BZ83: 2016 | CA83: R | CB83: 2016 | CC83: 0 | CD83: 0 | CE83: EUR | CJ83: 1 | CK83: 14 | CN83: 8316484890000 | CO83: 15:28:09 | CP83: 2016-05-09 | CQ83: 5 | CS83: 617 | CT83: 4 | CU83: 617 | CV83: 617 | CW83: 617 | CX83: 0 | CY83: PRF-201001 | CZ83: Stock consumption | DA83: 38
A84: 2016 | B84: 5 | C84: G02-FR-4000002-CCO-06000 | D84: Oil Components | E84: G02-FR-4000002-CCO-06000 | F84: 645 | G84: EUR | H84: 100 | I84: 645 | J84: EUR | K84: 0 | M84: 4101153969 | N84: AST3728/R5-120 | O84: 10705714 | P84: LOGITRADE SAS | R84: Régulation | S84: 210820239 | T84: 2016-05-09 | V84: 201552 | W84: WE | X84: Oil Components | Y84: 613000000 | Z84: Achats mat & équip. | AA84: Achats materiels et équipements | AD84: 0 | AE84: 2016-05-09 | AF84: GR/IR Finished Goods | AG84: 2016-05-09 | AH84: 5003103851 | AI84: MKPF | AJ84: 0 | AK84: 2016-05-09 | AL84: G02-FR-4000002 | AM84: R&D CONTROL | AN84: 2 | AO84: COIN | AP84: 0 | AQ84: 2100 | AR84: 1 | AS84: D | AT84: M | AU84: 3 | AV84: 0 | AW84: 0 | AX84: 0 | AY84: 0 | AZ84: 5 | BA84: 0500 | BB84: 20 | BC84: 0 | BD84: HSF07 | BE84: PETITS COMPOSANTS MECANIQUES | BF84: GR/IR Finished Goods | BG84: Elément d'OTP | BH84: OTP | BI84: S | BJ84: 219000421 | BL84: RMWE | BT84: 2103 | BU84: CH | BV84: 2 | BW84: 0 | BX84: 0 | BY84: 2100 | BZ84: 2016 | CA84: R | CB84: 2016 | CC84: 0 | CD84: 0 | CE84: EUR | CJ84: 2 | CK84: 14 | CN84: 8316484890000 | CO84: 15:28:09 | CP84: 2016-05-09 | CQ84: 5 | CS84: 645 | CT84: 4 | CU84: 645 | CV84: 645 | CW84: 645 | CX84: 0 | CY84: PRF-201001 | CZ84: Stock consumption | DA84: 38
A85: 2016 | B85: 5 | C85: G02-FR-4000002-CCO-06000 | D85: Oil Components | E85: G02-FR-4000002-CCO-06000 | F85: 630 | G85: EUR | H85: 100 | I85: 630 | J85: EUR | K85: 0 | M85: 4101153969 | N85: AST3728/R3-400 | O85: 10705714 | P85: LOGITRADE SAS | R85: Régulation | S85: 210820239 | T85: 2016-05-09 | V85: 201552 | W85: WE | X85: Oil Components | Y85: 613000000 | Z85: Achats mat & équip. | AA85: Achats materiels et équipements | AD85: 0 | AE85: 2016-05-09 | AF85: GR/IR Finished Goods | AG85: 2016-05-09 | AH85: 5003103851 | AI85: MKPF | AJ85: 0 | AK85: 2016-05-09 | AL85: G02-FR-4000002 | AM85: R&D CONTROL | AN85: 3 | AO85: COIN | AP85: 0 | AQ85: 2100 | AR85: 1 | AS85: D | AT85: M | AU85: 5 | AV85: 0 | AW85: 0 | AX85: 0 | AY85: 0 | AZ85: 5 | BA85: 0500 | BB85: 30 | BC85: 0 | BD85: HSF07 | BE85: PETITS COMPOSANTS MECANIQUES | BF85: GR/IR Finished Goods | BG85: Elément d'OTP | BH85: OTP | BI85: S | BJ85: 219000421 | BL85: RMWE | BT85: 2103 | BU85: CH | BV85: 3 | BW85: 0 | BX85: 0 | BY85: 2100 | BZ85: 2016 | CA85: R | CB85: 2016 | CC85: 0 | CD85: 0 | CE85: EUR | CJ85: 3 | CK85: 14 | CN85: 8316484890000 | CO85: 15:28:09 | CP85: 2016-05-09 | CQ85: 5 | CS85: 630 | CT85: 4 | CU85: 630 | CV85: 630 | CW85: 630 | CX85: 0 | CY85: PRF-201001 | CZ85: Stock consumption | DA85: 38
A86: 2016 | B86: 5 | C86: G02-FR-4000002-CCO-06000 | D86: Oil Components | E86: G02-FR-4000002-CCO-06000 | F86: 440 | G86: EUR | H86: 1 | I86: 440 | J86: EUR | K86: 0 | M86: 4101117491 | N86: REDUCTEUR HAWE NZP 16 CZS21R/100/C | O86: 10658999 | P86: Gonzales Sevmhy | R86: Régulation | S86: 210820225 | T86: 2016-05-09 | V86: 201552 | W86: WE | X86: Oil Components | Y86: 613000000 | Z86: Achats mat & équip. | AA86: Achats materiels et équipements | AD86: 0 | AE86: 2016-05-09 | AF86: GR/IR Finished Goods | AG86: 2016-05-09 | AH86: 5003103801 | AI86: MKPF | AJ86: 0 | AK86: 2016-05-09 | AL86: G02-FR-4000002 | AM86: R&D CONTROL | AN86: 1 | AO86: COIN | AP86: 0 | AQ86: 2100 | AR86: 1 | AS86: D | AT86: M | AU86: 1 | AV86: 0 | AW86: 0 | AX86: 0 | AY86: 0 | AZ86: 5 | BA86: 0500 | BB86: 10 | BC86: 0 | BD86: HSF07 | BE86: PETITS COMPOSANTS MECANIQUES | BF86: GR/IR Finished Goods | BG86: Elément d'OTP | BH86: OTP | BI86: S | BJ86: 219000421 | BL86: RMWE | BT86: 2103 | BU86: CH | BV86: 1 | BW86: 0 | BX86: 0 | BY86: 2100 | BZ86: 2016 | CA86: R | CB86: 2016 | CC86: 0 | CD86: 0 | CE86: EUR | CJ86: 1 | CK86: 14 | CN86: 8316476420000 | CO86: 15:14:02 | CP86: 2016-05-09 | CQ86: 5 | CS86: 440 | CT86: 4 | CU86: 440 | CV86: 440 | CW86: 440 | CX86: 0 | CY86: PRF-201001 | CZ86: Stock consumption | DA86: 38
A87: 2016 | B87: 5 | C87: G02-FR-4000002-CCO-06000 | D87: Oil Components | E87: G02-FR-4000002-CCO-06000 | F87: 1244.34 | G87: EUR | H87: 1 | I87: 1244.34 | J87: EUR | K87: 0 | M87: 4101152364 | N87: DISTRIBUTEUR À CLAPET M-3SMR 10C3X/420 | O87: 10655023 | P87: BOSCH REXROTH | R87: Régulation | S87: 210820256 | T87: 2016-05-09 | V87: 201552 | W87: WE | X87: Oil Components | Y87: 613000000 | Z87: Achats mat & équip. | AA87: Achats materiels et équipements | AD87: 0 | AE87: 2016-05-09 | AF87: GR/IR Finished Goods | AG87: 2016-05-09 | AH87: 5003103983 | AI87: MKPF | AJ87: 0 | AK87: 2016-05-09 | AL87: G02-FR-4000002 | AM87: R&D CONTROL | AN87: 1 | AO87: COIN | AP87: 0 | AQ87: 2100 | AR87: 1 | AS87: D | AT87: M | AU87: 1 | AV87: 0 | AW87: 0 | AX87: 0 | AY87: 0 | AZ87: 5 | BA87: 0500 | BB87: 10 | BC87: 0 | BD87: HSF07 | BE87: PETITS COMPOSANTS MECANIQUES | BF87: GR/IR Finished Goods | BG87: Elément d'OTP | BH87: OTP | BI87: S | BJ87: 219000421 | BL87: RMWE | BT87: 2103 | BU87: CH | BV87: 1 | BW87: 0 | BX87: 0 | BY87: 2100 | BZ87: 2016 | CA87: R | CB87: 2016 | CC87: 0 | CD87: 0 | CE87: EUR | CJ87: 1 | CK87: 14 | CN87: 8316494390000 | CO87: 15:43:59 | CP87: 2016-05-09 | CQ87: 5 | CS87: 1244.34 | CT87: 4 | CU87: 1244.34 | CV87: 1244.34 | CW87: 1244.34 | CX87: 0 | CY87: PRF-201001 | CZ87: Stock consumption | DA87: 38
A88: 2016 | B88: 5 | C88: G02-FR-4000002-CCO-06000 | D88: Oil Components | E88: G02-FR-4000002-CCO-06000 | F88: 2430 | G88: EUR | H88: 5 | I88: 2430 | J88: EUR | K88: 0 | M88: 4101027329 | N88: BODY 3V Ø50 AST3321 (pos 6) | O88: 10659035 | P88: Rbdh Hydraulics | R88: Régulation | S88: 210820227 | T88: 2016-05-09 | V88: 201552 | W88: WE | X88: Oil Components | Y88: 613000000 | Z88: Achats mat & équip. | AA88: Achats materiels et équipements | AD88: 0 | AE88: 2016-05-09 | AF88: GR/IR Finished Goods | AG88: 2016-05-09 | AH88: 5003103843 | AI88: MKPF | AJ88: 0 | AK88: 2016-05-09 | AL88: G02-FR-4000002 | AM88: R&D CONTROL | AN88: 1 | AO88: COIN | AP88: 0 | AQ88: 2100 | AR88: 1 | AS88: D | AT88: M | AU88: 1 | AV88: 0 | AW88: 0 | AX88: 0 | AY88: 0 | AZ88: 5 | BA88: 0500 | BB88: 180 | BC88: 0 | BD88: HSF07 | BE88: PETITS COMPOSANTS MECANIQUES | BF88: GR/IR Finished Goods | BG88: Elément d'OTP | BH88: OTP | BI88: S | BJ88: 219000421 | BL88: RMWE | BT88: 2103 | BU88: CH | BV88: 1 | BW88: 0 | BX88: 0 | BY88: 2100 | BZ88: 2016 | CA88: R | CB88: 2016 | CC88: 0 | CD88: 0 | CE88: EUR | CJ88: 1 | CK88: 14 | CN88: 8316477430000 | CO88: 15:15:43 | CP88: 2016-05-09 | CQ88: 5 | CS88: 2430 | CT88: 4 | CU88: 2430 | CV88: 2430 | CW88: 2430 | CX88: 0 | CY88: PRF-201001 | CZ88: Stock consumption | DA88: 38
A89: 2016 | B89: 5 | C89: G02-FR-4000002-CCO-06000 | D89: Oil Components | E89: G02-FR-4000002-CCO-06000 | F89: 3900 | G89: EUR | H89: 3 | I89: 3900 | J89: EUR | K89: 0 | M89: 4101145652 | N89: 8 plaques interface | O89: 10658999 | P89: Gonzales Sevmhy | R89: Régulation | S89: 210820230 | T89: 2016-05-09 | V89: 201552 | W89: WE | X89: Oil Components | Y89: 613000000 | Z89: Achats mat & équip. | AA89: Achats materiels et équipements | AD89: 0 | AE89: 2016-05-09 | AF89: GR/IR Finished Goods | AG89: 2016-05-09 | AH89: 5003103846 | AI89: MKPF | AJ89: 0 | AK89: 2016-05-09 | AL89: G02-FR-4000002 | AM89: R&D CONTROL | AN89: 1 | AO89: COIN | AP89: 0 | AQ89: 2100 | AR89: 1 | AS89: D | AT89: M | AU89: 1 | AV89: 0 | AW89: 0 | AX89: 0 | AY89: 0 | AZ89: 5 | BA89: 0500 | BB89: 10 | BC89: 0 | BD89: HSF07 | BE89: PETITS COMPOSANTS MECANIQUES | BF89: GR/IR Finished Goods | BG89: Elément d'OTP | BH89: OTP | BI89: S | BJ89: 219000421 | BL89: RMWE | BT89: 2103 | BU89: CH | BV89: 1 | BW89: 0 | BX89: 0 | BY89: 2100 | BZ89: 2016 | CA89: R | CB89: 2016 | CC89: 0 | CD89: 0 | CE89: EUR | CJ89: 1 | CK89: 14 | CN89: 8316479410000 | CO89: 15:19:01 | CP89: 2016-05-09 | CQ89: 5 | CS89: 3900 | CT89: 4 | CU89: 3900 | CV89: 3900 | CW89: 3900 | CX89: 0 | CY89: PRF-201001 | CZ89: Stock consumption | DA89: 38
A90: 2016 | B90: 5 | C90: G02-FR-4000002-CCO-06000 | D90: Oil Components | E90: G02-FR-4000002-CCO-06000 | F90: 432 | G90: EUR | H90: 8 | I90: 432 | J90: EUR | K90: 0 | M90: 4101135538 | N90: REDUCTION SLEEVE | O90: 10744681 | P90: ALMECA | R90: sur demande O. Fedeli | S90: 210862231 | T90: 2016-04-15 | V90: JPELLEGR | W90: WE | X90: Oil Components | Y90: 613000000 | Z90: Achats mat & équip. | AA90: Achats materiels et équipements | AD90: 0 | AE90: 2016-05-17 | AF90: GR/IR Finished Goods | AG90: 2016-05-17 | AH90: 5003117985 | AI90: MKPF | AJ90: 0 | AK90: 2016-05-17 | AL90: G02-FR-4000002 | AM90: R&D CONTROL | AN90: 1 | AO90: COIN | AP90: 0 | AQ90: 2100 | AR90: 1 | AS90: D | AT90: M | AU90: 1 | AV90: 0 | AW90: 0 | AX90: 0 | AY90: 0 | AZ90: 5 | BA90: 0500 | BB90: 10 | BC90: 0 | BD90: HSF07 | BE90: PETITS COMPOSANTS MECANIQUES | BF90: GR/IR Finished Goods | BG90: Elément d'OTP | BH90: OTP | BI90: S | BJ90: 219000421 | BL90: RMWE | BT90: 2103 | BU90: CH | BV90: 1 | BW90: 0 | BX90: 0 | BY90: 2100 | BZ90: 2016 | CA90: R | CB90: 2016 | CC90: 0 | CD90: 0 | CE90: EUR | CJ90: 1 | CK90: 14 | CN90: 8323184420000 | CO90: 09:34:02 | CP90: 2016-04-15 | CQ90: 5 | CS90: 432 | CT90: 4 | CU90: 432 | CV90: 432 | CW90: 432 | CX90: 0 | CY90: PRF-201001 | CZ90: Stock consumption | DA90: 38
A91: 2016 | B91: 5 | C91: G02-FR-4000002-CCO-06000 | D91: Oil Components | E91: G02-FR-4000002-CCO-06000 | F91: 384 | G91: EUR | H91: 8 | I91: 384 | J91: EUR | K91: 0 | M91: 4101135538 | N91: THRUST COLLAR | O91: 10744681 | P91: ALMECA | R91: sur demande O. Fedeli | S91: 210862231 | T91: 2016-04-15 | V91: JPELLEGR | W91: WE | X91: Oil Components | Y91: 613000000 | Z91: Achats mat & équip. | AA91: Achats materiels et équipements | AD91: 0 | AE91: 2016-05-17 | AF91: GR/IR Finished Goods | AG91: 2016-05-17 | AH91: 5003117985 | AI91: MKPF | AJ91: 0 | AK91: 2016-05-17 | AL91: G02-FR-4000002 | AM91: R&D CONTROL | AN91: 2 | AO91: COIN | AP91: 0 | AQ91: 2100 | AR91: 1 | AS91: D | AT91: M | AU91: 3 | AV91: 0 | AW91: 0 | AX91: 0 | AY91: 0 | AZ91: 5 | BA91: 0500 | BB91: 20 | BC91: 0 | BD91: HSF07 | BE91: PETITS COMPOSANTS MECANIQUES | BF91: GR/IR Finished Goods | BG91: Elément d'OTP | BH91: OTP | BI91: S | BJ91: 219000421 | BL91: RMWE | BT91: 2103 | BU91: CH | BV91: 2 | BW91: 0 | BX91: 0 | BY91: 2100 | BZ91: 2016 | CA91: R | CB91: 2016 | CC91: 0 | CD91: 0 | CE91: EUR | CJ91: 2 | CK91: 14 | CN91: 8323184420000 | CO91: 09:34:02 | CP91: 2016-04-15 | CQ91: 5 | CS91: 384 | CT91: 4 | CU91: 384 | CV91: 384 | CW91: 384 | CX91: 0 | CY91: PRF-201001 | CZ91: Stock consumption | DA91: 38
A92: 2016 | B92: 5 | C92: G02-FR-4000002-CCO-06000 | D92: Oil Components | E92: G02-FR-4000002-CCO-06000 | F92: 360 | G92: EUR | H92: 8 | I92: 360 | J92: EUR | K92: 0 | M92: 4101135538 | N92: REDUCTION SLEEVE O50>O35 | O92: 10744681 | P92: ALMECA | R92: sur demande O. Fedeli | S92: 210862231 | T92: 2016-04-15 | V92: JPELLEGR | W92: WE | X92: Oil Components | Y92: 613000000 | Z92: Achats mat & équip. | AA92: Achats materiels et équipements | AD92: 0 | AE92: 2016-05-17 | AF92: GR/IR Finished Goods | AG92: 2016-05-17 | AH92: 5003117985 | AI92: MKPF | AJ92: 0 | AK92: 2016-05-17 | AL92: G02-FR-4000002 | AM92: R&D CONTROL | AN92: 3 | AO92: COIN | AP92: 0 | AQ92: 2100 | AR92: 1 | AS92: D | AT92: M | AU92: 5 | AV92: 0 | AW92: 0 | AX92: 0 | AY92: 0 | AZ92: 5 | BA92: 0500 | BB92: 30 | BC92: 0 | BD92: HSF07 | BE92: PETITS COMPOSANTS MECANIQUES | BF92: GR/IR Finished Goods | BG92: Elément d'OTP | BH92: OTP | BI92: S | BJ92: 219000421 | BL92: RMWE | BT92: 2103 | BU92: CH | BV92: 3 | BW92: 0 | BX92: 0 | BY92: 2100 | BZ92: 2016 | CA92: R | CB92: 2016 | CC92: 0 | CD92: 0 | CE92: EUR | CJ92: 3 | CK92: 14 | CN92: 8323184420000 | CO92: 09:34:02 | CP92: 2016-04-15 | CQ92: 5 | CS92: 360 | CT92: 4 | CU92: 360 | CV92: 360 | CW92: 360 | CX92: 0 | CY92: PRF-201001 | CZ92: Stock consumption | DA92: 38
A93: 2016 | B93: 5 | C93: G02-FR-4000002-CCO-06000 | D93: Oil Components | E93: G02-FR-4000002-CCO-06000 | F93: 283.2 | G93: EUR | H93: 8 | I93: 283.2 | J93: EUR | K93: 0 | M93: 4101135538 | N93: THRUST COLLAR | O93: 10744681 | P93: ALMECA | R93: sur demande O. Fedeli | S93: 210862231 | T93: 2016-04-15 | V93: JPELLEGR | W93: WE | X93: Oil Components | Y93: 613000000 | Z93: Achats mat & équip. | AA93: Achats materiels et équipements | AD93: 0 | AE93: 2016-05-17 | AF93: GR/IR Finished Goods | AG93: 2016-05-17 | AH93: 5003117985 | AI93: MKPF | AJ93: 0 | AK93: 2016-05-17 | AL93: G02-FR-4000002 | AM93: R&D CONTROL | AN93: 4 | AO93: COIN | AP93: 0 | AQ93: 2100 | AR93: 1 | AS93: D | AT93: M | AU93: 7 | AV93: 0 | AW93: 0 | AX93: 0 | AY93: 0 | AZ93: 5 | BA93: 0500 | BB93: 40 | BC93: 0 | BD93: HSF07 | BE93: PETITS COMPOSANTS MECANIQUES | BF93: GR/IR Finished Goods | BG93: Elément d'OTP | BH93: OTP | BI93: S | BJ93: 219000421 | BL93: RMWE | BT93: 2103 | BU93: CH | BV93: 4 | BW93: 0 | BX93: 0 | BY93: 2100 | BZ93: 2016 | CA93: R | CB93: 2016 | CC93: 0 | CD93: 0 | CE93: EUR | CJ93: 4 | CK93: 14 | CN93: 8323184420000 | CO93: 09:34:02 | CP93: 2016-04-15 | CQ93: 5 | CS93: 283.2 | CT93: 4 | CU93: 283.2 | CV93: 283.2 | CW93: 283.2 | CX93: 0 | CY93: PRF-201001 | CZ93: Stock consumption | DA93: 38
A94: 2016 | B94: 5 | C94: G02-FR-4000002-CCO-06000 | D94: Oil Components | E94: G02-FR-4000002-CCO-06000 | F94: 208 | G94: EUR | H94: 8 | I94: 208 | J94: EUR | K94: 0 | M94: 4101135538 | N94: REDUCTION SLEEVE | O94: 10744681 | P94: ALMECA | R94: sur demande O. Fedeli | S94: 210862231 | T94: 2016-04-15 | V94: JPELLEGR | W94: WE | X94: Oil Components | Y94: 613000000 | Z94: Achats mat & équip. | AA94: Achats materiels et équipements | AD94: 0 | AE94: 2016-05-17 | AF94: GR/IR Finished Goods | AG94: 2016-05-17 | AH94: 5003117985 | AI94: MKPF | AJ94: 0 | AK94: 2016-05-17 | AL94: G02-FR-4000002 | AM94: R&D CONTROL | AN94: 5 | AO94: COIN | AP94: 0 | AQ94: 2100 | AR94: 1 | AS94: D | AT94: M | AU94: 9 | AV94: 0 | AW94: 0 | AX94: 0 | AY94: 0 | AZ94: 5 | BA94: 0500 | BB94: 50 | BC94: 0 | BD94: HSF07 | BE94: PETITS COMPOSANTS MECANIQUES | BF94: GR/IR Finished Goods | BG94: Elément d'OTP | BH94: OTP | BI94: S | BJ94: 219000421 | BL94: RMWE | BT94: 2103 | BU94: CH | BV94: 5 | BW94: 0 | BX94: 0 | BY94: 2100 | BZ94: 2016 | CA94: R | CB94: 2016 | CC94: 0 | CD94: 0 | CE94: EUR | CJ94: 5 | CK94: 14 | CN94: 8323184420000 | CO94: 09:34:02 | CP94: 2016-04-15 | CQ94: 5 | CS94: 208 | CT94: 4 | CU94: 208 | CV94: 208 | CW94: 208 | CX94: 0 | CY94: PRF-201001 | CZ94: Stock consumption | DA94: 38
A95: 2016 | B95: 5 | C95: G02-FR-4000002-CCO-06000 | D95: Oil Components | E95: G02-FR-4000002-CCO-06000 | F95: 268 | G95: EUR | H95: 8 | I95: 268 | J95: EUR | K95: 0 | M95: 4101135538 | N95: THRUST COLLAR | O95: 10744681 | P95: ALMECA | R95: sur demande O. Fedeli | S95: 210862231 | T95: 2016-04-15 | V95: JPELLEGR | W95: WE | X95: Oil Components | Y95: 613000000 | Z95: Achats mat & équip. | AA95: Achats materiels et équipements | AD95: 0 | AE95: 2016-05-17 | AF95: GR/IR Finished Goods | AG95: 2016-05-17 | AH95: 5003117985 | AI95: MKPF | AJ95: 0 | AK95: 2016-05-17 | AL95: G02-FR-4000002 | AM95: R&D CONTROL | AN95: 6 | AO95: COIN | AP95: 0 | AQ95: 2100 | AR95: 1 | AS95: D | AT95: M | AU95: 11 | AV95: 0 | AW95: 0 | AX95: 0 | AY95: 0 | AZ95: 5 | BA95: 0500 | BB95: 60 | BC95: 0 | BD95: HSF07 | BE95: PETITS COMPOSANTS MECANIQUES | BF95: GR/IR Finished Goods | BG95: Elément d'OTP | BH95: OTP | BI95: S | BJ95: 219000421 | BL95: RMWE | BT95: 2103 | BU95: CH | BV95: 6 | BW95: 0 | BX95: 0 | BY95: 2100 | BZ95: 2016 | CA95: R | CB95: 2016 | CC95: 0 | CD95: 0 | CE95: EUR | CJ95: 6 | CK95: 14 | CN95: 8323184420000 | CO95: 09:34:02 | CP95: 2016-04-15 | CQ95: 5 | CS95: 268 | CT95: 4 | CU95: 268 | CV95: 268 | CW95: 268 | CX95: 0 | CY95: PRF-201001 | CZ95: Stock consumption | DA95: 38
A96: 2016 | B96: 5 | C96: G02-FR-4000002-CCO-06000 | D96: Oil Components | E96: G02-FR-4000002-CCO-06000 | F96: 455 | G96: EUR | H96: 1 | I96: 455 | J96: EUR | K96: 0 | M96: 4101135538 | N96: Régularisation | O96: 10744681 | P96: ALMECA | R96: sur demande O. Fedeli | S96: 210862231 | T96: 2016-04-15 | V96: JPELLEGR | W96: WE | X96: Oil Components | Y96: 613000000 | Z96: Achats mat & équip. | AA96: Achats materiels et équipements | AD96: 0 | AE96: 2016-05-17 | AF96: GR/IR Finished Goods | AG96: 2016-05-17 | AH96: 5003117985 | AI96: MKPF | AJ96: 0 | AK96: 2016-05-17 | AL96: G02-FR-4000002 | AM96: R&D CONTROL | AN96: 7 | AO96: COIN | AP96: 0 | AQ96: 2100 | AR96: 1 | AS96: D | AT96: M | AU96: 13 | AV96: 0 | AW96: 0 | AX96: 0 | AY96: 0 | AZ96: 5 | BA96: 0500 | BB96: 70 | BC96: 0 | BD96: HSF07 | BE96: PETITS COMPOSANTS MECANIQUES | BF96: GR/IR Finished Goods | BG96: Elément d'OTP | BH96: OTP | BI96: S | BJ96: 219000421 | BL96: RMWE | BT96: 2103 | BU96: CH | BV96: 7 | BW96: 0 | BX96: 0 | BY96: 2100 | BZ96: 2016 | CA96: R | CB96: 2016 | CC96: 0 | CD96: 0 | CE96: EUR | CJ96: 7 | CK96: 14 | CN96: 8323184420000 | CO96: 09:34:02 | CP96: 2016-04-15 | CQ96: 5 | CS96: 455 | CT96: 4 | CU96: 455 | CV96: 455 | CW96: 455 | CX96: 0 | CY96: PRF-201001 | CZ96: Stock consumption | DA96: 38
A97: 2016 | B97: 5 | C97: G02-FR-4000002-CCO-06000 | D97: Oil Components | E97: G02-FR-4000002-CCO-06000 | F97: 455 | G97: EUR | H97: 1 | I97: 455 | J97: EUR | K97: 0 | M97: 4101135538 | N97: Régularisation | O97: 10744681 | P97: ALMECA | R97: sur demande O. Fedeli | S97: 210834519 | T97: 2016-05-11 | V97: 201552 | W97: WE | X97: Oil Components | Y97: 613000000 | Z97: Achats mat & équip. | AA97: Achats materiels et équipements | AD97: 0 | AE97: 2016-05-11 | AF97: GR/IR Finished Goods | AG97: 2016-05-11 | AH97: 5003108569 | AI97: MKPF | AJ97: 0 | AK97: 2016-05-11 | AL97: G02-FR-4000002 | AM97: R&D CONTROL | AN97: 7 | AO97: COIN | AP97: 0 | AQ97: 2100 | AR97: 1 | AS97: D | AT97: M | AU97: 13 | AV97: 0 | AW97: 0 | AX97: 0 | AY97: 0 | AZ97: 5 | BA97: 0500 | BB97: 70 | BC97: 0 | BD97: HSF07 | BE97: PETITS COMPOSANTS MECANIQUES | BF97: GR/IR Finished Goods | BG97: Elément d'OTP | BH97: OTP | BI97: S | BJ97: 219000421 | BL97: RMWE | BT97: 2103 | BU97: CH | BV97: 7 | BW97: 0 | BX97: 0 | BY97: 2100 | BZ97: 2016 | CA97: R | CB97: 2016 | CC97: 0 | CD97: 0 | CE97: EUR | CG97: 2016 | CH97: 5003117984 | CI97: X | CJ97: 7 | CK97: 14 | CN97: 8318148970000 | CO97: 13:41:37 | CP97: 2016-05-11 | CQ97: 5 | CS97: 455 | CT97: 4 | CU97: 455 | CV97: 455 | CW97: 455 | CX97: 0 | CY97: PRF-201001 | CZ97: Stock consumption | DA97: 38
A98: 2016 | B98: 5 | C98: G02-FR-4000002-CCO-06000 | D98: Oil Components | E98: G02-FR-4000002-CCO-06000 | F98: 432 | G98: EUR | H98: 8 | I98: 432 | J98: EUR | K98: 0 | M98: 4101135538 | N98: REDUCTION SLEEVE | O98: 10744681 | P98: ALMECA | R98: sur demande O. Fedeli | S98: 210834519 | T98: 2016-05-11 | V98: 201552 | W98: WE | X98: Oil Components | Y98: 613000000 | Z98: Achats mat & équip. | AA98: Achats materiels et équipements | AD98: 0 | AE98: 2016-05-11 | AF98: GR/IR Finished Goods | AG98: 2016-05-11 | AH98: 5003108569 | AI98: MKPF | AJ98: 0 | AK98: 2016-05-11 | AL98: G02-FR-4000002 | AM98: R&D CONTROL | AN98: 1 | AO98: COIN | AP98: 0 | AQ98: 2100 | AR98: 1 | AS98: D | AT98: M | AU98: 1 | AV98: 0 | AW98: 0 | AX98: 0 | AY98: 0 | AZ98: 5 | BA98: 0500 | BB98: 10 | BC98: 0 | BD98: HSF07 | BE98: PETITS COMPOSANTS MECANIQUES | BF98: GR/IR Finished Goods | BG98: Elément d'OTP | BH98: OTP | BI98: S | BJ98: 219000421 | BL98: RMWE | BT98: 2103 | BU98: CH | BV98: 1 | BW98: 0 | BX98: 0 | BY98: 2100 | BZ98: 2016 | CA98: R | CB98: 2016 | CC98: 0 | CD98: 0 | CE98: EUR | CG98: 2016 | CH98: 5003117984 | CI98: X | CJ98: 1 | CK98: 14 | CN98: 8318148970000 | CO98: 13:41:37 | CP98: 2016-05-11 | CQ98: 5 | CS98: 432 | CT98: 4 | CU98: 432 | CV98: 432 | CW98: 432 | CX98: 0 | CY98: PRF-201001 | CZ98: Stock consumption | DA98: 38
A99: 2016 | B99: 5 | C99: G02-FR-4000002-CCO-06000 | D99: Oil Components | E99: G02-FR-4000002-CCO-06000 | F99: 384 | G99: EUR | H99: 8 | I99: 384 | J99: EUR | K99: 0 | M99: 4101135538 | N99: THRUST COLLAR | O99: 10744681 | P99: ALMECA | R99: sur demande O. Fedeli | S99: 210834519 | T99: 2016-05-11 | V99: 201552 | W99: WE | X99: Oil Components | Y99: 613000000 | Z99: Achats mat & équip. | AA99: Achats materiels et équipements | AD99: 0 | AE99: 2016-05-11 | AF99: GR/IR Finished Goods | AG99: 2016-05-11 | AH99: 5003108569 | AI99: MKPF | AJ99: 0 | AK99: 2016-05-11 | AL99: G02-FR-4000002 | AM99: R&D CONTROL | AN99: 2 | AO99: COIN | AP99: 0 | AQ99: 2100 | AR99: 1 | AS99: D | AT99: M | AU99: 3 | AV99: 0 | AW99: 0 | AX99: 0 | AY99: 0 | AZ99: 5 | BA99: 0500 | BB99: 20 | BC99: 0 | BD99: HSF07 | BE99: PETITS COMPOSANTS MECANIQUES | BF99: GR/IR Finished Goods | BG99: Elément d'OTP | BH99: OTP | BI99: S | BJ99: 219000421 | BL99: RMWE | BT99: 2103 | BU99: CH | BV99: 2 | BW99: 0 | BX99: 0 | BY99: 2100 | BZ99: 2016 | CA99: R | CB99: 2016 | CC99: 0 | CD99: 0 | CE99: EUR | CG99: 2016 | CH99: 5003117984 | CI99: X | CJ99: 2 | CK99: 14 | CN99: 8318148970000 | CO99: 13:41:37 | CP99: 2016-05-11 | CQ99: 5 | CS99: 384 | CT99: 4 | CU99: 384 | CV99: 384 | CW99: 384 | CX99: 0 | CY99: PRF-201001 | CZ99: Stock consumption | DA99: 38
A100: 2016 | B100: 5 | C100: G02-FR-4000002-CCO-06000 | D100: Oil Components | E100: G02-FR-4000002-CCO-06000 | F100: 360 | G100: EUR | H100: 8 | I100: 360 | J100: EUR | K100: 0 | M100: 4101135538 | N100: REDUCTION SLEEVE O50>O35 | O100: 10744681 | P100: ALMECA | R100: sur demande O. Fedeli | S100: 210834519 | T100: 2016-05-11 | V100: 201552 | W100: WE | X100: Oil Components | Y100: 613000000 | Z100: Achats mat & équip. | AA100: Achats materiels et équipements | AD100: 0 | AE100: 2016-05-11 | AF100: GR/IR Finished Goods | AG100: 2016-05-11 | AH100: 5003108569 | AI100: MKPF | AJ100: 0 | AK100: 2016-05-11 | AL100: G02-FR-4000002 | AM100: R&D CONTROL | AN100: 3 | AO100: COIN | AP100: 0 | AQ100: 2100 | AR100: 1 | AS100: D | AT100: M | AU100: 5 | AV100: 0 | AW100: 0 | AX100: 0 | AY100: 0 | AZ100: 5 | BA100: 0500 | BB100: 30 | BC100: 0 | BD100: HSF07 | BE100: PETITS COMPOSANTS MECANIQUES | BF100: GR/IR Finished Goods | BG100: Elément d'OTP | BH100: OTP | BI100: S | BJ100: 219000421 | BL100: RMWE | BT100: 2103 | BU100: CH | BV100: 3 | BW100: 0 | BX100: 0 | BY100: 2100 | BZ100: 2016 | CA100: R | CB100: 2016 | CC100: 0 | CD100: 0 | CE100: EUR | CG100: 2016 | CH100: 5003117984 | CI100: X | CJ100: 3 | CK100: 14 | CN100: 8318148970000 | CO100: 13:41:37 | CP100: 2016-05-11 | CQ100: 5 | CS100: 360 | CT100: 4 | CU100: 360 | CV100: 360 | CW100: 360 | CX100: 0 | CY100: PRF-201001 | CZ100: Stock consumption | DA100: 38
A101: 2016 | B101: 5 | C101: G02-FR-4000002-CCO-06000 | D101: Oil Components | E101: G02-FR-4000002-CCO-06000 | F101: 283.2 | G101: EUR | H101: 8 | I101: 283.2 | J101: EUR | K101: 0 | M101: 4101135538 | N101: THRUST COLLAR | O101: 10744681 | P101: ALMECA | R101: sur demande O. Fedeli | S101: 210834519 | T101: 2016-05-11 | V101: 201552 | W101: WE | X101: Oil Components | Y101: 613000000 | Z101: Achats mat & équip. | AA101: Achats materiels et équipements | AD101: 0 | AE101: 2016-05-11 | AF101: GR/IR Finished Goods | AG101: 2016-05-11 | AH101: 5003108569 | AI101: MKPF | AJ101: 0 | AK101: 2016-05-11 | AL101: G02-FR-4000002 | AM101: R&D CONTROL | AN101: 4 | AO101: COIN | AP101: 0 | AQ101: 2100 | AR101: 1 | AS101: D | AT101: M | AU101: 7 | AV101: 0 | AW101: 0 | AX101: 0 | AY101: 0 | AZ101: 5 | BA101: 0500 | BB101: 40 | BC101: 0 | BD101: HSF07 | BE101: PETITS COMPOSANTS MECANIQUES | BF101: GR/IR Finished Goods | BG101: Elément d'OTP | BH101: OTP | BI101: S | BJ101: 219000421 | BL101: RMWE | BT101: 2103 | BU101: CH | BV101: 4 | BW101: 0 | BX101: 0 | BY101: 2100 | BZ101: 2016 | CA101: R | CB101: 2016 | CC101: 0 | CD101: 0 | CE101: EUR | CG101: 2016 | CH101: 5003117984 | CI101: X | CJ101: 4 | CK101: 14 | CN101: 8318148970000 | CO101: 13:41:37 | CP101: 2016-05-11 | CQ101: 5 | CS101: 283.2 | CT101: 4 | CU101: 283.2 | CV101: 283.2 | CW101: 283.2 | CX101: 0 | CY101: PRF-201001 | CZ101: Stock consumption | DA101: 38
A102: 2016 | B102: 5 | C102: G02-FR-4000002-CCO-06000 | D102: Oil Components | E102: G02-FR-4000002-CCO-06000 | F102: 208 | G102: EUR | H102: 8 | I102: 208 | J102: EUR | K102: 0 | M102: 4101135538 | N102: REDUCTION SLEEVE | O102: 10744681 | P102: ALMECA | R102: sur demande O. Fedeli | S102: 210834519 | T102: 2016-05-11 | V102: 201552 | W102: WE | X102: Oil Components | Y102: 613000000 | Z102: Achats mat & équip. | AA102: Achats materiels et équipements | AD102: 0 | AE102: 2016-05-11 | AF102: GR/IR Finished Goods | AG102: 2016-05-11 | AH102: 5003108569 | AI102: MKPF | AJ102: 0 | AK102: 2016-05-11 | AL102: G02-FR-4000002 | AM102: R&D CONTROL | AN102: 5 | AO102: COIN | AP102: 0 | AQ102: 2100 | AR102: 1 | AS102: D | AT102: M | AU102: 9 | AV102: 0 | AW102: 0 | AX102: 0 | AY102: 0 | AZ102: 5 | BA102: 0500 | BB102: 50 | BC102: 0 | BD102: HSF07 | BE102: PETITS COMPOSANTS MECANIQUES | BF102: GR/IR Finished Goods | BG102: Elément d'OTP | BH102: OTP | BI102: S | BJ102: 219000421 | BL102: RMWE | BT102: 2103 | BU102: CH | BV102: 5 | BW102: 0 | BX102: 0 | BY102: 2100 | BZ102: 2016 | CA102: R | CB102: 2016 | CC102: 0 | CD102: 0 | CE102: EUR | CG102: 2016 | CH102: 5003117984 | CI102: X | CJ102: 5 | CK102: 14 | CN102: 8318148970000 | CO102: 13:41:37 | CP102: 2016-05-11 | CQ102: 5 | CS102: 208 | CT102: 4 | CU102: 208 | CV102: 208 | CW102: 208 | CX102: 0 | CY102: PRF-201001 | CZ102: Stock consumption | DA102: 38
A103: 2016 | B103: 5 | C103: G02-FR-4000002-CCO-06000 | D103: Oil Components | E103: G02-FR-4000002-CCO-06000 | F103: 268 | G103: EUR | H103: 8 | I103: 268 | J103: EUR | K103: 0 | M103: 4101135538 | N103: THRUST COLLAR | O103: 10744681 | P103: ALMECA | R103: sur demande O. Fedeli | S103: 210834519 | T103: 2016-05-11 | V103: 201552 | W103: WE | X103: Oil Components | Y103: 613000000 | Z103: Achats mat & équip. | AA103: Achats materiels et équipements | AD103: 0 | AE103: 2016-05-11 | AF103: GR/IR Finished Goods | AG103: 2016-05-11 | AH103: 5003108569 | AI103: MKPF | AJ103: 0 | AK103: 2016-05-11 | AL103: G02-FR-4000002 | AM103: R&D CONTROL | AN103: 6 | AO103: COIN | AP103: 0 | AQ103: 2100 | AR103: 1 | AS103: D | AT103: M | AU103: 11 | AV103: 0 | AW103: 0 | AX103: 0 | AY103: 0 | AZ103: 5 | BA103: 0500 | BB103: 60 | BC103: 0 | BD103: HSF07 | BE103: PETITS COMPOSANTS MECANIQUES | BF103: GR/IR Finished Goods | BG103: Elément d'OTP | BH103: OTP | BI103: S | BJ103: 219000421 | BL103: RMWE | BT103: 2103 | BU103: CH | BV103: 6 | BW103: 0 | BX103: 0 | BY103: 2100 | BZ103: 2016 | CA103: R | CB103: 2016 | CC103: 0 | CD103: 0 | CE103: EUR | CG103: 2016 | CH103: 5003117984 | CI103: X | CJ103: 6 | CK103: 14 | CN103: 8318148970000 | CO103: 13:41:37 | CP103: 2016-05-11 | CQ103: 5 | CS103: 268 | CT103: 4 | CU103: 268 | CV103: 268 | CW103: 268 | CX103: 0 | CY103: PRF-201001 | CZ103: Stock consumption | DA103: 38
A104: 2016 | B104: 5 | C104: G02-FR-4000002-CCO-06000 | D104: Oil Components | E104: G02-FR-4000002-CCO-06000 | F104: 2988.12 | G104: EUR | H104: 6 | I104: 2988.12 | J104: EUR | K104: 0 | M104: 4101119097 | N104: Microsoft Office Professional Plus 2016 | O104: 10682075 | P104: DELL SA | S104: 210817293 | T104: 2016-03-22 | V104: MLYAUDET | W104: WE | X104: Oil Components | Y104: 613000000 | Z104: Achats mat & équip. | AA104: Achats materiels et équipements | AD104: 0 | AE104: 2016-05-09 | AF104: GR/IR Finished Goods | AG104: 2016-05-09 | AH104: 5003102532 | AI104: MKPF | AJ104: 0 | AK104: 2016-05-09 | AL104: G02-FR-4000002 | AM104: R&D CONTROL | AN104: 1 | AO104: COIN | AP104: 0 | AQ104: 2100 | AR104: 1 | AS104: D | AT104: M | AU104: 1 | AV104: 0 | AW104: 0 | AX104: 0 | AY104: 0 | AZ104: 5 | BA104: 0500 | BB104: 10 | BC104: 0 | BD104: HSF10 | BE104: INSTRUMENTATION & MESURE | BF104: GR/IR Finished Goods | BG104: Elément d'OTP | BH104: OTP | BI104: S | BJ104: 219000421 | BL104: RMWE | BT104: 2103 | BU104: CH | BV104: 1 | BW104: 0 | BX104: 0 | BY104: 2100 | BZ104: 2016 | CA104: R | CB104: 2016 | CC104: 0 | CD104: 0 | CE104: EUR | CJ104: 1 | CK104: 14 | CN104: 8316255390000 | CO104: 09:05:39 | CP104: 2016-03-22 | CQ104: 5 | CS104: 2988.12 | CT104: 4 | CU104: 2988.12 | CV104: 2988.12 | CW104: 2988.12 | CX104: 0 | CY104: PRF-201001 | CZ104: Stock consumption | DA104: 38
A105: 2016 | B105: 5 | C105: G02-FR-4000002-CCO-06000 | D105: Oil Components | E105: G02-FR-4000002-CCO-06000 | F105: 780 | G105: EUR | H105: 3 | I105: 780 | J105: EUR | K105: 0 | M105: 4101140773 | N105: Tiroirs non chromés AST1743B | O105: 10657657 | P105: AMR | S105: 210799623 | T105: 2016-03-21 | V105: MLYAUDET | W105: WE | X105: Oil Components | Y105: 613000000 | Z105: Achats mat & équip. | AA105: Achats materiels et équipements | AD105: 0 | AE105: 2016-05-04 | AF105: GR/IR Finished Goods | AG105: 2016-05-04 | AH105: 5003095756 | AI105: MKPF | AJ105: 0 | AK105: 2016-05-04 | AL105: G02-FR-4000002 | AM105: R&D CONTROL | AN105: 1 | AO105: COIN | AP105: 0 | AQ105: 2100 | AR105: 1 | AS105: D | AT105: M | AU105: 1 | AV105: 0 | AW105: 0 | AX105: 0 | AY105: 0 | AZ105: 5 | BA105: 0500 | BB105: 10 | BC105: 0 | BD105: HSF07 | BE105: PETITS COMPOSANTS MECANIQUES | BF105: GR/IR Finished Goods | BG105: Elément d'OTP | BH105: OTP | BI105: S | BJ105: 219000421 | BL105: RMWE | BT105: 2103 | BU105: CH | BV105: 1 | BW105: 0 | BX105: 0 | BY105: 2100 | BZ105: 2016 | CA105: R | CB105: 2016 | CC105: 0 | CD105: 0 | CE105: EUR | CJ105: 1 | CK105: 14 | CN105: 8312003380000 | CO105: 10:58:58 | CP105: 2016-03-21 | CQ105: 5 | CS105: 780 | CT105: 4 | CU105: 780 | CV105: 780 | CW105: 780 | CX105: 0 | CY105: PRF-201001 | CZ105: Stock consumption | DA105: 38
A106: 2016 | B106: 5 | C106: G02-FR-4000002-CCO-06000 | D106: Oil Components | E106: G02-FR-4000002-CCO-06000 | F106: 520 | G106: EUR | H106: 2 | I106: 520 | J106: EUR | K106: 0 | M106: 4101077157 | N106: tiroir diam 35 5 voies | O106: 10657657 | P106: AMR | S106: 210799597 | T106: 2016-03-22 | V106: MLYAUDET | W106: WE | X106: Oil Components | Y106: 613000000 | Z106: Achats mat & équip. | AA106: Achats materiels et équipements | AD106: 0 | AE106: 2016-05-04 | AF106: GR/IR Finished Goods | AG106: 2016-05-04 | AH106: 5003095717 | AI106: MKPF | AJ106: 0 | AK106: 2016-05-04 | AL106: G02-FR-4000002 | AM106: R&D CONTROL | AN106: 1 | AO106: COIN | AP106: 0 | AQ106: 2100 | AR106: 1 | AS106: D | AT106: M | AU106: 1 | AV106: 0 | AW106: 0 | AX106: 0 | AY106: 0 | AZ106: 5 | BA106: 0500 | BB106: 10 | BC106: 0 | BD106: HSF07 | BE106: PETITS COMPOSANTS MECANIQUES | BF106: GR/IR Finished Goods | BG106: Elément d'OTP | BH106: OTP | BI106: S | BJ106: 219000421 | BL106: RMWE | BT106: 2103 | BU106: CH | BV106: 1 | BW106: 0 | BX106: 0 | BY106: 2100 | BZ106: 2016 | CA106: R | CB106: 2016 | CC106: 0 | CD106: 0 | CE106: EUR | CJ106: 1 | CK106: 14 | CN106: 8311997210000 | CO106: 10:48:41 | CP106: 2016-03-22 | CQ106: 5 | CS106: 520 | CT106: 4 | CU106: 520 | CV106: 520 | CW106: 520 | CX106: 0 | CY106: PRF-201001 | CZ106: Stock consumption | DA106: 38
A107: 2016 | B107: 5 | C107: G02-FR-4000002-CCO-06000 | D107: Oil Components | E107: G02-FR-4000002-CCO-06000 | F107: 680 | G107: EUR | H107: 1 | I107: 680 | J107: EUR | K107: 0 | M107: 4101077157 | N107: tiroir diam 50 5 voies | O107: 10657657 | P107: AMR | S107: 210799597 | T107: 2016-03-22 | V107: MLYAUDET | W107: WE | X107: Oil Components | Y107: 613000000 | Z107: Achats mat & équip. | AA107: Achats materiels et équipements | AD107: 0 | AE107: 2016-05-04 | AF107: GR/IR Finished Goods | AG107: 2016-05-04 | AH107: 5003095717 | AI107: MKPF | AJ107: 0 | AK107: 2016-05-04 | AL107: G02-FR-4000002 | AM107: R&D CONTROL | AN107: 2 | AO107: COIN | AP107: 0 | AQ107: 2100 | AR107: 1 | AS107: D | AT107: M | AU107: 3 | AV107: 0 | AW107: 0 | AX107: 0 | AY107: 0 | AZ107: 5 | BA107: 0500 | BB107: 30 | BC107: 0 | BD107: HSF07 | BE107: PETITS COMPOSANTS MECANIQUES | BF107: GR/IR Finished Goods | BG107: Elément d'OTP | BH107: OTP | BI107: S | BJ107: 219000421 | BL107: RMWE | BT107: 2103 | BU107: CH | BV107: 2 | BW107: 0 | BX107: 0 | BY107: 2100 | BZ107: 2016 | CA107: R | CB107: 2016 | CC107: 0 | CD107: 0 | CE107: EUR | CJ107: 2 | CK107: 14 | CN107: 8311997210000 | CO107: 10:48:41 | CP107: 2016-03-22 | CQ107: 5 | CS107: 680 | CT107: 4 | CU107: 680 | CV107: 680 | CW107: 680 | CX107: 0 | CY107: PRF-201001 | CZ107: Stock consumption | DA107: 38
A108: 2016 | B108: 5 | C108: G02-FR-4000002-CCO-06000 | D108: Oil Components | E108: G02-FR-4000002-CCO-06000 | F108: 1220 | G108: EUR | H108: 2 | I108: 1220 | J108: EUR | K108: 0 | M108: 4101027932 | N108: tiroir diam 50 3 voies | O108: 10657657 | P108: AMR | S108: 210799995 | T108: 2016-03-25 | V108: MLYAUDET | W108: WE | X108: Oil Components | Y108: 613000000 | Z108: Achats mat & équip. | AA108: Achats materiels et équipements | AD108: 0 | AE108: 2016-05-04 | AF108: GR/IR Finished Goods | AG108: 2016-05-04 | AH108: 5003095895 | AI108: MKPF | AJ108: 0 | AK108: 2016-05-04 | AL108: G02-FR-4000002 | AM108: R&D CONTROL | AN108: 1 | AO108: COIN | AP108: 0 | AQ108: 2100 | AR108: 1 | AS108: D | AT108: M | AU108: 1 | AV108: 0 | AW108: 0 | AX108: 0 | AY108: 0 | AZ108: 5 | BA108: 0500 | BB108: 50 | BC108: 0 | BD108: HSF07 | BE108: PETITS COMPOSANTS MECANIQUES | BF108: GR/IR Finished Goods | BG108: Elément d'OTP | BH108: OTP | BI108: S | BJ108: 219000421 | BL108: RMWE | BT108: 2103 | BU108: CH | BV108: 1 | BW108: 0 | BX108: 0 | BY108: 2100 | BZ108: 2016 | CA108: R | CB108: 2016 | CC108: 0 | CD108: 0 | CE108: EUR | CJ108: 1 | CK108: 14 | CN108: 8312021720000 | CO108: 11:29:32 | CP108: 2016-03-25 | CQ108: 5 | CS108: 1220 | CT108: 4 | CU108: 1220 | CV108: 1220 | CW108: 1220 | CX108: 0 | CY108: PRF-201001 | CZ108: Stock consumption | DA108: 38
A109: 2016 | B109: 5 | C109: G02-FR-4000002-CCO-06000 | D109: Oil Components | E109: G02-FR-4000002-CCO-06000 | F109: 1480 | G109: EUR | H109: 2 | I109: 1480 | J109: EUR | K109: 0 | M109: 4101027932 | N109: tiroir diam 50 6 voies | O109: 10657657 | P109: AMR | S109: 210799995 | T109: 2016-03-25 | V109: MLYAUDET | W109: WE | X109: Oil Components | Y109: 613000000 | Z109: Achats mat & équip. | AA109: Achats materiels et équipements | AD109: 0 | AE109: 2016-05-04 | AF109: GR/IR Finished Goods | AG109: 2016-05-04 | AH109: 5003095895 | AI109: MKPF | AJ109: 0 | AK109: 2016-05-04 | AL109: G02-FR-4000002 | AM109: R&D CONTROL | AN109: 2 | AO109: COIN | AP109: 0 | AQ109: 2100 | AR109: 1 | AS109: D | AT109: M | AU109: 3 | AV109: 0 | AW109: 0 | AX109: 0 | AY109: 0 | AZ109: 5 | BA109: 0500 | BB109: 60 | BC109: 0 | BD109: HSF07 | BE109: PETITS COMPOSANTS MECANIQUES | BF109: GR/IR Finished Goods | BG109: Elément d'OTP | BH109: OTP | BI109: S | BJ109: 219000421 | BL109: RMWE | BT109: 2103 | BU109: CH | BV109: 2 | BW109: 0 | BX109: 0 | BY109: 2100 | BZ109: 2016 | CA109: R | CB109: 2016 | CC109: 0 | CD109: 0 | CE109: EUR | CJ109: 2 | CK109: 14 | CN109: 8312021720000 | CO109: 11:29:32 | CP109: 2016-03-25 | CQ109: 5 | CS109: 1480 | CT109: 4 | CU109: 1480 | CV109: 1480 | CW109: 1480 | CX109: 0 | CY109: PRF-201001 | CZ109: Stock consumption | DA109: 38
A110: 2016 | B110: 5 | C110: G02-FR-4000002-CCO-06000 | D110: Oil Components | E110: G02-FR-4000002-CCO-06000 | F110: 200 | G110: EUR | H110: 1 | I110: 200 | J110: EUR | K110: 0 | M110: 4101054633 | N110: reglage preserie dia 80 | O110: 10731695 | P110: GUICHARD RODAGE ET POLISSAGE | S110: 210785443 | T110: 2016-05-02 | V110: 201552 | W110: WE | X110: Oil Components | Y110: 613000000 | Z110: Achats mat & équip. | AA110: Achats materiels et équipements | AD110: 0 | AE110: 2016-05-02 | AF110: GR/IR Finished Goods | AG110: 2016-05-02 | AH110: 5003090953 | AI110: MKPF | AJ110: 0 | AK110: 2016-05-02 | AL110: G02-FR-4000002 | AM110: R&D CONTROL | AN110: 1 | AO110: COIN | AP110: 0 | AQ110: 2100 | AR110: 1 | AS110: D | AT110: M | AU110: 1 | AV110: 0 | AW110: 0 | AX110: 0 | AY110: 0 | AZ110: 5 | BA110: 0500 | BB110: 80 | BC110: 0 | BD110: HSF07 | BE110: PETITS COMPOSANTS MECANIQUES | BF110: GR/IR Finished Goods | BG110: Elément d'OTP | BH110: OTP | BI110: S | BJ110: 219000421 | BL110: RMWE | BT110: 2103 | BU110: CH | BV110: 1 | BW110: 0 | BX110: 0 | BY110: 2100 | BZ110: 2016 | CA110: R | CB110: 2016 | CC110: 0 | CD110: 0 | CE110: EUR | CJ110: 1 | CK110: 14 | CN110: 8310406060000 | CO110: 14:36:46 | CP110: 2016-05-02 | CQ110: 5 | CS110: 200 | CT110: 4 | CU110: 200 | CV110: 200 | CW110: 200 | CX110: 0 | CY110: PRF-201001 | CZ110: Stock consumption | DA110: 38
A111: 2016 | B111: 5 | C111: G02-FR-4000002-CCO-06000 | D111: Oil Components | E111: G02-FR-4000002-CCO-06000 | F111: 2919.5 | G111: EUR | H111: 5 | I111: 2919.5 | J111: EUR | K111: 0 | M111: 4101027342 | N111: corps taille 50 3 sorties | O111: 10660197 | P111: Fonderie Bot | S111: 210792359 | T111: 2016-03-15 | V111: MLYAUDET | W111: WE | X111: Oil Components | Y111: 613000000 | Z111: Achats mat & équip. | AA111: Achats materiels et équipements | AD111: 0 | AE111: 2016-05-03 | AF111: GR/IR Finished Goods | AG111: 2016-05-03 | AH111: 5003093024 | AI111: MKPF | AJ111: 0 | AK111: 2016-05-03 | AL111: G02-FR-4000002 | AM111: R&D CONTROL | AN111: 1 | AO111: COIN | AP111: 0 | AQ111: 2100 | AR111: 1 | AS111: D | AT111: M | AU111: 1 | AV111: 0 | AW111: 0 | AX111: 0 | AY111: 0 | AZ111: 5 | BA111: 0500 | BB111: 30 | BC111: 0 | BD111: HSF07 | BE111: PETITS COMPOSANTS MECANIQUES | BF111: GR/IR Finished Goods | BG111: Elément d'OTP | BH111: OTP | BI111: S | BJ111: 219000421 | BL111: RMWE | BT111: 2103 | BU111: CH | BV111: 1 | BW111: 0 | BX111: 0 | BY111: 2100 | BZ111: 2016 | CA111: R | CB111: 2016 | CC111: 0 | CD111: 0 | CE111: EUR | CJ111: 1 | CK111: 14 | CN111: 8311126080000 | CO111: 10:36:48 | CP111: 2016-03-15 | CQ111: 5 | CS111: 2919.5 | CT111: 4 | CU111: 2919.5 | CV111: 2919.5 | CW111: 2919.5 | CX111: 0 | CY111: PRF-201001 | CZ111: Stock consumption | DA111: 38
A112: 2016 | B112: 5 | C112: G02-FR-4000002-CCO-06000 | D112: Oil Components | E112: G02-FR-4000002-CCO-06000 | F112: 1220 | G112: EUR | H112: 2 | I112: 1220 | J112: EUR | K112: 0 | M112: 4101141757 | N112: TIROIR DIAM 50 3 VOIES | O112: 10657657 | P112: AMR | R112: pris par steinhilber | S112: 210757684 | T112: 2016-04-27 | V112: 201552 | W112: WE | X112: Oil Components | Y112: 613000000 | Z112: Achats mat & équip. | AA112: Achats materiels et équipements | AD112: 0 | AE112: 2016-04-27 | AF112: GR/IR Finished Goods | AG112: 2016-05-02 | AH112: 5003085393 | AI112: MKPF | AJ112: 0 | AK112: 2016-05-02 | AL112: G02-FR-4000002 | AM112: R&D CONTROL | AN112: 1 | AO112: COIN | AP112: 0 | AQ112: 2100 | AR112: 1 | AS112: D | AT112: M | AU112: 1 | AV112: 0 | AW112: 0 | AX112: 0 | AY112: 0 | AZ112: 5 | BA112: 0500 | BB112: 20 | BC112: 0 | BD112: HSF07 | BE112: PETITS COMPOSANTS MECANIQUES | BF112: GR/IR Finished Goods | BG112: Elément d'OTP | BH112: OTP | BI112: S | BJ112: 219000421 | BL112: RMWE | BT112: 2103 | BU112: CH | BV112: 1 | BW112: 0 | BX112: 0 | BY112: 2100 | BZ112: 2016 | CA112: R | CB112: 2016 | CC112: 0 | CD112: 0 | CE112: EUR | CJ112: 1 | CK112: 14 | CN112: 8306093170000 | CO112: 14:48:37 | CP112: 2016-04-27 | CQ112: 5 | CS112: 1220 | CT112: 4 | CU112: 1220 | CV112: 1220 | CW112: 1220 | CX112: 0 | CY112: PRF-201001 | CZ112: Stock consumption | DA112: 38
A113: 2016 | B113: 5 | C113: G02-FR-4000002-CCO-06000 | D113: Oil Components | E113: G02-FR-4000002-CCO-06000 | F113: 740 | G113: EUR | H113: 1 | I113: 740 | J113: EUR | K113: 0 | M113: 4101077157 | N113: tiroir diam 50 6 voies | O113: 10657657 | P113: AMR | R113: pris par steinhilber | S113: 210749435 | T113: 2016-04-26 | V113: 201552 | W113: WE | X113: Oil Components | Y113: 613000000 | Z113: Achats mat & équip. | AA113: Achats materiels et équipements | AD113: 0 | AE113: 2016-04-26 | AF113: GR/IR Finished Goods | AG113: 2016-05-02 | AH113: 5003083429 | AI113: MKPF | AJ113: 0 | AK113: 2016-05-02 | AL113: G02-FR-4000002 | AM113: R&D CONTROL | AN113: 1 | AO113: COIN | AP113: 0 | AQ113: 2100 | AR113: 1 | AS113: D | AT113: M | AU113: 1 | AV113: 0 | AW113: 0 | AX113: 0 | AY113: 0 | AZ113: 5 | BA113: 0500 | BB113: 40 | BC113: 0 | BD113: HSF07 | BE113: PETITS COMPOSANTS MECANIQUES | BF113: GR/IR Finished Goods | BG113: Elément d'OTP | BH113: OTP | BI113: S | BJ113: 219000421 | BL113: RMWE | BT113: 2103 | BU113: CH | BV113: 1 | BW113: 0 | BX113: 0 | BY113: 2100 | BZ113: 2016 | CA113: R | CB113: 2016 | CC113: 0 | CD113: 0 | CE113: EUR | CJ113: 1 | CK113: 14 | CN113: 8305272530000 | CO113: 16:00:53 | CP113: 2016-04-26 | CQ113: 5 | CS113: 740 | CT113: 4 | CU113: 740 | CV113: 740 | CW113: 740 | CX113: 0 | CY113: PRF-201001 | CZ113: Stock consumption | DA113: 38
A114: 2016 | B114: 5 | C114: G02-FR-4000002-CCO-06000 | D114: Oil Components | E114: G02-FR-4000002-CCO-06000 | F114: 0.01 | G114: EUR | H114: 0 | I114: 0.01 | J114: EUR | K114: 0 | M114: 4100982695 | N114: Corps GPV50 6V | O114: 10660197 | P114: Fonderie Bot | Q114: 02.05.2016 | S114: 210844586 | T114: 2015-12-16 | V114: YDIPBASW | W114: RE | X114: Oil Components | Y114: 613000000 | Z114: Achats mat & équip. | AA114: Achats materiels et équipements | AD114: 0 | AE114: 2016-05-12 | AF114: Fonderie Bot | AG114: 2016-05-12 | AH114: 5108340600 | AI114: RMRP | AJ114: 0 | AK114: 2016-05-12 | AL114: G02-FR-4000002 | AM114: R&D CONTROL | AN114: 1 | AO114: COIN | AP114: 0 | AQ114: 2100 | AR114: 1 | AS114: D | AT114: M | AU114: 3 | AV114: 0 | AW114: 0 | AX114: 0 | AY114: 0 | AZ114: 5 | BA114: 0500 | BB114: 10 | BC114: 0 | BD114: HSF07 | BE114: PETITS COMPOSANTS MECANIQUES | BF114: Fonderie Bot | BG114: Elément d'OTP | BH114: OTP | BI114: K | BJ114: 10660197 | BL114: RMRP | BT114: 2103 | BU114: CH | BV114: 3 | BW114: 0 | BX114: 0 | BY114: 2100 | BZ114: 2016 | CA114: R | CB114: 2016 | CC114: 0 | CD114: 0 | CE114: EUR | CJ114: 1 | CK114: 14 | CN114: 8319160290000 | CO114: 17:47:09 | CP114: 2015-12-16 | CQ114: 5 | CS114: 0.01 | CT114: 4 | CU114: 0.01 | CV114: 0.01 | CW114: 0.01 | CX114: 0 | CY114: PRF-201001 | CZ114: Stock consumption | DA114: 38
A115: 2016 | B115: 5 | C115: G02-FR-4000002-CCO-06000 | D115: Oil Components | E115: G02-FR-4000002-CCO-06000 | F115: 580 | G115: EUR | H115: 4 | I115: 580 | J115: EUR | K115: 0 | M115: 4101054633 | N115: rodage corps dia 80 | O115: 10731695 | P115: GUICHARD RODAGE ET POLISSAGE | S115: 210825132 | T115: 2016-03-09 | V115: MLYAUDET | W115: WE | X115: Oil Components | Y115: 613000000 | Z115: Achats mat & équip. | AA115: Achats materiels et équipements | AD115: 0 | AE115: 2016-05-10 | AF115: GR/IR Finished Goods | AG115: 2016-05-10 | AH115: 5003105404 | AI115: MKPF | AJ115: 0 | AK115: 2016-05-10 | AL115: G02-FR-4000002 | AM115: R&D CONTROL | AN115: 1 | AO115: COIN | AP115: 0 | AQ115: 2100 | AR115: 1 | AS115: D | AT115: M | AU115: 1 | AV115: 0 | AW115: 0 | AX115: 0 | AY115: 0 | AZ115: 5 | BA115: 0500 | BB115: 50 | BC115: 0 | BD115: HSF07 | BE115: PETITS COMPOSANTS MECANIQUES | BF115: GR/IR Finished Goods | BG115: Elément d'OTP | BH115: OTP | BI115: S | BJ115: 219000421 | BL115: RMWE | BT115: 2103 | BU115: CH | BV115: 1 | BW115: 0 | BX115: 0 | BY115: 2100 | BZ115: 2016 | CA115: R | CB115: 2016 | CC115: 0 | CD115: 0 | CE115: EUR | CJ115: 1 | CK115: 14 | CN115: 8317169940000 | CO115: 10:29:55 | CP115: 2016-03-09 | CQ115: 5 | CS115: 580 | CT115: 4 | CU115: 580 | CV115: 580 | CW115: 580 | CX115: 0 | CY115: PRF-201001 | CZ115: Stock consumption | DA115: 38
A116: 2016 | B116: 4 | C116: G02-FR-4000002-CCO-06000 | D116: Oil Components | E116: G02-FR-4000002-CCO-06000 | F116: 420 | G116: EUR | H116: 1 | I116: 420 | J116: EUR | K116: 0 | M116: 4101125091 | N116: Prestation mécanique | O116: 10659323 | P116: GRAPHIMECA | R116: bordereau de livraison n°7261 26022016 | S116: 210719682 | T116: 2016-04-21 | V116: ESHENRY | W116: WE | X116: Oil Components | Y116: 613700000 | Z116: Subcont.Eng.TP | AA116: Subcontracted Engineering TP | AD116: 0 | AE116: 2016-04-21 | AF116: GR/IR Other Material | AG116: 2016-04-21 | AH116: 5003076341 | AI116: MKPF | AJ116: 0 | AK116: 2016-04-21 | AL116: G02-FR-4000002 | AM116: R&D CONTROL | AN116: 1 | AO116: COIN | AP116: 0 | AQ116: 2100 | AR116: 1 | AS116: D | AT116: M | AU116: 1 | AV116: 0 | AW116: 0 | AX116: 0 | AY116: 0 | AZ116: 4 | BA116: 0500 | BB116: 10 | BC116: 0 | BF116: GR/IR Other Materials | BG116: Elément d'OTP | BH116: OTP | BI116: S | BJ116: 219000991 | BL116: RMWE | BT116: 2103 | BU116: UO | BV116: 1 | BW116: 0 | BX116: 0 | BY116: 2100 | BZ116: 2016 | CA116: R | CB116: 2016 | CC116: 0 | CD116: 0 | CE116: EUR | CJ116: 1 | CK116: 14 | CN116: 8300997160000 | CO116: 17:15:16 | CP116: 2016-04-21 | CQ116: 4 | CS116: 420 | CT116: 4 | CU116: 420 | CV116: 420 | CW116: 420 | CX116: 0 | CY116: PRF-20120 | CZ116: 06.00 Engineering | DA116: 128
A117: 2016 | B117: 5 | C117: G02-FR-4000002-CCO-06000 | D117: Oil Components | E117: G02-FR-4000002-CCO-06000 | F117: 5250 | G117: EUR | H117: 1 | I117: 5250 | J117: EUR | K117: 0 | M117: 4101119831 | N117: Etude detecteur survitesse LIGA - fixe | O117: 10667966 | P117: Crea Meca | R117: facture F16_0041 du 28032016 | S117: 210825949 | T117: 2016-05-10 | V117: ESHENRY | W117: WE | X117: Oil Components | Y117: 613700000 | Z117: Subcont.Eng.TP | AA117: Subcontracted Engineering TP | AD117: 0 | AE117: 2016-05-10 | AF117: GR/IR Other Material | AG117: 2016-05-10 | AH117: 5003105686 | AI117: MKPF | AJ117: 0 | AK117: 2016-05-10 | AL117: G02-FR-4000002 | AM117: R&D CONTROL | AN117: 1 | AO117: COIN | AP117: 0 | AQ117: 2100 | AR117: 1 | AS117: D | AT117: M | AU117: 1 | AV117: 0 | AW117: 0 | AX117: 0 | AY117: 0 | AZ117: 5 | BA117: 0500 | BB117: 20 | BC117: 0 | BF117: GR/IR Other Materials | BG117: Elément d'OTP | BH117: OTP | BI117: S | BJ117: 219000991 | BL117: RMWE | BT117: 2103 | BU117: UO | BV117: 1 | BW117: 0 | BX117: 0 | BY117: 2100 | BZ117: 2016 | CA117: R | CB117: 2016 | CC117: 0 | CD117: 0 | CE117: EUR | CJ117: 1 | CK117: 14 | CN117: 8317223710000 | CO117: 11:59:31 | CP117: 2016-05-10 | CQ117: 5 | CS117: 5250 | CT117: 4 | CU117: 5250 | CV117: 5250 | CW117: 5250 | CX117: 0 | CY117: PRF-20120 | CZ117: 06.00 Engineering | DA117: 128
A118: 2016 | B118: 5 | C118: G02-FR-4000002-CCO-06000 | D118: Oil Components | E118: G02-FR-4000002-CCO-06000 | F118: 8750 | G118: EUR | H118: 1 | I118: 8750 | J118: EUR | K118: 0 | M118: 4101119831 | N118: Etude detecteur survitesse LIGA - mobile | O118: 10667966 | P118: Crea Meca | R118: FACTURE F16_0042 | S118: 210836093 | T118: 2016-05-11 | V118: ESHENRY | W118: WE | X118: Oil Components | Y118: 613700000 | Z118: Subcont.Eng.TP | AA118: Subcontracted Engineering TP | AD118: 0 | AE118: 2016-05-11 | AF118: GR/IR Other Material | AG118: 2016-05-11 | AH118: 5003109111 | AI118: MKPF | AJ118: 0 | AK118: 2016-05-11 | AL118: G02-FR-4000002 | AM118: R&D CONTROL | AN118: 1 | AO118: COIN | AP118: 0 | AQ118: 2100 | AR118: 1 | AS118: D | AT118: M | AU118: 1 | AV118: 0 | AW118: 0 | AX118: 0 | AY118: 0 | AZ118: 5 | BA118: 0500 | BB118: 30 | BC118: 0 | BF118: GR/IR Other Materials | BG118: Elément d'OTP | BH118: OTP | BI118: S | BJ118: 219000991 | BL118: RMWE | BT118: 2103 | BU118: UO | BV118: 1 | BW118: 0 | BX118: 0 | BY118: 2100 | BZ118: 2016 | CA118: R | CB118: 2016 | CC118: 0 | CD118: 0 | CE118: EUR | CJ118: 1 | CK118: 14 | CN118: 8318236100000 | CO118: 16:06:50 | CP118: 2016-05-11 | CQ118: 5 | CS118: 8750 | CT118: 4 | CU118: 8750 | CV118: 8750 | CW118: 8750 | CX118: 0 | CY118: PRF-20120 | CZ118: 06.00 Engineering | DA118: 128
A119: 2016 | B119: 1 | C119: G02-FR-4000002-CCO-06000 | D119: Oil Components | E119: G02-FR-4000002-CCO-06000 | F119: -5180 | G119: EUR | H119: -1 | I119: -5180 | J119: EUR | K119: 0 | M119: 4101034578 | N119: Support en tests oleo-hydrauliques | O119: 10019975 | P119: ALTRAN TECHNOLOGIES | R119: Dde Armin Dec 2015 | S119: 210133914 | T119: 2015-12-09 | V119: ESHENRY | W119: WE | X119: Oil Components | Y119: 613700000 | Z119: Subcont.Eng.TP | AA119: Subcontracted Engineering TP | AD119: 0 | AE119: 2016-01-14 | AF119: GR/IR Other Material | AG119: 2016-01-14 | AH119: 5002898064 | AI119: MKPF | AJ119: 0 | AK119: 2016-01-14 | AL119: G02-FR-4000002 | AM119: R&D CONTROL | AN119: 1 | AO119: COIN | AP119: 0 | AQ119: 2100 | AR119: 1 | AS119: C | AT119: M | AU119: 1 | AV119: 0 | AW119: 0 | AX119: 0 | AY119: 0 | AZ119: 1 | BA119: 0500 | BB119: 10 | BC119: 0 | BF119: GR/IR Other Materials | BG119: Elément d'OTP | BH119: OTP | BI119: S | BJ119: 219000991 | BL119: RMWE | BT119: 2103 | BU119: UO | BV119: 1 | BW119: 0 | BX119: 0 | BY119: 2100 | BZ119: 2016 | CA119: R | CB119: 2016 | CC119: 0 | CD119: 0 | CE119: EUR | CJ119: 1 | CK119: 14 | CN119: 8216152420000 | CO119: 11:27:22 | CP119: 2015-12-09 | CQ119: 1 | CS119: -5180 | CT119: 4 | CU119: -5180 | CV119: -5180 | CW119: -5180 | CX119: 0 | CY119: PRF-20120 | CZ119: 06.00 Engineering | DA119: 128
A120: 2016 | B120: 1 | C120: G02-FR-4000002-CCO-06000 | D120: Oil Components | E120: G02-FR-4000002-CCO-06000 | F120: 4760 | G120: EUR | H120: 1 | I120: 4760 | J120: EUR | K120: 0 | M120: 4101034578 | N120: Support en tests oleo-hydrauliques | O120: 10019975 | P120: ALTRAN TECHNOLOGIES | R120: Prestation déc 2015 | S120: 210133917 | T120: 2015-12-09 | V120: ESHENRY | W120: WE | X120: Oil Components | Y120: 613700000 | Z120: Subcont.Eng.TP | AA120: Subcontracted Engineering TP | AD120: 0 | AE120: 2016-01-14 | AF120: GR/IR Other Material | AG120: 2016-01-14 | AH120: 5002898066 | AI120: MKPF | AJ120: 0 | AK120: 2016-01-14 | AL120: G02-FR-4000002 | AM120: R&D CONTROL | AN120: 1 | AO120: COIN | AP120: 0 | AQ120: 2100 | AR120: 1 | AS120: D | AT120: M | AU120: 1 | AV120: 0 | AW120: 0 | AX120: 0 | AY120: 0 | AZ120: 1 | BA120: 0500 | BB120: 10 | BC120: 0 | BF120: GR/IR Other Materials | BG120: Elément d'OTP | BH120: OTP | BI120: S | BJ120: 219000991 | BL120: RMWE | BT120: 2103 | BU120: UO | BV120: 1 | BW120: 0 | BX120: 0 | BY120: 2100 | BZ120: 2016 | CA120: R | CB120: 2016 | CC120: 0 | CD120: 0 | CE120: EUR | CJ120: 1 | CK120: 14 | CN120: 8216153050000 | CO120: 11:28:25 | CP120: 2015-12-09 | CQ120: 1 | CS120: 4760 | CT120: 4 | CU120: 4760 | CV120: 4760 | CW120: 4760 | CX120: 0 | CY120: PRF-20120 | CZ120: 06.00 Engineering | DA120: 128
A121: 2016 | B121: 1 | C121: G02-FR-4000002-CCO-06000 | D121: Oil Components | E121: G02-FR-4000002-CCO-06000 | F121: 692.91 | G121: EUR | H121: 1 | I121: 692.91 | J121: EUR | K121: 0 | M121: 4100982695 | N121: grossissement mécanique+varation cout | O121: 10660197 | P121: Fonderie Bot | R121: Reception dde O. Fedeli | S121: 210118803 | T121: 2016-01-12 | V121: ESHENRY | W121: WE | X121: Oil Components | Y121: 613700000 | Z121: Subcont.Eng.TP | AA121: Subcontracted Engineering TP | AD121: 0 | AE121: 2016-01-12 | AF121: GR/IR Other Material | AG121: 2016-01-12 | AH121: 5002892809 | AI121: MKPF | AJ121: 0 | AK121: 2016-01-12 | AL121: G02-FR-4000002 | AM121: R&D CONTROL | AN121: 1 | AO121: COIN | AP121: 0 | AQ121: 2100 | AR121: 1 | AS121: D | AT121: M | AU121: 1 | AV121: 0 | AW121: 0 | AX121: 0 | AY121: 0 | AZ121: 1 | BA121: 0500 | BB121: 100 | BC121: 0 | BF121: GR/IR Other Materials | BG121: Elément d'OTP | BH121: OTP | BI121: S | BJ121: 219000991 | BL121: RMWE | BT121: 2103 | BU121: UO | BV121: 1 | BW121: 0 | BX121: 0 | BY121: 2100 | BZ121: 2016 | CA121: R | CB121: 2016 | CC121: 0 | CD121: 0 | CE121: EUR | CJ121: 1 | CK121: 14 | CN121: 8214462420000 | CO121: 12:30:43 | CP121: 2016-01-12 | CQ121: 1 | CS121: 692.91 | CT121: 4 | CU121: 692.91 | CV121: 692.91 | CW121: 692.91 | CX121: 0 | CY121: PRF-20120 | CZ121: 06.00 Engineering | DA121: 128
A122: 2016 | B122: 1 | C122: G02-FR-4000002-CCO-06000 | D122: Oil Components | E122: G02-FR-4000002-CCO-06000 | F122: 1051.28 | G122: EUR | H122: 1 | I122: 1051.28 | J122: EUR | K122: 0 | M122: 4101027342 | N122: grossissement mécanique+variation cout | O122: 10660197 | P122: Fonderie Bot | R122: Reception dde O. Fedeli | S122: 210118806 | T122: 2016-01-12 | V122: ESHENRY | W122: WE | X122: Oil Components | Y122: 613700000 | Z122: Subcont.Eng.TP | AA122: Subcontracted Engineering TP | AD122: 0 | AE122: 2016-01-12 | AF122: GR/IR Other Material | AG122: 2016-01-12 | AH122: 5002892810 | AI122: MKPF | AJ122: 0 | AK122: 2016-01-12 | AL122: G02-FR-4000002 | AM122: R&D CONTROL | AN122: 1 | AO122: COIN | AP122: 0 | AQ122: 2100 | AR122: 1 | AS122: D | AT122: M | AU122: 1 | AV122: 0 | AW122: 0 | AX122: 0 | AY122: 0 | AZ122: 1 | BA122: 0500 | BB122: 60 | BC122: 0 | BF122: GR/IR Other Materials | BG122: Elément d'OTP | BH122: OTP | BI122: S | BJ122: 219000991 | BL122: RMWE | BT122: 2103 | BU122: UO | BV122: 1 | BW122: 0 | BX122: 0 | BY122: 2100 | BZ122: 2016 | CA122: R | CB122: 2016 | CC122: 0 | CD122: 0 | CE122: EUR | CJ122: 1 | CK122: 14 | CN122: 8214463000000 | CO122: 12:31:40 | CP122: 2016-01-12 | CQ122: 1 | CS122: 1051.28 | CT122: 4 | CU122: 1051.28 | CV122: 1051.28 | CW122: 1051.28 | CX122: 0 | CY122: PRF-20120 | CZ122: 06.00 Engineering | DA122: 128
A123: 2016 | B123: 2 | C123: G02-FR-4000002-CCO-06000 | D123: Oil Components | E123: G02-FR-4000002-CCO-06000 | F123: 278.32 | G123: EUR | H123: 1 | I123: 278.32 | J123: EUR | K123: 0 | M123: 4101099933 | N123: Beyond Compare 4 for Windows, Pro Editio | O123: 10705714 | P123: LOGITRADE SAS | R123: reception le 03/02 dde O. Fedeli | S123: 210254971 | T123: 2016-02-03 | V123: ESHENRY | W123: WE | X123: Oil Components | Y123: 613700000 | Z123: Subcont.Eng.TP | AA123: Subcontracted Engineering TP | AD123: 0 | AE123: 2016-02-03 | AF123: GR/IR Other Material | AG123: 2016-02-03 | AH123: 5002933420 | AI123: MKPF | AJ123: 0 | AK123: 2016-02-03 | AL123: G02-FR-4000002 | AM123: R&D CONTROL | AN123: 1 | AO123: COIN | AP123: 0 | AQ123: 2100 | AR123: 1 | AS123: D | AT123: M | AU123: 1 | AV123: 0 | AW123: 0 | AX123: 0 | AY123: 0 | AZ123: 2 | BA123: 0500 | BB123: 10 | BC123: 0 | BF123: GR/IR Other Materials | BG123: Elément d'OTP | BH123: OTP | BI123: S | BJ123: 219000991 | BL123: RMWE | BT123: 2103 | BU123: UO | BV123: 1 | BW123: 0 | BX123: 0 | BY123: 2100 | BZ123: 2016 | CA123: R | CB123: 2016 | CC123: 0 | CD123: 0 | CE123: EUR | CJ123: 1 | CK123: 14 | CN123: 8233384600000 | CO123: 10:07:40 | CP123: 2016-02-03 | CQ123: 2 | CS123: 278.32 | CT123: 4 | CU123: 278.32 | CV123: 278.32 | CW123: 278.32 | CX123: 0 | CY123: PRF-20120 | CZ123: 06.00 Engineering | DA123: 128
A124: 2016 | B124: 2 | C124: G02-FR-4000002-CCO-06000 | D124: Oil Components | E124: G02-FR-4000002-CCO-06000 | F124: 5600 | G124: EUR | H124: 1 | I124: 5600 | J124: EUR | K124: 0 | M124: 4101091731 | N124: Support en tests oleo-hydrauliques | O124: 10019975 | P124: ALTRAN TECHNOLOGIES | R124: prestation janvier 2016 | S124: 210239435 | T124: 2016-02-01 | V124: ESHENRY | W124: WE | X124: Oil Components | Y124: 613700000 | Z124: Subcont.Eng.TP | AA124: Subcontracted Engineering TP | AD124: 0 | AE124: 2016-02-01 | AF124: GR/IR Other Material | AG124: 2016-02-01 | AH124: 5002927481 | AI124: MKPF | AJ124: 0 | AK124: 2016-02-01 | AL124: G02-FR-4000002 | AM124: R&D CONTROL | AN124: 1 | AO124: COIN | AP124: 0 | AQ124: 2100 | AR124: 1 | AS124: D | AT124: M | AU124: 1 | AV124: 0 | AW124: 0 | AX124: 0 | AY124: 0 | AZ124: 2 | BA124: 0500 | BB124: 10 | BC124: 0 | BF124: GR/IR Other Materials | BG124: Elément d'OTP | BH124: OTP | BI124: S | BJ124: 219000991 | BL124: RMWE | BT124: 2103 | BU124: UO | BV124: 1 | BW124: 0 | BX124: 0 | BY124: 2100 | BZ124: 2016 | CA124: R | CB124: 2016 | CC124: 0 | CD124: 0 | CE124: EUR | CJ124: 1 | CK124: 14 | CN124: 8231716330000 | CO124: 11:47:14 | CP124: 2016-02-01 | CQ124: 2 | CS124: 5600 | CT124: 4 | CU124: 5600 | CV124: 5600 | CW124: 5600 | CX124: 0 | CY124: PRF-20120 | CZ124: 06.00 Engineering | DA124: 128
A125: 2016 | B125: 2 | C125: G02-FR-4000002-CCO-06000 | D125: Oil Components | E125: G02-FR-4000002-CCO-06000 | F125: 60 | G125: EUR | H125: 1 | I125: 60 | J125: EUR | K125: 0 | M125: 4101125091 | N125: Prestation mécanique | O125: 10659323 | P125: GRAPHIMECA | R125: REPRISE PIECE SUIVANT PLAN AST3410C | S125: 210337431 | T125: 2016-02-18 | V125: ESHENRY | W125: WE | X125: Oil Components | Y125: 613700000 | Z125: Subcont.Eng.TP | AA125: Subcontracted Engineering TP | AD125: 0 | AE125: 2016-02-18 | AF125: GR/IR Other Material | AG125: 2016-02-18 | AH125: 5002962424 | AI125: MKPF | AJ125: 0 | AK125: 2016-02-18 | AL125: G02-FR-4000002 | AM125: R&D CONTROL | AN125: 1 | AO125: COIN | AP125: 0 | AQ125: 2100 | AR125: 1 | AS125: D | AT125: M | AU125: 1 | AV125: 0 | AW125: 0 | AX125: 0 | AY125: 0 | AZ125: 2 | BA125: 0500 | BB125: 10 | BC125: 0 | BF125: GR/IR Other Materials | BG125: Elément d'OTP | BH125: OTP | BI125: S | BJ125: 219000991 | BL125: RMWE | BT125: 2103 | BU125: UO | BV125: 1 | BW125: 0 | BX125: 0 | BY125: 2100 | BZ125: 2016 | CA125: R | CB125: 2016 | CC125: 0 | CD125: 0 | CE125: EUR | CJ125: 1 | CK125: 14 | CN125: 8246616720000 | CO125: 17:41:12 | CP125: 2016-02-18 | CQ125: 2 | CS125: 60 | CT125: 4 | CU125: 60 | CV125: 60 | CW125: 60 | CX125: 0 | CY125: PRF-20120 | CZ125: 06.00 Engineering | DA125: 128
A126: 2016 | B126: 3 | C126: G02-FR-4000002-CCO-06000 | D126: Oil Components | E126: G02-FR-4000002-CCO-06000 | F126: 687 | G126: EUR | H126: 1 | I126: 687 | J126: EUR | K126: 0 | M126: 4101113852 | N126: Commande ouverte matériel IEHP | O126: 10659365 | P126: IEHP | R126: BON DE LIVRAISON 2203 DU 22/09/16 | S126: 210466020 | T126: 2016-03-10 | V126: ESHENRY | W126: WE | X126: Oil Components | Y126: 613700000 | Z126: Subcont.Eng.TP | AA126: Subcontracted Engineering TP | AD126: 0 | AE126: 2016-03-10 | AF126: GR/IR Other Material | AG126: 2016-03-10 | AH126: 5003000269 | AI126: MKPF | AJ126: 0 | AK126: 2016-03-10 | AL126: G02-FR-4000002 | AM126: R&D CONTROL | AN126: 1 | AO126: COIN | AP126: 0 | AQ126: 2100 | AR126: 1 | AS126: D | AT126: M | AU126: 1 | AV126: 0 | AW126: 0 | AX126: 0 | AY126: 0 | AZ126: 3 | BA126: 0500 | BB126: 10 | BC126: 0 | BF126: GR/IR Other Materials | BG126: Elément d'OTP | BH126: OTP | BI126: S | BJ126: 219000991 | BL126: RMWE | BT126: 2103 | BU126: UO | BV126: 1 | BW126: 0 | BX126: 0 | BY126: 2100 | BZ126: 2016 | CA126: R | CB126: 2016 | CC126: 0 | CD126: 0 | CE126: EUR | CJ126: 1 | CK126: 14 | CN126: 8264643880000 | CO126: 14:26:28 | CP126: 2016-03-10 | CQ126: 3 | CS126: 687 | CT126: 4 | CU126: 687 | CV126: 687 | CW126: 687 | CX126: 0 | CY126: PRF-20120 | CZ126: 06.00 Engineering | DA126: 128
A127: 2016 | B127: 3 | C127: G02-FR-4000002-CCO-06000 | D127: Oil Components | E127: G02-FR-4000002-CCO-06000 | F127: 817.8 | G127: EUR | H127: 1 | I127: 817.8 | J127: EUR | K127: 0 | M127: 4101113852 | N127: Commande ouverte matériel IEHP | O127: 10659365 | P127: IEHP | R127: BON DE LIVRAISON 2162 12/02/16 | S127: 210466023 | T127: 2016-03-10 | V127: ESHENRY | W127: WE | X127: Oil Components | Y127: 613700000 | Z127: Subcont.Eng.TP | AA127: Subcontracted Engineering TP | AD127: 0 | AE127: 2016-03-10 | AF127: GR/IR Other Material | AG127: 2016-03-10 | AH127: 5003000272 | AI127: MKPF | AJ127: 0 | AK127: 2016-03-10 | AL127: G02-FR-4000002 | AM127: R&D CONTROL | AN127: 1 | AO127: COIN | AP127: 0 | AQ127: 2100 | AR127: 1 | AS127: D | AT127: M | AU127: 1 | AV127: 0 | AW127: 0 | AX127: 0 | AY127: 0 | AZ127: 3 | BA127: 0500 | BB127: 10 | BC127: 0 | BF127: GR/IR Other Materials | BG127: Elément d'OTP | BH127: OTP | BI127: S | BJ127: 219000991 | BL127: RMWE | BT127: 2103 | BU127: UO | BV127: 1 | BW127: 0 | BX127: 0 | BY127: 2100 | BZ127: 2016 | CA127: R | CB127: 2016 | CC127: 0 | CD127: 0 | CE127: EUR | CJ127: 1 | CK127: 14 | CN127: 8264644570000 | CO127: 14:27:37 | CP127: 2016-03-10 | CQ127: 3 | CS127: 817.8 | CT127: 4 | CU127: 817.8 | CV127: 817.8 | CW127: 817.8 | CX127: 0 | CY127: PRF-20120 | CZ127: 06.00 Engineering | DA127: 128
A128: 2016 | B128: 3 | C128: G02-FR-4000002-CCO-06000 | D128: Oil Components | E128: G02-FR-4000002-CCO-06000 | F128: 365.1 | G128: EUR | H128: 1 | I128: 365.1 | J128: EUR | K128: 0 | M128: 4101113852 | N128: Commande ouverte matériel IEHP | O128: 10659365 | P128: IEHP | R128: BON DE LIVRAISON 2151 12/02/16 | S128: 210466035 | T128: 2016-03-10 | V128: ESHENRY | W128: WE | X128: Oil Components | Y128: 613700000 | Z128: Subcont.Eng.TP | AA128: Subcontracted Engineering TP | AD128: 0 | AE128: 2016-03-10 | AF128: GR/IR Other Material | AG128: 2016-03-10 | AH128: 5003000290 | AI128: MKPF | AJ128: 0 | AK128: 2016-03-10 | AL128: G02-FR-4000002 | AM128: R&D CONTROL | AN128: 1 | AO128: COIN | AP128: 0 | AQ128: 2100 | AR128: 1 | AS128: D | AT128: M | AU128: 1 | AV128: 0 | AW128: 0 | AX128: 0 | AY128: 0 | AZ128: 3 | BA128: 0500 | BB128: 10 | BC128: 0 | BF128: GR/IR Other Materials | BG128: Elément d'OTP | BH128: OTP | BI128: S | BJ128: 219000991 | BL128: RMWE | BT128: 2103 | BU128: UO | BV128: 1 | BW128: 0 | BX128: 0 | BY128: 2100 | BZ128: 2016 | CA128: R | CB128: 2016 | CC128: 0 | CD128: 0 | CE128: EUR | CJ128: 1 | CK128: 14 | CN128: 8264647010000 | CO128: 14:31:41 | CP128: 2016-03-10 | CQ128: 3 | CS128: 365.1 | CT128: 4 | CU128: 365.1 | CV128: 365.1 | CW128: 365.1 | CX128: 0 | CY128: PRF-20120 | CZ128: 06.00 Engineering | DA128: 128
A129: 2016 | B129: 3 | C129: G02-FR-4000002-CCO-06000 | D129: Oil Components | E129: G02-FR-4000002-CCO-06000 | F129: 320 | G129: EUR | H129: 1 | I129: 320 | J129: EUR | K129: 0 | M129: 4101125091 | N129: Prestation mécanique | O129: 10659323 | P129: GRAPHIMECA | R129: bordereau de livraison n°7261 | S129: 210414114 | T129: 2016-03-01 | V129: ESHENRY | W129: WE | X129: Oil Components | Y129: 613700000 | Z129: Subcont.Eng.TP | AA129: Subcontracted Engineering TP | AD129: 0 | AE129: 2016-03-01 | AF129: GR/IR Other Material | AG129: 2016-03-01 | AH129: 5002982700 | AI129: MKPF | AJ129: 0 | AK129: 2016-03-01 | AL129: G02-FR-4000002 | AM129: R&D CONTROL | AN129: 1 | AO129: COIN | AP129: 0 | AQ129: 2100 | AR129: 1 | AS129: D | AT129: M | AU129: 1 | AV129: 0 | AW129: 0 | AX129: 0 | AY129: 0 | AZ129: 3 | BA129: 0500 | BB129: 10 | BC129: 0 | BF129: GR/IR Other Materials | BG129: Elément d'OTP | BH129: OTP | BI129: S | BJ129: 219000991 | BL129: RMWE | BT129: 2103 | BU129: UO | BV129: 1 | BW129: 0 | BX129: 0 | BY129: 2100 | BZ129: 2016 | CA129: R | CB129: 2016 | CC129: 0 | CD129: 0 | CE129: EUR | CJ129: 1 | CK129: 14 | CN129: 8256925900000 | CO129: 16:03:10 | CP129: 2016-03-01 | CQ129: 3 | CS129: 320 | CT129: 4 | CU129: 320 | CV129: 320 | CW129: 320 | CX129: 0 | CY129: PRF-20120 | CZ129: 06.00 Engineering | DA129: 128
A130: 2016 | B130: 4 | C130: G02-FR-4000002-CCO-06000 | D130: Oil Components | E130: G02-FR-4000002-CCO-06000 | F130: 7000 | G130: EUR | H130: 1 | I130: 7000 | J130: EUR | K130: 0 | M130: 4101119831 | N130: Etude developpement distributeur GRV35C | O130: 10667966 | P130: Crea Meca | R130: FACTURE F16_0040 | S130: 210594059 | T130: 2016-03-31 | V130: ESHENRY | W130: WE | X130: Oil Components | Y130: 613700000 | Z130: Subcont.Eng.TP | AA130: Subcontracted Engineering TP | AD130: 0 | AE130: 2016-03-31 | AF130: GR/IR Other Material | AG130: 2016-04-01 | AH130: 5003034846 | AI130: MKPF | AJ130: 0 | AK130: 2016-04-01 | AL130: G02-FR-4000002 | AM130: R&D CONTROL | AN130: 1 | AO130: COIN | AP130: 0 | AQ130: 2100 | AR130: 1 | AS130: D | AT130: M | AU130: 1 | AV130: 0 | AW130: 0 | AX130: 0 | AY130: 0 | AZ130: 4 | BA130: 0500 | BB130: 10 | BC130: 0 | BF130: GR/IR Other Materials | BG130: Elément d'OTP | BH130: OTP | BI130: S | BJ130: 219000991 | BL130: RMWE | BT130: 2103 | BU130: UO | BV130: 1 | BW130: 0 | BX130: 0 | BY130: 2100 | BZ130: 2016 | CA130: R | CB130: 2016 | CC130: 0 | CD130: 0 | CE130: EUR | CJ130: 1 | CK130: 14 | CN130: 8282723020000 | CO130: 13:38:23 | CP130: 2016-03-31 | CQ130: 4 | CS130: 7000 | CT130: 4 | CU130: 7000 | CV130: 7000 | CW130: 7000 | CX130: 0 | CY130: PRF-20120 | CZ130: 06.00 Engineering | DA130: 128
A131: 2016 | B131: 4 | C131: G02-FR-4000002-CCO-06000 | D131: Oil Components | E131: G02-FR-4000002-CCO-06000 | F131: 6160 | G131: EUR | H131: 1 | I131: 6160 | J131: EUR | K131: 0 | M131: 4101091731 | N131: Support en tests oleo-hydrauliques | O131: 10019975 | P131: ALTRAN TECHNOLOGIES | R131: PRESTA MARS 2016 | S131: 210709846 | T131: 2016-04-20 | V131: ESHENRY | W131: WE | X131: Oil Components | Y131: 613700000 | Z131: Subcont.Eng.TP | AA131: Subcontracted Engineering TP | AD131: 0 | AE131: 2016-04-20 | AF131: GR/IR Other Material | AG131: 2016-04-20 | AH131: 5003073497 | AI131: MKPF | AJ131: 0 | AK131: 2016-04-20 | AL131: G02-FR-4000002 | AM131: R&D CONTROL | AN131: 1 | AO131: COIN | AP131: 0 | AQ131: 2100 | AR131: 1 | AS131: D | AT131: M | AU131: 1 | AV131: 0 | AW131: 0 | AX131: 0 | AY131: 0 | AZ131: 4 | BA131: 0500 | BB131: 10 | BC131: 0 | BF131: GR/IR Other Materials | BG131: Elément d'OTP | BH131: OTP | BI131: S | BJ131: 219000991 | BL131: RMWE | BT131: 2103 | BU131: UO | BV131: 1 | BW131: 0 | BX131: 0 | BY131: 2100 | BZ131: 2016 | CA131: R | CB131: 2016 | CC131: 0 | CD131: 0 | CE131: EUR | CJ131: 1 | CK131: 14 | CN131: 8300042040000 | CO131: 14:43:24 | CP131: 2016-04-20 | CQ131: 4 | CS131: 6160 | CT131: 4 | CU131: 6160 | CV131: 6160 | CW131: 6160 | CX131: 0 | CY131: PRF-20120 | CZ131: 06.00 Engineering | DA131: 128
A132: 2016 | B132: 5 | C132: G02-FR-4000002-CCO-06000 | D132: Oil Components | E132: G02-FR-4000002-CCO-06000 | F132: 320 | G132: EUR | H132: 1 | I132: 320 | J132: EUR | K132: 0 | M132: 4101125091 | N132: Prestation mécanique | O132: 10659323 | P132: GRAPHIMECA | R132: bordereau de livraison n°7405 04052016 | S132: 210818811 | T132: 2016-05-09 | V132: ESHENRY | W132: WE | X132: Oil Components | Y132: 613700000 | Z132: Subcont.Eng.TP | AA132: Subcontracted Engineering TP | AD132: 0 | AE132: 2016-05-09 | AF132: GR/IR Other Material | AG132: 2016-05-09 | AH132: 5003103212 | AI132: MKPF | AJ132: 0 | AK132: 2016-05-09 | AL132: G02-FR-4000002 | AM132: R&D CONTROL | AN132: 1 | AO132: COIN | AP132: 0 | AQ132: 2100 | AR132: 1 | AS132: D | AT132: M | AU132: 1 | AV132: 0 | AW132: 0 | AX132: 0 | AY132: 0 | AZ132: 5 | BA132: 0500 | BB132: 10 | BC132: 0 | BF132: GR/IR Other Materials | BG132: Elément d'OTP | BH132: OTP | BI132: S | BJ132: 219000991 | BL132: RMWE | BT132: 2103 | BU132: UO | BV132: 1 | BW132: 0 | BX132: 0 | BY132: 2100 | BZ132: 2016 | CA132: R | CB132: 2016 | CC132: 0 | CD132: 0 | CE132: EUR | CJ132: 1 | CK132: 14 | CN132: 8316379210000 | CO132: 12:32:01 | CP132: 2016-05-09 | CQ132: 5 | CS132: 320 | CT132: 4 | CU132: 320 | CV132: 320 | CW132: 320 | CX132: 0 | CY132: PRF-20120 | CZ132: 06.00 Engineering | DA132: 128
A133: 2016 | B133: 3 | C133: G02-FR-4000002-CCO-06000 | D133: Oil Components | E133: G02-FR-4000002-CCO-06000 | F133: 5880 | G133: EUR | H133: 1 | I133: 5880 | J133: EUR | K133: 0 | M133: 4101091731 | N133: Support en tests oleo-hydrauliques | O133: 10019975 | P133: ALTRAN TECHNOLOGIES | R133: PRESTA FEVRIER 2016 | S133: 210436018 | T133: 2016-03-04 | V133: ESHENRY | W133: WE | X133: Oil Components | Y133: 626200000 | Z133: Formation | AA133: Formation | AD133: 0 | AE133: 2016-03-04 | AF133: GR/IR Other Material | AG133: 2016-03-04 | AH133: 5002989759 | AI133: MKPF | AJ133: 0 | AK133: 2016-03-04 | AL133: G02-FR-4000002 | AM133: R&D CONTROL | AN133: 1 | AO133: COIN | AP133: 0 | AQ133: 2100 | AR133: 1 | AS133: D | AT133: M | AU133: 1 | AV133: 0 | AW133: 0 | AX133: 0 | AY133: 0 | AZ133: 3 | BA133: 0500 | BB133: 10 | BC133: 0 | BF133: GR/IR Other Materials | BG133: Elément d'OTP | BH133: OTP | BI133: S | BJ133: 219000991 | BL133: RMWE | BT133: 2103 | BU133: UO | BV133: 1 | BW133: 0 | BX133: 0 | BY133: 2100 | BZ133: 2016 | CA133: R | CB133: 2016 | CC133: 0 | CD133: 0 | CE133: EUR | CJ133: 1 | CK133: 14 | CN133: 8259377600000 | CO133: 12:09:20 | CP133: 2016-03-04 | CQ133: 3 | CS133: 5880 | CT133: 4 | CU133: 5880 | CV133: 5880 | CW133: 5880 | CX133: 0 | CY133: PRF-20150 | CZ133: 09.00 Total site costs | DA133: 329
A134: 2016 | B134: 4 | C134: G02-FR-4000002-CCO-06000 | D134: Oil Components | E134: G02-FR-4000002-CCO-06000 | F134: 1800 | G134: EUR | H134: 1 | I134: 1800 | J134: EUR | K134: 0 | M134: 4101113638 | N134: modif Couvercles GPV Taille 35/50/80 | O134: 10660197 | P134: Fonderie Bot | R134: facture 16FB273 du 26022016 | S134: 210718951 | T134: 2016-04-21 | V134: ESHENRY | W134: WE | X134: Oil Components | Y134: 626200000 | Z134: Formation | AA134: Formation | AD134: 0 | AE134: 2016-04-21 | AF134: GR/IR Other Material | AG134: 2016-04-21 | AH134: 5003076303 | AI134: MKPF | AJ134: 0 | AK134: 2016-04-21 | AL134: G02-FR-4000002 | AM134: R&D CONTROL | AN134: 1 | AO134: COIN | AP134: 0 | AQ134: 2100 | AR134: 1 | AS134: D | AT134: M | AU134: 1 | AV134: 0 | AW134: 0 | AX134: 0 | AY134: 0 | AZ134: 4 | BA134: 0500 | BB134: 10 | BC134: 0 | BF134: GR/IR Other Materials | BG134: Elément d'OTP | BH134: OTP | BI134: S | BJ134: 219000991 | BL134: RMWE | BT134: 2103 | BU134: UO | BV134: 1 | BW134: 0 | BX134: 0 | BY134: 2100 | BZ134: 2016 | CA134: R | CB134: 2016 | CC134: 0 | CD134: 0 | CE134: EUR | CJ134: 1 | CK134: 14 | CN134: 8300982030000 | CO134: 16:50:03 | CP134: 2016-04-21 | CQ134: 4 | CS134: 1800 | CT134: 4 | CU134: 1800 | CV134: 1800 | CW134: 1800 | CX134: 0 | CY134: PRF-20150 | CZ134: 09.00 Total site costs | DA134: 329
A135: 2016 | B135: 5 | C135: G02-FR-4000002-CCO-06000 | D135: Oil Components | E135: G02-FR-4000002-CCO-06000 | F135: 195 | G135: EUR | H135: 1 | I135: 195 | J135: EUR | K135: 0 | M135: 4101113852 | N135: Commande ouverte matériel IEHP | O135: 10659365 | P135: IEHP | R135: BON DE LIVRAISON 2152 12/02/2016 | S135: 210748725 | T135: 2016-04-26 | V135: ESHENRY | W135: WE | X135: Oil Components | Y135: 626200000 | Z135: Formation | AA135: Formation | AD135: 0 | AE135: 2016-04-26 | AF135: GR/IR Other Material | AG135: 2016-05-02 | AH135: 5003083187 | AI135: MKPF | AJ135: 0 | AK135: 2016-05-02 | AL135: G02-FR-4000002 | AM135: R&D CONTROL | AN135: 1 | AO135: COIN | AP135: 0 | AQ135: 2100 | AR135: 1 | AS135: D | AT135: M | AU135: 1 | AV135: 0 | AW135: 0 | AX135: 0 | AY135: 0 | AZ135: 5 | BA135: 0500 | BB135: 10 | BC135: 0 | BF135: GR/IR Other Materials | BG135: Elément d'OTP | BH135: OTP | BI135: S | BJ135: 219000991 | BL135: RMWE | BT135: 2103 | BU135: UO | BV135: 1 | BW135: 0 | BX135: 0 | BY135: 2100 | BZ135: 2016 | CA135: R | CB135: 2016 | CC135: 0 | CD135: 0 | CE135: EUR | CJ135: 1 | CK135: 14 | CN135: 8305234860000 | CO135: 14:58:06 | CP135: 2016-04-26 | CQ135: 5 | CS135: 195 | CT135: 4 | CU135: 195 | CV135: 195 | CW135: 195 | CX135: 0 | CY135: PRF-20150 | CZ135: 09.00 Total site costs | DA135: 329
A136: 2016 | B136: 5 | C136: G02-FR-4000002-CCO-06000 | D136: Oil Components | E136: G02-FR-4000002-CCO-06000 | F136: 932.92 | G136: EUR | H136: 1 | I136: 932.92 | J136: EUR | K136: 0 | M136: 4101113852 | N136: Commande ouverte matériel IEHP | O136: 10659365 | P136: IEHP | R136: BON DE LIVRAISON 2273 25/03/2016 | S136: 210748733 | T136: 2016-04-26 | V136: ESHENRY | W136: WE | X136: Oil Components | Y136: 626200000 | Z136: Formation | AA136: Formation | AD136: 0 | AE136: 2016-04-26 | AF136: GR/IR Other Material | AG136: 2016-05-02 | AH136: 5003083191 | AI136: MKPF | AJ136: 0 | AK136: 2016-05-02 | AL136: G02-FR-4000002 | AM136: R&D CONTROL | AN136: 1 | AO136: COIN | AP136: 0 | AQ136: 2100 | AR136: 1 | AS136: D | AT136: M | AU136: 1 | AV136: 0 | AW136: 0 | AX136: 0 | AY136: 0 | AZ136: 5 | BA136: 0500 | BB136: 10 | BC136: 0 | BF136: GR/IR Other Materials | BG136: Elément d'OTP | BH136: OTP | BI136: S | BJ136: 219000991 | BL136: RMWE | BT136: 2103 | BU136: UO | BV136: 1 | BW136: 0 | BX136: 0 | BY136: 2100 | BZ136: 2016 | CA136: R | CB136: 2016 | CC136: 0 | CD136: 0 | CE136: EUR | CJ136: 1 | CK136: 14 | CN136: 8305236980000 | CO136: 15:01:38 | CP136: 2016-04-26 | CQ136: 5 | CS136: 932.92 | CT136: 4 | CU136: 932.92 | CV136: 932.92 | CW136: 932.92 | CX136: 0 | CY136: PRF-20150 | CZ136: 09.00 Total site costs | DA136: 329
A137: 2016 | B137: 5 | C137: G02-FR-4000002-CCO-06000 | D137: Oil Components | E137: G02-FR-4000002-CCO-06000 | F137: 217.5 | G137: EUR | H137: 1 | I137: 217.5 | J137: EUR | K137: 0 | M137: 4101113852 | N137: Commande ouverte matériel IEHP | O137: 10659365 | P137: IEHP | R137: BON DE LIVRAISON 2297 04/04/2016 | S137: 210748729 | T137: 2016-04-26 | V137: ESHENRY | W137: WE | X137: Oil Components | Y137: 626200000 | Z137: Formation | AA137: Formation | AD137: 0 | AE137: 2016-04-26 | AF137: GR/IR Other Material | AG137: 2016-05-02 | AH137: 5003083189 | AI137: MKPF | AJ137: 0 | AK137: 2016-05-02 | AL137: G02-FR-4000002 | AM137: R&D CONTROL | AN137: 1 | AO137: COIN | AP137: 0 | AQ137: 2100 | AR137: 1 | AS137: D | AT137: M | AU137: 1 | AV137: 0 | AW137: 0 | AX137: 0 | AY137: 0 | AZ137: 5 | BA137: 0500 | BB137: 10 | BC137: 0 | BF137: GR/IR Other Materials | BG137: Elément d'OTP | BH137: OTP | BI137: S | BJ137: 219000991 | BL137: RMWE | BT137: 2103 | BU137: UO | BV137: 1 | BW137: 0 | BX137: 0 | BY137: 2100 | BZ137: 2016 | CA137: R | CB137: 2016 | CC137: 0 | CD137: 0 | CE137: EUR | CJ137: 1 | CK137: 14 | CN137: 8305235730000 | CO137: 14:59:34 | CP137: 2016-04-26 | CQ137: 5 | CS137: 217.5 | CT137: 4 | CU137: 217.5 | CV137: 217.5 | CW137: 217.5 | CX137: 0 | CY137: PRF-20150 | CZ137: 09.00 Total site costs | DA137: 329
A138: 2016 | B138: 5 | C138: G02-FR-4000002-CCO-06000 | D138: Oil Components | E138: G02-FR-4000002-CCO-06000 | F138: 402.8 | G138: EUR | H138: 1 | I138: 402.8 | J138: EUR | K138: 0 | M138: 4101113852 | N138: Commande ouverte matériel IEHP | O138: 10659365 | P138: IEHP | R138: BON DE LIVRAISON 2305 06/04/2016 | S138: 210748736 | T138: 2016-04-26 | V138: ESHENRY | W138: WE | X138: Oil Components | Y138: 626200000 | Z138: Formation | AA138: Formation | AD138: 0 | AE138: 2016-04-26 | AF138: GR/IR Other Material | AG138: 2016-05-02 | AH138: 5003083204 | AI138: MKPF | AJ138: 0 | AK138: 2016-05-02 | AL138: G02-FR-4000002 | AM138: R&D CONTROL | AN138: 1 | AO138: COIN | AP138: 0 | AQ138: 2100 | AR138: 1 | AS138: D | AT138: M | AU138: 1 | AV138: 0 | AW138: 0 | AX138: 0 | AY138: 0 | AZ138: 5 | BA138: 0500 | BB138: 10 | BC138: 0 | BF138: GR/IR Other Materials | BG138: Elément d'OTP | BH138: OTP | BI138: S | BJ138: 219000991 | BL138: RMWE | BT138: 2103 | BU138: UO | BV138: 1 | BW138: 0 | BX138: 0 | BY138: 2100 | BZ138: 2016 | CA138: R | CB138: 2016 | CC138: 0 | CD138: 0 | CE138: EUR | CJ138: 1 | CK138: 14 | CN138: 8305238530000 | CO138: 15:04:13 | CP138: 2016-04-26 | CQ138: 5 | CS138: 402.8 | CT138: 4 | CU138: 402.8 | CV138: 402.8 | CW138: 402.8 | CX138: 0 | CY138: PRF-20150 | CZ138: 09.00 Total site costs | DA138: 329
A139: 2016 | B139: 5 | C139: G02-FR-4000002-CCO-06000 | D139: Oil Components | E139: G02-FR-4000002-CCO-06000 | F139: 340 | G139: EUR | H139: 1 | I139: 340 | J139: EUR | K139: 0 | M139: 4101125091 | N139: Prestation mécanique | O139: 10659323 | P139: GRAPHIMECA | R139: bordereau de livraison n°77383 25042016 | S139: 210734245 | T139: 2016-04-25 | V139: ESHENRY | W139: WE | X139: Oil Components | Y139: 626200000 | Z139: Formation | AA139: Formation | AD139: 0 | AE139: 2016-04-25 | AF139: GR/IR Other Material | AG139: 2016-05-02 | AH139: 5003080113 | AI139: MKPF | AJ139: 0 | AK139: 2016-05-02 | AL139: G02-FR-4000002 | AM139: R&D CONTROL | AN139: 1 | AO139: COIN | AP139: 0 | AQ139: 2100 | AR139: 1 | AS139: D | AT139: M | AU139: 1 | AV139: 0 | AW139: 0 | AX139: 0 | AY139: 0 | AZ139: 5 | BA139: 0500 | BB139: 10 | BC139: 0 | BF139: GR/IR Other Materials | BG139: Elément d'OTP | BH139: OTP | BI139: S | BJ139: 219000991 | BL139: RMWE | BT139: 2103 | BU139: UO | BV139: 1 | BW139: 0 | BX139: 0 | BY139: 2100 | BZ139: 2016 | CA139: R | CB139: 2016 | CC139: 0 | CD139: 0 | CE139: EUR | CJ139: 1 | CK139: 14 | CN139: 8304287700000 | CO139: 12:39:30 | CP139: 2016-04-25 | CQ139: 5 | CS139: 340 | CT139: 4 | CU139: 340 | CV139: 340 | CW139: 340 | CX139: 0 | CY139: PRF-20150 | CZ139: 09.00 Total site costs | DA139: 329
A140: 2016 | B140: 1 | C140: G02-FR-4000002-CCO-06000 | D140: Oil Components | E140: G02-FR-4000002-CCO-06000 | F140: 90.44 | G140: EUR | H140: 1 | I140: 90.44 | J140: EUR | K140: 0 | M140: 4101055099 | N140: Frais d'expédition | O140: 10034018 | P140: PARKER HANNIFIN France SAS | R140: Reception frais de port dde O. Fedeli | S140: 210121366 | T140: 2016-01-12 | V140: ESHENRY | W140: WE | X140: Oil Components | Y140: 640300003 | Z140: Land Freight | AA140: Land Freight | AD140: 0 | AE140: 2016-01-12 | AF140: GR/IR Other Material | AG140: 2016-01-12 | AH140: 5002893741 | AI140: MKPF | AJ140: 0 | AK140: 2016-01-12 | AL140: G02-FR-4000002 | AM140: R&D CONTROL | AN140: 1 | AO140: COIN | AP140: 0 | AQ140: 2100 | AR140: 1 | AS140: D | AT140: M | AU140: 1 | AV140: 0 | AW140: 0 | AX140: 0 | AY140: 0 | AZ140: 1 | BA140: 0500 | BB140: 40 | BC140: 0 | BF140: GR/IR Other Materials | BG140: Elément d'OTP | BH140: OTP | BI140: S | BJ140: 219000991 | BL140: RMWE | BT140: 2103 | BU140: UO | BV140: 1 | BW140: 0 | BX140: 0 | BY140: 2100 | BZ140: 2016 | CA140: R | CB140: 2016 | CC140: 0 | CD140: 0 | CE140: EUR | CJ140: 1 | CK140: 14 | CN140: 8214619240000 | CO140: 16:52:04 | CP140: 2016-01-12 | CQ140: 1 | CS140: 90.44 | CT140: 4 | CU140: 90.44 | CV140: 90.44 | CW140: 90.44 | CX140: 0 | CY140: PRF-20140 | CZ140: 08.00 Transportation | DA140: 298
A141: 2016 | B141: 1 | C141: G02-FR-4000002-CCO-06000 | D141: Oil Components | E141: G02-FR-4000002-CCO-06000 | F141: 450 | G141: EUR | H141: 1 | I141: 450 | J141: EUR | K141: 0 | M141: 4101054633 | N141: frais de port express | O141: 10731695 | P141: GUICHARD RODAGE ET POLISSAGE | R141: Réception frais de port - dde d'O.Fedeli | S141: 210099517 | T141: 2016-01-07 | V141: ESHENRY | W141: WE | X141: Oil Components | Y141: 640300003 | Z141: Land Freight | AA141: Land Freight | AD141: 0 | AE141: 2016-01-07 | AF141: GR/IR Other Material | AG141: 2016-01-07 | AH141: 5002885597 | AI141: MKPF | AJ141: 0 | AK141: 2016-01-07 | AL141: G02-FR-4000002 | AM141: R&D CONTROL | AN141: 1 | AO141: COIN | AP141: 0 | AQ141: 2100 | AR141: 1 | AS141: D | AT141: M | AU141: 1 | AV141: 0 | AW141: 0 | AX141: 0 | AY141: 0 | AZ141: 1 | BA141: 0500 | BB141: 100 | BC141: 0 | BF141: GR/IR Other Materials | BG141: Elément d'OTP | BH141: OTP | BI141: S | BJ141: 219000991 | BL141: RMWE | BT141: 2103 | BU141: UO | BV141: 1 | BW141: 0 | BX141: 0 | BY141: 2100 | BZ141: 2016 | CA141: R | CB141: 2016 | CC141: 0 | CD141: 0 | CE141: EUR | CJ141: 1 | CK141: 14 | CN141: 8210250790000 | CO141: 15:31:20 | CP141: 2016-01-07 | CQ141: 1 | CS141: 450 | CT141: 4 | CU141: 450 | CV141: 450 | CW141: 450 | CX141: 0 | CY141: PRF-20140 | CZ141: 08.00 Transportation | DA141: 298
A142: 2016 | B142: 1 | C142: G02-FR-4000002-CCO-06000 | D142: Oil Components | E142: G02-FR-4000002-CCO-06000 | F142: 18.9 | G142: EUR | H142: 1 | I142: 18.9 | J142: EUR | K142: 0 | M142: 4101076968 | N142: Frais d'expédition | O142: 10664507 | P142: NATIONAL INSTRUMENT FRANCE | R142: Réception frais d'expé - dde d'O.Fedeli | S142: 210088011 | T142: 2016-01-05 | V142: ESHENRY | W142: WE | X142: Oil Components | Y142: 640300003 | Z142: Land Freight | AA142: Land Freight | AD142: 0 | AE142: 2016-01-05 | AF142: GR/IR Other Material | AG142: 2016-01-05 | AH142: 5002881530 | AI142: MKPF | AJ142: 0 | AK142: 2016-01-05 | AL142: G02-FR-4000002 | AM142: R&D CONTROL | AN142: 1 | AO142: COIN | AP142: 0 | AQ142: 2100 | AR142: 1 | AS142: D | AT142: M | AU142: 1 | AV142: 0 | AW142: 0 | AX142: 0 | AY142: 0 | AZ142: 1 | BA142: 0500 | BB142: 30 | BC142: 0 | BF142: GR/IR Other Materials | BG142: Elément d'OTP | BH142: OTP | BI142: S | BJ142: 219000991 | BL142: RMWE | BT142: 2103 | BU142: UO | BV142: 1 | BW142: 0 | BX142: 0 | BY142: 2100 | BZ142: 2016 | CA142: R | CB142: 2016 | CC142: 0 | CD142: 0 | CE142: EUR | CJ142: 1 | CK142: 14 | CN142: 8208481550000 | CO142: 14:22:36 | CP142: 2016-01-05 | CQ142: 1 | CS142: 18.9 | CT142: 4 | CU142: 18.9 | CV142: 18.9 | CW142: 18.9 | CX142: 0 | CY142: PRF-20140 | CZ142: 08.00 Transportation | DA142: 298
A143: 2016 | B143: 1 | C143: G02-FR-4000002-CCO-06000 | D143: Oil Components | E143: G02-FR-4000002-CCO-06000 | F143: 195 | G143: EUR | H143: 1 | I143: 195 | J143: EUR | K143: 0 | M143: 4100982695 | N143: Frais d'expédition | O143: 10660197 | P143: Fonderie Bot | R143: Réception frais d'expé - dde d'O.Fedeli | S143: 210088039 | T143: 2016-01-05 | V143: ESHENRY | W143: WE | X143: Oil Components | Y143: 640300003 | Z143: Land Freight | AA143: Land Freight | AD143: 0 | AE143: 2016-01-05 | AF143: GR/IR Other Material | AG143: 2016-01-05 | AH143: 5002881581 | AI143: MKPF | AJ143: 0 | AK143: 2016-01-05 | AL143: G02-FR-4000002 | AM143: R&D CONTROL | AN143: 1 | AO143: COIN | AP143: 0 | AQ143: 2100 | AR143: 1 | AS143: D | AT143: M | AU143: 1 | AV143: 0 | AW143: 0 | AX143: 0 | AY143: 0 | AZ143: 1 | BA143: 0500 | BB143: 90 | BC143: 0 | BF143: GR/IR Other Materials | BG143: Elément d'OTP | BH143: OTP | BI143: S | BJ143: 219000991 | BL143: RMWE | BT143: 2103 | BU143: UO | BV143: 1 | BW143: 0 | BX143: 0 | BY143: 2100 | BZ143: 2016 | CA143: R | CB143: 2016 | CC143: 0 | CD143: 0 | CE143: EUR | CJ143: 1 | CK143: 14 | CN143: 8208495180000 | CO143: 14:45:18 | CP143: 2016-01-05 | CQ143: 1 | CS143: 195 | CT143: 4 | CU143: 195 | CV143: 195 | CW143: 195 | CX143: 0 | CY143: PRF-20140 | CZ143: 08.00 Transportation | DA143: 298
A144: 2016 | B144: 1 | C144: G02-FR-4000002-CCO-06000 | D144: Oil Components | E144: G02-FR-4000002-CCO-06000 | F144: 82.12 | G144: EUR | H144: 1 | I144: 82.12 | J144: EUR | K144: 0 | M144: 4101027329 | N144: Frais d'expédition | O144: 10659035 | P144: Rbdh Hydraulics | R144: Réception frais de port - dde d'O.Fedeli | S144: 210086213 | T144: 2016-01-05 | V144: ESHENRY | W144: WE | X144: Oil Components | Y144: 640300003 | Z144: Land Freight | AA144: Land Freight | AD144: 0 | AE144: 2016-01-05 | AF144: GR/IR Other Material | AG144: 2016-01-05 | AH144: 5002880894 | AI144: MKPF | AJ144: 0 | AK144: 2016-01-05 | AL144: G02-FR-4000002 | AM144: R&D CONTROL | AN144: 1 | AO144: COIN | AP144: 0 | AQ144: 2100 | AR144: 1 | AS144: D | AT144: M | AU144: 1 | AV144: 0 | AW144: 0 | AX144: 0 | AY144: 0 | AZ144: 1 | BA144: 0500 | BB144: 150 | BC144: 0 | BF144: GR/IR Other Materials | BG144: Elément d'OTP | BH144: OTP | BI144: S | BJ144: 219000991 | BL144: RMWE | BT144: 2103 | BU144: UO | BV144: 1 | BW144: 0 | BX144: 0 | BY144: 2100 | BZ144: 2016 | CA144: R | CB144: 2016 | CC144: 0 | CD144: 0 | CE144: EUR | CJ144: 1 | CK144: 14 | CN144: 8208328510000 | CO144: 10:07:31 | CP144: 2016-01-05 | CQ144: 1 | CS144: 82.12 | CT144: 4 | CU144: 82.12 | CV144: 82.12 | CW144: 82.12 | CX144: 0 | CY144: PRF-20140 | CZ144: 08.00 Transportation | DA144: 298
A145: 2016 | B145: 5 | C145: G02-FR-4000002-CCO-06000 | D145: Oil Components | E145: G02-FR-4000002-CCO-06000 | F145: 35.74 | G145: EUR | H145: 1 | I145: 35.74 | J145: EUR | K145: 0 | M145: 4101150972 | N145: Transport + emballage | O145: 10659960 | P145: MTS Sensor Technologie GmbH & Co. | R145: dde réception Olivier Fédéli 09052016 | S145: 210818796 | T145: 2016-05-09 | V145: ESHENRY | W145: WE | X145: Oil Components | Y145: 640300003 | Z145: Land Freight | AA145: Land Freight | AD145: 0 | AE145: 2016-05-09 | AF145: GR/IR Other Material | AG145: 2016-05-09 | AH145: 5003103161 | AI145: MKPF | AJ145: 0 | AK145: 2016-05-09 | AL145: G02-FR-4000002 | AM145: R&D CONTROL | AN145: 1 | AO145: COIN | AP145: 0 | AQ145: 2100 | AR145: 1 | AS145: D | AT145: M | AU145: 1 | AV145: 0 | AW145: 0 | AX145: 0 | AY145: 0 | AZ145: 5 | BA145: 0500 | BB145: 20 | BC145: 0 | BF145: GR/IR Other Materials | BG145: Elément d'OTP | BH145: OTP | BI145: S | BJ145: 219000991 | BL145: RMWE | BT145: 2103 | BU145: UO | BV145: 1 | BW145: 0 | BX145: 0 | BY145: 2100 | BZ145: 2016 | CA145: R | CB145: 2016 | CC145: 0 | CD145: 0 | CE145: EUR | CJ145: 1 | CK145: 14 | CN145: 8316373800000 | CO145: 12:23:00 | CP145: 2016-05-09 | CQ145: 5 | CS145: 35.74 | CT145: 4 | CU145: 35.74 | CV145: 35.74 | CW145: 35.74 | CX145: 0 | CY145: PRF-20140 | CZ145: 08.00 Transportation | DA145: 298
A146: 2016 | B146: 5 | C146: G02-FR-4000002-CCO-06000 | D146: Oil Components | E146: G02-FR-4000002-CCO-06000 | F146: 110 | G146: EUR | H146: 1 | I146: 110 | J146: EUR | K146: 0 | M146: 4101126848 | N146: Frais de port | O146: 10660197 | P146: Fonderie Bot | R146: dde réception Olivier Fédéli 09052016 | S146: 210818793 | T146: 2016-05-09 | V146: ESHENRY | W146: WE | X146: Oil Components | Y146: 640300003 | Z146: Land Freight | AA146: Land Freight | AD146: 0 | AE146: 2016-05-09 | AF146: GR/IR Other Material | AG146: 2016-05-09 | AH146: 5003103159 | AI146: MKPF | AJ146: 0 | AK146: 2016-05-09 | AL146: G02-FR-4000002 | AM146: R&D CONTROL | AN146: 1 | AO146: COIN | AP146: 0 | AQ146: 2100 | AR146: 1 | AS146: D | AT146: M | AU146: 1 | AV146: 0 | AW146: 0 | AX146: 0 | AY146: 0 | AZ146: 5 | BA146: 0500 | BB146: 40 | BC146: 0 | BF146: GR/IR Other Materials | BG146: Elément d'OTP | BH146: OTP | BI146: S | BJ146: 219000991 | BL146: RMWE | BT146: 2103 | BU146: UO | BV146: 1 | BW146: 0 | BX146: 0 | BY146: 2100 | BZ146: 2016 | CA146: R | CB146: 2016 | CC146: 0 | CD146: 0 | CE146: EUR | CJ146: 1 | CK146: 14 | CN146: 8316372820000 | CO146: 12:21:22 | CP146: 2016-05-09 | CQ146: 5 | CS146: 110 | CT146: 4 | CU146: 110 | CV146: 110 | CW146: 110 | CX146: 0 | CY146: PRF-20140 | CZ146: 08.00 Transportation | DA146: 298
A147: 2016 | B147: 5 | C147: G02-FR-4000002-CCO-06000 | D147: Oil Components | E147: G02-FR-4000002-CCO-06000 | F147: 64.32 | G147: EUR | H147: 1 | I147: 64.32 | J147: EUR | K147: 0 | M147: 4101125796 | N147: Emballage + transport | O147: 10659035 | P147: Rbdh Hydraulics | R147: dde réception Olivier Fédéli 09052016 | S147: 210818802 | T147: 2016-05-09 | V147: ESHENRY | W147: WE | X147: Oil Components | Y147: 640300003 | Z147: Land Freight | AA147: Land Freight | AD147: 0 | AE147: 2016-05-09 | AF147: GR/IR Other Material | AG147: 2016-05-09 | AH147: 5003103187 | AI147: MKPF | AJ147: 0 | AK147: 2016-05-09 | AL147: G02-FR-4000002 | AM147: R&D CONTROL | AN147: 1 | AO147: COIN | AP147: 0 | AQ147: 2100 | AR147: 1 | AS147: D | AT147: M | AU147: 1 | AV147: 0 | AW147: 0 | AX147: 0 | AY147: 0 | AZ147: 5 | BA147: 0500 | BB147: 60 | BC147: 0 | BF147: GR/IR Other Materials | BG147: Elément d'OTP | BH147: OTP | BI147: S | BJ147: 219000991 | BL147: RMWE | BT147: 2103 | BU147: UO | BV147: 1 | BW147: 0 | BX147: 0 | BY147: 2100 | BZ147: 2016 | CA147: R | CB147: 2016 | CC147: 0 | CD147: 0 | CE147: EUR | CJ147: 1 | CK147: 14 | CN147: 8316375760000 | CO147: 12:26:16 | CP147: 2016-05-09 | CQ147: 5 | CS147: 64.32 | CT147: 4 | CU147: 64.32 | CV147: 64.32 | CW147: 64.32 | CX147: 0 | CY147: PRF-20140 | CZ147: 08.00 Transportation | DA147: 298
A148: 2016 | B148: 5 | C148: G02-FR-4000002-CCO-06000 | D148: Oil Components | E148: G02-FR-4000002-CCO-06000 | F148: 178.31 | G148: EUR | H148: 1 | I148: 178.31 | J148: EUR | K148: 0 | M148: 4101153969 | N148: Pièces supplémentaires | O148: 10705714 | P148: LOGITRADE SAS | R148: dde réception Olivier Fédéli 12052016 | S148: 210840152 | T148: 2016-05-12 | V148: ESHENRY | W148: WE | X148: Oil Components | Y148: 640300003 | Z148: Land Freight | AA148: Land Freight | AD148: 0 | AE148: 2016-05-12 | AF148: GR/IR Other Material | AG148: 2016-05-12 | AH148: 5003110275 | AI148: MKPF | AJ148: 0 | AK148: 2016-05-12 | AL148: G02-FR-4000002 | AM148: R&D CONTROL | AN148: 1 | AO148: COIN | AP148: 0 | AQ148: 2100 | AR148: 1 | AS148: D | AT148: M | AU148: 1 | AV148: 0 | AW148: 0 | AX148: 0 | AY148: 0 | AZ148: 5 | BA148: 0500 | BB148: 40 | BC148: 0 | BF148: GR/IR Other Materials | BG148: Elément d'OTP | BH148: OTP | BI148: S | BJ148: 219000991 | BL148: RMWE | BT148: 2103 | BU148: UO | BV148: 1 | BW148: 0 | BX148: 0 | BY148: 2100 | BZ148: 2016 | CA148: R | CB148: 2016 | CC148: 0 | CD148: 0 | CE148: EUR | CJ148: 1 | CK148: 14 | CN148: 8318859150000 | CO148: 09:25:15 | CP148: 2016-05-12 | CQ148: 5 | CS148: 178.31 | CT148: 4 | CU148: 178.31 | CV148: 178.31 | CW148: 178.31 | CX148: 0 | CY148: PRF-20140 | CZ148: 08.00 Transportation | DA148: 298
A149: 2016 | B149: 5 | C149: G02-FR-4000002-CCO-06000 | D149: Oil Components | E149: G02-FR-4000002-CCO-06000 | F149: 603.47 | G149: EUR | H149: 1 | I149: 603.47 | J149: EUR | K149: 0 | M149: 4100982695 | N149: Grossissement mécanique + frais de port | O149: 10660197 | P149: Fonderie Bot | R149: dde réception Olivier Fédéli 11052016 | S149: 210832486 | T149: 2016-05-11 | V149: ESHENRY | W149: WE | X149: Oil Components | Y149: 640300003 | Z149: Land Freight | AA149: Land Freight | AD149: 0 | AE149: 2016-05-11 | AF149: GR/IR Other Material | AG149: 2016-05-11 | AH149: 5003107784 | AI149: MKPF | AJ149: 0 | AK149: 2016-05-11 | AL149: G02-FR-4000002 | AM149: R&D CONTROL | AN149: 1 | AO149: COIN | AP149: 0 | AQ149: 2100 | AR149: 1 | AS149: D | AT149: M | AU149: 1 | AV149: 0 | AW149: 0 | AX149: 0 | AY149: 0 | AZ149: 5 | BA149: 0500 | BB149: 110 | BC149: 0 | BF149: GR/IR Other Materials | BG149: Elément d'OTP | BH149: OTP | BI149: S | BJ149: 219000991 | BL149: RMWE | BT149: 2103 | BU149: UO | BV149: 1 | BW149: 0 | BX149: 0 | BY149: 2100 | BZ149: 2016 | CA149: R | CB149: 2016 | CC149: 0 | CD149: 0 | CE149: EUR | CJ149: 1 | CK149: 14 | CN149: 8317990640000 | CO149: 09:17:44 | CP149: 2016-05-11 | CQ149: 5 | CS149: 603.47 | CT149: 4 | CU149: 603.47 | CV149: 603.47 | CW149: 603.47 | CX149: 0 | CY149: PRF-20140 | CZ149: 08.00 Transportation | DA149: 298
A150: 2016 | B150: 3 | C150: G02-FR-4000002-CCO-06000 | D150: Oil Components | E150: G02-FR-4000002-CCO-06000 | F150: 278.28 | G150: EUR | H150: 1 | I150: 278.28 | J150: EUR | K150: 0 | M150: 4101027329 | N150: frais transport, emballage | O150: 10659035 | P150: Rbdh Hydraulics | R150: reception dde Olivier Fedeli le 15032016 | S150: 210485540 | T150: 2016-03-15 | V150: ESHENRY | W150: WE | X150: Oil Components | Y150: 640300003 | Z150: Land Freight | AA150: Land Freight | AD150: 0 | AE150: 2016-03-15 | AF150: GR/IR Other Material | AG150: 2016-03-15 | AH150: 5003007325 | AI150: MKPF | AJ150: 0 | AK150: 2016-03-15 | AL150: G02-FR-4000002 | AM150: R&D CONTROL | AN150: 1 | AO150: COIN | AP150: 0 | AQ150: 2100 | AR150: 1 | AS150: D | AT150: M | AU150: 1 | AV150: 0 | AW150: 0 | AX150: 0 | AY150: 0 | AZ150: 3 | BA150: 0500 | BB150: 190 | BC150: 0 | BF150: GR/IR Other Materials | BG150: Elément d'OTP | BH150: OTP | BI150: S | BJ150: 219000991 | BL150: RMWE | BT150: 2103 | BU150: UO | BV150: 1 | BW150: 0 | BX150: 0 | BY150: 2100 | BZ150: 2016 | CA150: R | CB150: 2016 | CC150: 0 | CD150: 0 | CE150: EUR | CJ150: 1 | CK150: 14 | CN150: 8268788080000 | CO150: 09:33:28 | CP150: 2016-03-15 | CQ150: 3 | CS150: 278.28 | CT150: 4 | CU150: 278.28 | CV150: 278.28 | CW150: 278.28 | CX150: 0 | CY150: PRF-20140 | CZ150: 08.00 Transportation | DA150: 298
A151: 2016 | B151: 3 | C151: G02-FR-4000002-CCO-06000 | D151: Oil Components | E151: G02-FR-4000002-CCO-06000 | F151: 450 | G151: EUR | H151: 1 | I151: 450 | J151: EUR | K151: 0 | M151: 4101054633 | N151: livraisons 09.03 & 10.03 | O151: 10731695 | P151: GUICHARD RODAGE ET POLISSAGE | R151: reception dde Olivier Fedeli le 11032016 | S151: 210471539 | T151: 2016-03-11 | V151: ESHENRY | W151: WE | X151: Oil Components | Y151: 640300003 | Z151: Land Freight | AA151: Land Freight | AD151: 0 | AE151: 2016-03-11 | AF151: GR/IR Other Material | AG151: 2016-03-11 | AH151: 5003002316 | AI151: MKPF | AJ151: 0 | AK151: 2016-03-11 | AL151: G02-FR-4000002 | AM151: R&D CONTROL | AN151: 1 | AO151: COIN | AP151: 0 | AQ151: 2100 | AR151: 1 | AS151: D | AT151: M | AU151: 1 | AV151: 0 | AW151: 0 | AX151: 0 | AY151: 0 | AZ151: 3 | BA151: 0500 | BB151: 110 | BC151: 0 | BF151: GR/IR Other Materials | BG151: Elément d'OTP | BH151: OTP | BI151: S | BJ151: 219000991 | BL151: RMWE | BT151: 2103 | BU151: UO | BV151: 1 | BW151: 0 | BX151: 0 | BY151: 2100 | BZ151: 2016 | CA151: R | CB151: 2016 | CC151: 0 | CD151: 0 | CE151: EUR | CJ151: 1 | CK151: 14 | CN151: 8265416980000 | CO151: 11:54:58 | CP151: 2016-03-11 | CQ151: 3 | CS151: 450 | CT151: 4 | CU151: 450 | CV151: 450 | CW151: 450 | CX151: 0 | CY151: PRF-20140 | CZ151: 08.00 Transportation | DA151: 298
A152: 2016 | B152: 5 | C152: G02-FR-4000002-CCO-06000 | D152: Oil Components | E152: G02-FR-4000002-CCO-06000 | F152: 14.66 | G152: EUR | H152: 1 | I152: 14.66 | J152: EUR | K152: 0 | M152: 4101126840 | N152: ECOPARTICIPATION | O152: 10069211 | P152: HOFFMANN GROUP | R152: dde réception Olivier Fédéli 09052016 | S152: 210818530 | T152: 2016-05-09 | V152: ESHENRY | W152: WE | X152: Oil Components | Y152: 640300003 | Z152: Land Freight | AA152: Land Freight | AD152: 0 | AE152: 2016-05-09 | AF152: GR/IR Other Material | AG152: 2016-05-09 | AH152: 5003103099 | AI152: MKPF | AJ152: 0 | AK152: 2016-05-09 | AL152: G02-FR-4000002 | AM152: R&D CONTROL | AN152: 1 | AO152: COIN | AP152: 0 | AQ152: 2100 | AR152: 1 | AS152: D | AT152: M | AU152: 1 | AV152: 0 | AW152: 0 | AX152: 0 | AY152: 0 | AZ152: 5 | BA152: 0500 | BB152: 60 | BC152: 0 | BF152: GR/IR Other Materials | BG152: Elément d'OTP | BH152: OTP | BI152: S | BJ152: 219000991 | BL152: RMWE | BT152: 2103 | BU152: UO | BV152: 1 | BW152: 0 | BX152: 0 | BY152: 2100 | BZ152: 2016 | CA152: R | CB152: 2016 | CC152: 0 | CD152: 0 | CE152: EUR | CJ152: 1 | CK152: 14 | CN152: 8316360880000 | CO152: 12:01:28 | CP152: 2016-05-09 | CQ152: 5 | CS152: 14.66 | CT152: 4 | CU152: 14.66 | CV152: 14.66 | CW152: 14.66 | CX152: 0 | CY152: PRF-20140 | CZ152: 08.00 Transportation | DA152: 298
A153: 2016 | B153: 5 | C153: G02-FR-4000002-CCO-06000 | D153: Oil Components | E153: G02-FR-4000002-CCO-06000 | F153: 150 | G153: EUR | H153: 1 | I153: 150 | J153: EUR | K153: 0 | M153: 4101054633 | N153: Livraison 26/04/2016 | O153: 10731695 | P153: GUICHARD RODAGE ET POLISSAGE | R153: reception frais de port 26042016 | S153: 210746539 | T153: 2016-04-26 | V153: ESHENRY | W153: WE | X153: Oil Components | Y153: 640300003 | Z153: Land Freight | AA153: Land Freight | AD153: 0 | AE153: 2016-04-26 | AF153: GR/IR Other Material | AG153: 2016-05-02 | AH153: 5003082463 | AI153: MKPF | AJ153: 0 | AK153: 2016-05-02 | AL153: G02-FR-4000002 | AM153: R&D CONTROL | AN153: 1 | AO153: COIN | AP153: 0 | AQ153: 2100 | AR153: 1 | AS153: D | AT153: M | AU153: 1 | AV153: 0 | AW153: 0 | AX153: 0 | AY153: 0 | AZ153: 5 | BA153: 0500 | BB153: 120 | BC153: 0 | BF153: GR/IR Other Materials | BG153: Elément d'OTP | BH153: OTP | BI153: S | BJ153: 219000991 | BL153: RMWE | BT153: 2103 | BU153: UO | BV153: 1 | BW153: 0 | BX153: 0 | BY153: 2100 | BZ153: 2016 | CA153: R | CB153: 2016 | CC153: 0 | CD153: 0 | CE153: EUR | CJ153: 1 | CK153: 14 | CN153: 8305116570000 | CO153: 11:40:57 | CP153: 2016-04-26 | CQ153: 5 | CS153: 150 | CT153: 4 | CU153: 150 | CV153: 150 | CW153: 150 | CX153: 0 | CY153: PRF-20140 | CZ153: 08.00 Transportation | DA153: 298
A154: 2016 | B154: 1 | C154: G02-FR-4000002-CCO-06000 | D154: Oil Components | E154: G02-FR-4000002-CCO-06000 | F154: 202.5 | G154: EUR | H154: 3 | I154: 202.5 | J154: EUR | K154: 51046 | L154: Mr Christophe TARDOS | S154: 937496498 | T154: 2015-12-21 | U154: 2100103054/MACH30 | V154: 292677 | X154: Oil Components | Y154: 815001000 | Z154: Manuf.Machine | AA154: Manuf.Machine | AC154: MACH30 | AD154: 0 | AE154: 2016-01-18 | AG154: 2016-01-01 | AH154: 27786549 | AI154: CATS | AJ154: 3 | AK154: 2016-04-01 | AL154: G02-FR-4000002 | AM154: R&D CONTROL | AN154: 2 | AO154: RKL | AP154: 0 | AQ154: 2100 | AR154: 1 | AS154: D | AT154: P | AU154: 0 | AV154: 0 | AW154: 202.5 | AX154: 202.5 | AY154: 202.5 | AZ154: 1 | BA154: 0500 | BB154: 0 | BC154: 0 | BG154: Elément d'OTP | BH154: OTP | BK154: TYA | BM154: 2100 | BN154: 0100 | BO154: Frais généraux | BP154: TYA | BQ154: Type d'activité | BR154: 14 | BS154: 2100103054 | BT154: 2103 | BU154: H | BV154: 0 | BW154: 0 | BX154: 0 | CA154: R | CC154: 0 | CD154: 0 | CE154: EUR | CJ154: 2 | CK154: 14 | CL154: 2100103054/MACH30 | CM154: Type d'activité | CN154: 8219588120000 | CO154: 10:53:32 | CP154: 2015-12-21 | CQ154: 1 | CR154: HR | CS154: 202.5 | CT154: 4 | CU154: 0 | CV154: 0 | CW154: 0 | CX154: 0 | CY154: PRF-201002 | CZ154: Project Stock | DA154: 89
A155: 2016 | B155: 1 | C155: G02-FR-4000002-CCO-06000 | D155: Oil Components | E155: G02-FR-4000002-CCO-06000 | F155: 135 | G155: EUR | H155: 2 | I155: 135 | J155: EUR | K155: 51046 | L155: Mr Christophe TARDOS | S155: 937497671 | T155: 2016-01-08 | U155: 2100103054/MACH30 | V155: 292677 | X155: Oil Components | Y155: 815001000 | Z155: Manuf.Machine | AA155: Manuf.Machine | AC155: MACH30 | AD155: 0 | AE155: 2016-01-18 | AG155: 2016-01-18 | AH155: 27787156 | AI155: CATS | AJ155: 2 | AK155: 2016-04-01 | AL155: G02-FR-4000002 | AM155: R&D CONTROL | AN155: 2 | AO155: RKL | AP155: 0 | AQ155: 2100 | AR155: 1 | AS155: D | AT155: P | AU155: 0 | AV155: 0 | AW155: 135 | AX155: 135 | AY155: 135 | AZ155: 1 | BA155: 0500 | BB155: 0 | BC155: 0 | BG155: Elément d'OTP | BH155: OTP | BK155: TYA | BM155: 2100 | BN155: 0100 | BO155: Frais généraux | BP155: TYA | BQ155: Type d'activité | BR155: 14 | BS155: 2100103054 | BT155: 2103 | BU155: H | BV155: 0 | BW155: 0 | BX155: 0 | CA155: R | CC155: 0 | CD155: 0 | CE155: EUR | CJ155: 2 | CK155: 14 | CL155: 2100103054/MACH30 | CM155: Type d'activité | CN155: 8219591230000 | CO155: 10:58:43 | CP155: 2016-01-08 | CQ155: 1 | CR155: HR | CS155: 135 | CT155: 4 | CU155: 0 | CV155: 0 | CW155: 0 | CX155: 0 | CY155: PRF-201002 | CZ155: Project Stock | DA155: 89
A156: 2016 | B156: 1 | C156: G02-FR-4000002-CCO-06000 | D156: Oil Components | E156: G02-FR-4000002-CCO-06000 | F156: 499.5 | G156: EUR | H156: 7.4 | I156: 499.5 | J156: EUR | K156: 49914 | L156: Mr Jean Pierre SCEVOLA | S156: 937497636 | T156: 2016-01-15 | U156: 2100103054/MACH30 | V156: 292677 | X156: Oil Components | Y156: 815001000 | Z156: Manuf.Machine | AA156: Manuf.Machine | AC156: MACH30 | AD156: 0 | AE156: 2016-01-18 | AG156: 2016-01-18 | AH156: 27787516 | AI156: CATS | AJ156: 7.4 | AK156: 2016-04-01 | AL156: G02-FR-4000002 | AM156: R&D CONTROL | AN156: 2 | AO156: RKL | AP156: 0 | AQ156: 2100 | AR156: 1 | AS156: D | AT156: P | AU156: 0 | AV156: 0 | AW156: 499.5 | AX156: 499.5 | AY156: 499.5 | AZ156: 1 | BA156: 0500 | BB156: 0 | BC156: 0 | BG156: Elément d'OTP | BH156: OTP | BK156: TYA | BM156: 2100 | BN156: 0100 | BO156: Frais généraux | BP156: TYA | BQ156: Type d'activité | BR156: 14 | BS156: 2100103054 | BT156: 2103 | BU156: H | BV156: 0 | BW156: 0 | BX156: 0 | CA156: R | CC156: 0 | CD156: 0 | CE156: EUR | CJ156: 2 | CK156: 14 | CL156: 2100103054/MACH30 | CM156: Type d'activité | CN156: 8219591150000 | CO156: 10:58:35 | CP156: 2016-01-15 | CQ156: 1 | CR156: HR | CS156: 499.5 | CT156: 4 | CU156: 0 | CV156: 0 | CW156: 0 | CX156: 0 | CY156: PRF-201002 | CZ156: Project Stock | DA156: 89
A157: 2016 | B157: 1 | C157: G02-FR-4000002-CCO-06000 | D157: Oil Components | E157: G02-FR-4000002-CCO-06000 | F157: 67.5 | G157: EUR | H157: 1 | I157: 67.5 | J157: EUR | K157: 51046 | L157: Mr Christophe TARDOS | S157: 937497682 | T157: 2016-01-13 | U157: 2100103054/MACH30 | V157: 292677 | X157: Oil Components | Y157: 815001000 | Z157: Manuf.Machine | AA157: Manuf.Machine | AC157: MACH30 | AD157: 0 | AE157: 2016-01-18 | AG157: 2016-01-18 | AH157: 27787376 | AI157: CATS | AJ157: 1 | AK157: 2016-04-01 | AL157: G02-FR-4000002 | AM157: R&D CONTROL | AN157: 2 | AO157: RKL | AP157: 0 | AQ157: 2100 | AR157: 1 | AS157: D | AT157: P | AU157: 0 | AV157: 0 | AW157: 67.5 | AX157: 67.5 | AY157: 67.5 | AZ157: 1 | BA157: 0500 | BB157: 0 | BC157: 0 | BG157: Elément d'OTP | BH157: OTP | BK157: TYA | BM157: 2100 | BN157: 0100 | BO157: Frais généraux | BP157: TYA | BQ157: Type d'activité | BR157: 14 | BS157: 2100103054 | BT157: 2103 | BU157: H | BV157: 0 | BW157: 0 | BX157: 0 | CA157: R | CC157: 0 | CD157: 0 | CE157: EUR | CJ157: 2 | CK157: 14 | CL157: 2100103054/MACH30 | CM157: Type d'activité | CN157: 8219591230000 | CO157: 10:58:43 | CP157: 2016-01-13 | CQ157: 1 | CR157: HR | CS157: 67.5 | CT157: 4 | CU157: 0 | CV157: 0 | CW157: 0 | CX157: 0 | CY157: PRF-201002 | CZ157: Project Stock | DA157: 89
A158: 2016 | B158: 1 | C158: G02-FR-4000002-CCO-06000 | D158: Oil Components | E158: G02-FR-4000002-CCO-06000 | F158: 67.5 | G158: EUR | H158: 1 | I158: 67.5 | J158: EUR | K158: 51046 | L158: Mr Christophe TARDOS | S158: 937497687 | T158: 2016-01-14 | U158: 2100103054/MACH30 | V158: 292677 | X158: Oil Components | Y158: 815001000 | Z158: Manuf.Machine | AA158: Manuf.Machine | AC158: MACH30 | AD158: 0 | AE158: 2016-01-18 | AG158: 2016-01-18 | AH158: 27787463 | AI158: CATS | AJ158: 1 | AK158: 2016-04-01 | AL158: G02-FR-4000002 | AM158: R&D CONTROL | AN158: 2 | AO158: RKL | AP158: 0 | AQ158: 2100 | AR158: 1 | AS158: D | AT158: P | AU158: 0 | AV158: 0 | AW158: 67.5 | AX158: 67.5 | AY158: 67.5 | AZ158: 1 | BA158: 0500 | BB158: 0 | BC158: 0 | BG158: Elément d'OTP | BH158: OTP | BK158: TYA | BM158: 2100 | BN158: 0100 | BO158: Frais généraux | BP158: TYA | BQ158: Type d'activité | BR158: 14 | BS158: 2100103054 | BT158: 2103 | BU158: H | BV158: 0 | BW158: 0 | BX158: 0 | CA158: R | CC158: 0 | CD158: 0 | CE158: EUR | CJ158: 2 | CK158: 14 | CL158: 2100103054/MACH30 | CM158: Type d'activité | CN158: 8219591230000 | CO158: 10:58:43 | CP158: 2016-01-14 | CQ158: 1 | CR158: HR | CS158: 67.5 | CT158: 4 | CU158: 0 | CV158: 0 | CW158: 0 | CX158: 0 | CY158: PRF-201002 | CZ158: Project Stock | DA158: 89
A159: 2016 | B159: 1 | C159: G02-FR-4000002-CCO-06000 | D159: Oil Components | E159: G02-FR-4000002-CCO-06000 | F159: 229.5 | G159: EUR | H159: 3.4 | I159: 229.5 | J159: EUR | K159: 51402 | L159: Mr Christian COLLIAT | S159: 937497695 | T159: 2016-01-15 | U159: 2100103054/MACH30 | V159: 292677 | X159: Oil Components | Y159: 815001000 | Z159: Manuf.Machine | AA159: Manuf.Machine | AC159: MACH30 | AD159: 0 | AE159: 2016-01-18 | AG159: 2016-01-18 | AH159: 27787542 | AI159: CATS | AJ159: 3.4 | AK159: 2016-04-01 | AL159: G02-FR-4000002 | AM159: R&D CONTROL | AN159: 2 | AO159: RKL | AP159: 0 | AQ159: 2100 | AR159: 1 | AS159: D | AT159: P | AU159: 0 | AV159: 0 | AW159: 229.5 | AX159: 229.5 | AY159: 229.5 | AZ159: 1 | BA159: 0500 | BB159: 0 | BC159: 0 | BG159: Elément d'OTP | BH159: OTP | BK159: TYA | BM159: 2100 | BN159: 0100 | BO159: Frais généraux | BP159: TYA | BQ159: Type d'activité | BR159: 14 | BS159: 2100103054 | BT159: 2103 | BU159: H | BV159: 0 | BW159: 0 | BX159: 0 | CA159: R | CC159: 0 | CD159: 0 | CE159: EUR | CJ159: 2 | CK159: 14 | CL159: 2100103054/MACH30 | CM159: Type d'activité | CN159: 8219591230000 | CO159: 10:58:43 | CP159: 2016-01-15 | CQ159: 1 | CR159: HR | CS159: 229.5 | CT159: 4 | CU159: 0 | CV159: 0 | CW159: 0 | CX159: 0 | CY159: PRF-201002 | CZ159: Project Stock | DA159: 89
A160: 2016 | B160: 1 | C160: G02-FR-4000002-CCO-06000 | D160: Oil Components | E160: G02-FR-4000002-CCO-06000 | F160: 499.5 | G160: EUR | H160: 7.4 | I160: 499.5 | J160: EUR | K160: 49914 | L160: Mr Jean Pierre SCEVOLA | S160: 937497634 | T160: 2016-01-13 | U160: 2100103054/MACH30 | V160: 292677 | X160: Oil Components | Y160: 815001000 | Z160: Manuf.Machine | AA160: Manuf.Machine | AC160: MACH30 | AD160: 0 | AE160: 2016-01-18 | AG160: 2016-01-18 | AH160: 27787357 | AI160: CATS | AJ160: 7.4 | AK160: 2016-04-01 | AL160: G02-FR-4000002 | AM160: R&D CONTROL | AN160: 2 | AO160: RKL | AP160: 0 | AQ160: 2100 | AR160: 1 | AS160: D | AT160: P | AU160: 0 | AV160: 0 | AW160: 499.5 | AX160: 499.5 | AY160: 499.5 | AZ160: 1 | BA160: 0500 | BB160: 0 | BC160: 0 | BG160: Elément d'OTP | BH160: OTP | BK160: TYA | BM160: 2100 | BN160: 0100 | BO160: Frais généraux | BP160: TYA | BQ160: Type d'activité | BR160: 14 | BS160: 2100103054 | BT160: 2103 | BU160: H | BV160: 0 | BW160: 0 | BX160: 0 | CA160: R | CC160: 0 | CD160: 0 | CE160: EUR | CJ160: 2 | CK160: 14 | CL160: 2100103054/MACH30 | CM160: Type d'activité | CN160: 8219591150000 | CO160: 10:58:35 | CP160: 2016-01-13 | CQ160: 1 | CR160: HR | CS160: 499.5 | CT160: 4 | CU160: 0 | CV160: 0 | CW160: 0 | CX160: 0 | CY160: PRF-201002 | CZ160: Project Stock | DA160: 89
A161: 2016 | B161: 1 | C161: G02-FR-4000002-CCO-06000 | D161: Oil Components | E161: G02-FR-4000002-CCO-06000 | F161: 499.5 | G161: EUR | H161: 7.4 | I161: 499.5 | J161: EUR | K161: 49914 | L161: Mr Jean Pierre SCEVOLA | S161: 937497635 | T161: 2016-01-14 | U161: 2100103054/MACH30 | V161: 292677 | X161: Oil Components | Y161: 815001000 | Z161: Manuf.Machine | AA161: Manuf.Machine | AC161: MACH30 | AD161: 0 | AE161: 2016-01-18 | AG161: 2016-01-18 | AH161: 27787437 | AI161: CATS | AJ161: 7.4 | AK161: 2016-04-01 | AL161: G02-FR-4000002 | AM161: R&D CONTROL | AN161: 2 | AO161: RKL | AP161: 0 | AQ161: 2100 | AR161: 1 | AS161: D | AT161: P | AU161: 0 | AV161: 0 | AW161: 499.5 | AX161: 499.5 | AY161: 499.5 | AZ161: 1 | BA161: 0500 | BB161: 0 | BC161: 0 | BG161: Elément d'OTP | BH161: OTP | BK161: TYA | BM161: 2100 | BN161: 0100 | BO161: Frais généraux | BP161: TYA | BQ161: Type d'activité | BR161: 14 | BS161: 2100103054 | BT161: 2103 | BU161: H | BV161: 0 | BW161: 0 | BX161: 0 | CA161: R | CC161: 0 | CD161: 0 | CE161: EUR | CJ161: 2 | CK161: 14 | CL161: 2100103054/MACH30 | CM161: Type d'activité | CN161: 8219591150000 | CO161: 10:58:35 | CP161: 2016-01-14 | CQ161: 1 | CR161: HR | CS161: 499.5 | CT161: 4 | CU161: 0 | CV161: 0 | CW161: 0 | CX161: 0 | CY161: PRF-201002 | CZ161: Project Stock | DA161: 89
A162: 2016 | B162: 1 | C162: G02-FR-4000002-CCO-06000 | D162: Oil Components | E162: G02-FR-4000002-CCO-06000 | F162: 499.5 | G162: EUR | H162: 7.4 | I162: 499.5 | J162: EUR | K162: 49914 | L162: Mr Jean Pierre SCEVOLA | S162: 937497632 | T162: 2016-01-11 | U162: 2100103054/MACH30 | V162: 292677 | X162: Oil Components | Y162: 815001000 | Z162: Manuf.Machine | AA162: Manuf.Machine | AC162: MACH30 | AD162: 0 | AE162: 2016-01-18 | AG162: 2016-01-18 | AH162: 27787207 | AI162: CATS | AJ162: 7.4 | AK162: 2016-04-01 | AL162: G02-FR-4000002 | AM162: R&D CONTROL | AN162: 2 | AO162: RKL | AP162: 0 | AQ162: 2100 | AR162: 1 | AS162: D | AT162: P | AU162: 0 | AV162: 0 | AW162: 499.5 | AX162: 499.5 | AY162: 499.5 | AZ162: 1 | BA162: 0500 | BB162: 0 | BC162: 0 | BG162: Elément d'OTP | BH162: OTP | BK162: TYA | BM162: 2100 | BN162: 0100 | BO162: Frais généraux | BP162: TYA | BQ162: Type d'activité | BR162: 14 | BS162: 2100103054 | BT162: 2103 | BU162: H | BV162: 0 | BW162: 0 | BX162: 0 | CA162: R | CC162: 0 | CD162: 0 | CE162: EUR | CJ162: 2 | CK162: 14 | CL162: 2100103054/MACH30 | CM162: Type d'activité | CN162: 8219591150000 | CO162: 10:58:35 | CP162: 2016-01-11 | CQ162: 1 | CR162: HR | CS162: 499.5 | CT162: 4 | CU162: 0 | CV162: 0 | CW162: 0 | CX162: 0 | CY162: PRF-201002 | CZ162: Project Stock | DA162: 89
A163: 2016 | B163: 1 | C163: G02-FR-4000002-CCO-06000 | D163: Oil Components | E163: G02-FR-4000002-CCO-06000 | F163: 270 | G163: EUR | H163: 4 | I163: 270 | J163: EUR | K163: 51046 | L163: Mr Christophe TARDOS | S163: 937497656 | T163: 2016-01-05 | U163: 2100103054/MACH30 | V163: 292677 | X163: Oil Components | Y163: 815001000 | Z163: Manuf.Machine | AA163: Manuf.Machine | AC163: MACH30 | AD163: 0 | AE163: 2016-01-18 | AG163: 2016-01-18 | AH163: 27786955 | AI163: CATS | AJ163: 4 | AK163: 2016-04-01 | AL163: G02-FR-4000002 | AM163: R&D CONTROL | AN163: 2 | AO163: RKL | AP163: 0 | AQ163: 2100 | AR163: 1 | AS163: D | AT163: P | AU163: 0 | AV163: 0 | AW163: 270 | AX163: 270 | AY163: 270 | AZ163: 1 | BA163: 0500 | BB163: 0 | BC163: 0 | BG163: Elément d'OTP | BH163: OTP | BK163: TYA | BM163: 2100 | BN163: 0100 | BO163: Frais généraux | BP163: TYA | BQ163: Type d'activité | BR163: 14 | BS163: 2100103054 | BT163: 2103 | BU163: H | BV163: 0 | BW163: 0 | BX163: 0 | CA163: R | CC163: 0 | CD163: 0 | CE163: EUR | CJ163: 2 | CK163: 14 | CL163: 2100103054/MACH30 | CM163: Type d'activité | CN163: 8219591150000 | CO163: 10:58:35 | CP163: 2016-01-05 | CQ163: 1 | CR163: HR | CS163: 270 | CT163: 4 | CU163: 0 | CV163: 0 | CW163: 0 | CX163: 0 | CY163: PRF-201002 | CZ163: Project Stock | DA163: 89
A164: 2016 | B164: 1 | C164: G02-FR-4000002-CCO-06000 | D164: Oil Components | E164: G02-FR-4000002-CCO-06000 | F164: 499.5 | G164: EUR | H164: 7.4 | I164: 499.5 | J164: EUR | K164: 49914 | L164: Mr Jean Pierre SCEVOLA | S164: 937497628 | T164: 2016-01-06 | U164: 2100103054/MACH30 | V164: 292677 | X164: Oil Components | Y164: 815001000 | Z164: Manuf.Machine | AA164: Manuf.Machine | AC164: MACH30 | AD164: 0 | AE164: 2016-01-18 | AG164: 2016-01-18 | AH164: 27787007 | AI164: CATS | AJ164: 7.4 | AK164: 2016-04-01 | AL164: G02-FR-4000002 | AM164: R&D CONTROL | AN164: 2 | AO164: RKL | AP164: 0 | AQ164: 2100 | AR164: 1 | AS164: D | AT164: P | AU164: 0 | AV164: 0 | AW164: 499.5 | AX164: 499.5 | AY164: 499.5 | AZ164: 1 | BA164: 0500 | BB164: 0 | BC164: 0 | BG164: Elément d'OTP | BH164: OTP | BK164: TYA | BM164: 2100 | BN164: 0100 | BO164: Frais généraux | BP164: TYA | BQ164: Type d'activité | BR164: 14 | BS164: 2100103054 | BT164: 2103 | BU164: H | BV164: 0 | BW164: 0 | BX164: 0 | CA164: R | CC164: 0 | CD164: 0 | CE164: EUR | CJ164: 2 | CK164: 14 | CL164: 2100103054/MACH30 | CM164: Type d'activité | CN164: 8219591150000 | CO164: 10:58:35 | CP164: 2016-01-06 | CQ164: 1 | CR164: HR | CS164: 499.5 | CT164: 4 | CU164: 0 | CV164: 0 | CW164: 0 | CX164: 0 | CY164: PRF-201002 | CZ164: Project Stock | DA164: 89
A165: 2016 | B165: 1 | C165: G02-FR-4000002-CCO-06000 | D165: Oil Components | E165: G02-FR-4000002-CCO-06000 | F165: 67.5 | G165: EUR | H165: 1 | I165: 67.5 | J165: EUR | K165: 61964 | L165: Mr Stéphane DELICOURT | S165: 937493525 | T165: 2016-01-07 | U165: 2100103105/MACH30 | V165: 283551 | X165: Oil Components | Y165: 815001000 | Z165: Manuf.Machine | AA165: Manuf.Machine | AC165: MACH30 | AD165: 0 | AE165: 2016-01-18 | AG165: 2016-01-18 | AH165: 27787110 | AI165: CATS | AJ165: 1 | AK165: 2016-04-01 | AL165: G02-FR-4000002 | AM165: R&D CONTROL | AN165: 2 | AO165: RKL | AP165: 0 | AQ165: 2100 | AR165: 1 | AS165: D | AT165: P | AU165: 0 | AV165: 0 | AW165: 67.5 | AX165: 67.5 | AY165: 67.5 | AZ165: 1 | BA165: 0500 | BB165: 0 | BC165: 0 | BG165: Elément d'OTP | BH165: OTP | BK165: TYA | BM165: 2100 | BN165: 0100 | BO165: Frais généraux | BP165: TYA | BQ165: Type d'activité | BR165: 14 | BS165: 2100103105 | BT165: 2103 | BU165: H | BV165: 0 | BW165: 0 | BX165: 0 | CA165: R | CC165: 0 | CD165: 0 | CE165: EUR | CH165: 27787110 | CI165: X | CJ165: 2 | CK165: 14 | CL165: 2100103105/MACH30 | CM165: Type d'activité | CN165: 8219526650000 | CO165: 09:11:08 | CP165: 2016-01-07 | CQ165: 1 | CR165: HR | CS165: 67.5 | CT165: 4 | CU165: 0 | CV165: 0 | CW165: 0 | CX165: 0 | CY165: PRF-201002 | CZ165: Project Stock | DA165: 89
A166: 2016 | B166: 1 | C166: G02-FR-4000002-CCO-06000 | D166: Oil Components | E166: G02-FR-4000002-CCO-06000 | F166: 67.5 | G166: EUR | H166: 1 | I166: 67.5 | J166: EUR | K166: 61964 | L166: Mr Stéphane DELICOURT | S166: 937493515 | T166: 2016-01-05 | U166: 2100103105/MACH30 | V166: 283551 | X166: Oil Components | Y166: 815001000 | Z166: Manuf.Machine | AA166: Manuf.Machine | AC166: MACH30 | AD166: 0 | AE166: 2016-01-18 | AG166: 2016-01-18 | AH166: 27786982 | AI166: CATS | AJ166: 1 | AK166: 2016-04-01 | AL166: G02-FR-4000002 | AM166: R&D CONTROL | AN166: 2 | AO166: RKL | AP166: 0 | AQ166: 2100 | AR166: 1 | AS166: D | AT166: P | AU166: 0 | AV166: 0 | AW166: 67.5 | AX166: 67.5 | AY166: 67.5 | AZ166: 1 | BA166: 0500 | BB166: 0 | BC166: 0 | BG166: Elément d'OTP | BH166: OTP | BK166: TYA | BM166: 2100 | BN166: 0100 | BO166: Frais généraux | BP166: TYA | BQ166: Type d'activité | BR166: 14 | BS166: 2100103105 | BT166: 2103 | BU166: H | BV166: 0 | BW166: 0 | BX166: 0 | CA166: R | CC166: 0 | CD166: 0 | CE166: EUR | CJ166: 2 | CK166: 14 | CL166: 2100103105/MACH30 | CM166: Type d'activité | CN166: 8219526550000 | CO166: 09:10:55 | CP166: 2016-01-05 | CQ166: 1 | CR166: HR | CS166: 67.5 | CT166: 4 | CU166: 0 | CV166: 0 | CW166: 0 | CX166: 0 | CY166: PRF-201002 | CZ166: Project Stock | DA166: 89
A167: 2016 | B167: 1 | C167: G02-FR-4000002-CCO-06000 | D167: Oil Components | E167: G02-FR-4000002-CCO-06000 | F167: 67.5 | G167: EUR | H167: 1 | I167: 67.5 | J167: EUR | K167: 61964 | L167: Mr Stéphane DELICOURT | S167: 937491319 | T167: 2015-12-18 | U167: 2100103105/MACH30 | V167: 283551 | X167: Oil Components | Y167: 815001000 | Z167: Manuf.Machine | AA167: Manuf.Machine | AC167: MACH30 | AD167: 0 | AE167: 2016-01-18 | AG167: 2016-01-01 | AH167: 27786500 | AI167: CATS | AJ167: 1 | AK167: 2016-04-01 | AL167: G02-FR-4000002 | AM167: R&D CONTROL | AN167: 2 | AO167: RKL | AP167: 0 | AQ167: 2100 | AR167: 1 | AS167: D | AT167: P | AU167: 0 | AV167: 0 | AW167: 67.5 | AX167: 67.5 | AY167: 67.5 | AZ167: 1 | BA167: 0500 | BB167: 0 | BC167: 0 | BG167: Elément d'OTP | BH167: OTP | BK167: TYA | BM167: 2100 | BN167: 0100 | BO167: Frais généraux | BP167: TYA | BQ167: Type d'activité | BR167: 14 | BS167: 2100103105 | BT167: 2103 | BU167: H | BV167: 0 | BW167: 0 | BX167: 0 | CA167: R | CC167: 0 | CD167: 0 | CE167: EUR | CJ167: 2 | CK167: 14 | CL167: 2100103105/MACH30 | CM167: Type d'activité | CN167: 8219517920000 | CO167: 08:56:32 | CP167: 2015-12-18 | CQ167: 1 | CR167: HR | CS167: 67.5 | CT167: 4 | CU167: 0 | CV167: 0 | CW167: 0 | CX167: 0 | CY167: PRF-201002 | CZ167: Project Stock | DA167: 89
A168: 2016 | B168: 1 | C168: G02-FR-4000002-CCO-06000 | D168: Oil Components | E168: G02-FR-4000002-CCO-06000 | F168: 202.5 | G168: EUR | H168: 3 | I168: 202.5 | J168: EUR | K168: 61964 | L168: Mr Stéphane DELICOURT | S168: 937491326 | T168: 2015-12-21 | U168: 2100103105/MACH30 | V168: 283551 | X168: Oil Components | Y168: 815001000 | Z168: Manuf.Machine | AA168: Manuf.Machine | AC168: MACH30 | AD168: 0 | AE168: 2016-01-18 | AG168: 2016-01-01 | AH168: 27786569 | AI168: CATS | AJ168: 3 | AK168: 2016-04-01 | AL168: G02-FR-4000002 | AM168: R&D CONTROL | AN168: 2 | AO168: RKL | AP168: 0 | AQ168: 2100 | AR168: 1 | AS168: D | AT168: P | AU168: 0 | AV168: 0 | AW168: 202.5 | AX168: 202.5 | AY168: 202.5 | AZ168: 1 | BA168: 0500 | BB168: 0 | BC168: 0 | BG168: Elément d'OTP | BH168: OTP | BK168: TYA | BM168: 2100 | BN168: 0100 | BO168: Frais généraux | BP168: TYA | BQ168: Type d'activité | BR168: 14 | BS168: 2100103105 | BT168: 2103 | BU168: H | BV168: 0 | BW168: 0 | BX168: 0 | CA168: R | CC168: 0 | CD168: 0 | CE168: EUR | CJ168: 2 | CK168: 14 | CL168: 2100103105/MACH30 | CM168: Type d'activité | CN168: 8219517920000 | CO168: 08:56:32 | CP168: 2015-12-21 | CQ168: 1 | CR168: HR | CS168: 202.5 | CT168: 4 | CU168: 0 | CV168: 0 | CW168: 0 | CX168: 0 | CY168: PRF-201002 | CZ168: Project Stock | DA168: 89
A169: 2016 | B169: 1 | C169: G02-FR-4000002-CCO-06000 | D169: Oil Components | E169: G02-FR-4000002-CCO-06000 | F169: 67.5 | G169: EUR | H169: 1 | I169: 67.5 | J169: EUR | K169: 61964 | L169: Mr Stéphane DELICOURT | S169: 937491329 | T169: 2015-12-22 | U169: 2100103105/MACH30 | V169: 283551 | X169: Oil Components | Y169: 815001000 | Z169: Manuf.Machine | AA169: Manuf.Machine | AC169: MACH30 | AD169: 0 | AE169: 2016-01-18 | AG169: 2016-01-01 | AH169: 27786620 | AI169: CATS | AJ169: 1 | AK169: 2016-04-01 | AL169: G02-FR-4000002 | AM169: R&D CONTROL | AN169: 2 | AO169: RKL | AP169: 0 | AQ169: 2100 | AR169: 1 | AS169: D | AT169: P | AU169: 0 | AV169: 0 | AW169: 67.5 | AX169: 67.5 | AY169: 67.5 | AZ169: 1 | BA169: 0500 | BB169: 0 | BC169: 0 | BG169: Elément d'OTP | BH169: OTP | BK169: TYA | BM169: 2100 | BN169: 0100 | BO169: Frais généraux | BP169: TYA | BQ169: Type d'activité | BR169: 14 | BS169: 2100103105 | BT169: 2103 | BU169: H | BV169: 0 | BW169: 0 | BX169: 0 | CA169: R | CC169: 0 | CD169: 0 | CE169: EUR | CJ169: 2 | CK169: 14 | CL169: 2100103105/MACH30 | CM169: Type d'activité | CN169: 8219517920000 | CO169: 08:56:32 | CP169: 2015-12-22 | CQ169: 1 | CR169: HR | CS169: 67.5 | CT169: 4 | CU169: 0 | CV169: 0 | CW169: 0 | CX169: 0 | CY169: PRF-201002 | CZ169: Project Stock | DA169: 89
A170: 2016 | B170: 1 | C170: G02-FR-4000002-CCO-06000 | D170: Oil Components | E170: G02-FR-4000002-CCO-06000 | F170: 67.5 | G170: EUR | H170: 1 | I170: 67.5 | J170: EUR | K170: 61964 | L170: Mr Stéphane DELICOURT | S170: 937491334 | T170: 2015-12-23 | U170: 2100103105/MACH30 | V170: 283551 | X170: Oil Components | Y170: 815001000 | Z170: Manuf.Machine | AA170: Manuf.Machine | AC170: MACH30 | AD170: 0 | AE170: 2016-01-18 | AG170: 2016-01-01 | AH170: 27786664 | AI170: CATS | AJ170: 1 | AK170: 2016-04-01 | AL170: G02-FR-4000002 | AM170: R&D CONTROL | AN170: 2 | AO170: RKL | AP170: 0 | AQ170: 2100 | AR170: 1 | AS170: D | AT170: P | AU170: 0 | AV170: 0 | AW170: 67.5 | AX170: 67.5 | AY170: 67.5 | AZ170: 1 | BA170: 0500 | BB170: 0 | BC170: 0 | BG170: Elément d'OTP | BH170: OTP | BK170: TYA | BM170: 2100 | BN170: 0100 | BO170: Frais généraux | BP170: TYA | BQ170: Type d'activité | BR170: 14 | BS170: 2100103105 | BT170: 2103 | BU170: H | BV170: 0 | BW170: 0 | BX170: 0 | CA170: R | CC170: 0 | CD170: 0 | CE170: EUR | CJ170: 2 | CK170: 14 | CL170: 2100103105/MACH30 | CM170: Type d'activité | CN170: 8219517920000 | CO170: 08:56:32 | CP170: 2015-12-23 | CQ170: 1 | CR170: HR | CS170: 67.5 | CT170: 4 | CU170: 0 | CV170: 0 | CW170: 0 | CX170: 0 | CY170: PRF-201002 | CZ170: Project Stock | DA170: 89
A171: 2016 | B171: 2 | C171: G02-FR-4000002-CCO-06000 | D171: Oil Components | E171: G02-FR-4000002-CCO-06000 | F171: 499.5 | G171: EUR | H171: 7.4 | I171: 499.5 | J171: EUR | K171: 49914 | L171: Mr Jean Pierre SCEVOLA | S171: 938205669 | T171: 2016-01-20 | U171: 2100103054/MACH30 | V171: 292677 | X171: Oil Components | Y171: 815001000 | Z171: Manuf.Machine | AA171: Manuf.Machine | AC171: MACH30 | AD171: 0 | AE171: 2016-02-18 | AG171: 2016-02-18 | AH171: 28358342 | AI171: CATS | AJ171: 7.4 | AK171: 2016-04-01 | AL171: G02-FR-4000002 | AM171: R&D CONTROL | AN171: 2 | AO171: RKL | AP171: 0 | AQ171: 2100 | AR171: 1 | AS171: D | AT171: P | AU171: 0 | AV171: 0 | AW171: 499.5 | AX171: 499.5 | AY171: 499.5 | AZ171: 2 | BA171: 0500 | BB171: 0 | BC171: 0 | BG171: Elément d'OTP | BH171: OTP | BK171: TYA | BM171: 2100 | BN171: 0100 | BO171: Frais généraux | BP171: TYA | BQ171: Type d'activité | BR171: 14 | BS171: 2100103054 | BT171: 2103 | BU171: H | BV171: 0 | BW171: 0 | BX171: 0 | CA171: R | CC171: 0 | CD171: 0 | CE171: EUR | CJ171: 2 | CK171: 14 | CL171: 2100103054/MACH30 | CM171: Type d'activité | CN171: 8246558070000 | CO171: 16:03:27 | CP171: 2016-01-20 | CQ171: 2 | CR171: HR | CS171: 499.5 | CT171: 4 | CU171: 0 | CV171: 0 | CW171: 0 | CX171: 0 | CY171: PRF-201002 | CZ171: Project Stock | DA171: 89
A172: 2016 | B172: 2 | C172: G02-FR-4000002-CCO-06000 | D172: Oil Components | E172: G02-FR-4000002-CCO-06000 | F172: 499.5 | G172: EUR | H172: 7.4 | I172: 499.5 | J172: EUR | K172: 49914 | L172: Mr Jean Pierre SCEVOLA | S172: 938205667 | T172: 2016-01-18 | U172: 2100103054/MACH30 | V172: 292677 | X172: Oil Components | Y172: 815001000 | Z172: Manuf.Machine | AA172: Manuf.Machine | AC172: MACH30 | AD172: 0 | AE172: 2016-02-18 | AG172: 2016-02-18 | AH172: 28358178 | AI172: CATS | AJ172: 7.4 | AK172: 2016-04-01 | AL172: G02-FR-4000002 | AM172: R&D CONTROL | AN172: 2 | AO172: RKL | AP172: 0 | AQ172: 2100 | AR172: 1 | AS172: D | AT172: P | AU172: 0 | AV172: 0 | AW172: 499.5 | AX172: 499.5 | AY172: 499.5 | AZ172: 2 | BA172: 0500 | BB172: 0 | BC172: 0 | BG172: Elément d'OTP | BH172: OTP | BK172: TYA | BM172: 2100 | BN172: 0100 | BO172: Frais généraux | BP172: TYA | BQ172: Type d'activité | BR172: 14 | BS172: 2100103054 | BT172: 2103 | BU172: H | BV172: 0 | BW172: 0 | BX172: 0 | CA172: R | CC172: 0 | CD172: 0 | CE172: EUR | CJ172: 2 | CK172: 14 | CL172: 2100103054/MACH30 | CM172: Type d'activité | CN172: 8246558070000 | CO172: 16:03:27 | CP172: 2016-01-18 | CQ172: 2 | CR172: HR | CS172: 499.5 | CT172: 4 | CU172: 0 | CV172: 0 | CW172: 0 | CX172: 0 | CY172: PRF-201002 | CZ172: Project Stock | DA172: 89
A173: 2016 | B173: 2 | C173: G02-FR-4000002-CCO-06000 | D173: Oil Components | E173: G02-FR-4000002-CCO-06000 | F173: 249.75 | G173: EUR | H173: 3.7 | I173: 249.75 | J173: EUR | K173: 49914 | L173: Mr Jean Pierre SCEVOLA | S173: 938205668 | T173: 2016-01-19 | U173: 2100103054/MACH30 | V173: 292677 | X173: Oil Components | Y173: 815001000 | Z173: Manuf.Machine | AA173: Manuf.Machine | AC173: MACH30 | AD173: 0 | AE173: 2016-02-18 | AG173: 2016-02-18 | AH173: 28358259 | AI173: CATS | AJ173: 3.7 | AK173: 2016-04-01 | AL173: G02-FR-4000002 | AM173: R&D CONTROL | AN173: 2 | AO173: RKL | AP173: 0 | AQ173: 2100 | AR173: 1 | AS173: D | AT173: P | AU173: 0 | AV173: 0 | AW173: 249.75 | AX173: 249.75 | AY173: 249.75 | AZ173: 2 | BA173: 0500 | BB173: 0 | BC173: 0 | BG173: Elément d'OTP | BH173: OTP | BK173: TYA | BM173: 2100 | BN173: 0100 | BO173: Frais généraux | BP173: TYA | BQ173: Type d'activité | BR173: 14 | BS173: 2100103054 | BT173: 2103 | BU173: H | BV173: 0 | BW173: 0 | BX173: 0 | CA173: R | CC173: 0 | CD173: 0 | CE173: EUR | CJ173: 2 | CK173: 14 | CL173: 2100103054/MACH30 | CM173: Type d'activité | CN173: 8246558070000 | CO173: 16:03:27 | CP173: 2016-01-19 | CQ173: 2 | CR173: HR | CS173: 249.75 | CT173: 4 | CU173: 0 | CV173: 0 | CW173: 0 | CX173: 0 | CY173: PRF-201002 | CZ173: Project Stock | DA173: 89
A174: 2016 | B174: 2 | C174: G02-FR-4000002-CCO-06000 | D174: Oil Components | E174: G02-FR-4000002-CCO-06000 | F174: 121.5 | G174: EUR | H174: 1.8 | I174: 121.5 | J174: EUR | K174: 49914 | L174: Mr Jean Pierre SCEVOLA | S174: 938205687 | T174: 2016-02-03 | U174: 2100103054/MACH30 | V174: 292677 | X174: Oil Components | Y174: 815001000 | Z174: Manuf.Machine | AA174: Manuf.Machine | AC174: MACH30 | AD174: 0 | AE174: 2016-02-18 | AG174: 2016-02-18 | AH174: 28359120 | AI174: CATS | AJ174: 1.8 | AK174: 2016-04-01 | AL174: G02-FR-4000002 | AM174: R&D CONTROL | AN174: 2 | AO174: RKL | AP174: 0 | AQ174: 2100 | AR174: 1 | AS174: D | AT174: P | AU174: 0 | AV174: 0 | AW174: 121.5 | AX174: 121.5 | AY174: 121.5 | AZ174: 2 | BA174: 0500 | BB174: 0 | BC174: 0 | BG174: Elément d'OTP | BH174: OTP | BK174: TYA | BM174: 2100 | BN174: 0100 | BO174: Frais généraux | BP174: TYA | BQ174: Type d'activité | BR174: 14 | BS174: 2100103054 | BT174: 2103 | BU174: H | BV174: 0 | BW174: 0 | BX174: 0 | CA174: R | CC174: 0 | CD174: 0 | CE174: EUR | CJ174: 2 | CK174: 14 | CL174: 2100103054/MACH30 | CM174: Type d'activité | CN174: 8246558070000 | CO174: 16:03:27 | CP174: 2016-02-03 | CQ174: 2 | CR174: HR | CS174: 121.5 | CT174: 4 | CU174: 0 | CV174: 0 | CW174: 0 | CX174: 0 | CY174: PRF-201002 | CZ174: Project Stock | DA174: 89
A175: 2016 | B175: 1 | C175: G02-FR-4000002-CCO-06000 | D175: Oil Components | E175: G02-FR-4000002-CCO-06000 | F175: 270 | G175: EUR | H175: 4 | I175: 270 | J175: EUR | K175: 49914 | L175: Mr Jean Pierre SCEVOLA | S175: 937413495 | T175: 2015-11-30 | U175: 2100103054/MACH30 | V175: 292677 | X175: Oil Components | Y175: 815001000 | Z175: Manuf.Machine | AA175: Manuf.Machine | AC175: MACH30 | AD175: 0 | AE175: 2016-01-11 | AG175: 2016-01-11 | AH175: 27333706 | AI175: CATS | AJ175: 4 | AK175: 2016-04-01 | AL175: G02-FR-4000002 | AM175: R&D CONTROL | AN175: 2 | AO175: RKL | AP175: 0 | AQ175: 2100 | AR175: 1 | AS175: D | AT175: P | AU175: 0 | AV175: 0 | AW175: 270 | AX175: 270 | AY175: 270 | AZ175: 1 | BA175: 0500 | BB175: 0 | BC175: 0 | BG175: Elément d'OTP | BH175: OTP | BK175: TYA | BM175: 2100 | BN175: 0100 | BO175: Frais généraux | BP175: TYA | BQ175: Type d'activité | BR175: 14 | BS175: 2100103054 | BT175: 2103 | BU175: H | BV175: 0 | BW175: 0 | BX175: 0 | CA175: R | CC175: 0 | CD175: 0 | CE175: EUR | CJ175: 2 | CK175: 14 | CL175: 2100103054/MACH30 | CM175: Type d'activité | CN175: 8213708300000 | CO175: 15:33:54 | CP175: 2015-11-30 | CQ175: 1 | CR175: HR | CS175: 270 | CT175: 4 | CU175: 0 | CV175: 0 | CW175: 0 | CX175: 0 | CY175: PRF-201002 | CZ175: Project Stock | DA175: 89
A176: 2016 | B176: 1 | C176: G02-FR-4000002-CCO-06000 | D176: Oil Components | E176: G02-FR-4000002-CCO-06000 | F176: 270 | G176: EUR | H176: 4 | I176: 270 | J176: EUR | K176: 49914 | L176: Mr Jean Pierre SCEVOLA | S176: 937413508 | T176: 2015-12-10 | U176: 2100103054/MACH30 | V176: 292677 | X176: Oil Components | Y176: 815001000 | Z176: Manuf.Machine | AA176: Manuf.Machine | AC176: MACH30 | AD176: 0 | AE176: 2016-01-11 | AG176: 2016-01-11 | AH176: 27333759 | AI176: CATS | AJ176: 4 | AK176: 2016-04-01 | AL176: G02-FR-4000002 | AM176: R&D CONTROL | AN176: 2 | AO176: RKL | AP176: 0 | AQ176: 2100 | AR176: 1 | AS176: D | AT176: P | AU176: 0 | AV176: 0 | AW176: 270 | AX176: 270 | AY176: 270 | AZ176: 1 | BA176: 0500 | BB176: 0 | BC176: 0 | BG176: Elément d'OTP | BH176: OTP | BK176: TYA | BM176: 2100 | BN176: 0100 | BO176: Frais généraux | BP176: TYA | BQ176: Type d'activité | BR176: 14 | BS176: 2100103054 | BT176: 2103 | BU176: H | BV176: 0 | BW176: 0 | BX176: 0 | CA176: R | CC176: 0 | CD176: 0 | CE176: EUR | CJ176: 2 | CK176: 14 | CL176: 2100103054/MACH30 | CM176: Type d'activité | CN176: 8213708300000 | CO176: 15:33:54 | CP176: 2015-12-10 | CQ176: 1 | CR176: HR | CS176: 270 | CT176: 4 | CU176: 0 | CV176: 0 | CW176: 0 | CX176: 0 | CY176: PRF-201002 | CZ176: Project Stock | DA176: 89
A177: 2016 | B177: 2 | C177: G02-FR-4000002-CCO-06000 | D177: Oil Components | E177: G02-FR-4000002-CCO-06000 | F177: 249.75 | G177: EUR | H177: 3.7 | I177: 249.75 | J177: EUR | K177: 49914 | L177: Mr Jean Pierre SCEVOLA | S177: 938205702 | T177: 2016-02-15 | U177: 2100103054/MACH30 | V177: 292677 | X177: Oil Components | Y177: 815001000 | Z177: Manuf.Machine | AA177: Manuf.Machine | AC177: MACH30 | AD177: 0 | AE177: 2016-02-18 | AG177: 2016-02-18 | AH177: 28359707 | AI177: CATS | AJ177: 3.7 | AK177: 2016-04-01 | AL177: G02-FR-4000002 | AM177: R&D CONTROL | AN177: 2 | AO177: RKL | AP177: 0 | AQ177: 2100 | AR177: 1 | AS177: D | AT177: P | AU177: 0 | AV177: 0 | AW177: 249.75 | AX177: 249.75 | AY177: 249.75 | AZ177: 2 | BA177: 0500 | BB177: 0 | BC177: 0 | BG177: Elément d'OTP | BH177: OTP | BK177: TYA | BM177: 2100 | BN177: 0100 | BO177: Frais généraux | BP177: TYA | BQ177: Type d'activité | BR177: 14 | BS177: 2100103054 | BT177: 2103 | BU177: H | BV177: 0 | BW177: 0 | BX177: 0 | CA177: R | CC177: 0 | CD177: 0 | CE177: EUR | CJ177: 2 | CK177: 14 | CL177: 2100103054/MACH30 | CM177: Type d'activité | CN177: 8246558070000 | CO177: 16:03:27 | CP177: 2016-02-15 | CQ177: 2 | CR177: HR | CS177: 249.75 | CT177: 4 | CU177: 0 | CV177: 0 | CW177: 0 | CX177: 0 | CY177: PRF-201002 | CZ177: Project Stock | DA177: 89
A178: 2016 | B178: 3 | C178: G02-FR-4000002-CCO-06000 | D178: Oil Components | E178: G02-FR-4000002-CCO-06000 | F178: 499.5 | G178: EUR | H178: 7.4 | I178: 499.5 | J178: EUR | K178: 49914 | L178: Mr Jean Pierre SCEVOLA | S178: 938937524 | T178: 2016-03-16 | U178: 2100103054/MACH30 | V178: 292677 | X178: Oil Components | Y178: 815001000 | Z178: Manuf.Machine | AA178: Manuf.Machine | AC178: MACH30 | AD178: 0 | AE178: 2016-03-21 | AG178: 2016-03-21 | AH178: 28896427 | AI178: CATS | AJ178: 7.4 | AK178: 2016-01-01 | AL178: G02-FR-4000002 | AM178: R&D CONTROL | AN178: 2 | AO178: RKL | AP178: 0 | AQ178: 2100 | AR178: 1 | AS178: D | AT178: P | AU178: 0 | AV178: 0 | AW178: 499.5 | AX178: 499.5 | AY178: 499.5 | AZ178: 3 | BA178: 0500 | BB178: 0 | BC178: 0 | BG178: Elément d'OTP | BH178: OTP | BK178: TYA | BM178: 2100 | BN178: 0100 | BO178: Frais généraux | BP178: TYA | BQ178: Type d'activité | BR178: 14 | BS178: 2100103054 | BT178: 2103 | BU178: H | BV178: 0 | BW178: 0 | BX178: 0 | CA178: R | CC178: 0 | CD178: 0 | CE178: EUR | CJ178: 2 | CK178: 14 | CL178: 2100103054/MACH30 | CM178: Type d'activité | CN178: 8274046990000 | CO178: 11:38:22 | CP178: 2016-03-16 | CQ178: 3 | CR178: HR | CS178: 499.5 | CT178: 4 | CU178: 0 | CV178: 0 | CW178: 0 | CX178: 0 | CY178: PRF-201002 | CZ178: Project Stock | DA178: 89
A179: 2016 | B179: 3 | C179: G02-FR-4000002-CCO-06000 | D179: Oil Components | E179: G02-FR-4000002-CCO-06000 | F179: 202.5 | G179: EUR | H179: 3 | I179: 202.5 | J179: EUR | K179: 49914 | L179: Mr Jean Pierre SCEVOLA | S179: 938937512 | T179: 2016-03-04 | U179: 2100103054/MACH30 | V179: 292677 | X179: Oil Components | Y179: 815001000 | Z179: Manuf.Machine | AA179: Manuf.Machine | AC179: MACH30 | AD179: 0 | AE179: 2016-03-21 | AG179: 2016-03-21 | AH179: 28895804 | AI179: CATS | AJ179: 3 | AK179: 2016-01-01 | AL179: G02-FR-4000002 | AM179: R&D CONTROL | AN179: 2 | AO179: RKL | AP179: 0 | AQ179: 2100 | AR179: 1 | AS179: D | AT179: P | AU179: 0 | AV179: 0 | AW179: 202.5 | AX179: 202.5 | AY179: 202.5 | AZ179: 3 | BA179: 0500 | BB179: 0 | BC179: 0 | BG179: Elément d'OTP | BH179: OTP | BK179: TYA | BM179: 2100 | BN179: 0100 | BO179: Frais généraux | BP179: TYA | BQ179: Type d'activité | BR179: 14 | BS179: 2100103054 | BT179: 2103 | BU179: H | BV179: 0 | BW179: 0 | BX179: 0 | CA179: R | CC179: 0 | CD179: 0 | CE179: EUR | CJ179: 2 | CK179: 14 | CL179: 2100103054/MACH30 | CM179: Type d'activité | CN179: 8274046990000 | CO179: 11:38:22 | CP179: 2016-03-04 | CQ179: 3 | CR179: HR | CS179: 202.5 | CT179: 4 | CU179: 0 | CV179: 0 | CW179: 0 | CX179: 0 | CY179: PRF-201002 | CZ179: Project Stock | DA179: 89
A180: 2016 | B180: 3 | C180: G02-FR-4000002-CCO-06000 | D180: Oil Components | E180: G02-FR-4000002-CCO-06000 | F180: 135 | G180: EUR | H180: 2 | I180: 135 | J180: EUR | K180: 49914 | L180: Mr Jean Pierre SCEVOLA | S180: 938937507 | T180: 2016-03-02 | U180: 2100103054/MACH30 | V180: 292677 | X180: Oil Components | Y180: 815001000 | Z180: Manuf.Machine | AA180: Manuf.Machine | AC180: MACH30 | AD180: 0 | AE180: 2016-03-21 | AG180: 2016-03-21 | AH180: 28895628 | AI180: CATS | AJ180: 2 | AK180: 2016-01-01 | AL180: G02-FR-4000002 | AM180: R&D CONTROL | AN180: 2 | AO180: RKL | AP180: 0 | AQ180: 2100 | AR180: 1 | AS180: D | AT180: P | AU180: 0 | AV180: 0 | AW180: 135 | AX180: 135 | AY180: 135 | AZ180: 3 | BA180: 0500 | BB180: 0 | BC180: 0 | BG180: Elément d'OTP | BH180: OTP | BK180: TYA | BM180: 2100 | BN180: 0100 | BO180: Frais généraux | BP180: TYA | BQ180: Type d'activité | BR180: 14 | BS180: 2100103054 | BT180: 2103 | BU180: H | BV180: 0 | BW180: 0 | BX180: 0 | CA180: R | CC180: 0 | CD180: 0 | CE180: EUR | CJ180: 2 | CK180: 14 | CL180: 2100103054/MACH30 | CM180: Type d'activité | CN180: 8274046990000 | CO180: 11:38:22 | CP180: 2016-03-02 | CQ180: 3 | CR180: HR | CS180: 135 | CT180: 4 | CU180: 0 | CV180: 0 | CW180: 0 | CX180: 0 | CY180: PRF-201002 | CZ180: Project Stock | DA180: 89
A181: 2016 | B181: 3 | C181: G02-FR-4000002-CCO-06000 | D181: Oil Components | E181: G02-FR-4000002-CCO-06000 | F181: 249.75 | G181: EUR | H181: 3.7 | I181: 249.75 | J181: EUR | K181: 49914 | L181: Mr Jean Pierre SCEVOLA | S181: 938937515 | T181: 2016-03-09 | U181: 2100103054/MACH30 | V181: 292677 | X181: Oil Components | Y181: 815001000 | Z181: Manuf.Machine | AA181: Manuf.Machine | AC181: MACH30 | AD181: 0 | AE181: 2016-03-21 | AG181: 2016-03-21 | AH181: 28896044 | AI181: CATS | AJ181: 3.7 | AK181: 2016-01-01 | AL181: G02-FR-4000002 | AM181: R&D CONTROL | AN181: 2 | AO181: RKL | AP181: 0 | AQ181: 2100 | AR181: 1 | AS181: D | AT181: P | AU181: 0 | AV181: 0 | AW181: 249.75 | AX181: 249.75 | AY181: 249.75 | AZ181: 3 | BA181: 0500 | BB181: 0 | BC181: 0 | BG181: Elément d'OTP | BH181: OTP | BK181: TYA | BM181: 2100 | BN181: 0100 | BO181: Frais généraux | BP181: TYA | BQ181: Type d'activité | BR181: 14 | BS181: 2100103054 | BT181: 2103 | BU181: H | BV181: 0 | BW181: 0 | BX181: 0 | CA181: R | CC181: 0 | CD181: 0 | CE181: EUR | CJ181: 2 | CK181: 14 | CL181: 2100103054/MACH30 | CM181: Type d'activité | CN181: 8274046990000 | CO181: 11:38:22 | CP181: 2016-03-09 | CQ181: 3 | CR181: HR | CS181: 249.75 | CT181: 4 | CU181: 0 | CV181: 0 | CW181: 0 | CX181: 0 | CY181: PRF-201002 | CZ181: Project Stock | DA181: 89
A182: 2016 | B182: 3 | C182: G02-FR-4000002-CCO-06000 | D182: Oil Components | E182: G02-FR-4000002-CCO-06000 | F182: 249.75 | G182: EUR | H182: 3.7 | I182: 249.75 | J182: EUR | K182: 49914 | L182: Mr Jean Pierre SCEVOLA | S182: 938937518 | T182: 2016-03-10 | U182: 2100103054/MACH30 | V182: 292677 | X182: Oil Components | Y182: 815001000 | Z182: Manuf.Machine | AA182: Manuf.Machine | AC182: MACH30 | AD182: 0 | AE182: 2016-03-21 | AG182: 2016-03-21 | AH182: 28896125 | AI182: CATS | AJ182: 3.7 | AK182: 2016-01-01 | AL182: G02-FR-4000002 | AM182: R&D CONTROL | AN182: 2 | AO182: RKL | AP182: 0 | AQ182: 2100 | AR182: 1 | AS182: D | AT182: P | AU182: 0 | AV182: 0 | AW182: 249.75 | AX182: 249.75 | AY182: 249.75 | AZ182: 3 | BA182: 0500 | BB182: 0 | BC182: 0 | BG182: Elément d'OTP | BH182: OTP | BK182: TYA | BM182: 2100 | BN182: 0100 | BO182: Frais généraux | BP182: TYA | BQ182: Type d'activité | BR182: 14 | BS182: 2100103054 | BT182: 2103 | BU182: H | BV182: 0 | BW182: 0 | BX182: 0 | CA182: R | CC182: 0 | CD182: 0 | CE182: EUR | CJ182: 2 | CK182: 14 | CL182: 2100103054/MACH30 | CM182: Type d'activité | CN182: 8274046990000 | CO182: 11:38:22 | CP182: 2016-03-10 | CQ182: 3 | CR182: HR | CS182: 249.75 | CT182: 4 | CU182: 0 | CV182: 0 | CW182: 0 | CX182: 0 | CY182: PRF-201002 | CZ182: Project Stock | DA182: 89
A183: 2016 | B183: 3 | C183: G02-FR-4000002-CCO-06000 | D183: Oil Components | E183: G02-FR-4000002-CCO-06000 | F183: 499.5 | G183: EUR | H183: 7.4 | I183: 499.5 | J183: EUR | K183: 49914 | L183: Mr Jean Pierre SCEVOLA | S183: 938937522 | T183: 2016-03-14 | U183: 2100103054/MACH30 | V183: 292677 | X183: Oil Components | Y183: 815001000 | Z183: Manuf.Machine | AA183: Manuf.Machine | AC183: MACH30 | AD183: 0 | AE183: 2016-03-21 | AG183: 2016-03-21 | AH183: 28896269 | AI183: CATS | AJ183: 7.4 | AK183: 2016-01-01 | AL183: G02-FR-4000002 | AM183: R&D CONTROL | AN183: 2 | AO183: RKL | AP183: 0 | AQ183: 2100 | AR183: 1 | AS183: D | AT183: P | AU183: 0 | AV183: 0 | AW183: 499.5 | AX183: 499.5 | AY183: 499.5 | AZ183: 3 | BA183: 0500 | BB183: 0 | BC183: 0 | BG183: Elément d'OTP | BH183: OTP | BK183: TYA | BM183: 2100 | BN183: 0100 | BO183: Frais généraux | BP183: TYA | BQ183: Type d'activité | BR183: 14 | BS183: 2100103054 | BT183: 2103 | BU183: H | BV183: 0 | BW183: 0 | BX183: 0 | CA183: R | CC183: 0 | CD183: 0 | CE183: EUR | CJ183: 2 | CK183: 14 | CL183: 2100103054/MACH30 | CM183: Type d'activité | CN183: 8274046990000 | CO183: 11:38:22 | CP183: 2016-03-14 | CQ183: 3 | CR183: HR | CS183: 499.5 | CT183: 4 | CU183: 0 | CV183: 0 | CW183: 0 | CX183: 0 | CY183: PRF-201002 | CZ183: Project Stock | DA183: 89
